Workbook

Sheet Menu
B1: GesTop 14 (2013-2014)
B2: Les Équipes | C2: Journées de Championnat | E2: Statistiques
C3: Matchs Aller | D3: Matchs Retour
B4: Bayonne | C4: 1ère Journée (17 Aout 2013) | D4: 14ème Journée (21 Décembre 2013) | E4: aClub (Confrontations & Stats)
B5: Biarritz | C5: 2ème Journée (24 Aout 2013) | D5: 15ème Journée (29 Décembre 2013)
B6: Bordeaux Bègles | C6: 3ème Journée (31 Aout 2013) | D6: 16ème Journée (4 Janvier 2014) | E6: a Réalisation
B7: Brive | C7: 4ème Journée (4 Septembre 2013) | D7: 17ème Journée (25 Janvier 2014) | E7: a Essais
B8: Castres | C8: 5ème Journée (8 Septembre 2013) | D8: 18ème Journée (8 Février 2014) | E8: a Joueur
B9: Grenoble | C9: 6ème Journée (14 Septembre 2013) | D9: 19ème Journée (15 Février 2014) | E9: a Récap Saison
B10: Montferrand | C10: 7ème Journée (21 Septembre 2013) | D10: 20ème Journée (22 Février 2014) | E10: a Actions
B11: Montpellier | C11: 8ème Journée (28 Septembre 2013) | D11: 21ème Journée (1er Mars 2014)
B12: Oyonnax | C12: 9ème Journée (5 Octobre 2013) | D12: 22ème Journée (22 Mars 2014)
B13: Perpignan | C13: 10ème Journée (26 Octobre 2013) | D13: 23ème Journée (29 Mars 2014)
B14: Racing Métro 92 | C14: 11ème Journée (2 Novembre 2013) | D14: 24ème Journée (12 Avril 2014)
B15: Stade Français | C15: 12ème Journée (23 Novembre 2013) | D15: 25ème Journée (19 Avril 2014)
B16: Toulon | C16: 13ème Journée (30 Novembre 2013) | D16: 26ème Journée (3 Mai 2014)
B17: Toulouse
B18: Anniversaires à souhaiter | C18: Nom du joueur (Club) | D18: Date de Naissance | E18: Age | F18: Date2000
C19: DANTY Jonathan (StadeFrancais) | D19: 1992-10-07 | E19: =IF(D19="","",YEAR(TODAY())-YEAR(D19)&" ans") -> 21 ans | F19: =IF(D19<>"",DATE(2000,MONTH(D19),DAY(D19)),DATE(2000,12,31)) -> 2000-10-07
C20: CLARK Neil (Oyonnax) | D20: 1981-10-08 | E20: =IF(D20="","",YEAR(TODAY())-YEAR(D20)&" ans") -> 32 ans | F20: =IF(D20<>"",DATE(2000,MONTH(D20),DAY(D20)),DATE(2000,12,31)) -> 2000-10-08
E21: =IF(D21="","",YEAR(TODAY())-YEAR(D21)&" ans") ->  | F21: =IF(D21<>"",DATE(2000,MONTH(D21),DAY(D21)),DATE(2000,12,31)) -> 2000-12-31
E22: =IF(D22="","",YEAR(TODAY())-YEAR(D22)&" ans") ->  | F22: =IF(D22<>"",DATE(2000,MONTH(D22),DAY(D22)),DATE(2000,12,31)) -> 2000-12-31
E23: =IF(D23="","",YEAR(TODAY())-YEAR(D23)&" ans") ->  | F23: =IF(D23<>"",DATE(2000,MONTH(D23),DAY(D23)),DATE(2000,12,31)) -> 2000-12-31
E24: =IF(D24="","",YEAR(TODAY())-YEAR(D24)&" ans") ->  | F24: =IF(D24<>"",DATE(2000,MONTH(D24),DAY(D24)),DATE(2000,12,31)) -> 2000-12-31
E25: =IF(D25="","",YEAR(TODAY())-YEAR(D25)&" ans") ->  | F25: =IF(D25<>"",DATE(2000,MONTH(D25),DAY(D25)),DATE(2000,12,31)) -> 2000-12-31
E26: =IF(D26="","",YEAR(TODAY())-YEAR(D26)&" ans") ->  | F26: =IF(D26<>"",DATE(2000,MONTH(D26),DAY(D26)),DATE(2000,12,31)) -> 2000-12-31
A27: =IF(D27,DATE(2000,MONTH(D27),DAY(D27)),"") ->  | E27: =IF(D27="","",YEAR(TODAY())-YEAR(D27)&" ans") -> 

Sheet 1
A1: õ | B1: =IF(C2=1,C2&"ère Journée (",C2&"ème Journée (")&TEXT(E2,"j mmmm aaaa")&")" -> 1ère Journée (17 août 2013) | G1: Classement : | BO1: 1ère Mi-Temps | BP1: =SUMIF(BQ5:BQ45,"<=40",BR5:BR45) -> 13 | BQ1: =SUMIF(BY5:BY45,"<=40",BZ5:BZ45) -> 3 | BS1: E | BT1: P | BU1: D | BV1: T | BW1: 2ème Mi-Temps | BX1: =SUMIF(BQ5:BQ45,">40",BR5:BR45) -> 9 | BY1: =SUMIF(BY5:BY45,">40",BZ5:BZ45) -> 19 | CA1: E | CB1: P | CC1: D | CD1: T | CF1: 1ère Mi-Temps | CG1: =SUMIF(CH5:CH45,"<=40",CI5:CI45) -> 6 | CH1: =SUMIF(CP5:CP45,"<=40",CQ5:CQ45) -> 16 | CJ1: E | CK1: P | CL1: D | CM1: T | CN1: 2ème Mi-Temps | CO1: =SUMIF(CH5:CH45,">40",CI5:CI45) -> 12 | CP1: =SUMIF(CP5:CP45,">40",CQ5:CQ45) -> 6 | CR1: E | CS1: P | CT1: D | CU1: T | CW1: 1ère Mi-Temps | CX1: =SUMIF(CY5:CY45,"<=40",CZ5:CZ45) -> 10 | CY1: =SUMIF(DG5:DG45,"<=40",DH5:DH45) -> 5 | DA1: E | DB1: P | DC1: D | DD1: T | DE1: 2ème Mi-Temps | DF1: =SUMIF(CY5:CY45,">40",CZ5:CZ45) -> 9 | DG1: =SUMIF(DG5:DG45,">40",DH5:DH45) -> 9 | DI1: E | DJ1: P | DK1: D | DL1: T | DN1: 1ère Mi-Temps | DO1: =SUMIF(DP5:DP45,"<=40",DQ5:DQ45) -> 6 | DP1: =SUMIF(DX5:DX45,"<=40",DY5:DY45) -> 9 | DR1: E | DS1: P | DT1: D | DU1: T | DV1: 2ème Mi-Temps | DW1: =SUMIF(DP5:DP45,">40",DQ5:DQ45) -> 13 | DX1: =SUMIF(DX5:DX45,">40",DY5:DY45) -> 7 | DZ1: E | EA1: P | EB1: D | EC1: T | EE1: 1ère Mi-Temps | EF1: =SUMIF(EG5:EG45,"<=40",EH5:EH45) -> 16 | EG1: =SUMIF(EO5:EO45,"<=40",EP5:EP45) -> 12 | EI1: E | EJ1: P | EK1: D | EL1: T | EM1: 2ème Mi-Temps | EN1: =SUMIF(EG5:EG45,">40",EH5:EH45) -> 15 | EO1: =SUMIF(EO5:EO45,">40",EP5:EP45) -> 13 | EQ1: E | ER1: P | ES1: D | ET1: T | EV1: 1ère Mi-Temps | EW1: =SUMIF(EX5:EX45,"<=40",EY5:EY45) -> 22 | EX1: =SUMIF(FF5:FF45,"<=40",FG5:FG45) -> 6 | EZ1: E | FA1: P | FB1: D | FC1: T | FD1: 2ème Mi-Temps | FE1: =SUMIF(EX5:EX45,">40",EY5:EY45) -> 17 | FF1: =SUMIF(FF5:FF45,">40",FG5:FG45) -> 5 | FH1: E | FI1: P | FJ1: D | FK1: T | FM1: 1ère Mi-Temps | FN1: =SUMIF(FO5:FO45,"<=40",FP5:FP45) -> 13 | FO1: =SUMIF(FW5:FW45,"<=40",FX5:FX45) -> 13 | FQ1: E | FR1: P | FS1: D | FT1: T | FU1: 2ème Mi-Temps | FV1: =SUMIF(FO5:FO45,">40",FP5:FP45) -> 13 | FW1: =SUMIF(FW5:FW45,">40",FX5:FX45) -> 10 | FY1: E | FZ1: P | GA1: D | GB1: T
B2: Journée | C2: 1 | E2: 2013-08-17 | I2: Classement Général | BN2: =HYPERLINK(MID(CELL("filename",A1),FIND("[",CELL("filename",A1)),FIND("]", CELL("filename",A1))-FIND("[",CELL("filename",A1))+1)&"'"&MID(CELL("filename",A1),FIND("]",CELL("filename",A1))+1,99)&"'!a1","ç") -> ç | BO2: =B3 -> Montpellier | BQ2: =SUM(BR5:BR45) -> 22 | BS2: =SUM(BS5:BS45) -> 1 | BT2: =SUM(BT5:BT45) -> 4 | BU2: =SUM(BU5:BU45) -> 1 | BV2: =SUM(BV5:BV45) -> 1 | BW2: =E3 -> Toulon | BY2: =SUM(BZ5:BZ45) -> 22 | CA2: =SUM(CA5:CA45) -> 1 | CB2: =SUM(CB5:CB45) -> 5 | CC2: =SUM(CC5:CC45) -> 0 | CD2: =SUM(CD5:CD45) -> 1 | CE2: =HYPERLINK(MID(CELL("filename",R1),FIND("[",CELL("filename",R1)),FIND("]", CELL("filename",R1))-FIND("[",CELL("filename",R1))+1)&"'"&MID(CELL("filename",R1),FIND("]",CELL("filename",R1))+1,99)&"'!a1","ç") -> ç | CF2: =B5 -> Biarritz | CH2: =SUM(CI5:CI45) -> 18 | CJ2: =SUM(CJ5:CJ45) -> 2 | CK2: =SUM(CK5:CK45) -> 1 | CL2: =SUM(CL5:CL45) -> 1 | CM2: =SUM(CM5:CM45) -> 1 | CN2: =E5 -> Montferrand | CP2: =SUM(CQ5:CQ45) -> 22 | CR2: =SUM(CR5:CR45) -> 1 | CS2: =SUM(CS5:CS45) -> 5 | CT2: =SUM(CT5:CT45) -> 0 | CU2: =SUM(CU5:CU45) -> 1 | CV2: =HYPERLINK(MID(CELL("filename",AU1),FIND("[",CELL("filename",AU1)),FIND("]", CELL("filename",AU1))-FIND("[",CELL("filename",AU1))+1)&"'"&MID(CELL("filename",AU1),FIND("]",CELL("filename",AU1))+1,99)&"'!a1","ç") -> ç | CW2: =B7 -> RacingMétro92 | CY2: =SUM(CZ5:CZ45) -> 19 | DA2: =SUM(DA5:DA45) -> 1 | DB2: =SUM(DB5:DB45) -> 4 | DC2: =SUM(DC5:DC45) -> 0 | DD2: =SUM(DD5:DD45) -> 1 | DE2: =E7 -> Brive | DG2: =SUM(DH5:DH45) -> 14 | DI2: =SUM(DI5:DI45) -> 1 | DJ2: =SUM(DJ5:DJ45) -> 2 | DK2: =SUM(DK5:DK45) -> 1 | DL2: =SUM(DL5:DL45) -> 0 | DM2: =HYPERLINK(MID(CELL("filename",BR1),FIND("[",CELL("filename",BR1)),FIND("]", CELL("filename",BR1))-FIND("[",CELL("filename",BR1))+1)&"'"&MID(CELL("filename",BR1),FIND("]",CELL("filename",BR1))+1,99)&"'!a1","ç") -> ç | DN2: =B9 -> Grenoble | DP2: =SUM(DQ5:DQ45) -> 19 | DR2: =SUM(DR5:DR45) -> 1 | DS2: =SUM(DS5:DS45) -> 4 | DT2: =SUM(DT5:DT45) -> 0 | DU2: =SUM(DU5:DU45) -> 1 | DV2: =E9 -> StadeFrancais | DX2: =SUM(DY5:DY45) -> 16 | DZ2: =SUM(DZ5:DZ45) -> 1 | EA2: =SUM(EA5:EA45) -> 3 | EB2: =SUM(EB5:EB45) -> 0 | EC2: =SUM(EC5:EC45) -> 1 | ED2: =HYPERLINK(MID(CELL("filename",CI1),FIND("[",CELL("filename",CI1)),FIND("]", CELL("filename",CI1))-FIND("[",CELL("filename",CI1))+1)&"'"&MID(CELL("filename",CI1),FIND("]",CELL("filename",CI1))+1,99)&"'!a1","ç") -> ç | EE2: =B11 -> BordeauxBègles | EG2: =SUM(EH5:EH45) -> 31 | EI2: =SUM(EI5:EI45) -> 1 | EJ2: =SUM(EJ5:EJ45) -> 8 | EK2: =SUM(EK5:EK45) -> 0 | EL2: =SUM(EL5:EL45) -> 1 | EM2: =E11 -> Toulouse | EO2: =SUM(EP5:EP45) -> 25 | EQ2: =SUM(EQ5:EQ45) -> 1 | ER2: =SUM(ER5:ER45) -> 6 | ES2: =SUM(ES5:ES45) -> 0 | ET2: =SUM(ET5:ET45) -> 1 | EU2: =HYPERLINK(MID(CELL("filename",CZ1),FIND("[",CELL("filename",CZ1)),FIND("]", CELL("filename",CZ1))-FIND("[",CELL("filename",CZ1))+1)&"'"&MID(CELL("filename",CZ1),FIND("]",CELL("filename",CZ1))+1,99)&"'!a1","ç") -> ç | EV2: =B13 -> Bayonne | EX2: =SUM(EY5:EY45) -> 39 | EZ2: =SUM(EZ5:EZ45) -> 4 | FA2: =SUM(FA5:FA45) -> 5 | FB2: =SUM(FB5:FB45) -> 0 | FC2: =SUM(FC5:FC45) -> 2 | FD2: =E13 -> Oyonnax | FF2: =SUM(FG5:FG45) -> 11 | FH2: =SUM(FH5:FH45) -> 1 | FI2: =SUM(FI5:FI45) -> 2 | FJ2: =SUM(FJ5:FJ45) -> 0 | FK2: =SUM(FK5:FK45) -> 0 | FL2: =HYPERLINK(MID(CELL("filename",DQ1),FIND("[",CELL("filename",DQ1)),FIND("]", CELL("filename",DQ1))-FIND("[",CELL("filename",DQ1))+1)&"'"&MID(CELL("filename",DQ1),FIND("]",CELL("filename",DQ1))+1,99)&"'!a1","ç") -> ç | FM2: =B15 -> Perpignan | FO2: =SUM(FP5:FP45) -> 26 | FQ2: =SUM(FQ5:FQ45) -> 2 | FR2: =SUM(FR5:FR45) -> 3 | FS2: =SUM(FS5:FS45) -> 1 | FT2: =SUM(FT5:FT45) -> 2 | FU2: =E15 -> Castres | FW2: =SUM(FX5:FX30) -> 23 | FY2: =SUM(FY5:FY45) -> 2 | FZ2: =SUM(FZ5:FZ45) -> 3 | GA2: =SUM(GA5:GA45) -> 0 | GB2: =SUM(GB5:GB45) -> 2
A3: =HYPERLINK(MID(CELL("filename",A1),FIND("[",CELL("filename",A1)),FIND("]", CELL("filename",A1))-FIND("[",CELL("filename",A1))+1)&"'"&MID(CELL("filename",A1),FIND("]",CELL("filename",A1))+1,99)&"'!ch1","Détail") -> Détail | B3: Montpellier | C3: =BQ2 -> 22 | D3: =BY2 -> 22 | E3: Toulon
B4: =BS2 -> 1 | E4: =CA2 -> 1 | I4: Pts | J4: J. | K4: G | L4: N | M4: P | N4: Pr | O4: Ctr | P4: Diff | Q4: E p | R4: E c | S4: Tp | T4: Tc | U4: Dp | V4: Dc | W4: Pp | X4: Pc | Y4: B.O | Z4: B.D | AA4: Bon | AB4: Cr | AC4: Cj | BO4: Joueur | BP4: Action | BQ4: " | BW4: Joueur | BX4: Action | BY4: " | CF4: Joueur | CG4: Action | CH4: " | CN4: Joueur | CO4: Action | CP4: " | CW4: Joueur | CX4: Action | CY4: " | DE4: Joueur | DF4: Action | DG4: " | DN4: Joueur | DO4: Action | DP4: " | DV4: Joueur | DW4: Action | DX4: " | EE4: Joueur | EF4: Action | EG4: " | EM4: Joueur | EN4: Action | EO4: " | EV4: Joueur | EW4: Action | EX4: " | FD4: Joueur | FE4: Action | FF4: " | FM4: Joueur | FN4: Action | FO4: " | FU4: Joueur | FV4: Action | FW4: "
A5: =HYPERLINK(MID(CELL("filename",A3),FIND("[",CELL("filename",A3)),FIND("]", CELL("filename",A3))-FIND("[",CELL("filename",A3))+1)&"'"&MID(CELL("filename",A3),FIND("]",CELL("filename",A3))+1,99)&"'!cw1","Détail") -> Détail | B5: Biarritz | C5: =CH2 -> 18 | D5: =CP2 -> 22 | E5: Montferrand | G5: 1 | H5: Bayonne | I5: 5 | J5: 1 | K5: 1 | L5: 0 | M5: 0 | N5: 39 | O5: 11 | P5: 28 | Q5: 4 | R5: 1 | S5: 2 | T5: 0 | U5: 0 | V5: 0 | W5: 5 | X5: 2 | Y5: 1 | Z5: 0 | AA5: 1 | AB5: 0 | AC5: 0 | BO5: AUDRIN Yoan | BP5: Essai | BQ5: 3 | BR5: =IF(BP5<>"",VLOOKUP(BP5,ActionPts,2,),"") -> 5 | BS5: =IF(OR(BP5="Essai",BP5="Essai de Pénalité"),1,0) -> 1 | BT5: =IF(BP5="Pénalité",1,0) -> 0 | BU5: =IF(BP5="Drop",1,0) -> 0 | BV5: =IF(BP5="Transformation",1,0) -> 0 | BW5: BRUNI Virgile | BX5: Carton Jaune | BY5: 24 | BZ5: =IF(BX5<>"",VLOOKUP(BX5,ActionPts,2,),"") -> 0 | CA5: =IF(OR(BX5="Essai",BX5="Essai de Pénalité"),1,0) -> 0 | CB5: =IF(BX5="Pénalité",1,0) -> 0 | CC5: =IF(BX5="Drop",1,0) -> 0 | CD5: =IF(BX5="Transformation",1,0) -> 0 | CF5: YACHVILI Dimitri | CG5: Pénalité | CH5: 25 | CI5: =IF(CG5<>"",VLOOKUP(CG5,ActionPts,2,),"") -> 3 | CJ5: =IF(OR(CG5="Essai",CG5="Essai de Pénalité"),1,0) -> 0 | CK5: =IF(CG5="Pénalité",1,0) -> 1 | CL5: =IF(CG5="Drop",1,0) -> 0 | CM5: =IF(CG5="Transformation",1,0) -> 0 | CN5: JAMES Brock | CO5: Pénalité | CP5: 3 | CQ5: =IF(CO5<>"",VLOOKUP(CO5,ActionPts,2,),"") -> 3 | CR5: =IF(OR(CO5="Essai",CO5="Essai de Pénalité"),1,0) -> 0 | CS5: =IF(CO5="Pénalité",1,0) -> 1 | CT5: =IF(CO5="Drop",1,0) -> 0 | CU5: =IF(CO5="Transformation",1,0) -> 0 | CW5: LAPEYRE Benjamin | CX5: Essai | CY5: 11 | CZ5: =IF(CX5<>"",VLOOKUP(CX5,ActionPts,2,),"") -> 5 | DA5: =IF(OR(CX5="Essai",CX5="Essai de Pénalité"),1,0) -> 1 | DB5: =IF(CX5="Pénalité",1,0) -> 0 | DC5: =IF(CX5="Drop",1,0) -> 0 | DD5: =IF(CX5="Transformation",1,0) -> 0 | DE5: BAKANICERA Malakai | DF5: Essai | DG5: 14 | DH5: =IF(DF5<>"",VLOOKUP(DF5,ActionPts,2,),"") -> 5 | DI5: =IF(OR(DF5="Essai",DF5="Essai de Pénalité"),1,0) -> 1 | DJ5: =IF(DF5="Pénalité",1,0) -> 0 | DK5: =IF(DF5="Drop",1,0) -> 0 | DL5: =IF(DF5="Transformation",1,0) -> 0 | DN5: COURRENT Valentin | DO5: Pénalité | DP5: 20 | DQ5: =IF(DO5<>"",VLOOKUP(DO5,ActionPts,2,),"") -> 3 | DR5: =IF(OR(DO5="Essai",DO5="Essai de Pénalité"),1,0) -> 0 | DS5: =IF(DO5="Pénalité",1,0) -> 1 | DT5: =IF(DO5="Drop",1,0) -> 0 | DU5: =IF(DO5="Transformation",1,0) -> 0 | DV5: DUPUY Julien | DW5: Pénalité | DX5: 10 | DY5: =IF(DW5<>"",VLOOKUP(DW5,ActionPts,2,),"") -> 3 | DZ5: =IF(OR(DW5="Essai",DW5="Essai de Pénalité"),1,0) -> 0 | EA5: =IF(DW5="Pénalité",1,0) -> 1 | EB5: =IF(DW5="Drop",1,0) -> 0 | EC5: =IF(DW5="Transformation",1,0) -> 0 | EE5: BERNARD Pierre | EF5: Pénalité | EG5: 25 | EH5: =IF(EF5<>"",VLOOKUP(EF5,ActionPts,2,),"") -> 3 | EI5: =IF(OR(EF5="Essai",EF5="Essai de Pénalité"),1,0) -> 0 | EJ5: =IF(EF5="Pénalité",1,0) -> 1 | EK5: =IF(EF5="Drop",1,0) -> 0 | EL5: =IF(EF5="Transformation",1,0) -> 0 | EM5: BEAUXIS Lionel | EN5: Pénalité | EO5: 10 | EP5: =IF(EN5<>"",VLOOKUP(EN5,ActionPts,2,),"") -> 3 | EQ5: =IF(OR(EN5="Essai",EN5="Essai de Pénalité"),1,0) -> 0 | ER5: =IF(EN5="Pénalité",1,0) -> 1 | ES5: =IF(EN5="Drop",1,0) -> 0 | ET5: =IF(EN5="Transformation",1,0) -> 0 | EV5: BUSTOS MOYANO Martín | EW5: Pénalité | EX5: 5 | EY5: =IF(EW5<>"",VLOOKUP(EW5,ActionPts,2,),"") -> 3 | EZ5: =IF(OR(EW5="Essai",EW5="Essai de Pénalité"),1,0) -> 0 | FA5: =IF(EW5="Pénalité",1,0) -> 1 | FB5: =IF(EW5="Drop",1,0) -> 0 | FC5: =IF(EW5="Transformation",1,0) -> 0 | FD5: URDAPILLETA Benjamin | FE5: Pénalité | FF5: 8 | FG5: =IF(FE5<>"",VLOOKUP(FE5,ActionPts,2,),"") -> 3 | FH5: =IF(OR(FE5="Essai",FE5="Essai de Pénalité"),1,0) -> 0 | FI5: =IF(FE5="Pénalité",1,0) -> 1 | FJ5: =IF(FE5="Drop",1,0) -> 0 | FK5: =IF(FE5="Transformation",1,0) -> 0 | FM5: HOOK James | FN5: Pénalité | FO5: 16 | FP5: =IF(FN5<>"",VLOOKUP(FN5,ActionPts,2,),"") -> 3 | FQ5: =IF(OR(FN5="Essai",FN5="Essai de Pénalité"),1,0) -> 0 | FR5: =IF(FN5="Pénalité",1,0) -> 1 | FS5: =IF(FN5="Drop",1,0) -> 0 | FT5: =IF(FN5="Transformation",1,0) -> 0 | FU5: GARVEY Marcel | FV5: Essai | FW5: 2 | FX5: =IF(FV5<>"",VLOOKUP(FV5,ActionPts,2,),"") -> 5 | FY5: =IF(OR(FV5="Essai",FV5="Essai de Pénalité"),1,0) -> 1 | FZ5: =IF(FV5="Pénalité",1,0) -> 0 | GA5: =IF(FV5="Drop",1,0) -> 0 | GB5: =IF(FV5="Transformation",1,0) -> 0
B6: =CJ2 -> 2 | E6: =CR2 -> 1 | G6: 2 | H6: BordeauxBègles | I6: 4 | J6: 1 | K6: 1 | L6: 0 | M6: 0 | N6: 31 | O6: 25 | P6: 6 | Q6: 1 | R6: 1 | S6: 1 | T6: 1 | U6: 0 | V6: 0 | W6: 8 | X6: 6 | Y6: 0 | Z6: 0 | AA6: 0 | AB6: 0 | AC6: 0 | BO6: PÉLISSIÉ Jonathan | BP6: Transformation | BQ6: 3 | BR6: 2 | BS6: 0 | BT6: 0 | BU6: 0 | BV6: 1 | BW6: WILKINSON Jonny | BX6: Pénalité | BY6: 26 | BZ6: 3 | CA6: =IF(OR(BX6="Essai",BX6="Essai de Pénalité"),1,0) -> 0 | CB6: 1 | CC6: 0 | CD6: 0 | CF6: WAENGA Daniel | CG6: Drop | CH6: 39 | CI6: 3 | CJ6: =IF(OR(CG6="Essai",CG6="Essai de Pénalité"),1,0) -> 0 | CK6: 0 | CL6: 1 | CM6: 0 | CN6: JAMES Brock | CO6: Pénalité | CP6: 11 | CQ6: 3 | CR6: =IF(OR(CO6="Essai",CO6="Essai de Pénalité"),1,0) -> 0 | CS6: 1 | CT6: 0 | CU6: 0 | CW6: SEXTON Jonathan | CX6: Transformation | CY6: 11 | CZ6: 2 | DA6: =IF(OR(CX6="Essai",CX6="Essai de Pénalité"),1,0) -> 0 | DB6: 0 | DC6: 0 | DD6: 1 | DE6: GERMAIN Gaëtan | DF6: Pénalité | DG6: 45 | DH6: 3 | DI6: =IF(OR(DF6="Essai",DF6="Essai de Pénalité"),1,0) -> 0 | DJ6: 1 | DK6: 0 | DL6: 0 | DN6: COURRENT Valentin | DO6: Pénalité | DP6: 27 | DQ6: 3 | DR6: =IF(OR(DO6="Essai",DO6="Essai de Pénalité"),1,0) -> 0 | DS6: 1 | DT6: 0 | DU6: 0 | DV6: DUPUY Julien | DW6: Pénalité | DX6: 16 | DY6: 3 | DZ6: =IF(OR(DW6="Essai",DW6="Essai de Pénalité"),1,0) -> 0 | EA6: 1 | EB6: 0 | EC6: 0 | EE6: BERNARD Pierre | EF6: Pénalité | EG6: 28 | EH6: 3 | EI6: =IF(OR(EF6="Essai",EF6="Essai de Pénalité"),1,0) -> 0 | EJ6: 1 | EK6: 0 | EL6: 0 | EM6: BEAUXIS Lionel | EN6: Pénalité | EO6: 12 | EP6: 3 | EQ6: =IF(OR(EN6="Essai",EN6="Essai de Pénalité"),1,0) -> 0 | ER6: 1 | ES6: 0 | ET6: 0 | EV6: BUSTOS MOYANO Martín | EW6: Pénalité | EX6: 14 | EY6: 3 | EZ6: =IF(OR(EW6="Essai",EW6="Essai de Pénalité"),1,0) -> 0 | FA6: 1 | FB6: 0 | FC6: 0 | FD6: URDAPILLETA Benjamin | FE6: Pénalité | FF6: 19 | FG6: 3 | FH6: =IF(OR(FE6="Essai",FE6="Essai de Pénalité"),1,0) -> 0 | FI6: 1 | FJ6: 0 | FK6: 0 | FM6: LOPEZ Camille | FN6: Drop | FO6: 25 | FP6: 3 | FQ6: =IF(OR(FN6="Essai",FN6="Essai de Pénalité"),1,0) -> 0 | FR6: 0 | FS6: 1 | FT6: 0 | FU6: KOCKOTT Rory | FV6: Transformation | FW6: 2 | FX6: 2 | FY6: =IF(OR(FV6="Essai",FV6="Essai de Pénalité"),1,0) -> 0 | FZ6: 0 | GA6: 0 | GB6: 1
A7: =HYPERLINK(MID(CELL("filename",A5),FIND("[",CELL("filename",A5)),FIND("]", CELL("filename",A5))-FIND("[",CELL("filename",A5))+1)&"'"&MID(CELL("filename",A5),FIND("]",CELL("filename",A5))+1,99)&"'!do1","Détail") -> Détail | B7: RacingMétro92 | C7: =CY2 -> 19 | D7: =DG2 -> 14 | E7: Brive | G7: 3 | H7: RacingMétro92 | I7: 4 | J7: 1 | K7: 1 | L7: 0 | M7: 0 | N7: 19 | O7: 14 | P7: 5 | Q7: 1 | R7: 1 | S7: 1 | T7: 0 | U7: 0 | V7: 1 | W7: 4 | X7: 2 | Y7: 0 | Z7: 0 | AA7: 0 | AB7: 0 | AC7: 0 | BO7: PÉLISSIÉ Jonathan | BP7: Pénalité | BQ7: 22 | BR7: 3 | BS7: 0 | BT7: 1 | BU7: 0 | BV7: 0 | BW7: WILKINSON Jonny | BX7: Pénalité | BY7: 42 | BZ7: 3 | CA7: 0 | CB7: 1 | CC7: 0 | CD7: 0 | CF7: YACHVILI Dimitri | CG7: Essai | CH7: 59 | CI7: 5 | CJ7: 1 | CK7: 0 | CL7: 0 | CM7: 0 | CN7: KING Regan | CO7: Essai | CP7: 20 | CQ7: 5 | CR7: 1 | CS7: 0 | CT7: 0 | CU7: 0 | CW7: SEXTON Jonathan | CX7: Pénalité | CY7: 22 | CZ7: 3 | DA7: 0 | DB7: 1 | DC7: 0 | DD7: 0 | DE7: GERMAIN Gaëtan | DF7: Pénalité | DG7: 56 | DH7: 3 | DI7: 0 | DJ7: 1 | DK7: 0 | DL7: 0 | DN7: COURRENT Valentin | DO7: Pénalité | DP7: 44 | DQ7: 3 | DR7: 0 | DS7: 1 | DT7: 0 | DU7: 0 | DV7: DUPUY Julien | DW7: Pénalité | DX7: 31 | DY7: 3 | DZ7: 0 | EA7: 1 | EB7: 0 | EC7: 0 | EE7: TALEBULA Metuisela | EF7: Essai | EG7: 32 | EH7: 5 | EI7: 1 | EJ7: 0 | EK7: 0 | EL7: 0 | EM7: BEAUXIS Lionel | EN7: Pénalité | EO7: 20 | EP7: 3 | EQ7: 0 | ER7: 1 | ES7: 0 | ET7: 0 | EV7: ROKOCOKO Joe | EW7: Essai | EX7: 15 | EY7: 5 | EZ7: 1 | FA7: 0 | FB7: 0 | FC7: 0 | FD7: COUX Jean-François | FE7: Essai | FF7: 43 | FG7: 5 | FH7: 1 | FI7: 0 | FJ7: 0 | FK7: 0 | FM7: GUITOUNE Sofiane | FN7: Essai | FO7: 27 | FP7: 5 | FQ7: 1 | FR7: 0 | FS7: 0 | FT7: 0 | FU7: KOCKOTT Rory | FV7: Pénalité | FW7: 10 | FX7: 3 | FY7: 0 | FZ7: 1 | GA7: 0 | GB7: 0
B8: =DA2 -> 1 | E8: =DI2 -> 1 | G8: 4 | H8: Montferrand | I8: 4 | J8: 1 | K8: 1 | L8: 0 | M8: 0 | N8: 22 | O8: 18 | P8: 4 | Q8: 1 | R8: 2 | S8: 1 | T8: 1 | U8: 0 | V8: 1 | W8: 5 | X8: 1 | Y8: 0 | Z8: 0 | AA8: 0 | AB8: 0 | AC8: 2 | BO8: PÉLISSIÉ Jonathan | BP8: Pénalité | BQ8: 29 | BR8: 3 | BS8: 0 | BT8: 1 | BU8: 0 | BV8: 0 | BW8: WILKINSON Jonny | BX8: Pénalité | BY8: 58 | BZ8: 3 | CA8: 0 | CB8: 1 | CC8: 0 | CD8: 0 | CF8: HÉGUY Arnaud | CG8: Carton Jaune | CH8: 69 | CI8: 0 | CJ8: 0 | CK8: 0 | CL8: 0 | CM8: 0 | CN8: JAMES Brock | CO8: Transformation | CP8: 20 | CQ8: 2 | CR8: 0 | CS8: 0 | CT8: 0 | CU8: 1 | CW8: SEXTON Jonathan | CX8: Pénalité | CY8: 49 | CZ8: 3 | DA8: 0 | DB8: 1 | DC8: 0 | DD8: 0 | DE8: FERRERES Laurent | DF8: Drop | DG8: 76 | DH8: 3 | DI8: 0 | DJ8: 0 | DK8: 1 | DL8: 0 | DN8: HEGARTY Anthony | DO8: Essai | DP8: 46 | DQ8: 5 | DR8: 1 | DS8: 0 | DT8: 0 | DU8: 0 | DV8: ARIAS Julien | DW8: Essai | DX8: 57 | DY8: 5 | DZ8: 1 | EA8: 0 | EB8: 0 | EC8: 0 | EE8: BERNARD Pierre | EF8: Transformation | EG8: 32 | EH8: 2 | EI8: 0 | EJ8: 0 | EK8: 0 | EL8: 1 | EM8: DOUSSAIN Jean-Marc | EN8: Carton Jaune | EO8: 24 | EP8: 0 | EQ8: 0 | ER8: 0 | ES8: 0 | ET8: 0 | EV8: BUSTOS MOYANO Martín | EW8: Transformation | EX8: 15 | EY8: 2 | EZ8: 0 | FA8: 0 | FB8: 0 | FC8: 1 | FH8: 0 | FI8: 0 | FJ8: 0 | FK8: 0 | FM8: HOOK James | FN8: Transformation | FO8: 27 | FP8: 2 | FQ8: 0 | FR8: 0 | FS8: 0 | FT8: 1 | FU8: MARTIAL Romain | FV8: Carton Jaune | FW8: 25 | FX8: 0 | FY8: 0 | FZ8: 0 | GA8: 0 | GB8: 0
A9: =HYPERLINK(MID(CELL("filename",A7),FIND("[",CELL("filename",A7)),FIND("]", CELL("filename",A7))-FIND("[",CELL("filename",A7))+1)&"'"&MID(CELL("filename",A7),FIND("]",CELL("filename",A7))+1,99)&"'!eg1","Détail") -> Détail | B9: Grenoble | C9: =DP2 -> 19 | D9: =DX2 -> 16 | E9: StadeFrancais | G9: 5 | H9: Perpignan | I9: 4 | J9: 1 | K9: 1 | L9: 0 | M9: 0 | N9: 26 | O9: 23 | P9: 3 | Q9: 2 | R9: 2 | S9: 2 | T9: 2 | U9: 1 | V9: 0 | W9: 3 | X9: 3 | Y9: 0 | Z9: 0 | AA9: 0 | AB9: 0 | AC9: 0 | BO9: TRINH-DUC François | BP9: Drop | BQ9: 52 | BR9: 3 | BS9: 0 | BT9: 0 | BU9: 1 | BV9: 0 | BW9: WILKINSON Jonny | BX9: Pénalité | BY9: 63 | BZ9: 3 | CA9: 0 | CB9: 1 | CC9: 0 | CD9: 0 | CF9: THOMAS Teddy | CG9: Essai | CH9: 78 | CI9: 5 | CJ9: 1 | CK9: 0 | CL9: 0 | CM9: 0 | CN9: PAULO Ti’i | CO9: Carton Jaune | CP9: 28 | CQ9: 0 | CR9: 0 | CS9: 0 | CT9: 0 | CU9: 0 | CW9: WISNIEWSKI Jonathan | CX9: Pénalité | CY9: 62 | CZ9: 3 | DA9: 0 | DB9: 1 | DC9: 0 | DD9: 0 | DI9: 0 | DJ9: 0 | DK9: 0 | DL9: 0 | DN9: COURRENT Valentin | DO9: Transformation | DP9: 46 | DQ9: 2 | DR9: 0 | DS9: 0 | DT9: 0 | DU9: 1 | DV9: DUPUY Julien | DW9: Transformation | DX9: 57 | DY9: 2 | DZ9: 0 | EA9: 0 | EB9: 0 | EC9: 1 | EE9: BERNARD Pierre | EF9: Pénalité | EG9: 40 | EH9: 3 | EI9: 0 | EJ9: 1 | EK9: 0 | EL9: 0 | EM9: BEAUXIS Lionel | EN9: Pénalité | EO9: 39 | EP9: 3 | EQ9: 0 | ER9: 1 | ES9: 0 | ET9: 0 | EV9: BUSTOS MOYANO Martín | EW9: Pénalité | EX9: 23 | EY9: 3 | EZ9: 0 | FA9: 1 | FB9: 0 | FC9: 0 | FH9: 0 | FI9: 0 | FJ9: 0 | FK9: 0 | FM9: HOOK James | FN9: Pénalité | FO9: 45 | FP9: 3 | FQ9: 0 | FR9: 1 | FS9: 0 | FT9: 0 | FU9: KOCKOTT Rory | FV9: Pénalité | FW9: 30 | FX9: 3 | FY9: 0 | FZ9: 1 | GA9: 0 | GB9: 0
B10: =DR2 -> 1 | E10: =DZ2 -> 1 | G10: 6 | H10: Grenoble | I10: 4 | J10: 1 | K10: 1 | L10: 0 | M10: 0 | N10: 19 | O10: 16 | P10: 3 | Q10: 1 | R10: 1 | S10: 1 | T10: 1 | U10: 0 | V10: 0 | W10: 4 | X10: 3 | Y10: 0 | Z10: 0 | AA10: 0 | AB10: 0 | AC10: 0 | BO10: PAILLAUGUE Benoît | BP10: Pénalité | BQ10: 61 | BR10: 3 | BS10: 0 | BT10: 1 | BU10: 0 | BV10: 0 | BW10: WILKINSON Jonny | BX10: Pénalité | BY10: 69 | BZ10: 3 | CA10: 0 | CB10: 1 | CC10: 0 | CD10: 0 | CF10: YACHVILI Dimitri | CG10: Transformation | CH10: 78 | CI10: 2 | CJ10: 0 | CK10: 0 | CL10: 0 | CM10: 1 | CN10: JAMES Brock | CO10: Pénalité | CP10: 35 | CQ10: 3 | CR10: 0 | CS10: 1 | CT10: 0 | CU10: 0 | CW10: WISNIEWSKI Jonathan | CX10: Pénalité | CY10: 72 | CZ10: 3 | DA10: 0 | DB10: 1 | DC10: 0 | DD10: 0 | DI10: 0 | DJ10: 0 | DK10: 0 | DL10: 0 | DN10: COURRENT Valentin | DO10: Pénalité | DP10: 68 | DQ10: 3 | DR10: 0 | DS10: 1 | DT10: 0 | DU10: 0 | DZ10: 0 | EA10: 0 | EB10: 0 | EC10: 0 | EE10: BERNARD Pierre | EF10: Pénalité | EG10: 45 | EH10: 3 | EI10: 0 | EJ10: 1 | EK10: 0 | EL10: 0 | EM10: McALISTER Luke | EN10: Pénalité | EO10: 43 | EP10: 3 | EQ10: 0 | ER10: 1 | ES10: 0 | ET10: 0 | EV10: BUSTOS MOYANO Martín | EW10: Pénalité | EX10: 29 | EY10: 3 | EZ10: 0 | FA10: 1 | FB10: 0 | FC10: 0 | FH10: 0 | FI10: 0 | FJ10: 0 | FK10: 0 | FM10: HOOK James | FN10: Pénalité | FO10: 51 | FP10: 3 | FQ10: 0 | FR10: 1 | FS10: 0 | FT10: 0 | FU10: KOCKOTT Rory | FV10: Pénalité | FW10: 53 | FX10: 3 | FY10: 0 | FZ10: 1 | GA10: 0 | GB10: 0
A11: =HYPERLINK(MID(CELL("filename",A9),FIND("[",CELL("filename",A9)),FIND("]", CELL("filename",A9))-FIND("[",CELL("filename",A9))+1)&"'"&MID(CELL("filename",A9),FIND("]",CELL("filename",A9))+1,99)&"'!ew1","Détail") -> Détail | B11: BordeauxBègles | C11: =EG2 -> 31 | D11: =EO2 -> 25 | E11: Toulouse | G11: 7 | H11: Montpellier | I11: 2 | J11: 1 | K11: 0 | L11: 1 | M11: 0 | N11: 22 | O11: 22 | P11: 0 | Q11: 1 | R11: 1 | S11: 1 | T11: 1 | U11: 1 | V11: 0 | W11: 4 | X11: 5 | Y11: 0 | Z11: 0 | AA11: 0 | AB11: 0 | AC11: 0 | BO11: PAILLAUGUE Benoît | BP11: Pénalité | BQ11: 66 | BR11: 3 | BS11: 0 | BT11: 1 | BU11: 0 | BV11: 0 | BW11: MERMOZ Maxime | BX11: Essai | BY11: 71 | BZ11: 5 | CA11: 1 | CB11: 0 | CC11: 0 | CD11: 0 | CJ11: 0 | CK11: 0 | CL11: 0 | CM11: 0 | CN11: JAMES Brock | CO11: Pénalité | CP11: 62 | CQ11: 3 | CR11: 0 | CS11: 1 | CT11: 0 | CU11: 0 | DA11: 0 | DB11: 0 | DC11: 0 | DD11: 0 | DI11: 0 | DJ11: 0 | DK11: 0 | DL11: 0 | DR11: 0 | DS11: 0 | DT11: 0 | DU11: 0 | DZ11: 0 | EA11: 0 | EB11: 0 | EC11: 0 | EE11: BERNARD Pierre | EF11: Pénalité | EG11: 53 | EH11: 3 | EI11: 0 | EJ11: 1 | EK11: 0 | EL11: 0 | EM11: McALISTER Luke | EN11: Pénalité | EO11: 62 | EP11: 3 | EQ11: 0 | ER11: 1 | ES11: 0 | ET11: 0 | EV11: BUSTOS MOYANO Martín | EW11: Pénalité | EX11: 32 | EY11: 3 | EZ11: 0 | FA11: 1 | FB11: 0 | FC11: 0 | FH11: 0 | FI11: 0 | FJ11: 0 | FK11: 0 | FM11: LOPEZ Camille | FN11: Essai | FO11: 73 | FP11: 5 | FQ11: 1 | FR11: 0 | FS11: 0 | FT11: 0 | FU11: FAASALELE Piula | FV11: Essai | FW11: 59 | FX11: 5 | FY11: 1 | FZ11: 0 | GA11: 0 | GB11: 0
B12: =EI2 -> 1 | E12: =EQ2 -> 1 | G12: 8 | H12: Toulon | I12: 2 | J12: 1 | K12: 0 | L12: 1 | M12: 0 | N12: 22 | O12: 22 | P12: 0 | Q12: 1 | R12: 1 | S12: 1 | T12: 1 | U12: 0 | V12: 1 | W12: 5 | X12: 4 | Y12: 0 | Z12: 0 | AA12: 0 | AB12: 0 | AC12: 1 | BS12: 0 | BT12: 0 | BU12: 0 | BV12: 0 | BW12: WILKINSON Jonny | BX12: Transformation | BY12: 71 | BZ12: 2 | CA12: 0 | CB12: 0 | CC12: 0 | CD12: 1 | CJ12: 0 | CK12: 0 | CL12: 0 | CM12: 0 | CN12: JAMES Brock | CO12: Pénalité | CP12: 70 | CQ12: 3 | CR12: 0 | CS12: 1 | CT12: 0 | CU12: 0 | DA12: 0 | DB12: 0 | DC12: 0 | DD12: 0 | DI12: 0 | DJ12: 0 | DK12: 0 | DL12: 0 | DR12: 0 | DS12: 0 | DT12: 0 | DU12: 0 | DZ12: 0 | EA12: 0 | EB12: 0 | EC12: 0 | EE12: BERNARD Pierre | EF12: Pénalité | EG12: 68 | EH12: 3 | EI12: 0 | EJ12: 1 | EK12: 0 | EL12: 0 | EM12: GEAR Hosea | EN12: Essai | EO12: 65 | EP12: 5 | EQ12: 1 | ER12: 0 | ES12: 0 | ET12: 0 | EV12: LOVOBALAVU Gabiriele | EW12: Essai | EX12: 53 | EY12: 5 | EZ12: 1 | FA12: 0 | FB12: 0 | FC12: 0 | FH12: 0 | FI12: 0 | FJ12: 0 | FK12: 0 | FM12: HOOK James | FN12: Transformation | FO12: 73 | FP12: 2 | FQ12: 0 | FR12: 0 | FS12: 0 | FT12: 1 | FU12: KOCKOTT Rory | FV12: Transformation | FW12: 59 | FX12: 2 | FY12: 0 | FZ12: 0 | GA12: 0 | GB12: 1
A13: =HYPERLINK(MID(CELL("filename",A11),FIND("[",CELL("filename",A11)),FIND("]", CELL("filename",A11))-FIND("[",CELL("filename",A11))+1)&"'"&MID(CELL("filename",A11),FIND("]",CELL("filename",A11))+1,99)&"'!fn1","Détail") -> Détail | B13: Bayonne | C13: =EX2 -> 39 | D13: =FF2 -> 11 | E13: Oyonnax | G13: 9 | H13: StadeFrancais | I13: 1 | J13: 1 | K13: 0 | L13: 0 | M13: 1 | N13: 16 | O13: 19 | P13: -3 | Q13: 1 | R13: 1 | S13: 1 | T13: 1 | U13: 0 | V13: 0 | W13: 3 | X13: 4 | Y13: 0 | Z13: 1 | AA13: 1 | AB13: 0 | AC13: 0 | BS13: 0 | BT13: 0 | BU13: 0 | BV13: 0 | CA13: 0 | CB13: 0 | CC13: 0 | CD13: 0 | CJ13: 0 | CK13: 0 | CL13: 0 | CM13: 0 | CN13: BARDY Julien | CO13: Carton Jaune | CP13: 73 | CQ13: 0 | CR13: 0 | CS13: 0 | CT13: 0 | CU13: 0 | DA13: 0 | DB13: 0 | DC13: 0 | DD13: 0 | DI13: 0 | DJ13: 0 | DK13: 0 | DL13: 0 | DR13: 0 | DS13: 0 | DT13: 0 | DU13: 0 | DZ13: 0 | EA13: 0 | EB13: 0 | EC13: 0 | EE13: BERNARD Pierre | EF13: Pénalité | EG13: 74 | EH13: 3 | EI13: 0 | EJ13: 1 | EK13: 0 | EL13: 0 | EM13: McALISTER Luke | EN13: Transformation | EO13: 65 | EP13: 2 | EQ13: 0 | ER13: 0 | ES13: 0 | ET13: 1 | EV13: BUSTOS MOYANO Martín | EW13: Transformation | EX13: 53 | EY13: 2 | EZ13: 0 | FA13: 0 | FB13: 0 | FC13: 1 | FH13: 0 | FI13: 0 | FJ13: 0 | FK13: 0 | FQ13: 0 | FR13: 0 | FS13: 0 | FT13: 0 | FU13: CABALLERO Yannick | FV13: Carton Jaune | FW13: 70 | FX13: 0 | FY13: 0 | FZ13: 0 | GA13: 0 | GB13: 0
B14: =EZ2 -> 4 | E14: =FH2 -> 1 | G14: 10 | H14: Castres | I14: 1 | J14: 1 | K14: 0 | L14: 0 | M14: 1 | N14: 23 | O14: 26 | P14: -3 | Q14: 2 | R14: 2 | S14: 2 | T14: 2 | U14: 0 | V14: 1 | W14: 3 | X14: 3 | Y14: 0 | Z14: 1 | AA14: 1 | AB14: 0 | AC14: 2 | BS14: 0 | BT14: 0 | BU14: 0 | BV14: 0 | CA14: 0 | CB14: 0 | CC14: 0 | CD14: 0 | CJ14: 0 | CK14: 0 | CL14: 0 | CM14: 0 | CR14: 0 | CS14: 0 | CT14: 0 | CU14: 0 | DA14: 0 | DB14: 0 | DC14: 0 | DD14: 0 | DI14: 0 | DJ14: 0 | DK14: 0 | DL14: 0 | DR14: 0 | DS14: 0 | DT14: 0 | DU14: 0 | DZ14: 0 | EA14: 0 | EB14: 0 | EC14: 0 | EE14: BERNARD Pierre | EF14: Pénalité | EG14: 79 | EH14: 3 | EI14: 0 | EJ14: 1 | EK14: 0 | EL14: 0 | EQ14: 0 | ER14: 0 | ES14: 0 | ET14: 0 | EV14: FONUA Opeti | EW14: Essai | EX14: 74 | EY14: 5 | EZ14: 1 | FA14: 0 | FB14: 0 | FC14: 0 | FH14: 0 | FI14: 0 | FJ14: 0 | FK14: 0 | FQ14: 0 | FR14: 0 | FS14: 0 | FT14: 0 | FY14: 0 | FZ14: 0 | GA14: 0 | GB14: 0
A15: =HYPERLINK(MID(CELL("filename",A13),FIND("[",CELL("filename",A13)),FIND("]", CELL("filename",A13))-FIND("[",CELL("filename",A13))+1)&"'"&MID(CELL("filename",A13),FIND("]",CELL("filename",A13))+1,99)&"'!gg1","Détail") -> Détail | B15: Perpignan | C15: =FO2 -> 26 | D15: =FW2 -> 23 | E15: Castres | G15: 11 | H15: Biarritz | I15: 1 | J15: 1 | K15: 0 | L15: 0 | M15: 1 | N15: 18 | O15: 22 | P15: -4 | Q15: 2 | R15: 1 | S15: 1 | T15: 1 | U15: 1 | V15: 0 | W15: 1 | X15: 5 | Y15: 0 | Z15: 1 | AA15: 1 | AB15: 0 | AC15: 1 | BS15: 0 | BT15: 0 | BU15: 0 | BV15: 0 | CA15: 0 | CB15: 0 | CC15: 0 | CD15: 0 | CJ15: 0 | CK15: 0 | CL15: 0 | CM15: 0 | CR15: 0 | CS15: 0 | CT15: 0 | CU15: 0 | DA15: 0 | DB15: 0 | DC15: 0 | DD15: 0 | DI15: 0 | DJ15: 0 | DK15: 0 | DL15: 0 | DR15: 0 | DS15: 0 | DT15: 0 | DU15: 0 | DZ15: 0 | EA15: 0 | EB15: 0 | EC15: 0 | EI15: 0 | EJ15: 0 | EK15: 0 | EL15: 0 | EQ15: 0 | ER15: 0 | ES15: 0 | ET15: 0 | EV15: ROUET Guillaume | EW15: Essai | EX15: 78 | EY15: 5 | EZ15: 1 | FA15: 0 | FB15: 0 | FC15: 0 | FH15: 0 | FI15: 0 | FJ15: 0 | FK15: 0 | FQ15: 0 | FR15: 0 | FS15: 0 | FT15: 0 | FY15: 0 | FZ15: 0 | GA15: 0 | GB15: 0
B16: =FQ2 -> 2 | E16: =FY2 -> 2 | G16: 12 | H16: Brive | I16: 1 | J16: 1 | K16: 0 | L16: 0 | M16: 1 | N16: 14 | O16: 19 | P16: -5 | Q16: 1 | R16: 1 | S16: 0 | T16: 1 | U16: 1 | V16: 0 | W16: 2 | X16: 4 | Y16: 0 | Z16: 1 | AA16: 1 | AB16: 0 | AC16: 0 | BS16: 0 | BT16: 0 | BU16: 0 | BV16: 0 | CA16: 0 | CB16: 0 | CC16: 0 | CD16: 0 | CJ16: 0 | CK16: 0 | CL16: 0 | CM16: 0 | CR16: 0 | CS16: 0 | CT16: 0 | CU16: 0 | DA16: 0 | DB16: 0 | DC16: 0 | DD16: 0 | DI16: 0 | DJ16: 0 | DK16: 0 | DL16: 0 | DR16: 0 | DS16: 0 | DT16: 0 | DU16: 0 | DZ16: 0 | EA16: 0 | EB16: 0 | EC16: 0 | EI16: 0 | EJ16: 0 | EK16: 0 | EL16: 0 | EQ16: 0 | ER16: 0 | ES16: 0 | ET16: 0 | EZ16: 0 | FA16: 0 | FB16: 0 | FC16: 0 | FH16: 0 | FI16: 0 | FJ16: 0 | FK16: 0 | FQ16: 0 | FR16: 0 | FS16: 0 | FT16: 0 | FY16: 0 | FZ16: 0 | GA16: 0 | GB16: 0
G17: 13 | H17: Toulouse | I17: 1 | J17: 1 | K17: 0 | L17: 0 | M17: 1 | N17: 25 | O17: 31 | P17: -6 | Q17: 1 | R17: 1 | S17: 1 | T17: 1 | U17: 0 | V17: 0 | W17: 6 | X17: 8 | Y17: 0 | Z17: 1 | AA17: 1 | AB17: 0 | AC17: 1 | BS17: 0 | BT17: 0 | BU17: 0 | BV17: 0 | CA17: 0 | CB17: 0 | CC17: 0 | CD17: 0 | CJ17: 0 | CK17: 0 | CL17: 0 | CM17: 0 | CR17: 0 | CS17: 0 | CT17: 0 | CU17: 0 | DA17: 0 | DB17: 0 | DC17: 0 | DD17: 0 | DI17: 0 | DJ17: 0 | DK17: 0 | DL17: 0 | DR17: 0 | DS17: 0 | DT17: 0 | DU17: 0 | DZ17: 0 | EA17: 0 | EB17: 0 | EC17: 0 | EI17: 0 | EJ17: 0 | EK17: 0 | EL17: 0 | EQ17: 0 | ER17: 0 | ES17: 0 | ET17: 0 | EZ17: 0 | FA17: 0 | FB17: 0 | FC17: 0 | FH17: 0 | FI17: 0 | FJ17: 0 | FK17: 0 | FQ17: 0 | FR17: 0 | FS17: 0 | FT17: 0 | FY17: 0 | FZ17: 0 | GA17: 0 | GB17: 0
G18: 14 | H18: Oyonnax | I18: 0 | J18: 1 | K18: 0 | L18: 0 | M18: 1 | N18: 11 | O18: 39 | P18: -28 | Q18: 1 | R18: 4 | S18: 0 | T18: 2 | U18: 0 | V18: 0 | W18: 2 | X18: 5 | Y18: 0 | Z18: 0 | AA18: 0 | AB18: 0 | AC18: 0 | BS18: 0 | BT18: 0 | BU18: 0 | BV18: 0 | CA18: 0 | CB18: 0 | CC18: 0 | CD18: 0 | CJ18: 0 | CK18: 0 | CL18: 0 | CM18: 0 | CR18: 0 | CS18: 0 | CT18: 0 | CU18: 0 | DA18: 0 | DB18: 0 | DC18: 0 | DD18: 0 | DI18: 0 | DJ18: 0 | DK18: 0 | DL18: 0 | DR18: 0 | DS18: 0 | DT18: 0 | DU18: 0 | DZ18: 0 | EA18: 0 | EB18: 0 | EC18: 0 | EI18: 0 | EJ18: 0 | EK18: 0 | EL18: 0 | EQ18: 0 | ER18: 0 | ES18: 0 | ET18: 0 | EZ18: 0 | FA18: 0 | FB18: 0 | FC18: 0 | FH18: 0 | FI18: 0 | FJ18: 0 | FK18: 0 | FQ18: 0 | FR18: 0 | FS18: 0 | FT18: 0 | FY18: 0 | FZ18: 0 | GA18: 0 | GB18: 0
C19: Dom | D19: Ext | E19: Total | BS19: 0 | BT19: 0 | BU19: 0 | BV19: 0 | CA19: 0 | CB19: 0 | CC19: 0 | CD19: 0 | CJ19: 0 | CK19: 0 | CL19: 0 | CM19: 0 | CR19: 0 | CS19: 0 | CT19: 0 | CU19: 0 | DA19: 0 | DB19: 0 | DC19: 0 | DD19: 0 | DI19: 0 | DJ19: 0 | DK19: 0 | DL19: 0 | DQ19: =IF(DO19<>"",VLOOKUP(DO19,ActionPts,2,),"") ->  | DR19: =IF(OR(DO19="Essai",DO19="Essai de Pénalité"),1,0) -> 0 | DS19: =IF(DO19="Pénalité",1,0) -> 0 | DT19: =IF(DO19="Drop",1,0) -> 0 | DU19: =IF(DO19="Transformation",1,0) -> 0 | DZ19: 0 | EA19: 0 | EB19: 0 | EC19: 0 | EI19: 0 | EJ19: 0 | EK19: 0 | EL19: 0 | EQ19: 0 | ER19: 0 | ES19: 0 | ET19: 0 | EZ19: 0 | FA19: 0 | FB19: 0 | FC19: 0 | FH19: 0 | FI19: 0 | FJ19: 0 | FK19: 0 | FQ19: 0 | FR19: 0 | FS19: 0 | FT19: 0 | FY19: 0 | FZ19: 0 | GA19: 0 | GB19: 0
B20: Nbre de points | C20: =SUM(C3:C16) -> 174 | D20: =SUM(D3:D16) -> 133 | E20: =C20+D20 -> 307 | BS20: 0 | BT20: 0 | BU20: 0 | BV20: 0 | CA20: 0 | CB20: 0 | CC20: 0 | CD20: 0 | CJ20: 0 | CK20: 0 | CL20: 0 | CM20: 0 | CR20: 0 | CS20: 0 | CT20: 0 | CU20: 0 | DA20: 0 | DB20: 0 | DC20: 0 | DD20: 0 | DI20: 0 | DJ20: 0 | DK20: 0 | DL20: 0 | DQ20: =IF(DO20<>"",VLOOKUP(DO20,ActionPts,2,),"") ->  | DR20: =IF(OR(DO20="Essai",DO20="Essai de Pénalité"),1,0) -> 0 | DS20: =IF(DO20="Pénalité",1,0) -> 0 | DT20: =IF(DO20="Drop",1,0) -> 0 | DU20: =IF(DO20="Transformation",1,0) -> 0 | DZ20: 0 | EA20: 0 | EB20: 0 | EC20: 0 | EI20: 0 | EJ20: 0 | EK20: 0 | EL20: 0 | EQ20: 0 | ER20: 0 | ES20: 0 | ET20: 0 | EZ20: 0 | FA20: 0 | FB20: 0 | FC20: 0 | FH20: 0 | FI20: 0 | FJ20: 0 | FK20: 0 | FQ20: 0 | FR20: 0 | FS20: 0 | FT20: 0 | FY20: 0 | FZ20: 0 | GA20: 0 | GB20: 0
B21: Par match | C21: =IF(BN48=0,0,ROUND(C20/BN48,1)) -> 24.9 | D21: =IF(BN48=0,0,ROUND(D20/BN48,1)) -> 19 | E21: =C21+D21 -> 43.9 | I21: Classement à Domicile | BS21: 0 | BT21: 0 | BU21: 0 | BV21: 0 | CA21: 0 | CB21: 0 | CC21: 0 | CD21: 0 | CJ21: 0 | CK21: 0 | CL21: 0 | CM21: 0 | CR21: 0 | CS21: 0 | CT21: 0 | CU21: 0 | DA21: 0 | DB21: 0 | DC21: 0 | DD21: 0 | DI21: 0 | DJ21: 0 | DK21: 0 | DL21: 0 | DQ21: =IF(DO21<>"",VLOOKUP(DO21,ActionPts,2,),"") ->  | DR21: =IF(OR(DO21="Essai",DO21="Essai de Pénalité"),1,0) -> 0 | DS21: =IF(DO21="Pénalité",1,0) -> 0 | DT21: =IF(DO21="Drop",1,0) -> 0 | DU21: =IF(DO21="Transformation",1,0) -> 0 | DZ21: 0 | EA21: 0 | EB21: 0 | EC21: 0 | EI21: 0 | EJ21: 0 | EK21: 0 | EL21: 0 | EQ21: 0 | ER21: 0 | ES21: 0 | ET21: 0 | EZ21: 0 | FA21: 0 | FB21: 0 | FC21: 0 | FH21: 0 | FI21: 0 | FJ21: 0 | FK21: 0 | FQ21: 0 | FR21: 0 | FS21: 0 | FT21: 0 | FY21: 0 | FZ21: 0 | GA21: 0 | GB21: 0
B22: Nbre d'essais | C22: =B4+B6+B8+B10+B12+B14+B16 -> 12 | D22: =E4+E6+E8+E10+E12+E14+E16 -> 8 | E22: =C22+D22 -> 20 | BS22: 0 | BT22: 0 | BU22: 0 | BV22: 0 | CA22: 0 | CB22: 0 | CC22: 0 | CD22: 0 | CJ22: 0 | CK22: 0 | CL22: 0 | CM22: 0 | CR22: 0 | CS22: 0 | CT22: 0 | CU22: 0 | DA22: 0 | DB22: 0 | DC22: 0 | DD22: 0 | DI22: 0 | DJ22: 0 | DK22: 0 | DL22: 0 | DQ22: =IF(DO22<>"",VLOOKUP(DO22,ActionPts,2,),"") ->  | DR22: =IF(OR(DO22="Essai",DO22="Essai de Pénalité"),1,0) -> 0 | DS22: =IF(DO22="Pénalité",1,0) -> 0 | DT22: =IF(DO22="Drop",1,0) -> 0 | DU22: =IF(DO22="Transformation",1,0) -> 0 | DZ22: 0 | EA22: 0 | EB22: 0 | EC22: 0 | EI22: 0 | EJ22: 0 | EK22: 0 | EL22: 0 | EQ22: 0 | ER22: 0 | ES22: 0 | ET22: 0 | EZ22: 0 | FA22: 0 | FB22: 0 | FC22: 0 | FH22: 0 | FI22: 0 | FJ22: 0 | FK22: 0 | FQ22: 0 | FR22: 0 | FS22: 0 | FT22: 0 | FY22: 0 | FZ22: 0 | GA22: 0 | GB22: 0
B23: Par match | C23: =IF(BN48=0,0,ROUND(C22/BN48,1)) -> 1.7 | D23: =IF(BN48=0,0,ROUND(D22/BN48,1)) -> 1.1 | E23: =C23+D23 -> 2.8 | I23: Pts | J23: J. | K23: G | L23: N | M23: P | N23: Pr | O23: Ctr | P23: Diff | Q23: E p | R23: E c | S23: Tp | T23: Tc | U23: Dp | V23: Dc | W23: Pp | X23: Pc | Y23: B.O | Z23: B.D | AA23: Bon | AB23: Cr | AC23: Cj | BS23: 0 | BT23: 0 | BU23: 0 | BV23: 0 | CA23: 0 | CB23: 0 | CC23: 0 | CD23: 0 | CJ23: 0 | CK23: 0 | CL23: 0 | CM23: 0 | CR23: 0 | CS23: 0 | CT23: 0 | CU23: 0 | DA23: 0 | DB23: 0 | DC23: 0 | DD23: 0 | DI23: 0 | DJ23: 0 | DK23: 0 | DL23: 0 | DQ23: =IF(DO23<>"",VLOOKUP(DO23,ActionPts,2,),"") ->  | DR23: =IF(OR(DO23="Essai",DO23="Essai de Pénalité"),1,0) -> 0 | DS23: =IF(DO23="Pénalité",1,0) -> 0 | DT23: =IF(DO23="Drop",1,0) -> 0 | DU23: =IF(DO23="Transformation",1,0) -> 0 | DZ23: 0 | EA23: 0 | EB23: 0 | EC23: 0 | EI23: 0 | EJ23: 0 | EK23: 0 | EL23: 0 | EQ23: 0 | ER23: 0 | ES23: 0 | ET23: 0 | EZ23: 0 | FA23: 0 | FB23: 0 | FC23: 0 | FH23: 0 | FI23: 0 | FJ23: 0 | FK23: 0 | FQ23: 0 | FR23: 0 | FS23: 0 | FT23: 0 | FY23: 0 | FZ23: 0 | GA23: 0 | GB23: 0
B24: Nbre Transformations | C24: =BV2+CM2+DD2+DU2+EL2+FC2+FT2 -> 9 | D24: =CD2+CU2+DL2+EC2+ET2+FK2+GB2 -> 6 | E24: =IF(C22+D22<>0,ROUND(C24/C22*100,1)&" % - "&ROUND(D24/D22*100,1)&" % - "&ROUND((C24+D24)/(C22+D22)*100,1)&" %","--") -> 75 % - 75 % - 75 % | G24: 1 | H24: Bayonne | I24: 5 | J24: 1 | K24: 1 | L24: 0 | M24: 0 | N24: 39 | O24: 11 | P24: 28 | Q24: 4 | R24: 1 | S24: 2 | T24: 0 | U24: 0 | V24: 0 | W24: 5 | X24: 2 | Y24: 1 | Z24: 0 | AA24: 1 | AB24: 0 | AC24: 0 | BS24: 0 | BT24: 0 | BU24: 0 | BV24: 0 | CA24: 0 | CB24: 0 | CC24: 0 | CD24: 0 | CJ24: 0 | CK24: 0 | CL24: 0 | CM24: 0 | CR24: 0 | CS24: 0 | CT24: 0 | CU24: 0 | DA24: 0 | DB24: 0 | DC24: 0 | DD24: 0 | DI24: 0 | DJ24: 0 | DK24: 0 | DL24: 0 | DR24: 0 | DS24: 0 | DT24: 0 | DU24: 0 | DZ24: 0 | EA24: 0 | EB24: 0 | EC24: 0 | EI24: 0 | EJ24: 0 | EK24: 0 | EL24: 0 | EQ24: 0 | ER24: 0 | ES24: 0 | ET24: 0 | EZ24: 0 | FA24: 0 | FB24: 0 | FC24: 0 | FH24: 0 | FI24: 0 | FJ24: 0 | FK24: 0 | FQ24: 0 | FR24: 0 | FS24: 0 | FT24: 0 | FY24: 0 | FZ24: 0 | GA24: 0 | GB24: 0
B25: Par match | C25: =IF(BN48=0,0,ROUND(C24/BN48,1)) -> 1.3 | D25: =IF(BN48=0,0,ROUND(D24/BN48,1)) -> 0.9 | E25: =C25+D25 -> 2.2 | G25: 2 | H25: BordeauxBègles | I25: 4 | J25: 1 | K25: 1 | L25: 0 | M25: 0 | N25: 31 | O25: 25 | P25: 6 | Q25: 1 | R25: 1 | S25: 1 | T25: 1 | U25: 0 | V25: 0 | W25: 8 | X25: 6 | Y25: 0 | Z25: 0 | AA25: 0 | AB25: 0 | AC25: 0 | BS25: 0 | BT25: 0 | BU25: 0 | BV25: 0 | CA25: 0 | CB25: 0 | CC25: 0 | CD25: 0 | CJ25: 0 | CK25: 0 | CL25: 0 | CM25: 0 | CR25: 0 | CS25: 0 | CT25: 0 | CU25: 0 | DA25: 0 | DB25: 0 | DC25: 0 | DD25: 0 | DI25: 0 | DJ25: 0 | DK25: 0 | DL25: 0 | DR25: 0 | DS25: 0 | DT25: 0 | DU25: 0 | DZ25: 0 | EA25: 0 | EB25: 0 | EC25: 0 | EI25: 0 | EJ25: 0 | EK25: 0 | EL25: 0 | EQ25: 0 | ER25: 0 | ES25: 0 | ET25: 0 | EZ25: 0 | FA25: 0 | FB25: 0 | FC25: 0 | FH25: 0 | FI25: 0 | FJ25: 0 | FK25: 0 | FQ25: 0 | FR25: 0 | FS25: 0 | FT25: 0 | FY25: 0 | FZ25: 0 | GA25: 0 | GB25: 0
B26: Nbre Pénalités | C26: =BT2+CK2+DB2+DS2+EJ2+FA2+FR2 -> 29 | D26: =CB2+CS2+DJ2+EA2+ER2+FI2+FZ2 -> 26 | E26: 55 | G26: 3 | H26: RacingMétro92 | I26: 4 | J26: 1 | K26: 1 | L26: 0 | M26: 0 | N26: 19 | O26: 14 | P26: 5 | Q26: 1 | R26: 1 | S26: 1 | T26: 0 | U26: 0 | V26: 1 | W26: 4 | X26: 2 | Y26: 0 | Z26: 0 | AA26: 0 | AB26: 0 | AC26: 0 | BS26: 0 | BT26: 0 | BU26: 0 | BV26: 0 | CA26: 0 | CB26: 0 | CC26: 0 | CD26: 0 | CJ26: 0 | CK26: 0 | CL26: 0 | CM26: 0 | CR26: 0 | CS26: 0 | CT26: 0 | CU26: 0 | DA26: 0 | DB26: 0 | DC26: 0 | DD26: 0 | DI26: 0 | DJ26: 0 | DK26: 0 | DL26: 0 | DR26: 0 | DS26: 0 | DT26: 0 | DU26: 0 | DZ26: 0 | EA26: 0 | EB26: 0 | EC26: 0 | EI26: 0 | EJ26: 0 | EK26: 0 | EL26: 0 | EQ26: 0 | ER26: 0 | ES26: 0 | ET26: 0 | EZ26: 0 | FA26: 0 | FB26: 0 | FC26: 0 | FH26: 0 | FI26: 0 | FJ26: 0 | FK26: 0 | FQ26: 0 | FR26: 0 | FS26: 0 | FT26: 0 | FY26: 0 | FZ26: 0 | GA26: 0 | GB26: 0
B27: Par match | C27: =IF(BN48=0,0,ROUND(C26/BN48,1)) -> 4.1 | D27: =IF(BN48=0,0,ROUND(D26/BN48,1)) -> 3.7 | E27: 7.8 | G27: 4 | H27: Perpignan | I27: 4 | J27: 1 | K27: 1 | L27: 0 | M27: 0 | N27: 26 | O27: 23 | P27: 3 | Q27: 2 | R27: 2 | S27: 2 | T27: 2 | U27: 1 | V27: 0 | W27: 3 | X27: 3 | Y27: 0 | Z27: 0 | AA27: 0 | AB27: 0 | AC27: 0 | BS27: 0 | BT27: 0 | BU27: 0 | BV27: 0 | CA27: 0 | CB27: 0 | CC27: 0 | CD27: 0 | CJ27: 0 | CK27: 0 | CL27: 0 | CM27: 0 | CR27: 0 | CS27: 0 | CT27: 0 | CU27: 0 | DA27: 0 | DB27: 0 | DC27: 0 | DD27: 0 | DI27: 0 | DJ27: 0 | DK27: 0 | DL27: 0 | DR27: 0 | DS27: 0 | DT27: 0 | DU27: 0 | DZ27: 0 | EA27: 0 | EB27: 0 | EC27: 0 | EI27: 0 | EJ27: 0 | EK27: 0 | EL27: 0 | EQ27: 0 | ER27: 0 | ES27: 0 | ET27: 0 | EZ27: 0 | FA27: 0 | FB27: 0 | FC27: 0 | FH27: 0 | FI27: 0 | FJ27: 0 | FK27: 0 | FQ27: 0 | FR27: 0 | FS27: 0 | FT27: 0 | FY27: 0 | FZ27: 0 | GA27: 0 | GB27: 0
B28: Nbre Drop | C28: =BU2+CL2+DC2+DT2+EK2+FB2+FS2 -> 3 | D28: =CC2+CT2+DK2+EB2+ES2+FJ2+GA2 -> 1 | E28: 4 | G28: 5 | H28: Grenoble | I28: 4 | J28: 1 | K28: 1 | L28: 0 | M28: 0 | N28: 19 | O28: 16 | P28: 3 | Q28: 1 | R28: 1 | S28: 1 | T28: 1 | U28: 0 | V28: 0 | W28: 4 | X28: 3 | Y28: 0 | Z28: 0 | AA28: 0 | AB28: 0 | AC28: 0 | BS28: 0 | BT28: 0 | BU28: 0 | BV28: 0 | CA28: 0 | CB28: 0 | CC28: 0 | CD28: 0 | CJ28: 0 | CK28: 0 | CL28: 0 | CM28: 0 | CR28: 0 | CS28: 0 | CT28: 0 | CU28: 0 | DA28: 0 | DB28: 0 | DC28: 0 | DD28: 0 | DI28: 0 | DJ28: 0 | DK28: 0 | DL28: 0 | DR28: 0 | DS28: 0 | DT28: 0 | DU28: 0 | DZ28: 0 | EA28: 0 | EB28: 0 | EC28: 0 | EI28: 0 | EJ28: 0 | EK28: 0 | EL28: 0 | EQ28: 0 | ER28: 0 | ES28: 0 | ET28: 0 | EZ28: 0 | FA28: 0 | FB28: 0 | FC28: 0 | FH28: 0 | FI28: 0 | FJ28: 0 | FK28: 0 | FQ28: 0 | FR28: 0 | FS28: 0 | FT28: 0 | FY28: 0 | FZ28: 0 | GA28: 0 | GB28: 0
B29: Par match | C29: =IF(BN48=0,0,ROUND(C28/BN48,1)) -> 0.4 | D29: =IF(BN48=0,0,ROUND(D28/BN48,1)) -> 0.1 | E29: 0.5 | G29: 6 | H29: Montpellier | I29: 2 | J29: 1 | K29: 0 | L29: 1 | M29: 0 | N29: 22 | O29: 22 | P29: 0 | Q29: 1 | R29: 1 | S29: 1 | T29: 1 | U29: 1 | V29: 0 | W29: 4 | X29: 5 | Y29: 0 | Z29: 0 | AA29: 0 | AB29: 0 | AC29: 0 | BS29: 0 | BT29: 0 | BU29: 0 | BV29: 0 | CA29: 0 | CB29: 0 | CC29: 0 | CD29: 0 | CJ29: 0 | CK29: 0 | CL29: 0 | CM29: 0 | CR29: 0 | CS29: 0 | CT29: 0 | CU29: 0 | DA29: 0 | DB29: 0 | DC29: 0 | DD29: 0 | DI29: 0 | DJ29: 0 | DK29: 0 | DL29: 0 | DR29: 0 | DS29: 0 | DT29: 0 | DU29: 0 | DZ29: 0 | EA29: 0 | EB29: 0 | EC29: 0 | EI29: 0 | EJ29: 0 | EK29: 0 | EL29: 0 | EQ29: 0 | ER29: 0 | ES29: 0 | ET29: 0 | EZ29: 0 | FA29: 0 | FB29: 0 | FC29: 0 | FH29: 0 | FI29: 0 | FJ29: 0 | FK29: 0 | FQ29: 0 | FR29: 0 | FS29: 0 | FT29: 0 | FY29: 0 | FZ29: 0 | GA29: 0 | GB29: 0
B30: Bonus Offensif | C30: 1 | D30: 0 | E30: 1 | G30: 7 | H30: Biarritz | I30: 1 | J30: 1 | K30: 0 | L30: 0 | M30: 1 | N30: 18 | O30: 22 | P30: -4 | Q30: 2 | R30: 1 | S30: 1 | T30: 1 | U30: 1 | V30: 0 | W30: 1 | X30: 5 | Y30: 0 | Z30: 1 | AA30: 1 | AB30: 0 | AC30: 1 | BS30: 0 | BT30: 0 | BU30: 0 | BV30: 0 | CA30: 0 | CB30: 0 | CC30: 0 | CD30: 0 | CJ30: 0 | CK30: 0 | CL30: 0 | CM30: 0 | CR30: 0 | CS30: 0 | CT30: 0 | CU30: 0 | DA30: 0 | DB30: 0 | DC30: 0 | DD30: 0 | DI30: 0 | DJ30: 0 | DK30: 0 | DL30: 0 | DR30: 0 | DS30: 0 | DT30: 0 | DU30: 0 | DZ30: 0 | EA30: 0 | EB30: 0 | EC30: 0 | EI30: 0 | EJ30: 0 | EK30: 0 | EL30: 0 | EP30: =IF(EN30<>"",VLOOKUP(EN30,ActionPts,2,),"") ->  | EQ30: 0 | ER30: 0 | ES30: 0 | ET30: 0 | EZ30: 0 | FA30: 0 | FB30: 0 | FC30: 0 | FH30: 0 | FI30: 0 | FJ30: 0 | FK30: 0 | FQ30: 0 | FR30: 0 | FS30: 0 | FT30: 0 | FY30: 0 | FZ30: 0 | GA30: 0 | GB30: 0
B31: Par match | C31: =IF(BN48=0,0,ROUND(C30/BN48,1)) -> 0.1 | D31: =IF(BN48=0,0,ROUND(D30/BN48,1)) -> 0 | E31: 0.1 | G31: 8 | H31: Brive | I31: 0 | J31: 0 | K31: 0 | L31: 0 | M31: 0 | N31: 0 | O31: 0 | P31: 0 | Q31: 0 | R31: 0 | S31: 0 | T31: 0 | U31: 0 | V31: 0 | W31: 0 | X31: 0 | Y31: 0 | Z31: 0 | AA31: 0 | AB31: 0 | AC31: 0 | BS31: 0 | BT31: 0 | BU31: 0 | BV31: 0 | CA31: 0 | CB31: 0 | CC31: 0 | CD31: 0 | CJ31: 0 | CK31: 0 | CL31: 0 | CM31: 0 | CR31: 0 | CS31: 0 | CT31: 0 | CU31: 0 | DA31: 0 | DB31: 0 | DC31: 0 | DD31: 0 | DI31: 0 | DJ31: 0 | DK31: 0 | DL31: 0 | DR31: 0 | DS31: 0 | DT31: 0 | DU31: 0 | DZ31: 0 | EA31: 0 | EB31: 0 | EC31: 0 | EI31: 0 | EJ31: 0 | EK31: 0 | EL31: 0 | EQ31: 0 | ER31: 0 | ES31: 0 | ET31: 0 | EZ31: 0 | FA31: 0 | FB31: 0 | FC31: 0 | FH31: 0 | FI31: 0 | FJ31: 0 | FK31: 0 | FQ31: 0 | FR31: 0 | FS31: 0 | FT31: 0 | FY31: 0 | FZ31: 0 | GA31: 0 | GB31: 0
B32: Bonus Défensif | C32: 1 | D32: 4 | E32: 5 | G32: 9 | H32: Castres | I32: 0 | J32: 0 | K32: 0 | L32: 0 | M32: 0 | N32: 0 | O32: 0 | P32: 0 | Q32: 0 | R32: 0 | S32: 0 | T32: 0 | U32: 0 | V32: 0 | W32: 0 | X32: 0 | Y32: 0 | Z32: 0 | AA32: 0 | AB32: 0 | AC32: 0 | BS32: 0 | BT32: 0 | BU32: 0 | BV32: 0 | CA32: 0 | CB32: 0 | CC32: 0 | CD32: 0 | CJ32: 0 | CK32: 0 | CL32: 0 | CM32: 0 | CR32: 0 | CS32: 0 | CT32: 0 | CU32: 0 | DA32: 0 | DB32: 0 | DC32: 0 | DD32: 0 | DI32: 0 | DJ32: 0 | DK32: 0 | DL32: 0 | DR32: 0 | DS32: 0 | DT32: 0 | DU32: 0 | DZ32: 0 | EA32: 0 | EB32: 0 | EC32: 0 | EI32: 0 | EJ32: 0 | EK32: 0 | EL32: 0 | EQ32: 0 | ER32: 0 | ES32: 0 | ET32: 0 | EZ32: 0 | FA32: 0 | FB32: 0 | FC32: 0 | FH32: 0 | FI32: 0 | FJ32: 0 | FK32: 0 | FQ32: 0 | FR32: 0 | FS32: 0 | FT32: 0 | FY32: 0 | FZ32: 0 | GA32: 0 | GB32: 0
B33: Par match | C33: =IF(BN48=0,0,ROUND(C32/BN48,1)) -> 0.1 | D33: =IF(BN48=0,0,ROUND(D32/BN48,1)) -> 0.6 | E33: 0.7 | G33: 10 | H33: Montferrand | I33: 0 | J33: 0 | K33: 0 | L33: 0 | M33: 0 | N33: 0 | O33: 0 | P33: 0 | Q33: 0 | R33: 0 | S33: 0 | T33: 0 | U33: 0 | V33: 0 | W33: 0 | X33: 0 | Y33: 0 | Z33: 0 | AA33: 0 | AB33: 0 | AC33: 0 | BS33: 0 | BT33: 0 | BU33: 0 | BV33: 0 | CA33: 0 | CB33: 0 | CC33: 0 | CD33: 0 | CJ33: 0 | CK33: 0 | CL33: 0 | CM33: 0 | CR33: 0 | CS33: 0 | CT33: 0 | CU33: 0 | DA33: 0 | DB33: 0 | DC33: 0 | DD33: 0 | DI33: 0 | DJ33: 0 | DK33: 0 | DL33: 0 | DR33: 0 | DS33: 0 | DT33: 0 | DU33: 0 | DZ33: 0 | EA33: 0 | EB33: 0 | EC33: 0 | EI33: 0 | EJ33: 0 | EK33: 0 | EL33: 0 | EQ33: 0 | ER33: 0 | ES33: 0 | ET33: 0 | EZ33: 0 | FA33: 0 | FB33: 0 | FC33: 0 | FH33: 0 | FI33: 0 | FJ33: 0 | FK33: 0 | FQ33: 0 | FR33: 0 | FS33: 0 | FT33: 0 | FY33: 0 | FZ33: 0 | GA33: 0 | GB33: 0
B34: Carton Jaune | C34: =BP46+CG46+CX46+DO46+EF46+EW46+FN46 -> 1 | D34: =BX46+CO46+DF46+DW46+EN46+FE46+FV46 -> 6 | E34: 7 | G34: 11 | H34: Oyonnax | I34: 0 | J34: 0 | K34: 0 | L34: 0 | M34: 0 | N34: 0 | O34: 0 | P34: 0 | Q34: 0 | R34: 0 | S34: 0 | T34: 0 | U34: 0 | V34: 0 | W34: 0 | X34: 0 | Y34: 0 | Z34: 0 | AA34: 0 | AB34: 0 | AC34: 0 | BS34: 0 | BT34: 0 | BU34: 0 | BV34: 0 | CA34: 0 | CB34: 0 | CC34: 0 | CD34: 0 | CJ34: 0 | CK34: 0 | CL34: 0 | CM34: 0 | CR34: 0 | CS34: 0 | CT34: 0 | CU34: 0 | DA34: 0 | DB34: 0 | DC34: 0 | DD34: 0 | DI34: 0 | DJ34: 0 | DK34: 0 | DL34: 0 | DR34: 0 | DS34: 0 | DT34: 0 | DU34: 0 | DZ34: 0 | EA34: 0 | EB34: 0 | EC34: 0 | EI34: 0 | EJ34: 0 | EK34: 0 | EL34: 0 | EQ34: 0 | ER34: 0 | ES34: 0 | ET34: 0 | EZ34: 0 | FA34: 0 | FB34: 0 | FC34: 0 | FH34: 0 | FI34: 0 | FJ34: 0 | FK34: 0 | FQ34: 0 | FR34: 0 | FS34: 0 | FT34: 0 | FY34: 0 | FZ34: 0 | GA34: 0 | GB34: 0
B35: Par match | C35: =IF(BN48=0,0,ROUND(C34/BN48,1)) -> 0.1 | D35: =IF(BN48=0,0,ROUND(D34/BN48,1)) -> 0.9 | E35: 1 | G35: 12 | H35: StadeFrancais | I35: 0 | J35: 0 | K35: 0 | L35: 0 | M35: 0 | N35: 0 | O35: 0 | P35: 0 | Q35: 0 | R35: 0 | S35: 0 | T35: 0 | U35: 0 | V35: 0 | W35: 0 | X35: 0 | Y35: 0 | Z35: 0 | AA35: 0 | AB35: 0 | AC35: 0 | BS35: 0 | BT35: 0 | BU35: 0 | BV35: 0 | CA35: 0 | CB35: 0 | CC35: 0 | CD35: 0 | CJ35: 0 | CK35: 0 | CL35: 0 | CM35: 0 | CR35: 0 | CS35: 0 | CT35: 0 | CU35: 0 | DA35: 0 | DB35: 0 | DC35: 0 | DD35: 0 | DI35: 0 | DJ35: 0 | DK35: 0 | DL35: 0 | DR35: 0 | DS35: 0 | DT35: 0 | DU35: 0 | DZ35: 0 | EA35: 0 | EB35: 0 | EC35: 0 | EI35: 0 | EJ35: 0 | EK35: 0 | EL35: 0 | EQ35: 0 | ER35: 0 | ES35: 0 | ET35: 0 | EZ35: 0 | FA35: 0 | FB35: 0 | FC35: 0 | FH35: 0 | FI35: 0 | FJ35: 0 | FK35: 0 | FQ35: 0 | FR35: 0 | FS35: 0 | FT35: 0 | FY35: 0 | FZ35: 0 | GA35: 0 | GB35: 0
B36: Carton Rouge | C36: =BP47+CG47+CX47+DO47+EF47+EW47+FN47 -> 0 | D36: =BX47+CO47+DF47+DW47+EN47+FE47+FV47 -> 0 | E36: 0 | G36: 13 | H36: Toulon | I36: 0 | J36: 0 | K36: 0 | L36: 0 | M36: 0 | N36: 0 | O36: 0 | P36: 0 | Q36: 0 | R36: 0 | S36: 0 | T36: 0 | U36: 0 | V36: 0 | W36: 0 | X36: 0 | Y36: 0 | Z36: 0 | AA36: 0 | AB36: 0 | AC36: 0 | BS36: 0 | BT36: 0 | BU36: 0 | BV36: 0 | CA36: 0 | CB36: 0 | CC36: 0 | CD36: 0 | CJ36: 0 | CK36: 0 | CL36: 0 | CM36: 0 | CR36: 0 | CS36: 0 | CT36: 0 | CU36: 0 | DA36: 0 | DB36: 0 | DC36: 0 | DD36: 0 | DI36: 0 | DJ36: 0 | DK36: 0 | DL36: 0 | DR36: 0 | DS36: 0 | DT36: 0 | DU36: 0 | DZ36: 0 | EA36: 0 | EB36: 0 | EC36: 0 | EI36: 0 | EJ36: 0 | EK36: 0 | EL36: 0 | EQ36: 0 | ER36: 0 | ES36: 0 | ET36: 0 | EZ36: 0 | FA36: 0 | FB36: 0 | FC36: 0 | FH36: 0 | FI36: 0 | FJ36: 0 | FK36: 0 | FQ36: 0 | FR36: 0 | FS36: 0 | FT36: 0 | FY36: 0 | FZ36: 0 | GA36: 0 | GB36: 0
B37: Par match | C37: =IF(BN48=0,0,ROUND(C36/BN48,1)) -> 0 | D37: =IF(BN48=0,0,ROUND(D36/BN48,1)) -> 0 | E37: 0 | G37: 14 | H37: Toulouse | I37: 0 | J37: 0 | K37: 0 | L37: 0 | M37: 0 | N37: 0 | O37: 0 | P37: 0 | Q37: 0 | R37: 0 | S37: 0 | T37: 0 | U37: 0 | V37: 0 | W37: 0 | X37: 0 | Y37: 0 | Z37: 0 | AA37: 0 | AB37: 0 | AC37: 0 | BS37: 0 | BT37: 0 | BU37: 0 | BV37: 0 | CA37: 0 | CB37: 0 | CC37: 0 | CD37: 0 | CJ37: 0 | CK37: 0 | CL37: 0 | CM37: 0 | CR37: 0 | CS37: 0 | CT37: 0 | CU37: 0 | DA37: 0 | DB37: 0 | DC37: 0 | DD37: 0 | DI37: 0 | DJ37: 0 | DK37: 0 | DL37: 0 | DR37: 0 | DS37: 0 | DT37: 0 | DU37: 0 | DZ37: 0 | EA37: 0 | EB37: 0 | EC37: 0 | EI37: 0 | EJ37: 0 | EK37: 0 | EL37: 0 | EQ37: 0 | ER37: 0 | ES37: 0 | ET37: 0 | EZ37: 0 | FA37: 0 | FB37: 0 | FC37: 0 | FH37: 0 | FI37: 0 | FJ37: 0 | FK37: 0 | FQ37: 0 | FR37: 0 | FS37: 0 | FT37: 0 | FY37: 0 | FZ37: 0 | GA37: 0 | GB37: 0
BS38: 0 | BT38: 0 | BU38: 0 | BV38: 0 | CA38: 0 | CB38: 0 | CC38: 0 | CD38: 0 | CJ38: 0 | CK38: 0 | CL38: 0 | CM38: 0 | CR38: 0 | CS38: 0 | CT38: 0 | CU38: 0 | DA38: 0 | DB38: 0 | DC38: 0 | DD38: 0 | DI38: 0 | DJ38: 0 | DK38: 0 | DL38: 0 | DR38: 0 | DS38: 0 | DT38: 0 | DU38: 0 | DZ38: 0 | EA38: 0 | EB38: 0 | EC38: 0 | EI38: 0 | EJ38: 0 | EK38: 0 | EL38: 0 | EQ38: 0 | ER38: 0 | ES38: 0 | ET38: 0 | EZ38: 0 | FA38: 0 | FB38: 0 | FC38: 0 | FH38: 0 | FI38: 0 | FJ38: 0 | FK38: 0 | FQ38: 0 | FR38: 0 | FS38: 0 | FT38: 0 | FY38: 0 | FZ38: 0 | GA38: 0 | GB38: 0
BS39: 0 | BT39: 0 | BU39: 0 | BV39: 0 | CA39: 0 | CB39: 0 | CC39: 0 | CD39: 0 | CJ39: 0 | CK39: 0 | CL39: 0 | CM39: 0 | CR39: 0 | CS39: 0 | CT39: 0 | CU39: 0 | DA39: 0 | DB39: 0 | DC39: 0 | DD39: 0 | DI39: 0 | DJ39: 0 | DK39: 0 | DL39: 0 | DR39: 0 | DS39: 0 | DT39: 0 | DU39: 0 | DZ39: 0 | EA39: 0 | EB39: 0 | EC39: 0 | EI39: 0 | EJ39: 0 | EK39: 0 | EL39: 0 | EQ39: 0 | ER39: 0 | ES39: 0 | ET39: 0 | EZ39: 0 | FA39: 0 | FB39: 0 | FC39: 0 | FH39: 0 | FI39: 0 | FJ39: 0 | FK39: 0 | FQ39: 0 | FR39: 0 | FS39: 0 | FT39: 0 | FY39: 0 | FZ39: 0 | GA39: 0 | GB39: 0
I40: Classement à l'Extérieur | BS40: 0 | BT40: 0 | BU40: 0 | BV40: 0 | CA40: 0 | CB40: 0 | CC40: 0 | CD40: 0 | CJ40: 0 | CK40: 0 | CL40: 0 | CM40: 0 | CR40: 0 | CS40: 0 | CT40: 0 | CU40: 0 | DA40: 0 | DB40: 0 | DC40: 0 | DD40: 0 | DI40: 0 | DJ40: 0 | DK40: 0 | DL40: 0 | DR40: 0 | DS40: 0 | DT40: 0 | DU40: 0 | DZ40: 0 | EA40: 0 | EB40: 0 | EC40: 0 | EI40: 0 | EJ40: 0 | EK40: 0 | EL40: 0 | EQ40: 0 | ER40: 0 | ES40: 0 | ET40: 0 | EZ40: 0 | FA40: 0 | FB40: 0 | FC40: 0 | FH40: 0 | FI40: 0 | FJ40: 0 | FK40: 0 | FQ40: 0 | FR40: 0 | FS40: 0 | FT40: 0 | FY40: 0 | FZ40: 0 | GA40: 0 | GB40: 0
BS41: 0 | BT41: 0 | BU41: 0 | BV41: 0 | CA41: 0 | CB41: 0 | CC41: 0 | CD41: 0 | CJ41: 0 | CK41: 0 | CL41: 0 | CM41: 0 | CR41: 0 | CS41: 0 | CT41: 0 | CU41: 0 | DA41: 0 | DB41: 0 | DC41: 0 | DD41: 0 | DI41: 0 | DJ41: 0 | DK41: 0 | DL41: 0 | DR41: 0 | DS41: 0 | DT41: 0 | DU41: 0 | DZ41: 0 | EA41: 0 | EB41: 0 | EC41: 0 | EI41: 0 | EJ41: 0 | EK41: 0 | EL41: 0 | EQ41: 0 | ER41: 0 | ES41: 0 | ET41: 0 | EZ41: 0 | FA41: 0 | FB41: 0 | FC41: 0 | FH41: 0 | FI41: 0 | FJ41: 0 | FK41: 0 | FQ41: 0 | FR41: 0 | FS41: 0 | FT41: 0 | FY41: 0 | FZ41: 0 | GA41: 0 | GB41: 0
I42: Pts | J42: J. | K42: G | L42: N | M42: P | N42: Pr | O42: Ctr | P42: Diff | Q42: E p | R42: E c | S42: Tp | T42: Tc | U42: Dp | V42: Dc | W42: Pp | X42: Pc | Y42: B.O | Z42: B.D | AA42: Bon | AB42: Cr | AC42: Cj | BS42: 0 | BT42: 0 | BU42: 0 | BV42: 0 | CA42: 0 | CB42: 0 | CC42: 0 | CD42: 0 | CJ42: 0 | CK42: 0 | CL42: 0 | CM42: 0 | CR42: 0 | CS42: 0 | CT42: 0 | CU42: 0 | DA42: 0 | DB42: 0 | DC42: 0 | DD42: 0 | DI42: 0 | DJ42: 0 | DK42: 0 | DL42: 0 | DR42: 0 | DS42: 0 | DT42: 0 | DU42: 0 | DZ42: 0 | EA42: 0 | EB42: 0 | EC42: 0 | EI42: 0 | EJ42: 0 | EK42: 0 | EL42: 0 | EQ42: 0 | ER42: 0 | ES42: 0 | ET42: 0 | EZ42: 0 | FA42: 0 | FB42: 0 | FC42: 0 | FH42: 0 | FI42: 0 | FJ42: 0 | FK42: 0 | FQ42: 0 | FR42: 0 | FS42: 0 | FT42: 0 | FY42: 0 | FZ42: 0 | GA42: 0 | GB42: 0
G43: 1 | H43: Montferrand | I43: 4 | J43: 1 | K43: 1 | L43: 0 | M43: 0 | N43: 22 | O43: 18 | P43: 4 | Q43: 1 | R43: 2 | S43: 1 | T43: 1 | U43: 0 | V43: 1 | W43: 5 | X43: 1 | Y43: 0 | Z43: 0 | AA43: 0 | AB43: 0 | AC43: 2 | BS43: 0 | BT43: 0 | BU43: 0 | BV43: 0 | CA43: 0 | CB43: 0 | CC43: 0 | CD43: 0 | CJ43: 0 | CK43: 0 | CL43: 0 | CM43: 0 | CR43: 0 | CS43: 0 | CT43: 0 | CU43: 0 | DA43: 0 | DB43: 0 | DC43: 0 | DD43: 0 | DI43: 0 | DJ43: 0 | DK43: 0 | DL43: 0 | DR43: 0 | DS43: 0 | DT43: 0 | DU43: 0 | DZ43: 0 | EA43: 0 | EB43: 0 | EC43: 0 | EI43: 0 | EJ43: 0 | EK43: 0 | EL43: 0 | EQ43: 0 | ER43: 0 | ES43: 0 | ET43: 0 | EZ43: 0 | FA43: 0 | FB43: 0 | FC43: 0 | FH43: 0 | FI43: 0 | FJ43: 0 | FK43: 0 | FQ43: 0 | FR43: 0 | FS43: 0 | FT43: 0 | FY43: 0 | FZ43: 0 | GA43: 0 | GB43: 0
G44: 2 | H44: Toulon | I44: 2 | J44: 1 | K44: 0 | L44: 1 | M44: 0 | N44: 22 | O44: 22 | P44: 0 | Q44: 1 | R44: 1 | S44: 1 | T44: 1 | U44: 0 | V44: 1 | W44: 5 | X44: 4 | Y44: 0 | Z44: 0 | AA44: 0 | AB44: 0 | AC44: 1 | BS44: 0 | BT44: 0 | BU44: 0 | BV44: 0 | CA44: 0 | CB44: 0 | CC44: 0 | CD44: 0 | CJ44: 0 | CK44: 0 | CL44: 0 | CM44: 0 | CR44: 0 | CS44: 0 | CT44: 0 | CU44: 0 | DA44: 0 | DB44: 0 | DC44: 0 | DD44: 0 | DI44: 0 | DJ44: 0 | DK44: 0 | DL44: 0 | DR44: 0 | DS44: 0 | DT44: 0 | DU44: 0 | DZ44: 0 | EA44: 0 | EB44: 0 | EC44: 0 | EI44: 0 | EJ44: 0 | EK44: 0 | EL44: 0 | EQ44: 0 | ER44: 0 | ES44: 0 | ET44: 0 | EZ44: 0 | FA44: 0 | FB44: 0 | FC44: 0 | FH44: 0 | FI44: 0 | FJ44: 0 | FK44: 0 | FQ44: 0 | FR44: 0 | FS44: 0 | FT44: 0 | FY44: 0 | FZ44: 0 | GA44: 0 | GB44: 0
G45: 3 | H45: StadeFrancais | I45: 1 | J45: 1 | K45: 0 | L45: 0 | M45: 1 | N45: 16 | O45: 19 | P45: -3 | Q45: 1 | R45: 1 | S45: 1 | T45: 1 | U45: 0 | V45: 0 | W45: 3 | X45: 4 | Y45: 0 | Z45: 1 | AA45: 1 | AB45: 0 | AC45: 0 | BS45: 0 | BT45: 0 | BU45: 0 | BV45: 0 | CA45: 0 | CB45: 0 | CC45: 0 | CD45: 0 | CJ45: 0 | CK45: 0 | CL45: 0 | CM45: 0 | CR45: 0 | CS45: 0 | CT45: 0 | CU45: 0 | DA45: 0 | DB45: 0 | DC45: 0 | DD45: 0 | DI45: 0 | DJ45: 0 | DK45: 0 | DL45: 0 | DR45: 0 | DS45: 0 | DT45: 0 | DU45: 0 | DZ45: 0 | EA45: 0 | EB45: 0 | EC45: 0 | EI45: 0 | EJ45: 0 | EK45: 0 | EL45: 0 | EQ45: 0 | ER45: 0 | ES45: 0 | ET45: 0 | EZ45: 0 | FA45: 0 | FB45: 0 | FC45: 0 | FH45: 0 | FI45: 0 | FJ45: 0 | FK45: 0 | FQ45: 0 | FR45: 0 | FS45: 0 | FT45: 0 | FY45: 0 | FZ45: 0 | GA45: 0 | GB45: 0
G46: 4 | H46: Castres | I46: 1 | J46: 1 | K46: 0 | L46: 0 | M46: 1 | N46: 23 | O46: 26 | P46: -3 | Q46: 2 | R46: 2 | S46: 2 | T46: 2 | U46: 0 | V46: 1 | W46: 3 | X46: 3 | Y46: 0 | Z46: 1 | AA46: 1 | AB46: 0 | AC46: 2 | BP46: =COUNTIF(BP5:BP45,"Carton Jaune") -> 0 | BX46: =COUNTIF(BX5:BX45,"Carton Jaune") -> 1 | CG46: =COUNTIF(CG5:CG45,"Carton Jaune") -> 1 | CO46: =COUNTIF(CO5:CO45,"Carton Jaune") -> 2 | CX46: =COUNTIF(CX5:CX45,"Carton Jaune") -> 0 | DF46: =COUNTIF(DF5:DF45,"Carton Jaune") -> 0 | DO46: =COUNTIF(DO5:DO45,"Carton Jaune") -> 0 | DW46: =COUNTIF(DW5:DW45,"Carton Jaune") -> 0 | EF46: =COUNTIF(EF5:EF45,"Carton Jaune") -> 0 | EN46: =COUNTIF(EN5:EN45,"Carton Jaune") -> 1 | EW46: =COUNTIF(EW5:EW45,"Carton Jaune") -> 0 | FE46: =COUNTIF(FE5:FE45,"Carton Jaune") -> 0 | FN46: =COUNTIF(FN5:FN45,"Carton Jaune") -> 0 | FV46: =COUNTIF(FV5:FV45,"Carton Jaune") -> 2
G47: 5 | H47: Brive | I47: 1 | J47: 1 | K47: 0 | L47: 0 | M47: 1 | N47: 14 | O47: 19 | P47: -5 | Q47: 1 | R47: 1 | S47: 0 | T47: 1 | U47: 1 | V47: 0 | W47: 2 | X47: 4 | Y47: 0 | Z47: 1 | AA47: 1 | AB47: 0 | AC47: 0 | BP47: =COUNTIF(BP5:BP45,"Carton Rouge") -> 0 | BX47: =COUNTIF(BX5:BX45,"Carton Rouge") -> 0 | CG47: =COUNTIF(CG5:CG45,"Carton Rouge") -> 0 | CO47: =COUNTIF(CO5:CO45,"Carton Rouge") -> 0 | CX47: =COUNTIF(CX5:CX45,"Carton Rouge") -> 0 | DF47: =COUNTIF(DF5:DF45,"Carton Rouge") -> 0 | DO47: =COUNTIF(DO5:DO45,"Carton Rouge") -> 0 | DW47: =COUNTIF(DW5:DW45,"Carton Rouge") -> 0 | EF47: =COUNTIF(EF5:EF45,"Carton Rouge") -> 0 | EN47: =COUNTIF(EN5:EN45,"Carton Rouge") -> 0 | EW47: =COUNTIF(EW5:EW45,"Carton Rouge") -> 0 | FE47: =COUNTIF(FE5:FE45,"Carton Rouge") -> 0 | FN47: =COUNTIF(FN5:FN45,"Carton Rouge") -> 0 | FV47: =COUNTIF(FV5:FV45,"Carton Rouge") -> 0
G48: 6 | H48: Toulouse | I48: 1 | J48: 1 | K48: 0 | L48: 0 | M48: 1 | N48: 25 | O48: 31 | P48: -6 | Q48: 1 | R48: 1 | S48: 1 | T48: 1 | U48: 0 | V48: 0 | W48: 6 | X48: 8 | Y48: 0 | Z48: 1 | AA48: 1 | AB48: 0 | AC48: 1 | BN48: =COUNTIF(BY48:FW48,"OK") -> 7 | BY48: =IF(COUNTA(BO5:BO45)+COUNTA(BW5:BW45)<>0,"OK","F") -> OK | CP48: =IF(COUNTA(CF5:CF45)+COUNTA(CN5:CN45)<>0,"OK","F") -> OK | DG48: =IF(COUNTA(CW5:CW45)+COUNTA(DE5:DE45)<>0,"OK","F") -> OK | DX48: =IF(COUNTA(DN5:DN45)+COUNTA(DV5:DV45)<>0,"OK","F") -> OK | EO48: =IF(COUNTA(EE5:EE45)+COUNTA(EM5:EM45)<>0,"OK","F") -> OK | FF48: =IF(COUNTA(EV5:EV45)+COUNTA(FD5:FD45)<>0,"OK","F") -> OK | FW48: =IF(COUNTA(FM5:FM45)+COUNTA(FU5:FU45)<>0,"OK","F") -> OK
G49: 7 | H49: Bayonne | I49: 0 | J49: 0 | K49: 0 | L49: 0 | M49: 0 | N49: 0 | O49: 0 | P49: 0 | Q49: 0 | R49: 0 | S49: 0 | T49: 0 | U49: 0 | V49: 0 | W49: 0 | X49: 0 | Y49: 0 | Z49: 0 | AA49: 0 | AB49: 0 | AC49: 0
G50: 8 | H50: Biarritz | I50: 0 | J50: 0 | K50: 0 | L50: 0 | M50: 0 | N50: 0 | O50: 0 | P50: 0 | Q50: 0 | R50: 0 | S50: 0 | T50: 0 | U50: 0 | V50: 0 | W50: 0 | X50: 0 | Y50: 0 | Z50: 0 | AA50: 0 | AB50: 0 | AC50: 0
G51: 9 | H51: BordeauxBègles | I51: 0 | J51: 0 | K51: 0 | L51: 0 | M51: 0 | N51: 0 | O51: 0 | P51: 0 | Q51: 0 | R51: 0 | S51: 0 | T51: 0 | U51: 0 | V51: 0 | W51: 0 | X51: 0 | Y51: 0 | Z51: 0 | AA51: 0 | AB51: 0 | AC51: 0
G52: 10 | H52: Grenoble | I52: 0 | J52: 0 | K52: 0 | L52: 0 | M52: 0 | N52: 0 | O52: 0 | P52: 0 | Q52: 0 | R52: 0 | S52: 0 | T52: 0 | U52: 0 | V52: 0 | W52: 0 | X52: 0 | Y52: 0 | Z52: 0 | AA52: 0 | AB52: 0 | AC52: 0
G53: 11 | H53: Montpellier | I53: 0 | J53: 0 | K53: 0 | L53: 0 | M53: 0 | N53: 0 | O53: 0 | P53: 0 | Q53: 0 | R53: 0 | S53: 0 | T53: 0 | U53: 0 | V53: 0 | W53: 0 | X53: 0 | Y53: 0 | Z53: 0 | AA53: 0 | AB53: 0 | AC53: 0
G54: 12 | H54: Perpignan | I54: 0 | J54: 0 | K54: 0 | L54: 0 | M54: 0 | N54: 0 | O54: 0 | P54: 0 | Q54: 0 | R54: 0 | S54: 0 | T54: 0 | U54: 0 | V54: 0 | W54: 0 | X54: 0 | Y54: 0 | Z54: 0 | AA54: 0 | AB54: 0 | AC54: 0
G55: 13 | H55: RacingMétro92 | I55: 0 | J55: 0 | K55: 0 | L55: 0 | M55: 0 | N55: 0 | O55: 0 | P55: 0 | Q55: 0 | R55: 0 | S55: 0 | T55: 0 | U55: 0 | V55: 0 | W55: 0 | X55: 0 | Y55: 0 | Z55: 0 | AA55: 0 | AB55: 0 | AC55: 0
G56: 14 | H56: Oyonnax | I56: 0 | J56: 1 | K56: 0 | L56: 0 | M56: 1 | N56: 11 | O56: 39 | P56: -28 | Q56: 1 | R56: 4 | S56: 0 | T56: 2 | U56: 0 | V56: 0 | W56: 2 | X56: 5 | Y56: 0 | Z56: 0 | AA56: 0 | AB56: 0 | AC56: 0
I59: Classement de la journée
I61: Pts | J61: J. | K61: G | L61: N | M61: P | N61: Pr | O61: Ctr | P61: Diff | Q61: E p | R61: E c | S61: Tp | T61: Tc | U61: Dp | V61: Dc | W61: Pp | X61: Pc | Y61: B.O | Z61: B.D | AA61: Bon | AB61: Cr | AC61: Cj
G62: 1 | H62: Bayonne | I62: 5 | J62: 1 | K62: 1 | L62: 0 | M62: 0 | N62: 39 | O62: 11 | P62: 28 | Q62: 4 | R62: 1 | S62: 2 | T62: 0 | U62: 0 | V62: 0 | W62: 5 | X62: 2 | Y62: 1 | Z62: 0 | AA62: 1 | AB62: 0 | AC62: 0
G63: 2 | H63: BordeauxBègles | I63: 4 | J63: 1 | K63: 1 | L63: 0 | M63: 0 | N63: 31 | O63: 25 | P63: 6 | Q63: 1 | R63: 1 | S63: 1 | T63: 1 | U63: 0 | V63: 0 | W63: 8 | X63: 6 | Y63: 0 | Z63: 0 | AA63: 0 | AB63: 0 | AC63: 0
G64: 3 | H64: RacingMétro92 | I64: 4 | J64: 1 | K64: 1 | L64: 0 | M64: 0 | N64: 19 | O64: 14 | P64: 5 | Q64: 1 | R64: 1 | S64: 1 | T64: 0 | U64: 0 | V64: 1 | W64: 4 | X64: 2 | Y64: 0 | Z64: 0 | AA64: 0 | AB64: 0 | AC64: 0
G65: 4 | H65: Montferrand | I65: 4 | J65: 1 | K65: 1 | L65: 0 | M65: 0 | N65: 22 | O65: 18 | P65: 4 | Q65: 1 | R65: 2 | S65: 1 | T65: 1 | U65: 0 | V65: 1 | W65: 5 | X65: 1 | Y65: 0 | Z65: 0 | AA65: 0 | AB65: 0 | AC65: 2
G66: 5 | H66: Perpignan | I66: 4 | J66: 1 | K66: 1 | L66: 0 | M66: 0 | N66: 26 | O66: 23 | P66: 3 | Q66: 2 | R66: 2 | S66: 2 | T66: 2 | U66: 1 | V66: 0 | W66: 3 | X66: 3 | Y66: 0 | Z66: 0 | AA66: 0 | AB66: 0 | AC66: 0
G67: 6 | H67: Grenoble | I67: 4 | J67: 1 | K67: 1 | L67: 0 | M67: 0 | N67: 19 | O67: 16 | P67: 3 | Q67: 1 | R67: 1 | S67: 1 | T67: 1 | U67: 0 | V67: 0 | W67: 4 | X67: 3 | Y67: 0 | Z67: 0 | AA67: 0 | AB67: 0 | AC67: 0
G68: 7 | H68: Montpellier | I68: 2 | J68: 1 | K68: 0 | L68: 1 | M68: 0 | N68: 22 | O68: 22 | P68: 0 | Q68: 1 | R68: 1 | S68: 1 | T68: 1 | U68: 1 | V68: 0 | W68: 4 | X68: 5 | Y68: 0 | Z68: 0 | AA68: 0 | AB68: 0 | AC68: 0
G69: 8 | H69: Toulon | I69: 2 | J69: 1 | K69: 0 | L69: 1 | M69: 0 | N69: 22 | O69: 22 | P69: 0 | Q69: 1 | R69: 1 | S69: 1 | T69: 1 | U69: 0 | V69: 1 | W69: 5 | X69: 4 | Y69: 0 | Z69: 0 | AA69: 0 | AB69: 0 | AC69: 1
G70: 9 | H70: StadeFrancais | I70: 1 | J70: 1 | K70: 0 | L70: 0 | M70: 1 | N70: 16 | O70: 19 | P70: -3 | Q70: 1 | R70: 1 | S70: 1 | T70: 1 | U70: 0 | V70: 0 | W70: 3 | X70: 4 | Y70: 0 | Z70: 1 | AA70: 1 | AB70: 0 | AC70: 0
G71: 10 | H71: Castres | I71: 1 | J71: 1 | K71: 0 | L71: 0 | M71: 1 | N71: 23 | O71: 26 | P71: -3 | Q71: 2 | R71: 2 | S71: 2 | T71: 2 | U71: 0 | V71: 1 | W71: 3 | X71: 3 | Y71: 0 | Z71: 1 | AA71: 1 | AB71: 0 | AC71: 2
G72: 11 | H72: Biarritz | I72: 1 | J72: 1 | K72: 0 | L72: 0 | M72: 1 | N72: 18 | O72: 22 | P72: -4 | Q72: 2 | R72: 1 | S72: 1 | T72: 1 | U72: 1 | V72: 0 | W72: 1 | X72: 5 | Y72: 0 | Z72: 1 | AA72: 1 | AB72: 0 | AC72: 1
G73: 12 | H73: Brive | I73: 1 | J73: 1 | K73: 0 | L73: 0 | M73: 1 | N73: 14 | O73: 19 | P73: -5 | Q73: 1 | R73: 1 | S73: 0 | T73: 1 | U73: 1 | V73: 0 | W73: 2 | X73: 4 | Y73: 0 | Z73: 1 | AA73: 1 | AB73: 0 | AC73: 0
G74: 13 | H74: Toulouse | I74: 1 | J74: 1 | K74: 0 | L74: 0 | M74: 1 | N74: 25 | O74: 31 | P74: -6 | Q74: 1 | R74: 1 | S74: 1 | T74: 1 | U74: 0 | V74: 0 | W74: 6 | X74: 8 | Y74: 0 | Z74: 1 | AA74: 1 | AB74: 0 | AC74: 1
G75: 14 | H75: Oyonnax | I75: 0 | J75: 1 | K75: 0 | L75: 0 | M75: 1 | N75: 11 | O75: 39 | P75: -28 | Q75: 1 | R75: 4 | S75: 0 | T75: 2 | U75: 0 | V75: 0 | W75: 2 | X75: 5 | Y75: 0 | Z75: 0 | AA75: 0 | AB75: 0 | AC75: 0
H78: Essai | J78: Transf | L78: Drop | N78: Pen | P78: BO | Q78: BD | R78: CJ | S78: CR | T78: Pts
A79: =B3 -> Montpellier | B79: Recoit | C79: =E3 -> Toulon | D79: Visiteur | E79: =C3 -> 22 | F79: =D3 -> 22 | G79: =E2 -> 2013-08-17 | H79: =B4 -> 1 | I79: =E4 -> 1 | J79: =VLOOKUP(A79,$H$62:$AC$75,12,FALSE) -> 1 | K79: =VLOOKUP(A79,$H$62:$AC$75,13,FALSE) -> 1 | L79: =VLOOKUP(A79,$H$62:$AC$75,14,FALSE) -> 1 | M79: =VLOOKUP(A79,$H$62:$AC$75,15,FALSE) -> 0 | N79: =VLOOKUP(A79,$H$62:$AC$75,16,FALSE) -> 4 | O79: =VLOOKUP(A79,$H$62:$AC$75,17,FALSE) -> 5 | P79: =VLOOKUP(A79,$H$62:$AC$75,18,FALSE) -> 0 | Q79: =VLOOKUP(A79,$H$62:$AC$75,19,FALSE) -> 0 | R79: =VLOOKUP(A79,$H$62:$AC$75,22,FALSE) -> 0 | S79: =VLOOKUP(A79,$H$62:$AC$75,21,FALSE) -> 0 | T79: =VLOOKUP(A79,$H$62:$AC$75,2,FALSE) -> 2
A80: =E3 -> Toulon | B80: Visiteur | C80: =B3 -> Montpellier | D80: Recoit | E80: =D3 -> 22 | F80: =C3 -> 22 | G80: =E2 -> 2013-08-17 | H80: =E4 -> 1 | I80: =B4 -> 1 | J80: =VLOOKUP(A80,$H$62:$AC$75,12,FALSE) -> 1 | K80: =VLOOKUP(A80,$H$62:$AC$75,13,FALSE) -> 1 | L80: =VLOOKUP(A80,$H$62:$AC$75,14,FALSE) -> 0 | M80: =VLOOKUP(A80,$H$62:$AC$75,15,FALSE) -> 1 | N80: =VLOOKUP(A80,$H$62:$AC$75,16,FALSE) -> 5 | O80: =VLOOKUP(A80,$H$62:$AC$75,17,FALSE) -> 4 | P80: 0 | Q80: 0 | R80: =VLOOKUP(A80,$H$62:$AC$75,22,FALSE) -> 1 | S80: =VLOOKUP(A80,$H$62:$AC$75,21,FALSE) -> 0 | T80: =VLOOKUP(A80,$H$62:$AC$75,2,FALSE) -> 2
A81: =B5 -> Biarritz | B81: Recoit | C81: =E5 -> Montferrand | D81: Visiteur | E81: =C5 -> 18 | F81: =D5 -> 22 | G81: =E2 -> 2013-08-17 | H81: =B6 -> 2 | I81: =E6 -> 1 | J81: 1 | K81: 1 | L81: 1 | M81: 0 | N81: 1 | O81: 5 | P81: 0 | Q81: 1 | R81: 1 | S81: 0 | T81: 1
A82: =E5 -> Montferrand | B82: Visiteur | C82: =B5 -> Biarritz | D82: Recoit | E82: =D5 -> 22 | F82: =C5 -> 18 | G82: =E2 -> 2013-08-17 | H82: =E6 -> 1 | I82: =B6 -> 2 | J82: 1 | K82: 1 | L82: 0 | M82: 1 | N82: 5 | O82: 1 | P82: 0 | Q82: 0 | R82: 2 | S82: 0 | T82: 4
A83: =B7 -> RacingMétro92 | B83: Recoit | C83: =E7 -> Brive | D83: Visiteur | E83: =C7 -> 19 | F83: =D7 -> 14 | G83: =E2 -> 2013-08-17 | H83: =B8 -> 1 | I83: =E8 -> 1 | J83: 1 | K83: 0 | L83: 0 | M83: 1 | N83: 4 | O83: 2 | P83: 0 | Q83: 0 | R83: 0 | S83: 0 | T83: 4
A84: =E7 -> Brive | B84: Visiteur | C84: =B7 -> RacingMétro92 | D84: Recoit | E84: =D7 -> 14 | F84: =C7 -> 19 | G84: =E2 -> 2013-08-17 | H84: =E8 -> 1 | I84: =B8 -> 1 | J84: 0 | K84: 1 | L84: 1 | M84: 0 | N84: 2 | O84: 4 | P84: 0 | Q84: 1 | R84: 0 | S84: 0 | T84: 1
A85: =B9 -> Grenoble | B85: Recoit | C85: =E9 -> StadeFrancais | D85: Visiteur | E85: =C9 -> 19 | F85: =D9 -> 16 | G85: =E2 -> 2013-08-17 | H85: =B10 -> 1 | I85: =E10 -> 1 | J85: 1 | K85: 1 | L85: 0 | M85: 0 | N85: 4 | O85: 3 | P85: 0 | Q85: 0 | R85: 0 | S85: 0 | T85: 4
A86: =E9 -> StadeFrancais | B86: Visiteur | C86: =B9 -> Grenoble | D86: Recoit | E86: =D9 -> 16 | F86: =C9 -> 19 | G86: =E2 -> 2013-08-17 | H86: =E10 -> 1 | I86: =B10 -> 1 | J86: 1 | K86: 1 | L86: 0 | M86: 0 | N86: 3 | O86: 4 | P86: 0 | Q86: 1 | R86: 0 | S86: 0 | T86: 1
A87: =B11 -> BordeauxBègles | B87: Recoit | C87: =E11 -> Toulouse | D87: Visiteur | E87: =C11 -> 31 | F87: =D11 -> 25 | G87: =E2 -> 2013-08-17 | H87: =B12 -> 1 | I87: =E12 -> 1 | J87: 1 | K87: 1 | L87: 0 | M87: 0 | N87: 8 | O87: 6 | P87: 0 | Q87: 0 | R87: 0 | S87: 0 | T87: 4
A88: =E11 -> Toulouse | B88: Visiteur | C88: =B11 -> BordeauxBègles | D88: Recoit | E88: =D11 -> 25 | F88: =C11 -> 31 | G88: =E2 -> 2013-08-17 | H88: =E12 -> 1 | I88: =B12 -> 1 | J88: 1 | K88: 1 | L88: 0 | M88: 0 | N88: 6 | O88: 8 | P88: 0 | Q88: 1 | R88: 1 | S88: 0 | T88: 1
A89: =B13 -> Bayonne | B89: Recoit | C89: =E13 -> Oyonnax | D89: Visiteur | E89: =C13 -> 39 | F89: =D13 -> 11 | G89: =E2 -> 2013-08-17 | H89: =B14 -> 4 | I89: =E14 -> 1 | J89: 2 | K89: 0 | L89: 0 | M89: 0 | N89: 5 | O89: 2 | P89: 1 | Q89: 0 | R89: 0 | S89: 0 | T89: 5
A90: =E13 -> Oyonnax | B90: Visiteur | C90: =B13 -> Bayonne | D90: Recoit | E90: =D13 -> 11 | F90: =C13 -> 39 | G90: =E2 -> 2013-08-17 | H90: =E14 -> 1 | I90: =B14 -> 4 | J90: 0 | K90: 2 | L90: 0 | M90: 0 | N90: 2 | O90: 5 | P90: 0 | Q90: 0 | R90: 0 | S90: 0 | T90: 0
A91: =B15 -> Perpignan | B91: Recoit | C91: =E15 -> Castres | D91: Visiteur | E91: =C15 -> 26 | F91: =D15 -> 23 | G91: =E2 -> 2013-08-17 | H91: =B16 -> 2 | I91: =E16 -> 2 | J91: 2 | K91: 2 | L91: 1 | M91: 0 | N91: 3 | O91: 3 | P91: 0 | Q91: 0 | R91: 0 | S91: 0 | T91: 4
A92: =E15 -> Castres | B92: Visiteur | C92: =B15 -> Perpignan | D92: Recoit | E92: =D15 -> 23 | F92: =C15 -> 26 | G92: =E2 -> 2013-08-17 | H92: =E16 -> 2 | I92: =B16 -> 2 | J92: 2 | K92: 2 | L92: 0 | M92: 1 | N92: 3 | O92: 3 | P92: 0 | Q92: 1 | R92: 2 | S92: 0 | T92: 1
I197: Général | AB197: Domicile | AU197: Extérieur
H198: Equipe | I198: Pts | J198: J. | K198: G | L198: N | M198: P | N198: Pr | O198: Ctr | P198: Diff | Q198: E p | R198: E c | S198: Tp | T198: Tc | U198: Dp | V198: Dc | W198: Pp | X198: Pc | Y198: B.O | Z198: B.D | AA198: Bon | AB198: Cr | AC198: Cj | AD198: Pts | AE198: J. | AF198: G | AG198: N | AH198: P | AI198: Pr | AJ198: Ctr | AK198: Diff | AL198: E p | AM198: E c | AN198: Tp | AO198: Tc | AP198: Dp | AQ198: Dc | AR198: Pp | AS198: Pc | AT198: B.O | AU198: B.D | AV198: Bon | AW198: Cr | AX198: Cj | AY198: Pts | AZ198: J. | BA198: G | BB198: N | BC198: P | BD198: Pr | BE198: Ctr | BF198: Diff | BG198: E p | BH198: E c | BI198: Tp | BJ198: Tc | BK198: Dp | BL198: Dc | BM198: Pp | BN198: Pc | BO198: B.O | BP198: B.D | BQ198: Bon | BR198: Cr | BS198: Cj
G199: 1 | H199: Bayonne | I199: 5 | J199: 1 | K199: 1 | L199: 0 | M199: 0 | N199: 39 | O199: 11 | P199: 28 | Q199: 4 | R199: 1 | S199: 2 | T199: 0 | U199: 0 | V199: 0 | W199: 5 | X199: 2 | Y199: 1 | Z199: 0 | AA199: 1 | AB199: 0 | AC199: 0 | AD199: 5 | AE199: 1 | AF199: 1 | AG199: 0 | AH199: 0 | AI199: 39 | AJ199: 11 | AK199: 28 | AL199: 4 | AM199: 1 | AN199: 2 | AO199: 0 | AP199: 0 | AQ199: 0 | AR199: 5 | AS199: 2 | AT199: 1 | AU199: 0 | AV199: 1 | AW199: 0 | AX199: 0 | AY199: 0 | AZ199: 0 | BA199: 0 | BB199: 0 | BC199: 0 | BD199: 0 | BE199: 0 | BF199: 0 | BG199: 0 | BH199: 0 | BI199: 0 | BJ199: 0 | BK199: 0 | BL199: 0 | BM199: 0 | BN199: 0 | BO199: 0 | BP199: 0 | BQ199: 0 | BR199: 0 | BS199: 0
G200: 2 | H200: Biarritz | I200: 1 | J200: 1 | K200: 0 | L200: 0 | M200: 1 | N200: 18 | O200: 22 | P200: -4 | Q200: 2 | R200: 1 | S200: 1 | T200: 1 | U200: 1 | V200: 0 | W200: 1 | X200: 5 | Y200: 0 | Z200: 1 | AA200: 1 | AB200: 0 | AC200: 1 | AD200: 1 | AE200: 1 | AF200: 0 | AG200: 0 | AH200: 1 | AI200: 18 | AJ200: 22 | AK200: -4 | AL200: 2 | AM200: 1 | AN200: 1 | AO200: 1 | AP200: 1 | AQ200: 0 | AR200: 1 | AS200: 5 | AT200: 0 | AU200: 1 | AV200: 1 | AW200: 0 | AX200: 1 | AY200: 0 | AZ200: 0 | BA200: 0 | BB200: 0 | BC200: 0 | BD200: 0 | BE200: 0 | BF200: 0 | BG200: 0 | BH200: 0 | BI200: 0 | BJ200: 0 | BK200: 0 | BL200: 0 | BM200: 0 | BN200: 0 | BO200: 0 | BP200: 0 | BQ200: 0 | BR200: 0 | BS200: 0
G201: 3 | H201: BordeauxBègles | I201: 4 | J201: 1 | K201: 1 | L201: 0 | M201: 0 | N201: 31 | O201: 25 | P201: 6 | Q201: 1 | R201: 1 | S201: 1 | T201: 1 | U201: 0 | V201: 0 | W201: 8 | X201: 6 | Y201: 0 | Z201: 0 | AA201: 0 | AB201: 0 | AC201: 0 | AD201: 4 | AE201: 1 | AF201: 1 | AG201: 0 | AH201: 0 | AI201: 31 | AJ201: 25 | AK201: 6 | AL201: 1 | AM201: 1 | AN201: 1 | AO201: 1 | AP201: 0 | AQ201: 0 | AR201: 8 | AS201: 6 | AT201: 0 | AU201: 0 | AV201: 0 | AW201: 0 | AX201: 0 | AY201: 0 | AZ201: 0 | BA201: 0 | BB201: 0 | BC201: 0 | BD201: 0 | BE201: 0 | BF201: 0 | BG201: 0 | BH201: 0 | BI201: 0 | BJ201: 0 | BK201: 0 | BL201: 0 | BM201: 0 | BN201: 0 | BO201: 0 | BP201: 0 | BQ201: 0 | BR201: 0 | BS201: 0
G202: 4 | H202: Brive | I202: 1 | J202: 1 | K202: 0 | L202: 0 | M202: 1 | N202: 14 | O202: 19 | P202: -5 | Q202: 1 | R202: 1 | S202: 0 | T202: 1 | U202: 1 | V202: 0 | W202: 2 | X202: 4 | Y202: 0 | Z202: 1 | AA202: 1 | AB202: 0 | AC202: 0 | AD202: 0 | AE202: 0 | AF202: 0 | AG202: 0 | AH202: 0 | AI202: 0 | AJ202: 0 | AK202: 0 | AL202: 0 | AM202: 0 | AN202: 0 | AO202: 0 | AP202: 0 | AQ202: 0 | AR202: 0 | AS202: 0 | AT202: 0 | AU202: 0 | AV202: 0 | AW202: 0 | AX202: 0 | AY202: 1 | AZ202: 1 | BA202: 0 | BB202: 0 | BC202: 1 | BD202: 14 | BE202: 19 | BF202: -5 | BG202: 1 | BH202: 1 | BI202: 0 | BJ202: 1 | BK202: 1 | BL202: 0 | BM202: 2 | BN202: 4 | BO202: 0 | BP202: 1 | BQ202: 1 | BR202: 0 | BS202: 0
G203: 5 | H203: Castres | I203: 1 | J203: 1 | K203: 0 | L203: 0 | M203: 1 | N203: 23 | O203: 26 | P203: -3 | Q203: 2 | R203: 2 | S203: 2 | T203: 2 | U203: 0 | V203: 1 | W203: 3 | X203: 3 | Y203: 0 | Z203: 1 | AA203: 1 | AB203: 0 | AC203: 2 | AD203: 0 | AE203: 0 | AF203: 0 | AG203: 0 | AH203: 0 | AI203: 0 | AJ203: 0 | AK203: 0 | AL203: 0 | AM203: 0 | AN203: 0 | AO203: 0 | AP203: 0 | AQ203: 0 | AR203: 0 | AS203: 0 | AT203: 0 | AU203: 0 | AV203: 0 | AW203: 0 | AX203: 0 | AY203: 1 | AZ203: 1 | BA203: 0 | BB203: 0 | BC203: 1 | BD203: 23 | BE203: 26 | BF203: -3 | BG203: 2 | BH203: 2 | BI203: 2 | BJ203: 2 | BK203: 0 | BL203: 1 | BM203: 3 | BN203: 3 | BO203: 0 | BP203: 1 | BQ203: 1 | BR203: 0 | BS203: 2
G204: 6 | H204: Montferrand | I204: 4 | J204: 1 | K204: 1 | L204: 0 | M204: 0 | N204: 22 | O204: 18 | P204: 4 | Q204: 1 | R204: 2 | S204: 1 | T204: 1 | U204: 0 | V204: 1 | W204: 5 | X204: 1 | Y204: 0 | Z204: 0 | AA204: 0 | AB204: 0 | AC204: 2 | AD204: 0 | AE204: 0 | AF204: 0 | AG204: 0 | AH204: 0 | AI204: 0 | AJ204: 0 | AK204: 0 | AL204: 0 | AM204: 0 | AN204: 0 | AO204: 0 | AP204: 0 | AQ204: 0 | AR204: 0 | AS204: 0 | AT204: 0 | AU204: 0 | AV204: 0 | AW204: 0 | AX204: 0 | AY204: 4 | AZ204: 1 | BA204: 1 | BB204: 0 | BC204: 0 | BD204: 22 | BE204: 18 | BF204: 4 | BG204: 1 | BH204: 2 | BI204: 1 | BJ204: 1 | BK204: 0 | BL204: 1 | BM204: 5 | BN204: 1 | BO204: 0 | BP204: 0 | BQ204: 0 | BR204: 0 | BS204: 2
G205: 7 | H205: Grenoble | I205: 4 | J205: 1 | K205: 1 | L205: 0 | M205: 0 | N205: 19 | O205: 16 | P205: 3 | Q205: 1 | R205: 1 | S205: 1 | T205: 1 | U205: 0 | V205: 0 | W205: 4 | X205: 3 | Y205: 0 | Z205: 0 | AA205: 0 | AB205: 0 | AC205: 0 | AD205: 4 | AE205: 1 | AF205: 1 | AG205: 0 | AH205: 0 | AI205: 19 | AJ205: 16 | AK205: 3 | AL205: 1 | AM205: 1 | AN205: 1 | AO205: 1 | AP205: 0 | AQ205: 0 | AR205: 4 | AS205: 3 | AT205: 0 | AU205: 0 | AV205: 0 | AW205: 0 | AX205: 0 | AY205: 0 | AZ205: 0 | BA205: 0 | BB205: 0 | BC205: 0 | BD205: 0 | BE205: 0 | BF205: 0 | BG205: 0 | BH205: 0 | BI205: 0 | BJ205: 0 | BK205: 0 | BL205: 0 | BM205: 0 | BN205: 0 | BO205: 0 | BP205: 0 | BQ205: 0 | BR205: 0 | BS205: 0
G206: 8 | H206: Montpellier | I206: 2 | J206: 1 | K206: 0 | L206: 1 | M206: 0 | N206: 22 | O206: 22 | P206: 0 | Q206: 1 | R206: 1 | S206: 1 | T206: 1 | U206: 1 | V206: 0 | W206: 4 | X206: 5 | Y206: 0 | Z206: 0 | AA206: 0 | AB206: 0 | AC206: 0 | AD206: 2 | AE206: 1 | AF206: 0 | AG206: 1 | AH206: 0 | AI206: 22 | AJ206: 22 | AK206: 0 | AL206: 1 | AM206: 1 | AN206: 1 | AO206: 1 | AP206: 1 | AQ206: 0 | AR206: 4 | AS206: 5 | AT206: 0 | AU206: 0 | AV206: 0 | AW206: 0 | AX206: 0 | AY206: 0 | AZ206: 0 | BA206: 0 | BB206: 0 | BC206: 0 | BD206: 0 | BE206: 0 | BF206: 0 | BG206: 0 | BH206: 0 | BI206: 0 | BJ206: 0 | BK206: 0 | BL206: 0 | BM206: 0 | BN206: 0 | BO206: 0 | BP206: 0 | BQ206: 0 | BR206: 0 | BS206: 0
G207: 9 | H207: Oyonnax | I207: 0 | J207: 1 | K207: 0 | L207: 0 | M207: 1 | N207: 11 | O207: 39 | P207: -28 | Q207: 1 | R207: 4 | S207: 0 | T207: 2 | U207: 0 | V207: 0 | W207: 2 | X207: 5 | Y207: 0 | Z207: 0 | AA207: 0 | AB207: 0 | AC207: 0 | AD207: 0 | AE207: 0 | AF207: 0 | AG207: 0 | AH207: 0 | AI207: 0 | AJ207: 0 | AK207: 0 | AL207: 0 | AM207: 0 | AN207: 0 | AO207: 0 | AP207: 0 | AQ207: 0 | AR207: 0 | AS207: 0 | AT207: 0 | AU207: 0 | AV207: 0 | AW207: 0 | AX207: 0 | AY207: 0 | AZ207: 1 | BA207: 0 | BB207: 0 | BC207: 1 | BD207: 11 | BE207: 39 | BF207: -28 | BG207: 1 | BH207: 4 | BI207: 0 | BJ207: 2 | BK207: 0 | BL207: 0 | BM207: 2 | BN207: 5 | BO207: 0 | BP207: 0 | BQ207: 0 | BR207: 0 | BS207: 0
G208: 10 | H208: Perpignan | I208: 4 | J208: 1 | K208: 1 | L208: 0 | M208: 0 | N208: 26 | O208: 23 | P208: 3 | Q208: 2 | R208: 2 | S208: 2 | T208: 2 | U208: 1 | V208: 0 | W208: 3 | X208: 3 | Y208: 0 | Z208: 0 | AA208: 0 | AB208: 0 | AC208: 0 | AD208: 4 | AE208: 1 | AF208: 1 | AG208: 0 | AH208: 0 | AI208: 26 | AJ208: 23 | AK208: 3 | AL208: 2 | AM208: 2 | AN208: 2 | AO208: 2 | AP208: 1 | AQ208: 0 | AR208: 3 | AS208: 3 | AT208: 0 | AU208: 0 | AV208: 0 | AW208: 0 | AX208: 0 | AY208: 0 | AZ208: 0 | BA208: 0 | BB208: 0 | BC208: 0 | BD208: 0 | BE208: 0 | BF208: 0 | BG208: 0 | BH208: 0 | BI208: 0 | BJ208: 0 | BK208: 0 | BL208: 0 | BM208: 0 | BN208: 0 | BO208: 0 | BP208: 0 | BQ208: 0 | BR208: 0 | BS208: 0
G209: 11 | H209: RacingMétro92 | I209: 4 | J209: 1 | K209: 1 | L209: 0 | M209: 0 | N209: 19 | O209: 14 | P209: 5 | Q209: 1 | R209: 1 | S209: 1 | T209: 0 | U209: 0 | V209: 1 | W209: 4 | X209: 2 | Y209: 0 | Z209: 0 | AA209: 0 | AB209: 0 | AC209: 0 | AD209: 4 | AE209: 1 | AF209: 1 | AG209: 0 | AH209: 0 | AI209: 19 | AJ209: 14 | AK209: 5 | AL209: 1 | AM209: 1 | AN209: 1 | AO209: 0 | AP209: 0 | AQ209: 1 | AR209: 4 | AS209: 2 | AT209: 0 | AU209: 0 | AV209: 0 | AW209: 0 | AX209: 0 | AY209: 0 | AZ209: 0 | BA209: 0 | BB209: 0 | BC209: 0 | BD209: 0 | BE209: 0 | BF209: 0 | BG209: 0 | BH209: 0 | BI209: 0 | BJ209: 0 | BK209: 0 | BL209: 0 | BM209: 0 | BN209: 0 | BO209: 0 | BP209: 0 | BQ209: 0 | BR209: 0 | BS209: 0
G210: 12 | H210: StadeFrancais | I210: 1 | J210: 1 | K210: 0 | L210: 0 | M210: 1 | N210: 16 | O210: 19 | P210: -3 | Q210: 1 | R210: 1 | S210: 1 | T210: 1 | U210: 0 | V210: 0 | W210: 3 | X210: 4 | Y210: 0 | Z210: 1 | AA210: 1 | AB210: 0 | AC210: 0 | AD210: 0 | AE210: 0 | AF210: 0 | AG210: 0 | AH210: 0 | AI210: 0 | AJ210: 0 | AK210: 0 | AL210: 0 | AM210: 0 | AN210: 0 | AO210: 0 | AP210: 0 | AQ210: 0 | AR210: 0 | AS210: 0 | AT210: 0 | AU210: 0 | AV210: 0 | AW210: 0 | AX210: 0 | AY210: 1 | AZ210: 1 | BA210: 0 | BB210: 0 | BC210: 1 | BD210: 16 | BE210: 19 | BF210: -3 | BG210: 1 | BH210: 1 | BI210: 1 | BJ210: 1 | BK210: 0 | BL210: 0 | BM210: 3 | BN210: 4 | BO210: 0 | BP210: 1 | BQ210: 1 | BR210: 0 | BS210: 0
G211: 13 | H211: Toulon | I211: 2 | J211: 1 | K211: 0 | L211: 1 | M211: 0 | N211: 22 | O211: 22 | P211: 0 | Q211: 1 | R211: 1 | S211: 1 | T211: 1 | U211: 0 | V211: 1 | W211: 5 | X211: 4 | Y211: 0 | Z211: 0 | AA211: 0 | AB211: 0 | AC211: 1 | AD211: 0 | AE211: 0 | AF211: 0 | AG211: 0 | AH211: 0 | AI211: 0 | AJ211: 0 | AK211: 0 | AL211: 0 | AM211: 0 | AN211: 0 | AO211: 0 | AP211: 0 | AQ211: 0 | AR211: 0 | AS211: 0 | AT211: 0 | AU211: 0 | AV211: 0 | AW211: 0 | AX211: 0 | AY211: 2 | AZ211: 1 | BA211: 0 | BB211: 1 | BC211: 0 | BD211: 22 | BE211: 22 | BF211: 0 | BG211: 1 | BH211: 1 | BI211: 1 | BJ211: 1 | BK211: 0 | BL211: 1 | BM211: 5 | BN211: 4 | BO211: 0 | BP211: 0 | BQ211: 0 | BR211: 0 | BS211: 1
G212: 14 | H212: Toulouse | I212: 1 | J212: 1 | K212: 0 | L212: 0 | M212: 1 | N212: 25 | O212: 31 | P212: -6 | Q212: 1 | R212: 1 | S212: 1 | T212: 1 | U212: 0 | V212: 0 | W212: 6 | X212: 8 | Y212: 0 | Z212: 1 | AA212: 1 | AB212: 0 | AC212: 1 | AD212: 0 | AE212: 0 | AF212: 0 | AG212: 0 | AH212: 0 | AI212: 0 | AJ212: 0 | AK212: 0 | AL212: 0 | AM212: 0 | AN212: 0 | AO212: 0 | AP212: 0 | AQ212: 0 | AR212: 0 | AS212: 0 | AT212: 0 | AU212: 0 | AV212: 0 | AW212: 0 | AX212: 0 | AY212: 1 | AZ212: 1 | BA212: 0 | BB212: 0 | BC212: 1 | BD212: 25 | BE212: 31 | BF212: -6 | BG212: 1 | BH212: 1 | BI212: 1 | BJ212: 1 | BK212: 0 | BL212: 0 | BM212: 6 | BN212: 8 | BO212: 0 | BP212: 1 | BQ212: 1 | BR212: 0 | BS212: 1
I214: Général | AB214: Domicile | AU214: Extérieur
H215: Equipe | I215: Pts | J215: J. | K215: G | L215: N | M215: P | N215: Pr | O215: Ctr | P215: Diff | Q215: E p | R215: E c | S215: Tp | T215: Tc | U215: Dp | V215: Dc | W215: Pp | X215: Pc | Y215: B.O | Z215: B.D | AA215: Bon | AB215: Cr | AC215: Cj | AD215: Pts | AE215: J. | AF215: G | AG215: N | AH215: P | AI215: Pr | AJ215: Ctr | AK215: Diff | AL215: E p | AM215: E c | AN215: Tp | AO215: Tc | AP215: Dp | AQ215: Dc | AR215: Pp | AS215: Pc | AT215: B.O | AU215: B.D | AV215: Bon | AW215: Cr | AX215: Cj | AY215: Pts | AZ215: J. | BA215: G | BB215: N | BC215: P | BD215: Pr | BE215: Ctr | BF215: Diff | BG215: E p | BH215: E c | BI215: Tp | BJ215: Tc | BK215: Dp | BL215: Dc | BM215: Pp | BN215: Pc | BO215: B.O | BP215: B.D | BQ215: Bon | BR215: Cr | BS215: Cj
G216: 1 | H216: Bayonne | I216: 5 | J216: 1 | K216: 1 | L216: 0 | M216: 0 | N216: 39 | O216: 11 | P216: 28 | Q216: 4 | R216: 1 | S216: 2 | T216: 0 | U216: 0 | V216: 0 | W216: 5 | X216: 2 | Y216: 1 | Z216: 0 | AA216: 1 | AB216: 0 | AC216: 0 | AD216: 5 | AE216: 1 | AF216: 1 | AG216: 0 | AH216: 0 | AI216: 39 | AJ216: 11 | AK216: 28 | AL216: 4 | AM216: 1 | AN216: 2 | AO216: 0 | AP216: 0 | AQ216: 0 | AR216: 5 | AS216: 2 | AT216: 1 | AU216: 0 | AV216: 1 | AW216: 0 | AX216: 0 | AY216: 0 | AZ216: 0 | BA216: 0 | BB216: 0 | BC216: 0 | BD216: 0 | BE216: 0 | BF216: 0 | BG216: 0 | BH216: 0 | BI216: 0 | BJ216: 0 | BK216: 0 | BL216: 0 | BM216: 0 | BN216: 0 | BO216: 0 | BP216: 0 | BQ216: 0 | BR216: 0 | BS216: 0
G217: 2 | H217: Biarritz | I217: 1 | J217: 1 | K217: 0 | L217: 0 | M217: 1 | N217: 18 | O217: 22 | P217: -4 | Q217: 2 | R217: 1 | S217: 1 | T217: 1 | U217: 1 | V217: 0 | W217: 1 | X217: 5 | Y217: 0 | Z217: 1 | AA217: 1 | AB217: 0 | AC217: 1 | AD217: 1 | AE217: 1 | AF217: 0 | AG217: 0 | AH217: 1 | AI217: 18 | AJ217: 22 | AK217: -4 | AL217: 2 | AM217: 1 | AN217: 1 | AO217: 1 | AP217: 1 | AQ217: 0 | AR217: 1 | AS217: 5 | AT217: 0 | AU217: 1 | AV217: 1 | AW217: 0 | AX217: 1 | AY217: 0 | AZ217: 0 | BA217: 0 | BB217: 0 | BC217: 0 | BD217: 0 | BE217: 0 | BF217: 0 | BG217: 0 | BH217: 0 | BI217: 0 | BJ217: 0 | BK217: 0 | BL217: 0 | BM217: 0 | BN217: 0 | BO217: 0 | BP217: 0 | BQ217: 0 | BR217: 0 | BS217: 0
G218: 3 | H218: BordeauxBègles | I218: 4 | J218: 1 | K218: 1 | L218: 0 | M218: 0 | N218: 31 | O218: 25 | P218: 6 | Q218: 1 | R218: 1 | S218: 1 | T218: 1 | U218: 0 | V218: 0 | W218: 8 | X218: 6 | Y218: 0 | Z218: 0 | AA218: 0 | AB218: 0 | AC218: 0 | AD218: 4 | AE218: 1 | AF218: 1 | AG218: 0 | AH218: 0 | AI218: 31 | AJ218: 25 | AK218: 6 | AL218: 1 | AM218: 1 | AN218: 1 | AO218: 1 | AP218: 0 | AQ218: 0 | AR218: 8 | AS218: 6 | AT218: 0 | AU218: 0 | AV218: 0 | AW218: 0 | AX218: 0 | AY218: 0 | AZ218: 0 | BA218: 0 | BB218: 0 | BC218: 0 | BD218: 0 | BE218: 0 | BF218: 0 | BG218: 0 | BH218: 0 | BI218: 0 | BJ218: 0 | BK218: 0 | BL218: 0 | BM218: 0 | BN218: 0 | BO218: 0 | BP218: 0 | BQ218: 0 | BR218: 0 | BS218: 0
G219: 4 | H219: Brive | I219: 1 | J219: 1 | K219: 0 | L219: 0 | M219: 1 | N219: 14 | O219: 19 | P219: -5 | Q219: 1 | R219: 1 | S219: 0 | T219: 1 | U219: 1 | V219: 0 | W219: 2 | X219: 4 | Y219: 0 | Z219: 1 | AA219: 1 | AB219: 0 | AC219: 0 | AD219: 0 | AE219: 0 | AF219: 0 | AG219: 0 | AH219: 0 | AI219: 0 | AJ219: 0 | AK219: 0 | AL219: 0 | AM219: 0 | AN219: 0 | AO219: 0 | AP219: 0 | AQ219: 0 | AR219: 0 | AS219: 0 | AT219: 0 | AU219: 0 | AV219: 0 | AW219: 0 | AX219: 0 | AY219: 1 | AZ219: 1 | BA219: 0 | BB219: 0 | BC219: 1 | BD219: 14 | BE219: 19 | BF219: -5 | BG219: 1 | BH219: 1 | BI219: 0 | BJ219: 1 | BK219: 1 | BL219: 0 | BM219: 2 | BN219: 4 | BO219: 0 | BP219: 1 | BQ219: 1 | BR219: 0 | BS219: 0
G220: 5 | H220: Castres | I220: 1 | J220: 1 | K220: 0 | L220: 0 | M220: 1 | N220: 23 | O220: 26 | P220: -3 | Q220: 2 | R220: 2 | S220: 2 | T220: 2 | U220: 0 | V220: 1 | W220: 3 | X220: 3 | Y220: 0 | Z220: 1 | AA220: 1 | AB220: 0 | AC220: 2 | AD220: 0 | AE220: 0 | AF220: 0 | AG220: 0 | AH220: 0 | AI220: 0 | AJ220: 0 | AK220: 0 | AL220: 0 | AM220: 0 | AN220: 0 | AO220: 0 | AP220: 0 | AQ220: 0 | AR220: 0 | AS220: 0 | AT220: 0 | AU220: 0 | AV220: 0 | AW220: 0 | AX220: 0 | AY220: 1 | AZ220: 1 | BA220: 0 | BB220: 0 | BC220: 1 | BD220: 23 | BE220: 26 | BF220: -3 | BG220: 2 | BH220: 2 | BI220: 2 | BJ220: 2 | BK220: 0 | BL220: 1 | BM220: 3 | BN220: 3 | BO220: 0 | BP220: 1 | BQ220: 1 | BR220: 0 | BS220: 2
G221: 6 | H221: Montferrand | I221: 4 | J221: 1 | K221: 1 | L221: 0 | M221: 0 | N221: 22 | O221: 18 | P221: 4 | Q221: 1 | R221: 2 | S221: 1 | T221: 1 | U221: 0 | V221: 1 | W221: 5 | X221: 1 | Y221: 0 | Z221: 0 | AA221: 0 | AB221: 0 | AC221: 2 | AD221: 0 | AE221: 0 | AF221: 0 | AG221: 0 | AH221: 0 | AI221: 0 | AJ221: 0 | AK221: 0 | AL221: 0 | AM221: 0 | AN221: 0 | AO221: 0 | AP221: 0 | AQ221: 0 | AR221: 0 | AS221: 0 | AT221: 0 | AU221: 0 | AV221: 0 | AW221: 0 | AX221: 0 | AY221: 4 | AZ221: 1 | BA221: 1 | BB221: 0 | BC221: 0 | BD221: 22 | BE221: 18 | BF221: 4 | BG221: 1 | BH221: 2 | BI221: 1 | BJ221: 1 | BK221: 0 | BL221: 1 | BM221: 5 | BN221: 1 | BO221: 0 | BP221: 0 | BQ221: 0 | BR221: 0 | BS221: 2
G222: 7 | H222: Grenoble | I222: 4 | J222: 1 | K222: 1 | L222: 0 | M222: 0 | N222: 19 | O222: 16 | P222: 3 | Q222: 1 | R222: 1 | S222: 1 | T222: 1 | U222: 0 | V222: 0 | W222: 4 | X222: 3 | Y222: 0 | Z222: 0 | AA222: 0 | AB222: 0 | AC222: 0 | AD222: 4 | AE222: 1 | AF222: 1 | AG222: 0 | AH222: 0 | AI222: 19 | AJ222: 16 | AK222: 3 | AL222: 1 | AM222: 1 | AN222: 1 | AO222: 1 | AP222: 0 | AQ222: 0 | AR222: 4 | AS222: 3 | AT222: 0 | AU222: 0 | AV222: 0 | AW222: 0 | AX222: 0 | AY222: 0 | AZ222: 0 | BA222: 0 | BB222: 0 | BC222: 0 | BD222: 0 | BE222: 0 | BF222: 0 | BG222: 0 | BH222: 0 | BI222: 0 | BJ222: 0 | BK222: 0 | BL222: 0 | BM222: 0 | BN222: 0 | BO222: 0 | BP222: 0 | BQ222: 0 | BR222: 0 | BS222: 0
G223: 8 | H223: Montpellier | I223: 2 | J223: 1 | K223: 0 | L223: 1 | M223: 0 | N223: 22 | O223: 22 | P223: 0 | Q223: 1 | R223: 1 | S223: 1 | T223: 1 | U223: 1 | V223: 0 | W223: 4 | X223: 5 | Y223: 0 | Z223: 0 | AA223: 0 | AB223: 0 | AC223: 0 | AD223: 2 | AE223: 1 | AF223: 0 | AG223: 1 | AH223: 0 | AI223: 22 | AJ223: 22 | AK223: 0 | AL223: 1 | AM223: 1 | AN223: 1 | AO223: 1 | AP223: 1 | AQ223: 0 | AR223: 4 | AS223: 5 | AT223: 0 | AU223: 0 | AV223: 0 | AW223: 0 | AX223: 0 | AY223: 0 | AZ223: 0 | BA223: 0 | BB223: 0 | BC223: 0 | BD223: 0 | BE223: 0 | BF223: 0 | BG223: 0 | BH223: 0 | BI223: 0 | BJ223: 0 | BK223: 0 | BL223: 0 | BM223: 0 | BN223: 0 | BO223: 0 | BP223: 0 | BQ223: 0 | BR223: 0 | BS223: 0
G224: 9 | H224: Oyonnax | I224: 0 | J224: 1 | K224: 0 | L224: 0 | M224: 1 | N224: 11 | O224: 39 | P224: -28 | Q224: 1 | R224: 4 | S224: 0 | T224: 2 | U224: 0 | V224: 0 | W224: 2 | X224: 5 | Y224: 0 | Z224: 0 | AA224: 0 | AB224: 0 | AC224: 0 | AD224: 0 | AE224: 0 | AF224: 0 | AG224: 0 | AH224: 0 | AI224: 0 | AJ224: 0 | AK224: 0 | AL224: 0 | AM224: 0 | AN224: 0 | AO224: 0 | AP224: 0 | AQ224: 0 | AR224: 0 | AS224: 0 | AT224: 0 | AU224: 0 | AV224: 0 | AW224: 0 | AX224: 0 | AY224: 0 | AZ224: 1 | BA224: 0 | BB224: 0 | BC224: 1 | BD224: 11 | BE224: 39 | BF224: -28 | BG224: 1 | BH224: 4 | BI224: 0 | BJ224: 2 | BK224: 0 | BL224: 0 | BM224: 2 | BN224: 5 | BO224: 0 | BP224: 0 | BQ224: 0 | BR224: 0 | BS224: 0
G225: 10 | H225: Perpignan | I225: 4 | J225: 1 | K225: 1 | L225: 0 | M225: 0 | N225: 26 | O225: 23 | P225: 3 | Q225: 2 | R225: 2 | S225: 2 | T225: 2 | U225: 1 | V225: 0 | W225: 3 | X225: 3 | Y225: 0 | Z225: 0 | AA225: 0 | AB225: 0 | AC225: 0 | AD225: 4 | AE225: 1 | AF225: 1 | AG225: 0 | AH225: 0 | AI225: 26 | AJ225: 23 | AK225: 3 | AL225: 2 | AM225: 2 | AN225: 2 | AO225: 2 | AP225: 1 | AQ225: 0 | AR225: 3 | AS225: 3 | AT225: 0 | AU225: 0 | AV225: 0 | AW225: 0 | AX225: 0 | AY225: 0 | AZ225: 0 | BA225: 0 | BB225: 0 | BC225: 0 | BD225: 0 | BE225: 0 | BF225: 0 | BG225: 0 | BH225: 0 | BI225: 0 | BJ225: 0 | BK225: 0 | BL225: 0 | BM225: 0 | BN225: 0 | BO225: 0 | BP225: 0 | BQ225: 0 | BR225: 0 | BS225: 0
G226: 11 | H226: RacingMétro92 | I226: 4 | J226: 1 | K226: 1 | L226: 0 | M226: 0 | N226: 19 | O226: 14 | P226: 5 | Q226: 1 | R226: 1 | S226: 1 | T226: 0 | U226: 0 | V226: 1 | W226: 4 | X226: 2 | Y226: 0 | Z226: 0 | AA226: 0 | AB226: 0 | AC226: 0 | AD226: 4 | AE226: 1 | AF226: 1 | AG226: 0 | AH226: 0 | AI226: 19 | AJ226: 14 | AK226: 5 | AL226: 1 | AM226: 1 | AN226: 1 | AO226: 0 | AP226: 0 | AQ226: 1 | AR226: 4 | AS226: 2 | AT226: 0 | AU226: 0 | AV226: 0 | AW226: 0 | AX226: 0 | AY226: 0 | AZ226: 0 | BA226: 0 | BB226: 0 | BC226: 0 | BD226: 0 | BE226: 0 | BF226: 0 | BG226: 0 | BH226: 0 | BI226: 0 | BJ226: 0 | BK226: 0 | BL226: 0 | BM226: 0 | BN226: 0 | BO226: 0 | BP226: 0 | BQ226: 0 | BR226: 0 | BS226: 0
G227: 12 | H227: StadeFrancais | I227: 1 | J227: 1 | K227: 0 | L227: 0 | M227: 1 | N227: 16 | O227: 19 | P227: -3 | Q227: 1 | R227: 1 | S227: 1 | T227: 1 | U227: 0 | V227: 0 | W227: 3 | X227: 4 | Y227: 0 | Z227: 1 | AA227: 1 | AB227: 0 | AC227: 0 | AD227: 0 | AE227: 0 | AF227: 0 | AG227: 0 | AH227: 0 | AI227: 0 | AJ227: 0 | AK227: 0 | AL227: 0 | AM227: 0 | AN227: 0 | AO227: 0 | AP227: 0 | AQ227: 0 | AR227: 0 | AS227: 0 | AT227: 0 | AU227: 0 | AV227: 0 | AW227: 0 | AX227: 0 | AY227: 1 | AZ227: 1 | BA227: 0 | BB227: 0 | BC227: 1 | BD227: 16 | BE227: 19 | BF227: -3 | BG227: 1 | BH227: 1 | BI227: 1 | BJ227: 1 | BK227: 0 | BL227: 0 | BM227: 3 | BN227: 4 | BO227: 0 | BP227: 1 | BQ227: 1 | BR227: 0 | BS227: 0
G228: 13 | H228: Toulon | I228: 2 | J228: 1 | K228: 0 | L228: 1 | M228: 0 | N228: 22 | O228: 22 | P228: 0 | Q228: 1 | R228: 1 | S228: 1 | T228: 1 | U228: 0 | V228: 1 | W228: 5 | X228: 4 | Y228: 0 | Z228: 0 | AA228: 0 | AB228: 0 | AC228: 1 | AD228: 0 | AE228: 0 | AF228: 0 | AG228: 0 | AH228: 0 | AI228: 0 | AJ228: 0 | AK228: 0 | AL228: 0 | AM228: 0 | AN228: 0 | AO228: 0 | AP228: 0 | AQ228: 0 | AR228: 0 | AS228: 0 | AT228: 0 | AU228: 0 | AV228: 0 | AW228: 0 | AX228: 0 | AY228: 2 | AZ228: 1 | BA228: 0 | BB228: 1 | BC228: 0 | BD228: 22 | BE228: 22 | BF228: 0 | BG228: 1 | BH228: 1 | BI228: 1 | BJ228: 1 | BK228: 0 | BL228: 1 | BM228: 5 | BN228: 4 | BO228: 0 | BP228: 0 | BQ228: 0 | BR228: 0 | BS228: 1
G229: 14 | H229: Toulouse | I229: 1 | J229: 1 | K229: 0 | L229: 0 | M229: 1 | N229: 25 | O229: 31 | P229: -6 | Q229: 1 | R229: 1 | S229: 1 | T229: 1 | U229: 0 | V229: 0 | W229: 6 | X229: 8 | Y229: 0 | Z229: 1 | AA229: 1 | AB229: 0 | AC229: 1 | AD229: 0 | AE229: 0 | AF229: 0 | AG229: 0 | AH229: 0 | AI229: 0 | AJ229: 0 | AK229: 0 | AL229: 0 | AM229: 0 | AN229: 0 | AO229: 0 | AP229: 0 | AQ229: 0 | AR229: 0 | AS229: 0 | AT229: 0 | AU229: 0 | AV229: 0 | AW229: 0 | AX229: 0 | AY229: 1 | AZ229: 1 | BA229: 0 | BB229: 0 | BC229: 1 | BD229: 25 | BE229: 31 | BF229: -6 | BG229: 1 | BH229: 1 | BI229: 1 | BJ229: 1 | BK229: 0 | BL229: 0 | BM229: 6 | BN229: 8 | BO229: 0 | BP229: 1 | BQ229: 1 | BR229: 0 | BS229: 1

Sheet 2
A1: õ | B1: =IF(C2=1,C2&"ère Journée (",C2&"ème Journée (")&TEXT(E2,"j mmmm aaaa")&")" -> 2ème Journée (24 août 2013) | G1: Classement : | BO1: 1ère Mi-Temps | BP1: =SUMIF(BQ5:BQ45,"<=40",BR5:BR45) -> 15 | BQ1: =SUMIF(BY5:BY45,"<=40",BZ5:BZ45) -> 6 | BS1: E | BT1: P | BU1: D | BV1: T | BW1: 2ème Mi-Temps | BX1: =SUMIF(BQ5:BQ45,">40",BR5:BR45) -> 10 | BY1: =SUMIF(BY5:BY45,">40",BZ5:BZ45) -> 6 | CA1: E | CB1: P | CC1: D | CD1: T | CF1: 1ère Mi-Temps | CG1: =SUMIF(CH5:CH45,"<=40",CI5:CI45) -> 3 | CH1: =SUMIF(CP5:CP45,"<=40",CQ5:CQ45) -> 6 | CJ1: E | CK1: P | CL1: D | CM1: T | CN1: 2ème Mi-Temps | CO1: =SUMIF(CH5:CH45,">40",CI5:CI45) -> 16 | CP1: =SUMIF(CP5:CP45,">40",CQ5:CQ45) -> 6 | CR1: E | CS1: P | CT1: D | CU1: T | CW1: 1ère Mi-Temps | CX1: =SUMIF(CY5:CY45,"<=40",CZ5:CZ45) -> 15 | CY1: =SUMIF(DG5:DG45,"<=40",DH5:DH45) -> 3 | DA1: E | DB1: P | DC1: D | DD1: T | DE1: 2ème Mi-Temps | DF1: =SUMIF(CY5:CY45,">40",CZ5:CZ45) -> 19 | DG1: =SUMIF(DG5:DG45,">40",DH5:DH45) -> 3 | DI1: E | DJ1: P | DK1: D | DL1: T | DN1: 1ère Mi-Temps | DO1: =SUMIF(DP5:DP45,"<=40",DQ5:DQ45) -> 20 | DP1: =SUMIF(DX5:DX45,"<=40",DY5:DY45) -> 0 | DR1: E | DS1: P | DT1: D | DU1: T | DV1: 2ème Mi-Temps | DW1: =SUMIF(DP5:DP45,">40",DQ5:DQ45) -> 10 | DX1: =SUMIF(DX5:DX45,">40",DY5:DY45) -> 19 | DZ1: E | EA1: P | EB1: D | EC1: T | EE1: 1ère Mi-Temps | EF1: =SUMIF(EG5:EG45,"<=40",EH5:EH45) -> 20 | EG1: =SUMIF(EO5:EO45,"<=40",EP5:EP45) -> 16 | EI1: E | EJ1: P | EK1: D | EL1: T | EM1: 2ème Mi-Temps | EN1: =SUMIF(EG5:EG45,">40",EH5:EH45) -> 7 | EO1: =SUMIF(EO5:EO45,">40",EP5:EP45) -> 12 | EQ1: E | ER1: P | ES1: D | ET1: T | EV1: 1ère Mi-Temps | EW1: =SUMIF(EX5:EX45,"<=40",EY5:EY45) -> 13 | EX1: =SUMIF(FF5:FF45,"<=40",FG5:FG45) -> 6 | EZ1: E | FA1: P | FB1: D | FC1: T | FD1: 2ème Mi-Temps | FE1: =SUMIF(EX5:EX45,">40",EY5:EY45) -> 28 | FF1: =SUMIF(FF5:FF45,">40",FG5:FG45) -> 8 | FH1: E | FI1: P | FJ1: D | FK1: T | FM1: 1ère Mi-Temps | FN1: =SUMIF(FO5:FO45,"<=40",FP5:FP45) -> 9 | FO1: =SUMIF(FW5:FW45,"<=40",FX5:FX45) -> 3 | FQ1: E | FR1: P | FS1: D | FT1: T | FU1: 2ème Mi-Temps | FV1: =SUMIF(FO5:FO45,">40",FP5:FP45) -> 31 | FW1: =SUMIF(FW5:FW45,">40",FX5:FX45) -> 0 | FY1: E | FZ1: P | GA1: D | GB1: T
B2: Journée | C2: 2 | E2: 2013-08-24 | I2: Classement Général | BN2: =HYPERLINK(MID(CELL("filename",A1),FIND("[",CELL("filename",A1)),FIND("]", CELL("filename",A1))-FIND("[",CELL("filename",A1))+1)&"'"&MID(CELL("filename",A1),FIND("]",CELL("filename",A1))+1,99)&"'!a1","ç") -> ç | BO2: =B3 -> Brive | BQ2: =SUM(BR5:BR45) -> 25 | BS2: =SUM(BS5:BS45) -> 1 | BT2: =SUM(BT5:BT45) -> 6 | BU2: =SUM(BU5:BU45) -> 0 | BV2: =SUM(BV5:BV45) -> 1 | BW2: =E3 -> BordeauxBègles | BY2: =SUM(BZ5:BZ45) -> 12 | CA2: =SUM(CA5:CA45) -> 0 | CB2: =SUM(CB5:CB45) -> 4 | CC2: =SUM(CC5:CC45) -> 0 | CD2: =SUM(CD5:CD45) -> 0 | CE2: =HYPERLINK(MID(CELL("filename",R1),FIND("[",CELL("filename",R1)),FIND("]", CELL("filename",R1))-FIND("[",CELL("filename",R1))+1)&"'"&MID(CELL("filename",R1),FIND("]",CELL("filename",R1))+1,99)&"'!a1","ç") -> ç | CF2: =B5 -> Biarritz | CH2: =SUM(CI5:CI45) -> 19 | CJ2: =SUM(CJ5:CJ45) -> 1 | CK2: =SUM(CK5:CK45) -> 4 | CL2: =SUM(CL5:CL45) -> 0 | CM2: =SUM(CM5:CM45) -> 1 | CN2: =E5 -> Montpellier | CP2: =SUM(CQ5:CQ45) -> 12 | CR2: =SUM(CR5:CR45) -> 0 | CS2: =SUM(CS5:CS45) -> 4 | CT2: =SUM(CT5:CT45) -> 0 | CU2: =SUM(CU5:CU45) -> 0 | CV2: =HYPERLINK(MID(CELL("filename",AU1),FIND("[",CELL("filename",AU1)),FIND("]", CELL("filename",AU1))-FIND("[",CELL("filename",AU1))+1)&"'"&MID(CELL("filename",AU1),FIND("]",CELL("filename",AU1))+1,99)&"'!a1","ç") -> ç | CW2: =B7 -> Castres | CY2: =SUM(CZ5:CZ45) -> 34 | DA2: =SUM(DA5:DA45) -> 5 | DB2: =SUM(DB5:DB45) -> 1 | DC2: =SUM(DC5:DC45) -> 0 | DD2: =SUM(DD5:DD45) -> 3 | DE2: =E7 -> Grenoble | DG2: =SUM(DH5:DH45) -> 6 | DI2: =SUM(DI5:DI45) -> 0 | DJ2: =SUM(DJ5:DJ45) -> 2 | DK2: =SUM(DK5:DK45) -> 0 | DL2: =SUM(DL5:DL45) -> 0 | DM2: =HYPERLINK(MID(CELL("filename",BR1),FIND("[",CELL("filename",BR1)),FIND("]", CELL("filename",BR1))-FIND("[",CELL("filename",BR1))+1)&"'"&MID(CELL("filename",BR1),FIND("]",CELL("filename",BR1))+1,99)&"'!a1","ç") -> ç | DN2: =B9 -> Oyonnax | DP2: =SUM(DQ5:DQ45) -> 30 | DR2: =SUM(DR5:DR45) -> 3 | DS2: =SUM(DS5:DS45) -> 2 | DT2: =SUM(DT5:DT45) -> 1 | DU2: =SUM(DU5:DU45) -> 3 | DV2: =E9 -> Montferrand | DX2: =SUM(DY5:DY45) -> 19 | DZ2: =SUM(DZ5:DZ45) -> 2 | EA2: =SUM(EA5:EA45) -> 3 | EB2: =SUM(EB5:EB45) -> 0 | EC2: =SUM(EC5:EC45) -> 0 | ED2: =HYPERLINK(MID(CELL("filename",CI1),FIND("[",CELL("filename",CI1)),FIND("]", CELL("filename",CI1))-FIND("[",CELL("filename",CI1))+1)&"'"&MID(CELL("filename",CI1),FIND("]",CELL("filename",CI1))+1,99)&"'!a1","ç") -> ç | EE2: =B11 -> Perpignan | EG2: =SUM(EH5:EH45) -> 27 | EI2: =SUM(EI5:EI45) -> 3 | EJ2: =SUM(EJ5:EJ45) -> 2 | EK2: =SUM(EK5:EK45) -> 0 | EL2: =SUM(EL5:EL45) -> 3 | EM2: =E11 -> StadeFrancais | EO2: =SUM(EP5:EP45) -> 28 | EQ2: =SUM(EQ5:EQ45) -> 1 | ER2: =SUM(ER5:ER45) -> 4 | ES2: =SUM(ES5:ES45) -> 3 | ET2: =SUM(ET5:ET45) -> 1 | EU2: =HYPERLINK(MID(CELL("filename",CZ1),FIND("[",CELL("filename",CZ1)),FIND("]", CELL("filename",CZ1))-FIND("[",CELL("filename",CZ1))+1)&"'"&MID(CELL("filename",CZ1),FIND("]",CELL("filename",CZ1))+1,99)&"'!a1","ç") -> ç | EV2: =B13 -> Toulon | EX2: =SUM(EY5:EY45) -> 41 | EZ2: =SUM(EZ5:EZ45) -> 5 | FA2: =SUM(FA5:FA45) -> 1 | FB2: =SUM(FB5:FB45) -> 1 | FC2: =SUM(FC5:FC45) -> 5 | FD2: =E13 -> RacingMétro92 | FF2: =SUM(FG5:FG45) -> 14 | FH2: =SUM(FH5:FH45) -> 1 | FI2: =SUM(FI5:FI45) -> 3 | FJ2: =SUM(FJ5:FJ45) -> 0 | FK2: =SUM(FK5:FK45) -> 0 | FL2: =HYPERLINK(MID(CELL("filename",DQ1),FIND("[",CELL("filename",DQ1)),FIND("]", CELL("filename",DQ1))-FIND("[",CELL("filename",DQ1))+1)&"'"&MID(CELL("filename",DQ1),FIND("]",CELL("filename",DQ1))+1,99)&"'!a1","ç") -> ç | FM2: =B15 -> Toulouse | FO2: =SUM(FP5:FP45) -> 40 | FQ2: =SUM(FQ5:FQ45) -> 4 | FR2: =SUM(FR5:FR45) -> 4 | FS2: =SUM(FS5:FS45) -> 0 | FT2: =SUM(FT5:FT45) -> 4 | FU2: =E15 -> Bayonne | FW2: =SUM(FX5:FX30) -> 3 | FY2: =SUM(FY5:FY45) -> 0 | FZ2: =SUM(FZ5:FZ45) -> 1 | GA2: =SUM(GA5:GA45) -> 0 | GB2: =SUM(GB5:GB45) -> 0
A3: =HYPERLINK(MID(CELL("filename",A1),FIND("[",CELL("filename",A1)),FIND("]", CELL("filename",A1))-FIND("[",CELL("filename",A1))+1)&"'"&MID(CELL("filename",A1),FIND("]",CELL("filename",A1))+1,99)&"'!ch1","Détail") -> Détail | B3: Brive | C3: =BQ2 -> 25 | D3: =BY2 -> 12 | E3: BordeauxBègles
B4: =BS2 -> 1 | E4: =CA2 -> 0 | I4: Pts | J4: J. | K4: G | L4: N | M4: P | N4: Pr | O4: Ctr | P4: Diff | Q4: E p | R4: E c | S4: Tp | T4: Tc | U4: Dp | V4: Dc | W4: Pp | X4: Pc | Y4: B.O | Z4: B.D | AA4: Bon | AB4: Cr | AC4: Cj | BO4: Joueur | BP4: Action | BQ4: " | BW4: Joueur | BX4: Action | BY4: " | CF4: Joueur | CG4: Action | CH4: " | CN4: Joueur | CO4: Action | CP4: " | CW4: Joueur | CX4: Action | CY4: " | DE4: Joueur | DF4: Action | DG4: " | DN4: Joueur | DO4: Action | DP4: " | DV4: Joueur | DW4: Action | DX4: " | EE4: Joueur | EF4: Action | EG4: " | EM4: Joueur | EN4: Action | EO4: " | EV4: Joueur | EW4: Action | EX4: " | FD4: Joueur | FE4: Action | FF4: " | FM4: Joueur | FN4: Action | FO4: " | FU4: Joueur | FV4: Action | FW4: "
A5: =HYPERLINK(MID(CELL("filename",A3),FIND("[",CELL("filename",A3)),FIND("]", CELL("filename",A3))-FIND("[",CELL("filename",A3))+1)&"'"&MID(CELL("filename",A3),FIND("]",CELL("filename",A3))+1,99)&"'!cw1","Détail") -> Détail | B5: Biarritz | C5: =CH2 -> 19 | D5: =CP2 -> 12 | E5: Montpellier | G5: 1 | H5: Brive | I5: 5 | J5: 2 | K5: 1 | L5: 0 | M5: 1 | N5: 39 | O5: 31 | P5: 8 | Q5: 2 | R5: 1 | S5: 1 | T5: 1 | U5: 1 | V5: 0 | W5: 8 | X5: 8 | Y5: 0 | Z5: 1 | AA5: 1 | AB5: 0 | AC5: 0 | BO5: GERMAIN Gaëtan | BP5: Pénalité | BQ5: 9 | BR5: =IF(BP5<>"",VLOOKUP(BP5,ActionPts,2,),"") -> 3 | BS5: =IF(OR(BP5="Essai",BP5="Essai de Pénalité"),1,0) -> 0 | BT5: =IF(BP5="Pénalité",1,0) -> 1 | BU5: =IF(BP5="Drop",1,0) -> 0 | BV5: =IF(BP5="Transformation",1,0) -> 0 | BW5: BERNARD Pierre | BX5: Pénalité | BY5: 11 | BZ5: =IF(BX5<>"",VLOOKUP(BX5,ActionPts,2,),"") -> 3 | CA5: =IF(OR(BX5="Essai",BX5="Essai de Pénalité"),1,0) -> 0 | CB5: =IF(BX5="Pénalité",1,0) -> 1 | CC5: =IF(BX5="Drop",1,0) -> 0 | CD5: =IF(BX5="Transformation",1,0) -> 0 | CF5: YACHVILI Dimitri | CG5: Pénalité | CH5: 24 | CI5: =IF(CG5<>"",VLOOKUP(CG5,ActionPts,2,),"") -> 3 | CJ5: =IF(OR(CG5="Essai",CG5="Essai de Pénalité"),1,0) -> 0 | CK5: =IF(CG5="Pénalité",1,0) -> 1 | CL5: =IF(CG5="Drop",1,0) -> 0 | CM5: =IF(CG5="Transformation",1,0) -> 0 | CN5: PÉLISSIÉ Jonathan | CO5: Pénalité | CP5: 6 | CQ5: =IF(CO5<>"",VLOOKUP(CO5,ActionPts,2,),"") -> 3 | CR5: =IF(OR(CO5="Essai",CO5="Essai de Pénalité"),1,0) -> 0 | CS5: =IF(CO5="Pénalité",1,0) -> 1 | CT5: =IF(CO5="Drop",1,0) -> 0 | CU5: =IF(CO5="Transformation",1,0) -> 0 | CW5: DIARRA Ibrahim | CX5: Essai | CY5: 3 | CZ5: =IF(CX5<>"",VLOOKUP(CX5,ActionPts,2,),"") -> 5 | DA5: =IF(OR(CX5="Essai",CX5="Essai de Pénalité"),1,0) -> 1 | DB5: =IF(CX5="Pénalité",1,0) -> 0 | DC5: =IF(CX5="Drop",1,0) -> 0 | DD5: =IF(CX5="Transformation",1,0) -> 0 | DE5: HART James | DF5: Pénalité | DG5: 9 | DH5: =IF(DF5<>"",VLOOKUP(DF5,ActionPts,2,),"") -> 3 | DI5: =IF(OR(DF5="Essai",DF5="Essai de Pénalité"),1,0) -> 0 | DJ5: =IF(DF5="Pénalité",1,0) -> 1 | DK5: =IF(DF5="Drop",1,0) -> 0 | DL5: =IF(DF5="Transformation",1,0) -> 0 | DN5: JENNEKER Jody Daniel | DO5: Essai | DP5: 25 | DQ5: =IF(DO5<>"",VLOOKUP(DO5,ActionPts,2,),"") -> 5 | DR5: =IF(OR(DO5="Essai",DO5="Essai de Pénalité"),1,0) -> 1 | DS5: =IF(DO5="Pénalité",1,0) -> 0 | DT5: =IF(DO5="Drop",1,0) -> 0 | DU5: =IF(DO5="Transformation",1,0) -> 0 | DV5: VOSLOO Gerhard | DW5: Essai | DX5: 43 | DY5: =IF(DW5<>"",VLOOKUP(DW5,ActionPts,2,),"") -> 5 | DZ5: =IF(OR(DW5="Essai",DW5="Essai de Pénalité"),1,0) -> 1 | EA5: =IF(DW5="Pénalité",1,0) -> 0 | EB5: =IF(DW5="Drop",1,0) -> 0 | EC5: =IF(DW5="Transformation",1,0) -> 0 | EE5: PIUKALA Sione | EF5: Essai | EG5: 5 | EH5: =IF(EF5<>"",VLOOKUP(EF5,ActionPts,2,),"") -> 5 | EI5: =IF(OR(EF5="Essai",EF5="Essai de Pénalité"),1,0) -> 1 | EJ5: =IF(EF5="Pénalité",1,0) -> 0 | EK5: =IF(EF5="Drop",1,0) -> 0 | EL5: =IF(EF5="Transformation",1,0) -> 0 | EM5: PLISSON Jules | EN5: Drop | EO5: 3 | EP5: =IF(EN5<>"",VLOOKUP(EN5,ActionPts,2,),"") -> 3 | EQ5: =IF(OR(EN5="Essai",EN5="Essai de Pénalité"),1,0) -> 0 | ER5: =IF(EN5="Pénalité",1,0) -> 0 | ES5: =IF(EN5="Drop",1,0) -> 1 | ET5: =IF(EN5="Transformation",1,0) -> 0 | EV5: SMITH David | EW5: Essai | EX5: 7 | EY5: =IF(EW5<>"",VLOOKUP(EW5,ActionPts,2,),"") -> 5 | EZ5: =IF(OR(EW5="Essai",EW5="Essai de Pénalité"),1,0) -> 1 | FA5: =IF(EW5="Pénalité",1,0) -> 0 | FB5: =IF(EW5="Drop",1,0) -> 0 | FC5: =IF(EW5="Transformation",1,0) -> 0 | FD5: SEXTON Jonathan | FE5: Pénalité | FF5: 11 | FG5: =IF(FE5<>"",VLOOKUP(FE5,ActionPts,2,),"") -> 3 | FH5: =IF(OR(FE5="Essai",FE5="Essai de Pénalité"),1,0) -> 0 | FI5: =IF(FE5="Pénalité",1,0) -> 1 | FJ5: =IF(FE5="Drop",1,0) -> 0 | FK5: =IF(FE5="Transformation",1,0) -> 0 | FM5: McALISTER Luke | FN5: Pénalité | FO5: 15 | FP5: =IF(FN5<>"",VLOOKUP(FN5,ActionPts,2,),"") -> 3 | FQ5: =IF(OR(FN5="Essai",FN5="Essai de Pénalité"),1,0) -> 0 | FR5: =IF(FN5="Pénalité",1,0) -> 1 | FS5: =IF(FN5="Drop",1,0) -> 0 | FT5: =IF(FN5="Transformation",1,0) -> 0 | FU5: BUSTOS MOYANO Martín | FV5: Pénalité | FW5: 39 | FX5: =IF(FV5<>"",VLOOKUP(FV5,ActionPts,2,),"") -> 3 | FY5: =IF(OR(FV5="Essai",FV5="Essai de Pénalité"),1,0) -> 0 | FZ5: =IF(FV5="Pénalité",1,0) -> 1 | GA5: =IF(FV5="Drop",1,0) -> 0 | GB5: =IF(FV5="Transformation",1,0) -> 0
B6: =CJ2 -> 1 | E6: =CR2 -> 0 | G6: 2 | H6: Castres | I6: 6 | J6: 2 | K6: 1 | L6: 0 | M6: 1 | N6: 57 | O6: 32 | P6: 25 | Q6: 7 | R6: 2 | S6: 5 | T6: 2 | U6: 0 | V6: 1 | W6: 4 | X6: 5 | Y6: 1 | Z6: 1 | AA6: 2 | AB6: 1 | AC6: 3 | BO6: GERMAIN Gaëtan | BP6: Pénalité | BQ6: 13 | BR6: 3 | BS6: 0 | BT6: 1 | BU6: 0 | BV6: 0 | BW6: CARBALLO Rafaël | BX6: Carton Jaune | BY6: 22 | BZ6: 0 | CA6: =IF(OR(BX6="Essai",BX6="Essai de Pénalité"),1,0) -> 0 | CB6: 0 | CC6: 0 | CD6: 0 | CF6: GIMENEZ Charles | CG6: Essai | CH6: 41 | CI6: 5 | CJ6: =IF(OR(CG6="Essai",CG6="Essai de Pénalité"),1,0) -> 1 | CK6: 0 | CL6: 0 | CM6: 0 | CN6: PÉLISSIÉ Jonathan | CO6: Pénalité | CP6: 32 | CQ6: 3 | CR6: =IF(OR(CO6="Essai",CO6="Essai de Pénalité"),1,0) -> 0 | CS6: 1 | CT6: 0 | CU6: 0 | CW6: KOCKOTT Rory | CX6: Transformation | CY6: 3 | CZ6: 2 | DA6: =IF(OR(CX6="Essai",CX6="Essai de Pénalité"),1,0) -> 0 | DB6: 0 | DC6: 0 | DD6: 1 | DE6: NINARD Florian | DF6: Carton Jaune | DG6: 43 | DH6: 0 | DI6: =IF(OR(DF6="Essai",DF6="Essai de Pénalité"),1,0) -> 0 | DJ6: 0 | DK6: 0 | DL6: 0 | DN6: URDAPILLETA Benjamin | DO6: Transformation | DP6: 25 | DQ6: 2 | DR6: =IF(OR(DO6="Essai",DO6="Essai de Pénalité"),1,0) -> 0 | DS6: 0 | DT6: 0 | DU6: 1 | DV6: JAMES Brock | DW6: Pénalité | DX6: 47 | DY6: 3 | DZ6: =IF(OR(DW6="Essai",DW6="Essai de Pénalité"),1,0) -> 0 | EA6: 1 | EB6: 0 | EC6: 0 | EE6: HOOK James | EF6: Transformation | EG6: 5 | EH6: 2 | EI6: =IF(OR(EF6="Essai",EF6="Essai de Pénalité"),1,0) -> 0 | EJ6: 0 | EK6: 0 | EL6: 1 | EM6: PLISSON Jules | EN6: Drop | EO6: 9 | EP6: 3 | EQ6: =IF(OR(EN6="Essai",EN6="Essai de Pénalité"),1,0) -> 0 | ER6: 0 | ES6: 1 | ET6: 0 | EV6: WILKINSON Jonny | EW6: Transformation | EX6: 7 | EY6: 2 | EZ6: =IF(OR(EW6="Essai",EW6="Essai de Pénalité"),1,0) -> 0 | FA6: 0 | FB6: 0 | FC6: 1 | FD6: SEXTON Jonathan | FE6: Pénalité | FF6: 27 | FG6: 3 | FH6: =IF(OR(FE6="Essai",FE6="Essai de Pénalité"),1,0) -> 0 | FI6: 1 | FJ6: 0 | FK6: 0 | FM6: McALISTER Luke | FN6: Pénalité | FO6: 22 | FP6: 3 | FQ6: =IF(OR(FN6="Essai",FN6="Essai de Pénalité"),1,0) -> 0 | FR6: 1 | FS6: 0 | FT6: 0 | FU6: MARMOUYET Jean-Jo | FV6: Carton Rouge | FW6: 70 | FX6: 0 | FY6: =IF(OR(FV6="Essai",FV6="Essai de Pénalité"),1,0) -> 0 | FZ6: 0 | GA6: 0 | GB6: 0
A7: =HYPERLINK(MID(CELL("filename",A5),FIND("[",CELL("filename",A5)),FIND("]", CELL("filename",A5))-FIND("[",CELL("filename",A5))+1)&"'"&MID(CELL("filename",A5),FIND("]",CELL("filename",A5))+1,99)&"'!do1","Détail") -> Détail | B7: Castres | C7: =CY2 -> 34 | D7: =DG2 -> 6 | E7: Grenoble | G7: 3 | H7: Toulouse | I7: 6 | J7: 2 | K7: 1 | L7: 0 | M7: 1 | N7: 65 | O7: 34 | P7: 31 | Q7: 5 | R7: 1 | S7: 5 | T7: 1 | U7: 0 | V7: 0 | W7: 10 | X7: 9 | Y7: 1 | Z7: 1 | AA7: 2 | AB7: 0 | AC7: 2 | BO7: GERMAIN Gaëtan | BP7: Pénalité | BQ7: 21 | BR7: 3 | BS7: 0 | BT7: 1 | BU7: 0 | BV7: 0 | BW7: BERNARD Pierre | BX7: Pénalité | BY7: 32 | BZ7: 3 | CA7: 0 | CB7: 1 | CC7: 0 | CD7: 0 | CF7: YACHVILI Dimitri | CG7: Transformation | CH7: 41 | CI7: 2 | CJ7: 0 | CK7: 0 | CL7: 0 | CM7: 1 | CN7: TCHALE-WATCHOU Robins | CO7: Carton Jaune | CP7: 37 | CQ7: 0 | CR7: 0 | CS7: 0 | CT7: 0 | CU7: 0 | CW7: LAMERAT Rémi | CX7: Essai | CY7: 11 | CZ7: 5 | DA7: 1 | DB7: 0 | DC7: 0 | DD7: 0 | DE7: HART James | DF7: Pénalité | DG7: 49 | DH7: 3 | DI7: 0 | DJ7: 1 | DK7: 0 | DL7: 0 | DN7: DENOS Florian | DO7: Essai | DP7: 29 | DQ7: 5 | DR7: 1 | DS7: 0 | DT7: 0 | DU7: 0 | DV7: JAMES Brock | DW7: Pénalité | DX7: 53 | DY7: 3 | DZ7: 0 | EA7: 1 | EB7: 0 | EC7: 0 | EE7: HOOK James | EF7: Pénalité | EG7: 12 | EH7: 3 | EI7: 0 | EJ7: 1 | EK7: 0 | EL7: 0 | EM7: PORICAL Jérôme | EN7: Pénalité | EO7: 26 | EP7: 3 | EQ7: 0 | ER7: 1 | ES7: 0 | ET7: 0 | EV7: BRUNI Virgile | EW7: Carton Jaune | EX7: 25 | EY7: 0 | EZ7: 0 | FA7: 0 | FB7: 0 | FC7: 0 | FD7: SEXTON Jonathan | FE7: Pénalité | FF7: 50 | FG7: 3 | FH7: 0 | FI7: 1 | FJ7: 0 | FK7: 0 | FM7: McALISTER Luke | FN7: Pénalité | FO7: 38 | FP7: 3 | FQ7: 0 | FR7: 1 | FS7: 0 | FT7: 0 | FY7: 0 | FZ7: 0 | GA7: 0 | GB7: 0
B8: =DA2 -> 5 | E8: =DI2 -> 0 | G8: 4 | H8: Biarritz | I8: 5 | J8: 2 | K8: 1 | L8: 0 | M8: 1 | N8: 37 | O8: 34 | P8: 3 | Q8: 3 | R8: 1 | S8: 2 | T8: 1 | U8: 1 | V8: 0 | W8: 5 | X8: 9 | Y8: 0 | Z8: 1 | AA8: 1 | AB8: 0 | AC8: 1 | BO8: GERMAIN Gaëtan | BP8: Pénalité | BQ8: 23 | BR8: 3 | BS8: 0 | BT8: 1 | BU8: 0 | BV8: 0 | BW8: POIROT Jefferson | BX8: Carton Jaune | BY8: 37 | BZ8: 0 | CA8: 0 | CB8: 0 | CC8: 0 | CD8: 0 | CF8: YACHVILI Dimitri | CG8: Pénalité | CH8: 52 | CI8: 3 | CJ8: 0 | CK8: 1 | CL8: 0 | CM8: 0 | CN8: TRINH-DUC François | CO8: Pénalité | CP8: 55 | CQ8: 3 | CR8: 0 | CS8: 1 | CT8: 0 | CU8: 0 | CW8: KOCKOTT Rory | CX8: Pénalité | CY8: 29 | CZ8: 3 | DA8: 0 | DB8: 1 | DC8: 0 | DD8: 0 | DE8: CAMPO Vincent | DF8: Carton Jaune | DG8: 51 | DH8: 0 | DI8: 0 | DJ8: 0 | DK8: 0 | DL8: 0 | DN8: URDAPILLETA Benjamin | DO8: Transformation | DP8: 29 | DQ8: 2 | DR8: 0 | DS8: 0 | DT8: 0 | DU8: 1 | DV8: JAMES Brock | DW8: Pénalité | DX8: 57 | DY8: 3 | DZ8: 0 | EA8: 1 | EB8: 0 | EC8: 0 | EE8: HOOK James | EF8: Pénalité | EG8: 30 | EH8: 3 | EI8: 0 | EJ8: 1 | EK8: 0 | EL8: 0 | EM8: PAPÉ Pascal | EN8: Carton Jaune | EO8: 29 | EP8: 0 | EQ8: 0 | ER8: 0 | ES8: 0 | ET8: 0 | EV8: WILKINSON Jonny | EW8: Drop | EX8: 28 | EY8: 3 | EZ8: 0 | FA8: 0 | FB8: 1 | FC8: 0 | FD8: GHEZAL Karim | FE8: Carton Rouge | FF8: 78 | FG8: 0 | FH8: 0 | FI8: 0 | FJ8: 0 | FK8: 0 | FM8: McALISTER Luke | FN8: Pénalité | FO8: 41 | FP8: 3 | FQ8: 0 | FR8: 1 | FS8: 0 | FT8: 0 | FY8: 0 | FZ8: 0 | GA8: 0 | GB8: 0
A9: =HYPERLINK(MID(CELL("filename",A7),FIND("[",CELL("filename",A7)),FIND("]", CELL("filename",A7))-FIND("[",CELL("filename",A7))+1)&"'"&MID(CELL("filename",A7),FIND("]",CELL("filename",A7))+1,99)&"'!eg1","Détail") -> Détail | B9: Oyonnax | C9: =DP2 -> 30 | D9: =DX2 -> 19 | E9: Montferrand | G9: 5 | H9: Toulon | I9: 7 | J9: 2 | K9: 1 | L9: 1 | M9: 0 | N9: 63 | O9: 36 | P9: 27 | Q9: 6 | R9: 2 | S9: 6 | T9: 1 | U9: 1 | V9: 1 | W9: 6 | X9: 7 | Y9: 1 | Z9: 0 | AA9: 1 | AB9: 1 | AC9: 3 | BO9: GERMAIN Gaëtan | BP9: Pénalité | BQ9: 38 | BR9: 3 | BS9: 0 | BT9: 1 | BU9: 0 | BV9: 0 | BW9: BERNARD Pierre | BX9: Pénalité | BY9: 48 | BZ9: 3 | CA9: 0 | CB9: 1 | CC9: 0 | CD9: 0 | CF9: YACHVILI Dimitri | CG9: Pénalité | CH9: 58 | CI9: 3 | CJ9: 0 | CK9: 1 | CL9: 0 | CM9: 0 | CN9: PAILLAUGUE Benoît | CO9: Pénalité | CP9: 63 | CQ9: 3 | CR9: 0 | CS9: 1 | CT9: 0 | CU9: 0 | CW9: CAPO ORTEGA Rodrigo | CX9: Carton Jaune | CY9: 36 | CZ9: 0 | DA9: 0 | DB9: 0 | DC9: 0 | DD9: 0 | DI9: 0 | DJ9: 0 | DK9: 0 | DL9: 0 | DN9: URDAPILLETA Benjamin | DO9: Pénalité | DP9: 35 | DQ9: 3 | DR9: 0 | DS9: 1 | DT9: 0 | DU9: 0 | DV9: STANLEY Benson | DW9: Essai | DX9: 78 | DY9: 5 | DZ9: 1 | EA9: 0 | EB9: 0 | EC9: 0 | EE9: BENVENUTI Tommaso | EF9: Essai | EG9: 35 | EH9: 5 | EI9: 1 | EJ9: 0 | EK9: 0 | EL9: 0 | EM9: FLANQUART Alexandre | EN9: Essai | EO9: 32 | EP9: 5 | EQ9: 1 | ER9: 0 | ES9: 0 | ET9: 0 | EV9: WILKINSON Jonny | EW9: Pénalité | EX9: 40 | EY9: 3 | EZ9: 0 | FA9: 1 | FB9: 0 | FC9: 0 | FD9: LACOMBE Virgile | FE9: Essai | FF9: 80 | FG9: 5 | FH9: 1 | FI9: 0 | FJ9: 0 | FK9: 0 | FM9: TOLOFUA Christophe | FN9: Essai | FO9: 42 | FP9: 5 | FQ9: 1 | FR9: 0 | FS9: 0 | FT9: 0 | FY9: 0 | FZ9: 0 | GA9: 0 | GB9: 0
B10: =DR2 -> 3 | E10: =DZ2 -> 2 | G10: 6 | H10: Montpellier | I10: 3 | J10: 2 | K10: 0 | L10: 1 | M10: 1 | N10: 34 | O10: 41 | P10: -7 | Q10: 1 | R10: 2 | S10: 1 | T10: 2 | U10: 1 | V10: 0 | W10: 8 | X10: 9 | Y10: 0 | Z10: 1 | AA10: 1 | AB10: 0 | AC10: 1 | BO10: GERMAIN Gaëtan | BP10: Pénalité | BQ10: 44 | BR10: 3 | BS10: 0 | BT10: 1 | BU10: 0 | BV10: 0 | BW10: BERNARD Pierre | BX10: Pénalité | BY10: 58 | BZ10: 3 | CA10: 0 | CB10: 1 | CC10: 0 | CD10: 0 | CF10: YACHVILI Dimitri | CG10: Pénalité | CH10: 79 | CI10: 3 | CJ10: 0 | CK10: 1 | CL10: 0 | CM10: 0 | CR10: 0 | CS10: 0 | CT10: 0 | CU10: 0 | CW10: CLAASSEN Antonie | CX10: Essai | CY10: 43 | CZ10: 5 | DA10: 1 | DB10: 0 | DC10: 0 | DD10: 0 | DI10: 0 | DJ10: 0 | DK10: 0 | DL10: 0 | DN10: URDAPILLETA Benjamin | DO10: Drop | DP10: 39 | DQ10: 3 | DR10: 0 | DS10: 0 | DT10: 1 | DU10: 0 | DZ10: 0 | EA10: 0 | EB10: 0 | EC10: 0 | EE10: HOOK James | EF10: Transformation | EG10: 35 | EH10: 2 | EI10: 0 | EJ10: 0 | EK10: 0 | EL10: 1 | EM10: PORICAL Jérôme | EN10: Transformation | EO10: 32 | EP10: 2 | EQ10: 0 | ER10: 0 | ES10: 0 | ET10: 1 | EV10: TILLOUS-BORDE Sébastien | EW10: Essai | EX10: 48 | EY10: 5 | EZ10: 1 | FA10: 0 | FB10: 0 | FC10: 0 | FH10: 0 | FI10: 0 | FJ10: 0 | FK10: 0 | FM10: McALISTER Luke | FN10: Transformation | FO10: 42 | FP10: 2 | FQ10: 0 | FR10: 0 | FS10: 0 | FT10: 1 | FY10: 0 | FZ10: 0 | GA10: 0 | GB10: 0
A11: =HYPERLINK(MID(CELL("filename",A9),FIND("[",CELL("filename",A9)),FIND("]", CELL("filename",A9))-FIND("[",CELL("filename",A9))+1)&"'"&MID(CELL("filename",A9),FIND("]",CELL("filename",A9))+1,99)&"'!ew1","Détail") -> Détail | B11: Perpignan | C11: =EG2 -> 27 | D11: =EO2 -> 28 | E11: StadeFrancais | G11: 7 | H11: StadeFrancais | I11: 5 | J11: 2 | K11: 1 | L11: 0 | M11: 1 | N11: 44 | O11: 46 | P11: -2 | Q11: 2 | R11: 4 | S11: 2 | T11: 4 | U11: 3 | V11: 0 | W11: 7 | X11: 6 | Y11: 0 | Z11: 1 | AA11: 1 | AB11: 0 | AC11: 2 | BO11: KOYAMAIBOLE Sisa | BP11: Essai | BQ11: 64 | BR11: 5 | BS11: 1 | BT11: 0 | BU11: 0 | BV11: 0 | CA11: 0 | CB11: 0 | CC11: 0 | CD11: 0 | CJ11: 0 | CK11: 0 | CL11: 0 | CM11: 0 | CR11: 0 | CS11: 0 | CT11: 0 | CU11: 0 | CW11: KOCKOTT Rory | CX11: Transformation | CY11: 43 | CZ11: 2 | DA11: 0 | DB11: 0 | DC11: 0 | DD11: 1 | DI11: 0 | DJ11: 0 | DK11: 0 | DL11: 0 | DN11: URDAPILLETA Benjamin | DO11: Pénalité | DP11: 49 | DQ11: 3 | DR11: 0 | DS11: 1 | DT11: 0 | DU11: 0 | DZ11: 0 | EA11: 0 | EB11: 0 | EC11: 0 | EE11: PURLL Justin | EF11: Carton Jaune | EG11: 58 | EH11: 0 | EI11: 0 | EJ11: 0 | EK11: 0 | EL11: 0 | EM11: BURBAN Antoine | EN11: Carton Jaune | EO11: 36 | EP11: 0 | EQ11: 0 | ER11: 0 | ES11: 0 | ET11: 0 | EV11: WILKINSON Jonny | EW11: Transformation | EX11: 48 | EY11: 2 | EZ11: 0 | FA11: 0 | FB11: 0 | FC11: 1 | FH11: 0 | FI11: 0 | FJ11: 0 | FK11: 0 | FM11: MEDARD Maxime | FN11: Essai | FO11: 47 | FP11: 5 | FQ11: 1 | FR11: 0 | FS11: 0 | FT11: 0 | FY11: 0 | FZ11: 0 | GA11: 0 | GB11: 0
B12: =EI2 -> 3 | E12: =EQ2 -> 1 | G12: 8 | H12: Montferrand | I12: 4 | J12: 2 | K12: 1 | L12: 0 | M12: 1 | N12: 41 | O12: 48 | P12: -7 | Q12: 3 | R12: 5 | S12: 1 | T12: 4 | U12: 0 | V12: 2 | W12: 8 | X12: 3 | Y12: 0 | Z12: 0 | AA12: 0 | AB12: 0 | AC12: 2 | BO12: GERMAIN Gaëtan | BP12: Transformation | BQ12: 64 | BR12: 2 | BS12: 0 | BT12: 0 | BU12: 0 | BV12: 1 | CA12: 0 | CB12: 0 | CC12: 0 | CD12: 0 | CJ12: 0 | CK12: 0 | CL12: 0 | CM12: 0 | CR12: 0 | CS12: 0 | CT12: 0 | CU12: 0 | CW12: GARVEY Marcel | CX12: Essai | CY12: 52 | CZ12: 5 | DA12: 1 | DB12: 0 | DC12: 0 | DD12: 0 | DI12: 0 | DJ12: 0 | DK12: 0 | DL12: 0 | DN12: JENNEKER Jody Daniel | DO12: Carton Jaune | DP12: 52 | DQ12: 0 | DR12: 0 | DS12: 0 | DT12: 0 | DU12: 0 | DZ12: 0 | EA12: 0 | EB12: 0 | EC12: 0 | EE12: GUITOUNE Sofiane | EF12: Essai | EG12: 65 | EH12: 5 | EI12: 1 | EJ12: 0 | EK12: 0 | EL12: 0 | EM12: PORICAL Jérôme | EN12: Pénalité | EO12: 49 | EP12: 3 | EQ12: 0 | ER12: 1 | ES12: 0 | ET12: 0 | EV12: SUTA Jocelino | EW12: Essai | EX12: 52 | EY12: 5 | EZ12: 1 | FA12: 0 | FB12: 0 | FC12: 0 | FH12: 0 | FI12: 0 | FJ12: 0 | FK12: 0 | FM12: McALISTER Luke | FN12: Transformation | FO12: 47 | FP12: 2 | FQ12: 0 | FR12: 0 | FS12: 0 | FT12: 1 | FY12: 0 | FZ12: 0 | GA12: 0 | GB12: 0
A13: =HYPERLINK(MID(CELL("filename",A11),FIND("[",CELL("filename",A11)),FIND("]", CELL("filename",A11))-FIND("[",CELL("filename",A11))+1)&"'"&MID(CELL("filename",A11),FIND("]",CELL("filename",A11))+1,99)&"'!fn1","Détail") -> Détail | B13: Toulon | C13: =EX2 -> 41 | D13: =FF2 -> 14 | E13: RacingMétro92 | G13: 9 | H13: BordeauxBègles | I13: 4 | J13: 2 | K13: 1 | L13: 0 | M13: 1 | N13: 43 | O13: 50 | P13: -7 | Q13: 1 | R13: 2 | S13: 1 | T13: 2 | U13: 0 | V13: 0 | W13: 12 | X13: 12 | Y13: 0 | Z13: 0 | AA13: 0 | AB13: 0 | AC13: 2 | BS13: 0 | BT13: 0 | BU13: 0 | BV13: 0 | CA13: 0 | CB13: 0 | CC13: 0 | CD13: 0 | CJ13: 0 | CK13: 0 | CL13: 0 | CM13: 0 | CR13: 0 | CS13: 0 | CT13: 0 | CU13: 0 | CW13: GARVEY Marcel | CX13: Essai | CY13: 56 | CZ13: 5 | DA13: 1 | DB13: 0 | DC13: 0 | DD13: 0 | DI13: 0 | DJ13: 0 | DK13: 0 | DL13: 0 | DN13: URSACHE Valentin | DO13: Essai | DP13: 66 | DQ13: 5 | DR13: 1 | DS13: 0 | DT13: 0 | DU13: 0 | DZ13: 0 | EA13: 0 | EB13: 0 | EC13: 0 | EE13: HOOK James | EF13: Transformation | EG13: 65 | EH13: 2 | EI13: 0 | EJ13: 0 | EK13: 0 | EL13: 1 | EM13: PORICAL Jérôme | EN13: Pénalité | EO13: 52 | EP13: 3 | EQ13: 0 | ER13: 1 | ES13: 0 | ET13: 0 | EV13: WILKINSON Jonny | EW13: Transformation | EX13: 52 | EY13: 2 | EZ13: 0 | FA13: 0 | FB13: 0 | FC13: 1 | FH13: 0 | FI13: 0 | FJ13: 0 | FK13: 0 | FN13: Essai de Pénalité | FO13: 55 | FP13: 5 | FQ13: 1 | FR13: 0 | FS13: 0 | FT13: 0 | FY13: 0 | FZ13: 0 | GA13: 0 | GB13: 0
B14: =EZ2 -> 5 | E14: =FH2 -> 1 | G14: 10 | H14: Grenoble | I14: 4 | J14: 2 | K14: 1 | L14: 0 | M14: 1 | N14: 25 | O14: 50 | P14: -25 | Q14: 1 | R14: 6 | S14: 1 | T14: 4 | U14: 0 | V14: 0 | W14: 6 | X14: 4 | Y14: 0 | Z14: 0 | AA14: 0 | AB14: 0 | AC14: 2 | BS14: 0 | BT14: 0 | BU14: 0 | BV14: 0 | CA14: 0 | CB14: 0 | CC14: 0 | CD14: 0 | CJ14: 0 | CK14: 0 | CL14: 0 | CM14: 0 | CR14: 0 | CS14: 0 | CT14: 0 | CU14: 0 | CW14: KIRKPATRICK Daniel | CX14: Transformation | CY14: 56 | CZ14: 2 | DA14: 0 | DB14: 0 | DC14: 0 | DD14: 1 | DI14: 0 | DJ14: 0 | DK14: 0 | DL14: 0 | DN14: URDAPILLETA Benjamin | DO14: Transformation | DP14: 66 | DQ14: 2 | DR14: 0 | DS14: 0 | DT14: 0 | DU14: 1 | DZ14: 0 | EA14: 0 | EB14: 0 | EC14: 0 | EI14: 0 | EJ14: 0 | EK14: 0 | EL14: 0 | EM14: PORICAL Jérôme | EN14: Pénalité | EO14: 56 | EP14: 3 | EQ14: 0 | ER14: 1 | ES14: 0 | ET14: 0 | EV14: GITEAU Matt | EW14: Essai | EX14: 60 | EY14: 5 | EZ14: 1 | FA14: 0 | FB14: 0 | FC14: 0 | FH14: 0 | FI14: 0 | FJ14: 0 | FK14: 0 | FM14: McALISTER Luke | FN14: Transformation | FO14: 55 | FP14: 2 | FQ14: 0 | FR14: 0 | FS14: 0 | FT14: 1 | FY14: 0 | FZ14: 0 | GA14: 0 | GB14: 0
A15: =HYPERLINK(MID(CELL("filename",A13),FIND("[",CELL("filename",A13)),FIND("]", CELL("filename",A13))-FIND("[",CELL("filename",A13))+1)&"'"&MID(CELL("filename",A13),FIND("]",CELL("filename",A13))+1,99)&"'!gg1","Détail") -> Détail | B15: Toulouse | C15: =FO2 -> 40 | D15: =FW2 -> 3 | E15: Bayonne | G15: 11 | H15: Perpignan | I15: 5 | J15: 2 | K15: 1 | L15: 0 | M15: 1 | N15: 53 | O15: 51 | P15: 2 | Q15: 5 | R15: 3 | S15: 5 | T15: 3 | U15: 1 | V15: 3 | W15: 5 | X15: 7 | Y15: 0 | Z15: 1 | AA15: 1 | AB15: 0 | AC15: 1 | BS15: 0 | BT15: 0 | BU15: 0 | BV15: 0 | CA15: 0 | CB15: 0 | CC15: 0 | CD15: 0 | CJ15: 0 | CK15: 0 | CL15: 0 | CM15: 0 | CR15: 0 | CS15: 0 | CT15: 0 | CU15: 0 | CW15: FAASALELE Piula | CX15: Carton Rouge | CY15: 76 | CZ15: 0 | DA15: 0 | DB15: 0 | DC15: 0 | DD15: 0 | DI15: 0 | DJ15: 0 | DK15: 0 | DL15: 0 | DR15: 0 | DS15: 0 | DT15: 0 | DU15: 0 | DZ15: 0 | EA15: 0 | EB15: 0 | EC15: 0 | EI15: 0 | EJ15: 0 | EK15: 0 | EL15: 0 | EM15: PLISSON Jules | EN15: Drop | EO15: 80 | EP15: 3 | EQ15: 0 | ER15: 0 | ES15: 1 | ET15: 0 | EV15: WILKINSON Jonny | EW15: Transformation | EX15: 60 | EY15: 2 | EZ15: 0 | FA15: 0 | FB15: 0 | FC15: 1 | FH15: 0 | FI15: 0 | FJ15: 0 | FK15: 0 | FM15: PICAMOLES Louis | FN15: Essai | FO15: 61 | FP15: 5 | FQ15: 1 | FR15: 0 | FS15: 0 | FT15: 0 | FY15: 0 | FZ15: 0 | GA15: 0 | GB15: 0
B16: =FQ2 -> 4 | E16: =FY2 -> 0 | G16: 12 | H16: Bayonne | I16: 5 | J16: 2 | K16: 1 | L16: 0 | M16: 1 | N16: 42 | O16: 51 | P16: -9 | Q16: 4 | R16: 5 | S16: 2 | T16: 4 | U16: 0 | V16: 0 | W16: 6 | X16: 6 | Y16: 1 | Z16: 0 | AA16: 1 | AB16: 1 | AC16: 0 | BS16: 0 | BT16: 0 | BU16: 0 | BV16: 0 | CA16: 0 | CB16: 0 | CC16: 0 | CD16: 0 | CJ16: 0 | CK16: 0 | CL16: 0 | CM16: 0 | CR16: 0 | CS16: 0 | CT16: 0 | CU16: 0 | DA16: 0 | DB16: 0 | DC16: 0 | DD16: 0 | DI16: 0 | DJ16: 0 | DK16: 0 | DL16: 0 | DR16: 0 | DS16: 0 | DT16: 0 | DU16: 0 | DZ16: 0 | EA16: 0 | EB16: 0 | EC16: 0 | EI16: 0 | EJ16: 0 | EK16: 0 | EL16: 0 | EQ16: 0 | ER16: 0 | ES16: 0 | ET16: 0 | EV16: SMITH David | EW16: Essai | EX16: 64 | EY16: 5 | EZ16: 1 | FA16: 0 | FB16: 0 | FC16: 0 | FH16: 0 | FI16: 0 | FJ16: 0 | FK16: 0 | FM16: McALISTER Luke | FN16: Transformation | FO16: 61 | FP16: 2 | FQ16: 0 | FR16: 0 | FS16: 0 | FT16: 1 | FY16: 0 | FZ16: 0 | GA16: 0 | GB16: 0
G17: 13 | H17: RacingMétro92 | I17: 4 | J17: 2 | K17: 1 | L17: 0 | M17: 1 | N17: 33 | O17: 55 | P17: -22 | Q17: 2 | R17: 6 | S17: 1 | T17: 5 | U17: 0 | V17: 2 | W17: 7 | X17: 3 | Y17: 0 | Z17: 0 | AA17: 0 | AB17: 1 | AC17: 0 | BS17: 0 | BT17: 0 | BU17: 0 | BV17: 0 | CA17: 0 | CB17: 0 | CC17: 0 | CD17: 0 | CJ17: 0 | CK17: 0 | CL17: 0 | CM17: 0 | CR17: 0 | CS17: 0 | CT17: 0 | CU17: 0 | DA17: 0 | DB17: 0 | DC17: 0 | DD17: 0 | DI17: 0 | DJ17: 0 | DK17: 0 | DL17: 0 | DR17: 0 | DS17: 0 | DT17: 0 | DU17: 0 | DZ17: 0 | EA17: 0 | EB17: 0 | EC17: 0 | EI17: 0 | EJ17: 0 | EK17: 0 | EL17: 0 | EQ17: 0 | ER17: 0 | ES17: 0 | ET17: 0 | EV17: WILKINSON Jonny | EW17: Transformation | EX17: 64 | EY17: 2 | EZ17: 0 | FA17: 0 | FB17: 0 | FC17: 1 | FH17: 0 | FI17: 0 | FJ17: 0 | FK17: 0 | FM17: MAESTRI Yoann | FN17: Carton Jaune | FO17: 76 | FP17: 0 | FQ17: 0 | FR17: 0 | FS17: 0 | FT17: 0 | FY17: 0 | FZ17: 0 | GA17: 0 | GB17: 0
G18: 14 | H18: Oyonnax | I18: 4 | J18: 2 | K18: 1 | L18: 0 | M18: 1 | N18: 41 | O18: 58 | P18: -17 | Q18: 4 | R18: 6 | S18: 3 | T18: 2 | U18: 1 | V18: 0 | W18: 4 | X18: 8 | Y18: 0 | Z18: 0 | AA18: 0 | AB18: 0 | AC18: 1 | BS18: 0 | BT18: 0 | BU18: 0 | BV18: 0 | CA18: 0 | CB18: 0 | CC18: 0 | CD18: 0 | CJ18: 0 | CK18: 0 | CL18: 0 | CM18: 0 | CR18: 0 | CS18: 0 | CT18: 0 | CU18: 0 | DA18: 0 | DB18: 0 | DC18: 0 | DD18: 0 | DI18: 0 | DJ18: 0 | DK18: 0 | DL18: 0 | DR18: 0 | DS18: 0 | DT18: 0 | DU18: 0 | DZ18: 0 | EA18: 0 | EB18: 0 | EC18: 0 | EI18: 0 | EJ18: 0 | EK18: 0 | EL18: 0 | EQ18: 0 | ER18: 0 | ES18: 0 | ET18: 0 | EV18: BASTAREAUD Mathieu | EW18: Carton Jaune | EX18: 73 | EY18: 0 | EZ18: 0 | FA18: 0 | FB18: 0 | FC18: 0 | FH18: 0 | FI18: 0 | FJ18: 0 | FK18: 0 | FQ18: 0 | FR18: 0 | FS18: 0 | FT18: 0 | FY18: 0 | FZ18: 0 | GA18: 0 | GB18: 0
C19: Dom | D19: Ext | E19: Total | BS19: 0 | BT19: 0 | BU19: 0 | BV19: 0 | CA19: 0 | CB19: 0 | CC19: 0 | CD19: 0 | CJ19: 0 | CK19: 0 | CL19: 0 | CM19: 0 | CR19: 0 | CS19: 0 | CT19: 0 | CU19: 0 | DA19: 0 | DB19: 0 | DC19: 0 | DD19: 0 | DI19: 0 | DJ19: 0 | DK19: 0 | DL19: 0 | DQ19: =IF(DO19<>"",VLOOKUP(DO19,ActionPts,2,),"") ->  | DR19: =IF(OR(DO19="Essai",DO19="Essai de Pénalité"),1,0) -> 0 | DS19: =IF(DO19="Pénalité",1,0) -> 0 | DT19: =IF(DO19="Drop",1,0) -> 0 | DU19: =IF(DO19="Transformation",1,0) -> 0 | DZ19: 0 | EA19: 0 | EB19: 0 | EC19: 0 | EI19: 0 | EJ19: 0 | EK19: 0 | EL19: 0 | EQ19: 0 | ER19: 0 | ES19: 0 | ET19: 0 | EV19: CASTROGIOVANNI Martin | EW19: Carton Rouge | EX19: 78 | EY19: 0 | EZ19: 0 | FA19: 0 | FB19: 0 | FC19: 0 | FH19: 0 | FI19: 0 | FJ19: 0 | FK19: 0 | FQ19: 0 | FR19: 0 | FS19: 0 | FT19: 0 | FY19: 0 | FZ19: 0 | GA19: 0 | GB19: 0
B20: Nbre de points | C20: =SUM(C3:C16) -> 216 | D20: =SUM(D3:D16) -> 94 | E20: =C20+D20 -> 310 | BS20: 0 | BT20: 0 | BU20: 0 | BV20: 0 | CA20: 0 | CB20: 0 | CC20: 0 | CD20: 0 | CJ20: 0 | CK20: 0 | CL20: 0 | CM20: 0 | CR20: 0 | CS20: 0 | CT20: 0 | CU20: 0 | DA20: 0 | DB20: 0 | DC20: 0 | DD20: 0 | DI20: 0 | DJ20: 0 | DK20: 0 | DL20: 0 | DQ20: =IF(DO20<>"",VLOOKUP(DO20,ActionPts,2,),"") ->  | DR20: =IF(OR(DO20="Essai",DO20="Essai de Pénalité"),1,0) -> 0 | DS20: =IF(DO20="Pénalité",1,0) -> 0 | DT20: =IF(DO20="Drop",1,0) -> 0 | DU20: =IF(DO20="Transformation",1,0) -> 0 | DZ20: 0 | EA20: 0 | EB20: 0 | EC20: 0 | EI20: 0 | EJ20: 0 | EK20: 0 | EL20: 0 | EQ20: 0 | ER20: 0 | ES20: 0 | ET20: 0 | EZ20: 0 | FA20: 0 | FB20: 0 | FC20: 0 | FH20: 0 | FI20: 0 | FJ20: 0 | FK20: 0 | FQ20: 0 | FR20: 0 | FS20: 0 | FT20: 0 | FY20: 0 | FZ20: 0 | GA20: 0 | GB20: 0
B21: Par match | C21: =IF(BN48=0,0,ROUND(C20/BN48,1)) -> 30.9 | D21: =IF(BN48=0,0,ROUND(D20/BN48,1)) -> 13.4 | E21: =C21+D21 -> 44.3 | I21: Classement à Domicile | BS21: 0 | BT21: 0 | BU21: 0 | BV21: 0 | CA21: 0 | CB21: 0 | CC21: 0 | CD21: 0 | CJ21: 0 | CK21: 0 | CL21: 0 | CM21: 0 | CR21: 0 | CS21: 0 | CT21: 0 | CU21: 0 | DA21: 0 | DB21: 0 | DC21: 0 | DD21: 0 | DI21: 0 | DJ21: 0 | DK21: 0 | DL21: 0 | DQ21: =IF(DO21<>"",VLOOKUP(DO21,ActionPts,2,),"") ->  | DR21: =IF(OR(DO21="Essai",DO21="Essai de Pénalité"),1,0) -> 0 | DS21: =IF(DO21="Pénalité",1,0) -> 0 | DT21: =IF(DO21="Drop",1,0) -> 0 | DU21: =IF(DO21="Transformation",1,0) -> 0 | DZ21: 0 | EA21: 0 | EB21: 0 | EC21: 0 | EI21: 0 | EJ21: 0 | EK21: 0 | EL21: 0 | EQ21: 0 | ER21: 0 | ES21: 0 | ET21: 0 | EZ21: 0 | FA21: 0 | FB21: 0 | FC21: 0 | FH21: 0 | FI21: 0 | FJ21: 0 | FK21: 0 | FQ21: 0 | FR21: 0 | FS21: 0 | FT21: 0 | FY21: 0 | FZ21: 0 | GA21: 0 | GB21: 0
B22: Nbre d'essais | C22: =B4+B6+B8+B10+B12+B14+B16 -> 22 | D22: =E4+E6+E8+E10+E12+E14+E16 -> 4 | E22: =C22+D22 -> 26 | BS22: 0 | BT22: 0 | BU22: 0 | BV22: 0 | CA22: 0 | CB22: 0 | CC22: 0 | CD22: 0 | CJ22: 0 | CK22: 0 | CL22: 0 | CM22: 0 | CR22: 0 | CS22: 0 | CT22: 0 | CU22: 0 | DA22: 0 | DB22: 0 | DC22: 0 | DD22: 0 | DI22: 0 | DJ22: 0 | DK22: 0 | DL22: 0 | DQ22: =IF(DO22<>"",VLOOKUP(DO22,ActionPts,2,),"") ->  | DR22: =IF(OR(DO22="Essai",DO22="Essai de Pénalité"),1,0) -> 0 | DS22: =IF(DO22="Pénalité",1,0) -> 0 | DT22: =IF(DO22="Drop",1,0) -> 0 | DU22: =IF(DO22="Transformation",1,0) -> 0 | DZ22: 0 | EA22: 0 | EB22: 0 | EC22: 0 | EI22: 0 | EJ22: 0 | EK22: 0 | EL22: 0 | EQ22: 0 | ER22: 0 | ES22: 0 | ET22: 0 | EZ22: 0 | FA22: 0 | FB22: 0 | FC22: 0 | FH22: 0 | FI22: 0 | FJ22: 0 | FK22: 0 | FQ22: 0 | FR22: 0 | FS22: 0 | FT22: 0 | FY22: 0 | FZ22: 0 | GA22: 0 | GB22: 0
B23: Par match | C23: =IF(BN48=0,0,ROUND(C22/BN48,1)) -> 3.1 | D23: =IF(BN48=0,0,ROUND(D22/BN48,1)) -> 0.6 | E23: =C23+D23 -> 3.7 | I23: Pts | J23: J. | K23: G | L23: N | M23: P | N23: Pr | O23: Ctr | P23: Diff | Q23: E p | R23: E c | S23: Tp | T23: Tc | U23: Dp | V23: Dc | W23: Pp | X23: Pc | Y23: B.O | Z23: B.D | AA23: Bon | AB23: Cr | AC23: Cj | BS23: 0 | BT23: 0 | BU23: 0 | BV23: 0 | CA23: 0 | CB23: 0 | CC23: 0 | CD23: 0 | CJ23: 0 | CK23: 0 | CL23: 0 | CM23: 0 | CR23: 0 | CS23: 0 | CT23: 0 | CU23: 0 | DA23: 0 | DB23: 0 | DC23: 0 | DD23: 0 | DI23: 0 | DJ23: 0 | DK23: 0 | DL23: 0 | DQ23: =IF(DO23<>"",VLOOKUP(DO23,ActionPts,2,),"") ->  | DR23: =IF(OR(DO23="Essai",DO23="Essai de Pénalité"),1,0) -> 0 | DS23: =IF(DO23="Pénalité",1,0) -> 0 | DT23: =IF(DO23="Drop",1,0) -> 0 | DU23: =IF(DO23="Transformation",1,0) -> 0 | DZ23: 0 | EA23: 0 | EB23: 0 | EC23: 0 | EI23: 0 | EJ23: 0 | EK23: 0 | EL23: 0 | EQ23: 0 | ER23: 0 | ES23: 0 | ET23: 0 | EZ23: 0 | FA23: 0 | FB23: 0 | FC23: 0 | FH23: 0 | FI23: 0 | FJ23: 0 | FK23: 0 | FQ23: 0 | FR23: 0 | FS23: 0 | FT23: 0 | FY23: 0 | FZ23: 0 | GA23: 0 | GB23: 0
B24: Nbre Transformations | C24: =BV2+CM2+DD2+DU2+EL2+FC2+FT2 -> 20 | D24: =CD2+CU2+DL2+EC2+ET2+FK2+GB2 -> 1 | E24: =IF(C22+D22<>0,ROUND(C24/C22*100,1)&" % - "&ROUND(D24/D22*100,1)&" % - "&ROUND((C24+D24)/(C22+D22)*100,1)&" %","--") -> 90,9 % - 25 % - 80,8 % | G24: 1 | H24: Montferrand | I24: 0 | J24: 0 | K24: 0 | L24: 0 | M24: 0 | N24: 0 | O24: 0 | P24: 0 | Q24: 0 | R24: 0 | S24: 0 | T24: 0 | U24: 0 | V24: 0 | W24: 0 | X24: 0 | Y24: 0 | Z24: 0 | AA24: 0 | AB24: 0 | AC24: 0 | BS24: 0 | BT24: 0 | BU24: 0 | BV24: 0 | CA24: 0 | CB24: 0 | CC24: 0 | CD24: 0 | CJ24: 0 | CK24: 0 | CL24: 0 | CM24: 0 | CR24: 0 | CS24: 0 | CT24: 0 | CU24: 0 | DA24: 0 | DB24: 0 | DC24: 0 | DD24: 0 | DI24: 0 | DJ24: 0 | DK24: 0 | DL24: 0 | DR24: 0 | DS24: 0 | DT24: 0 | DU24: 0 | DZ24: 0 | EA24: 0 | EB24: 0 | EC24: 0 | EI24: 0 | EJ24: 0 | EK24: 0 | EL24: 0 | EQ24: 0 | ER24: 0 | ES24: 0 | ET24: 0 | EZ24: 0 | FA24: 0 | FB24: 0 | FC24: 0 | FH24: 0 | FI24: 0 | FJ24: 0 | FK24: 0 | FQ24: 0 | FR24: 0 | FS24: 0 | FT24: 0 | FY24: 0 | FZ24: 0 | GA24: 0 | GB24: 0
B25: Par match | C25: =IF(BN48=0,0,ROUND(C24/BN48,1)) -> 2.9 | D25: =IF(BN48=0,0,ROUND(D24/BN48,1)) -> 0.1 | E25: =C25+D25 -> 3 | G25: 2 | H25: StadeFrancais | I25: 0 | J25: 0 | K25: 0 | L25: 0 | M25: 0 | N25: 0 | O25: 0 | P25: 0 | Q25: 0 | R25: 0 | S25: 0 | T25: 0 | U25: 0 | V25: 0 | W25: 0 | X25: 0 | Y25: 0 | Z25: 0 | AA25: 0 | AB25: 0 | AC25: 0 | BS25: 0 | BT25: 0 | BU25: 0 | BV25: 0 | CA25: 0 | CB25: 0 | CC25: 0 | CD25: 0 | CJ25: 0 | CK25: 0 | CL25: 0 | CM25: 0 | CR25: 0 | CS25: 0 | CT25: 0 | CU25: 0 | DA25: 0 | DB25: 0 | DC25: 0 | DD25: 0 | DI25: 0 | DJ25: 0 | DK25: 0 | DL25: 0 | DR25: 0 | DS25: 0 | DT25: 0 | DU25: 0 | DZ25: 0 | EA25: 0 | EB25: 0 | EC25: 0 | EI25: 0 | EJ25: 0 | EK25: 0 | EL25: 0 | EQ25: 0 | ER25: 0 | ES25: 0 | ET25: 0 | EZ25: 0 | FA25: 0 | FB25: 0 | FC25: 0 | FH25: 0 | FI25: 0 | FJ25: 0 | FK25: 0 | FQ25: 0 | FR25: 0 | FS25: 0 | FT25: 0 | FY25: 0 | FZ25: 0 | GA25: 0 | GB25: 0
B26: Nbre Pénalités | C26: =BT2+CK2+DB2+DS2+EJ2+FA2+FR2 -> 20 | D26: =CB2+CS2+DJ2+EA2+ER2+FI2+FZ2 -> 21 | E26: 41 | G26: 3 | H26: Toulouse | I26: 5 | J26: 1 | K26: 1 | L26: 0 | M26: 0 | N26: 40 | O26: 3 | P26: 37 | Q26: 4 | R26: 0 | S26: 4 | T26: 0 | U26: 0 | V26: 0 | W26: 4 | X26: 1 | Y26: 1 | Z26: 0 | AA26: 1 | AB26: 0 | AC26: 1 | BS26: 0 | BT26: 0 | BU26: 0 | BV26: 0 | CA26: 0 | CB26: 0 | CC26: 0 | CD26: 0 | CJ26: 0 | CK26: 0 | CL26: 0 | CM26: 0 | CR26: 0 | CS26: 0 | CT26: 0 | CU26: 0 | DA26: 0 | DB26: 0 | DC26: 0 | DD26: 0 | DI26: 0 | DJ26: 0 | DK26: 0 | DL26: 0 | DR26: 0 | DS26: 0 | DT26: 0 | DU26: 0 | DZ26: 0 | EA26: 0 | EB26: 0 | EC26: 0 | EI26: 0 | EJ26: 0 | EK26: 0 | EL26: 0 | EQ26: 0 | ER26: 0 | ES26: 0 | ET26: 0 | EZ26: 0 | FA26: 0 | FB26: 0 | FC26: 0 | FH26: 0 | FI26: 0 | FJ26: 0 | FK26: 0 | FQ26: 0 | FR26: 0 | FS26: 0 | FT26: 0 | FY26: 0 | FZ26: 0 | GA26: 0 | GB26: 0
B27: Par match | C27: =IF(BN48=0,0,ROUND(C26/BN48,1)) -> 2.9 | D27: =IF(BN48=0,0,ROUND(D26/BN48,1)) -> 3 | E27: 5.9 | G27: 4 | H27: Castres | I27: 5 | J27: 1 | K27: 1 | L27: 0 | M27: 0 | N27: 34 | O27: 6 | P27: 28 | Q27: 5 | R27: 0 | S27: 3 | T27: 0 | U27: 0 | V27: 0 | W27: 1 | X27: 2 | Y27: 1 | Z27: 0 | AA27: 1 | AB27: 1 | AC27: 1 | BS27: 0 | BT27: 0 | BU27: 0 | BV27: 0 | CA27: 0 | CB27: 0 | CC27: 0 | CD27: 0 | CJ27: 0 | CK27: 0 | CL27: 0 | CM27: 0 | CR27: 0 | CS27: 0 | CT27: 0 | CU27: 0 | DA27: 0 | DB27: 0 | DC27: 0 | DD27: 0 | DI27: 0 | DJ27: 0 | DK27: 0 | DL27: 0 | DR27: 0 | DS27: 0 | DT27: 0 | DU27: 0 | DZ27: 0 | EA27: 0 | EB27: 0 | EC27: 0 | EI27: 0 | EJ27: 0 | EK27: 0 | EL27: 0 | EQ27: 0 | ER27: 0 | ES27: 0 | ET27: 0 | EZ27: 0 | FA27: 0 | FB27: 0 | FC27: 0 | FH27: 0 | FI27: 0 | FJ27: 0 | FK27: 0 | FQ27: 0 | FR27: 0 | FS27: 0 | FT27: 0 | FY27: 0 | FZ27: 0 | GA27: 0 | GB27: 0
B28: Nbre Drop | C28: =BU2+CL2+DC2+DT2+EK2+FB2+FS2 -> 2 | D28: =CC2+CT2+DK2+EB2+ES2+FJ2+GA2 -> 3 | E28: 5 | G28: 5 | H28: Bayonne | I28: 5 | J28: 1 | K28: 1 | L28: 0 | M28: 0 | N28: 39 | O28: 11 | P28: 28 | Q28: 4 | R28: 1 | S28: 2 | T28: 0 | U28: 0 | V28: 0 | W28: 5 | X28: 2 | Y28: 1 | Z28: 0 | AA28: 1 | AB28: 0 | AC28: 0 | BS28: 0 | BT28: 0 | BU28: 0 | BV28: 0 | CA28: 0 | CB28: 0 | CC28: 0 | CD28: 0 | CJ28: 0 | CK28: 0 | CL28: 0 | CM28: 0 | CR28: 0 | CS28: 0 | CT28: 0 | CU28: 0 | DA28: 0 | DB28: 0 | DC28: 0 | DD28: 0 | DI28: 0 | DJ28: 0 | DK28: 0 | DL28: 0 | DR28: 0 | DS28: 0 | DT28: 0 | DU28: 0 | DZ28: 0 | EA28: 0 | EB28: 0 | EC28: 0 | EI28: 0 | EJ28: 0 | EK28: 0 | EL28: 0 | EQ28: 0 | ER28: 0 | ES28: 0 | ET28: 0 | EZ28: 0 | FA28: 0 | FB28: 0 | FC28: 0 | FH28: 0 | FI28: 0 | FJ28: 0 | FK28: 0 | FQ28: 0 | FR28: 0 | FS28: 0 | FT28: 0 | FY28: 0 | FZ28: 0 | GA28: 0 | GB28: 0
B29: Par match | C29: =IF(BN48=0,0,ROUND(C28/BN48,1)) -> 0.3 | D29: =IF(BN48=0,0,ROUND(D28/BN48,1)) -> 0.4 | E29: 0.7 | G29: 6 | H29: Brive | I29: 4 | J29: 1 | K29: 1 | L29: 0 | M29: 0 | N29: 25 | O29: 12 | P29: 13 | Q29: 1 | R29: 0 | S29: 1 | T29: 0 | U29: 0 | V29: 0 | W29: 6 | X29: 4 | Y29: 0 | Z29: 0 | AA29: 0 | AB29: 0 | AC29: 0 | BS29: 0 | BT29: 0 | BU29: 0 | BV29: 0 | CA29: 0 | CB29: 0 | CC29: 0 | CD29: 0 | CJ29: 0 | CK29: 0 | CL29: 0 | CM29: 0 | CR29: 0 | CS29: 0 | CT29: 0 | CU29: 0 | DA29: 0 | DB29: 0 | DC29: 0 | DD29: 0 | DI29: 0 | DJ29: 0 | DK29: 0 | DL29: 0 | DR29: 0 | DS29: 0 | DT29: 0 | DU29: 0 | DZ29: 0 | EA29: 0 | EB29: 0 | EC29: 0 | EI29: 0 | EJ29: 0 | EK29: 0 | EL29: 0 | EQ29: 0 | ER29: 0 | ES29: 0 | ET29: 0 | EZ29: 0 | FA29: 0 | FB29: 0 | FC29: 0 | FH29: 0 | FI29: 0 | FJ29: 0 | FK29: 0 | FQ29: 0 | FR29: 0 | FS29: 0 | FT29: 0 | FY29: 0 | FZ29: 0 | GA29: 0 | GB29: 0
B30: Bonus Offensif | C30: 3 | D30: 0 | E30: 3 | G30: 7 | H30: Toulon | I30: 5 | J30: 1 | K30: 1 | L30: 0 | M30: 0 | N30: 41 | O30: 14 | P30: 27 | Q30: 5 | R30: 1 | S30: 5 | T30: 0 | U30: 1 | V30: 0 | W30: 1 | X30: 3 | Y30: 1 | Z30: 0 | AA30: 1 | AB30: 1 | AC30: 2 | BS30: 0 | BT30: 0 | BU30: 0 | BV30: 0 | CA30: 0 | CB30: 0 | CC30: 0 | CD30: 0 | CJ30: 0 | CK30: 0 | CL30: 0 | CM30: 0 | CR30: 0 | CS30: 0 | CT30: 0 | CU30: 0 | DA30: 0 | DB30: 0 | DC30: 0 | DD30: 0 | DI30: 0 | DJ30: 0 | DK30: 0 | DL30: 0 | DR30: 0 | DS30: 0 | DT30: 0 | DU30: 0 | DZ30: 0 | EA30: 0 | EB30: 0 | EC30: 0 | EI30: 0 | EJ30: 0 | EK30: 0 | EL30: 0 | EP30: =IF(EN30<>"",VLOOKUP(EN30,ActionPts,2,),"") ->  | EQ30: 0 | ER30: 0 | ES30: 0 | ET30: 0 | EZ30: 0 | FA30: 0 | FB30: 0 | FC30: 0 | FH30: 0 | FI30: 0 | FJ30: 0 | FK30: 0 | FQ30: 0 | FR30: 0 | FS30: 0 | FT30: 0 | FY30: 0 | FZ30: 0 | GA30: 0 | GB30: 0
B31: Par match | C31: =IF(BN48=0,0,ROUND(C30/BN48,1)) -> 0.4 | D31: =IF(BN48=0,0,ROUND(D30/BN48,1)) -> 0 | E31: 0.4 | G31: 8 | H31: RacingMétro92 | I31: 4 | J31: 1 | K31: 1 | L31: 0 | M31: 0 | N31: 19 | O31: 14 | P31: 5 | Q31: 1 | R31: 1 | S31: 1 | T31: 0 | U31: 0 | V31: 1 | W31: 4 | X31: 2 | Y31: 0 | Z31: 0 | AA31: 0 | AB31: 0 | AC31: 0 | BS31: 0 | BT31: 0 | BU31: 0 | BV31: 0 | CA31: 0 | CB31: 0 | CC31: 0 | CD31: 0 | CJ31: 0 | CK31: 0 | CL31: 0 | CM31: 0 | CR31: 0 | CS31: 0 | CT31: 0 | CU31: 0 | DA31: 0 | DB31: 0 | DC31: 0 | DD31: 0 | DI31: 0 | DJ31: 0 | DK31: 0 | DL31: 0 | DR31: 0 | DS31: 0 | DT31: 0 | DU31: 0 | DZ31: 0 | EA31: 0 | EB31: 0 | EC31: 0 | EI31: 0 | EJ31: 0 | EK31: 0 | EL31: 0 | EQ31: 0 | ER31: 0 | ES31: 0 | ET31: 0 | EZ31: 0 | FA31: 0 | FB31: 0 | FC31: 0 | FH31: 0 | FI31: 0 | FJ31: 0 | FK31: 0 | FQ31: 0 | FR31: 0 | FS31: 0 | FT31: 0 | FY31: 0 | FZ31: 0 | GA31: 0 | GB31: 0
B32: Bonus Défensif | C32: 1 | D32: 1 | E32: 2 | G32: 9 | H32: Grenoble | I32: 4 | J32: 1 | K32: 1 | L32: 0 | M32: 0 | N32: 19 | O32: 16 | P32: 3 | Q32: 1 | R32: 1 | S32: 1 | T32: 1 | U32: 0 | V32: 0 | W32: 4 | X32: 3 | Y32: 0 | Z32: 0 | AA32: 0 | AB32: 0 | AC32: 0 | BS32: 0 | BT32: 0 | BU32: 0 | BV32: 0 | CA32: 0 | CB32: 0 | CC32: 0 | CD32: 0 | CJ32: 0 | CK32: 0 | CL32: 0 | CM32: 0 | CR32: 0 | CS32: 0 | CT32: 0 | CU32: 0 | DA32: 0 | DB32: 0 | DC32: 0 | DD32: 0 | DI32: 0 | DJ32: 0 | DK32: 0 | DL32: 0 | DR32: 0 | DS32: 0 | DT32: 0 | DU32: 0 | DZ32: 0 | EA32: 0 | EB32: 0 | EC32: 0 | EI32: 0 | EJ32: 0 | EK32: 0 | EL32: 0 | EQ32: 0 | ER32: 0 | ES32: 0 | ET32: 0 | EZ32: 0 | FA32: 0 | FB32: 0 | FC32: 0 | FH32: 0 | FI32: 0 | FJ32: 0 | FK32: 0 | FQ32: 0 | FR32: 0 | FS32: 0 | FT32: 0 | FY32: 0 | FZ32: 0 | GA32: 0 | GB32: 0
B33: Par match | C33: =IF(BN48=0,0,ROUND(C32/BN48,1)) -> 0.1 | D33: =IF(BN48=0,0,ROUND(D32/BN48,1)) -> 0.1 | E33: 0.2 | G33: 10 | H33: Oyonnax | I33: 4 | J33: 1 | K33: 1 | L33: 0 | M33: 0 | N33: 30 | O33: 19 | P33: 11 | Q33: 3 | R33: 2 | S33: 3 | T33: 0 | U33: 1 | V33: 0 | W33: 2 | X33: 3 | Y33: 0 | Z33: 0 | AA33: 0 | AB33: 0 | AC33: 1 | BS33: 0 | BT33: 0 | BU33: 0 | BV33: 0 | CA33: 0 | CB33: 0 | CC33: 0 | CD33: 0 | CJ33: 0 | CK33: 0 | CL33: 0 | CM33: 0 | CR33: 0 | CS33: 0 | CT33: 0 | CU33: 0 | DA33: 0 | DB33: 0 | DC33: 0 | DD33: 0 | DI33: 0 | DJ33: 0 | DK33: 0 | DL33: 0 | DR33: 0 | DS33: 0 | DT33: 0 | DU33: 0 | DZ33: 0 | EA33: 0 | EB33: 0 | EC33: 0 | EI33: 0 | EJ33: 0 | EK33: 0 | EL33: 0 | EQ33: 0 | ER33: 0 | ES33: 0 | ET33: 0 | EZ33: 0 | FA33: 0 | FB33: 0 | FC33: 0 | FH33: 0 | FI33: 0 | FJ33: 0 | FK33: 0 | FQ33: 0 | FR33: 0 | FS33: 0 | FT33: 0 | FY33: 0 | FZ33: 0 | GA33: 0 | GB33: 0
B34: Carton Jaune | C34: =BP46+CG46+CX46+DO46+EF46+EW46+FN46 -> 6 | D34: =BX46+CO46+DF46+DW46+EN46+FE46+FV46 -> 7 | E34: 13 | G34: 11 | H34: Montpellier | I34: 2 | J34: 1 | K34: 0 | L34: 1 | M34: 0 | N34: 22 | O34: 22 | P34: 0 | Q34: 1 | R34: 1 | S34: 1 | T34: 1 | U34: 1 | V34: 0 | W34: 4 | X34: 5 | Y34: 0 | Z34: 0 | AA34: 0 | AB34: 0 | AC34: 0 | BS34: 0 | BT34: 0 | BU34: 0 | BV34: 0 | CA34: 0 | CB34: 0 | CC34: 0 | CD34: 0 | CJ34: 0 | CK34: 0 | CL34: 0 | CM34: 0 | CR34: 0 | CS34: 0 | CT34: 0 | CU34: 0 | DA34: 0 | DB34: 0 | DC34: 0 | DD34: 0 | DI34: 0 | DJ34: 0 | DK34: 0 | DL34: 0 | DR34: 0 | DS34: 0 | DT34: 0 | DU34: 0 | DZ34: 0 | EA34: 0 | EB34: 0 | EC34: 0 | EI34: 0 | EJ34: 0 | EK34: 0 | EL34: 0 | EQ34: 0 | ER34: 0 | ES34: 0 | ET34: 0 | EZ34: 0 | FA34: 0 | FB34: 0 | FC34: 0 | FH34: 0 | FI34: 0 | FJ34: 0 | FK34: 0 | FQ34: 0 | FR34: 0 | FS34: 0 | FT34: 0 | FY34: 0 | FZ34: 0 | GA34: 0 | GB34: 0
B35: Par match | C35: =IF(BN48=0,0,ROUND(C34/BN48,1)) -> 0.9 | D35: =IF(BN48=0,0,ROUND(D34/BN48,1)) -> 1 | E35: 1.9 | G35: 12 | H35: BordeauxBègles | I35: 4 | J35: 1 | K35: 1 | L35: 0 | M35: 0 | N35: 31 | O35: 25 | P35: 6 | Q35: 1 | R35: 1 | S35: 1 | T35: 1 | U35: 0 | V35: 0 | W35: 8 | X35: 6 | Y35: 0 | Z35: 0 | AA35: 0 | AB35: 0 | AC35: 0 | BS35: 0 | BT35: 0 | BU35: 0 | BV35: 0 | CA35: 0 | CB35: 0 | CC35: 0 | CD35: 0 | CJ35: 0 | CK35: 0 | CL35: 0 | CM35: 0 | CR35: 0 | CS35: 0 | CT35: 0 | CU35: 0 | DA35: 0 | DB35: 0 | DC35: 0 | DD35: 0 | DI35: 0 | DJ35: 0 | DK35: 0 | DL35: 0 | DR35: 0 | DS35: 0 | DT35: 0 | DU35: 0 | DZ35: 0 | EA35: 0 | EB35: 0 | EC35: 0 | EI35: 0 | EJ35: 0 | EK35: 0 | EL35: 0 | EQ35: 0 | ER35: 0 | ES35: 0 | ET35: 0 | EZ35: 0 | FA35: 0 | FB35: 0 | FC35: 0 | FH35: 0 | FI35: 0 | FJ35: 0 | FK35: 0 | FQ35: 0 | FR35: 0 | FS35: 0 | FT35: 0 | FY35: 0 | FZ35: 0 | GA35: 0 | GB35: 0
B36: Carton Rouge | C36: =BP47+CG47+CX47+DO47+EF47+EW47+FN47 -> 2 | D36: =BX47+CO47+DF47+DW47+EN47+FE47+FV47 -> 2 | E36: 4 | G36: 13 | H36: Biarritz | I36: 5 | J36: 2 | K36: 1 | L36: 0 | M36: 1 | N36: 37 | O36: 34 | P36: 3 | Q36: 3 | R36: 1 | S36: 2 | T36: 1 | U36: 1 | V36: 0 | W36: 5 | X36: 9 | Y36: 0 | Z36: 1 | AA36: 1 | AB36: 0 | AC36: 1 | BS36: 0 | BT36: 0 | BU36: 0 | BV36: 0 | CA36: 0 | CB36: 0 | CC36: 0 | CD36: 0 | CJ36: 0 | CK36: 0 | CL36: 0 | CM36: 0 | CR36: 0 | CS36: 0 | CT36: 0 | CU36: 0 | DA36: 0 | DB36: 0 | DC36: 0 | DD36: 0 | DI36: 0 | DJ36: 0 | DK36: 0 | DL36: 0 | DR36: 0 | DS36: 0 | DT36: 0 | DU36: 0 | DZ36: 0 | EA36: 0 | EB36: 0 | EC36: 0 | EI36: 0 | EJ36: 0 | EK36: 0 | EL36: 0 | EQ36: 0 | ER36: 0 | ES36: 0 | ET36: 0 | EZ36: 0 | FA36: 0 | FB36: 0 | FC36: 0 | FH36: 0 | FI36: 0 | FJ36: 0 | FK36: 0 | FQ36: 0 | FR36: 0 | FS36: 0 | FT36: 0 | FY36: 0 | FZ36: 0 | GA36: 0 | GB36: 0
B37: Par match | C37: =IF(BN48=0,0,ROUND(C36/BN48,1)) -> 0.3 | D37: =IF(BN48=0,0,ROUND(D36/BN48,1)) -> 0.3 | E37: 0.6 | G37: 14 | H37: Perpignan | I37: 5 | J37: 2 | K37: 1 | L37: 0 | M37: 1 | N37: 53 | O37: 51 | P37: 2 | Q37: 5 | R37: 3 | S37: 5 | T37: 3 | U37: 1 | V37: 3 | W37: 5 | X37: 7 | Y37: 0 | Z37: 1 | AA37: 1 | AB37: 0 | AC37: 1 | BS37: 0 | BT37: 0 | BU37: 0 | BV37: 0 | CA37: 0 | CB37: 0 | CC37: 0 | CD37: 0 | CJ37: 0 | CK37: 0 | CL37: 0 | CM37: 0 | CR37: 0 | CS37: 0 | CT37: 0 | CU37: 0 | DA37: 0 | DB37: 0 | DC37: 0 | DD37: 0 | DI37: 0 | DJ37: 0 | DK37: 0 | DL37: 0 | DR37: 0 | DS37: 0 | DT37: 0 | DU37: 0 | DZ37: 0 | EA37: 0 | EB37: 0 | EC37: 0 | EI37: 0 | EJ37: 0 | EK37: 0 | EL37: 0 | EQ37: 0 | ER37: 0 | ES37: 0 | ET37: 0 | EZ37: 0 | FA37: 0 | FB37: 0 | FC37: 0 | FH37: 0 | FI37: 0 | FJ37: 0 | FK37: 0 | FQ37: 0 | FR37: 0 | FS37: 0 | FT37: 0 | FY37: 0 | FZ37: 0 | GA37: 0 | GB37: 0
BS38: 0 | BT38: 0 | BU38: 0 | BV38: 0 | CA38: 0 | CB38: 0 | CC38: 0 | CD38: 0 | CJ38: 0 | CK38: 0 | CL38: 0 | CM38: 0 | CR38: 0 | CS38: 0 | CT38: 0 | CU38: 0 | DA38: 0 | DB38: 0 | DC38: 0 | DD38: 0 | DI38: 0 | DJ38: 0 | DK38: 0 | DL38: 0 | DR38: 0 | DS38: 0 | DT38: 0 | DU38: 0 | DZ38: 0 | EA38: 0 | EB38: 0 | EC38: 0 | EI38: 0 | EJ38: 0 | EK38: 0 | EL38: 0 | EQ38: 0 | ER38: 0 | ES38: 0 | ET38: 0 | EZ38: 0 | FA38: 0 | FB38: 0 | FC38: 0 | FH38: 0 | FI38: 0 | FJ38: 0 | FK38: 0 | FQ38: 0 | FR38: 0 | FS38: 0 | FT38: 0 | FY38: 0 | FZ38: 0 | GA38: 0 | GB38: 0
BS39: 0 | BT39: 0 | BU39: 0 | BV39: 0 | CA39: 0 | CB39: 0 | CC39: 0 | CD39: 0 | CJ39: 0 | CK39: 0 | CL39: 0 | CM39: 0 | CR39: 0 | CS39: 0 | CT39: 0 | CU39: 0 | DA39: 0 | DB39: 0 | DC39: 0 | DD39: 0 | DI39: 0 | DJ39: 0 | DK39: 0 | DL39: 0 | DR39: 0 | DS39: 0 | DT39: 0 | DU39: 0 | DZ39: 0 | EA39: 0 | EB39: 0 | EC39: 0 | EI39: 0 | EJ39: 0 | EK39: 0 | EL39: 0 | EQ39: 0 | ER39: 0 | ES39: 0 | ET39: 0 | EZ39: 0 | FA39: 0 | FB39: 0 | FC39: 0 | FH39: 0 | FI39: 0 | FJ39: 0 | FK39: 0 | FQ39: 0 | FR39: 0 | FS39: 0 | FT39: 0 | FY39: 0 | FZ39: 0 | GA39: 0 | GB39: 0
I40: Classement à l'Extérieur | BS40: 0 | BT40: 0 | BU40: 0 | BV40: 0 | CA40: 0 | CB40: 0 | CC40: 0 | CD40: 0 | CJ40: 0 | CK40: 0 | CL40: 0 | CM40: 0 | CR40: 0 | CS40: 0 | CT40: 0 | CU40: 0 | DA40: 0 | DB40: 0 | DC40: 0 | DD40: 0 | DI40: 0 | DJ40: 0 | DK40: 0 | DL40: 0 | DR40: 0 | DS40: 0 | DT40: 0 | DU40: 0 | DZ40: 0 | EA40: 0 | EB40: 0 | EC40: 0 | EI40: 0 | EJ40: 0 | EK40: 0 | EL40: 0 | EQ40: 0 | ER40: 0 | ES40: 0 | ET40: 0 | EZ40: 0 | FA40: 0 | FB40: 0 | FC40: 0 | FH40: 0 | FI40: 0 | FJ40: 0 | FK40: 0 | FQ40: 0 | FR40: 0 | FS40: 0 | FT40: 0 | FY40: 0 | FZ40: 0 | GA40: 0 | GB40: 0
BS41: 0 | BT41: 0 | BU41: 0 | BV41: 0 | CA41: 0 | CB41: 0 | CC41: 0 | CD41: 0 | CJ41: 0 | CK41: 0 | CL41: 0 | CM41: 0 | CR41: 0 | CS41: 0 | CT41: 0 | CU41: 0 | DA41: 0 | DB41: 0 | DC41: 0 | DD41: 0 | DI41: 0 | DJ41: 0 | DK41: 0 | DL41: 0 | DR41: 0 | DS41: 0 | DT41: 0 | DU41: 0 | DZ41: 0 | EA41: 0 | EB41: 0 | EC41: 0 | EI41: 0 | EJ41: 0 | EK41: 0 | EL41: 0 | EQ41: 0 | ER41: 0 | ES41: 0 | ET41: 0 | EZ41: 0 | FA41: 0 | FB41: 0 | FC41: 0 | FH41: 0 | FI41: 0 | FJ41: 0 | FK41: 0 | FQ41: 0 | FR41: 0 | FS41: 0 | FT41: 0 | FY41: 0 | FZ41: 0 | GA41: 0 | GB41: 0
I42: Pts | J42: J. | K42: G | L42: N | M42: P | N42: Pr | O42: Ctr | P42: Diff | Q42: E p | R42: E c | S42: Tp | T42: Tc | U42: Dp | V42: Dc | W42: Pp | X42: Pc | Y42: B.O | Z42: B.D | AA42: Bon | AB42: Cr | AC42: Cj | BS42: 0 | BT42: 0 | BU42: 0 | BV42: 0 | CA42: 0 | CB42: 0 | CC42: 0 | CD42: 0 | CJ42: 0 | CK42: 0 | CL42: 0 | CM42: 0 | CR42: 0 | CS42: 0 | CT42: 0 | CU42: 0 | DA42: 0 | DB42: 0 | DC42: 0 | DD42: 0 | DI42: 0 | DJ42: 0 | DK42: 0 | DL42: 0 | DR42: 0 | DS42: 0 | DT42: 0 | DU42: 0 | DZ42: 0 | EA42: 0 | EB42: 0 | EC42: 0 | EI42: 0 | EJ42: 0 | EK42: 0 | EL42: 0 | EQ42: 0 | ER42: 0 | ES42: 0 | ET42: 0 | EZ42: 0 | FA42: 0 | FB42: 0 | FC42: 0 | FH42: 0 | FI42: 0 | FJ42: 0 | FK42: 0 | FQ42: 0 | FR42: 0 | FS42: 0 | FT42: 0 | FY42: 0 | FZ42: 0 | GA42: 0 | GB42: 0
G43: 1 | H43: Biarritz | I43: 0 | J43: 0 | K43: 0 | L43: 0 | M43: 0 | N43: 0 | O43: 0 | P43: 0 | Q43: 0 | R43: 0 | S43: 0 | T43: 0 | U43: 0 | V43: 0 | W43: 0 | X43: 0 | Y43: 0 | Z43: 0 | AA43: 0 | AB43: 0 | AC43: 0 | BS43: 0 | BT43: 0 | BU43: 0 | BV43: 0 | CA43: 0 | CB43: 0 | CC43: 0 | CD43: 0 | CJ43: 0 | CK43: 0 | CL43: 0 | CM43: 0 | CR43: 0 | CS43: 0 | CT43: 0 | CU43: 0 | DA43: 0 | DB43: 0 | DC43: 0 | DD43: 0 | DI43: 0 | DJ43: 0 | DK43: 0 | DL43: 0 | DR43: 0 | DS43: 0 | DT43: 0 | DU43: 0 | DZ43: 0 | EA43: 0 | EB43: 0 | EC43: 0 | EI43: 0 | EJ43: 0 | EK43: 0 | EL43: 0 | EQ43: 0 | ER43: 0 | ES43: 0 | ET43: 0 | EZ43: 0 | FA43: 0 | FB43: 0 | FC43: 0 | FH43: 0 | FI43: 0 | FJ43: 0 | FK43: 0 | FQ43: 0 | FR43: 0 | FS43: 0 | FT43: 0 | FY43: 0 | FZ43: 0 | GA43: 0 | GB43: 0
G44: 2 | H44: Perpignan | I44: 0 | J44: 0 | K44: 0 | L44: 0 | M44: 0 | N44: 0 | O44: 0 | P44: 0 | Q44: 0 | R44: 0 | S44: 0 | T44: 0 | U44: 0 | V44: 0 | W44: 0 | X44: 0 | Y44: 0 | Z44: 0 | AA44: 0 | AB44: 0 | AC44: 0 | BS44: 0 | BT44: 0 | BU44: 0 | BV44: 0 | CA44: 0 | CB44: 0 | CC44: 0 | CD44: 0 | CJ44: 0 | CK44: 0 | CL44: 0 | CM44: 0 | CR44: 0 | CS44: 0 | CT44: 0 | CU44: 0 | DA44: 0 | DB44: 0 | DC44: 0 | DD44: 0 | DI44: 0 | DJ44: 0 | DK44: 0 | DL44: 0 | DR44: 0 | DS44: 0 | DT44: 0 | DU44: 0 | DZ44: 0 | EA44: 0 | EB44: 0 | EC44: 0 | EI44: 0 | EJ44: 0 | EK44: 0 | EL44: 0 | EQ44: 0 | ER44: 0 | ES44: 0 | ET44: 0 | EZ44: 0 | FA44: 0 | FB44: 0 | FC44: 0 | FH44: 0 | FI44: 0 | FJ44: 0 | FK44: 0 | FQ44: 0 | FR44: 0 | FS44: 0 | FT44: 0 | FY44: 0 | FZ44: 0 | GA44: 0 | GB44: 0
G45: 3 | H45: Brive | I45: 1 | J45: 1 | K45: 0 | L45: 0 | M45: 1 | N45: 14 | O45: 19 | P45: -5 | Q45: 1 | R45: 1 | S45: 0 | T45: 1 | U45: 1 | V45: 0 | W45: 2 | X45: 4 | Y45: 0 | Z45: 1 | AA45: 1 | AB45: 0 | AC45: 0 | BS45: 0 | BT45: 0 | BU45: 0 | BV45: 0 | CA45: 0 | CB45: 0 | CC45: 0 | CD45: 0 | CJ45: 0 | CK45: 0 | CL45: 0 | CM45: 0 | CR45: 0 | CS45: 0 | CT45: 0 | CU45: 0 | DA45: 0 | DB45: 0 | DC45: 0 | DD45: 0 | DI45: 0 | DJ45: 0 | DK45: 0 | DL45: 0 | DR45: 0 | DS45: 0 | DT45: 0 | DU45: 0 | DZ45: 0 | EA45: 0 | EB45: 0 | EC45: 0 | EI45: 0 | EJ45: 0 | EK45: 0 | EL45: 0 | EQ45: 0 | ER45: 0 | ES45: 0 | ET45: 0 | EZ45: 0 | FA45: 0 | FB45: 0 | FC45: 0 | FH45: 0 | FI45: 0 | FJ45: 0 | FK45: 0 | FQ45: 0 | FR45: 0 | FS45: 0 | FT45: 0 | FY45: 0 | FZ45: 0 | GA45: 0 | GB45: 0
G46: 4 | H46: Montpellier | I46: 1 | J46: 1 | K46: 0 | L46: 0 | M46: 1 | N46: 12 | O46: 19 | P46: -7 | Q46: 0 | R46: 1 | S46: 0 | T46: 1 | U46: 0 | V46: 0 | W46: 4 | X46: 4 | Y46: 0 | Z46: 1 | AA46: 1 | AB46: 0 | AC46: 1 | BP46: =COUNTIF(BP5:BP45,"Carton Jaune") -> 0 | BX46: =COUNTIF(BX5:BX45,"Carton Jaune") -> 2 | CG46: =COUNTIF(CG5:CG45,"Carton Jaune") -> 0 | CO46: =COUNTIF(CO5:CO45,"Carton Jaune") -> 1 | CX46: =COUNTIF(CX5:CX45,"Carton Jaune") -> 1 | DF46: =COUNTIF(DF5:DF45,"Carton Jaune") -> 2 | DO46: =COUNTIF(DO5:DO45,"Carton Jaune") -> 1 | DW46: =COUNTIF(DW5:DW45,"Carton Jaune") -> 0 | EF46: =COUNTIF(EF5:EF45,"Carton Jaune") -> 1 | EN46: =COUNTIF(EN5:EN45,"Carton Jaune") -> 2 | EW46: =COUNTIF(EW5:EW45,"Carton Jaune") -> 2 | FE46: =COUNTIF(FE5:FE45,"Carton Jaune") -> 0 | FN46: =COUNTIF(FN5:FN45,"Carton Jaune") -> 1 | FV46: =COUNTIF(FV5:FV45,"Carton Jaune") -> 0
G47: 5 | H47: Toulon | I47: 2 | J47: 1 | K47: 0 | L47: 1 | M47: 0 | N47: 22 | O47: 22 | P47: 0 | Q47: 1 | R47: 1 | S47: 1 | T47: 1 | U47: 0 | V47: 1 | W47: 5 | X47: 4 | Y47: 0 | Z47: 0 | AA47: 0 | AB47: 0 | AC47: 1 | BP47: =COUNTIF(BP5:BP45,"Carton Rouge") -> 0 | BX47: =COUNTIF(BX5:BX45,"Carton Rouge") -> 0 | CG47: =COUNTIF(CG5:CG45,"Carton Rouge") -> 0 | CO47: =COUNTIF(CO5:CO45,"Carton Rouge") -> 0 | CX47: =COUNTIF(CX5:CX45,"Carton Rouge") -> 1 | DF47: =COUNTIF(DF5:DF45,"Carton Rouge") -> 0 | DO47: =COUNTIF(DO5:DO45,"Carton Rouge") -> 0 | DW47: =COUNTIF(DW5:DW45,"Carton Rouge") -> 0 | EF47: =COUNTIF(EF5:EF45,"Carton Rouge") -> 0 | EN47: =COUNTIF(EN5:EN45,"Carton Rouge") -> 0 | EW47: =COUNTIF(EW5:EW45,"Carton Rouge") -> 1 | FE47: =COUNTIF(FE5:FE45,"Carton Rouge") -> 1 | FN47: =COUNTIF(FN5:FN45,"Carton Rouge") -> 0 | FV47: =COUNTIF(FV5:FV45,"Carton Rouge") -> 1
G48: 6 | H48: BordeauxBègles | I48: 0 | J48: 1 | K48: 0 | L48: 0 | M48: 1 | N48: 12 | O48: 25 | P48: -13 | Q48: 0 | R48: 1 | S48: 0 | T48: 1 | U48: 0 | V48: 0 | W48: 4 | X48: 6 | Y48: 0 | Z48: 0 | AA48: 0 | AB48: 0 | AC48: 2 | BN48: =COUNTIF(BY48:FW48,"OK") -> 7 | BY48: =IF(COUNTA(BO5:BO45)+COUNTA(BW5:BW45)<>0,"OK","F") -> OK | CP48: =IF(COUNTA(CF5:CF45)+COUNTA(CN5:CN45)<>0,"OK","F") -> OK | DG48: =IF(COUNTA(CW5:CW45)+COUNTA(DE5:DE45)<>0,"OK","F") -> OK | DX48: =IF(COUNTA(DN5:DN45)+COUNTA(DV5:DV45)<>0,"OK","F") -> OK | EO48: =IF(COUNTA(EE5:EE45)+COUNTA(EM5:EM45)<>0,"OK","F") -> OK | FF48: =IF(COUNTA(EV5:EV45)+COUNTA(FD5:FD45)<>0,"OK","F") -> OK | FW48: =IF(COUNTA(FM5:FM45)+COUNTA(FU5:FU45)<>0,"OK","F") -> OK
G49: 7 | H49: Castres | I49: 1 | J49: 1 | K49: 0 | L49: 0 | M49: 1 | N49: 23 | O49: 26 | P49: -3 | Q49: 2 | R49: 2 | S49: 2 | T49: 2 | U49: 0 | V49: 1 | W49: 3 | X49: 3 | Y49: 0 | Z49: 1 | AA49: 1 | AB49: 0 | AC49: 2
G50: 8 | H50: Toulouse | I50: 1 | J50: 1 | K50: 0 | L50: 0 | M50: 1 | N50: 25 | O50: 31 | P50: -6 | Q50: 1 | R50: 1 | S50: 1 | T50: 1 | U50: 0 | V50: 0 | W50: 6 | X50: 8 | Y50: 0 | Z50: 1 | AA50: 1 | AB50: 0 | AC50: 1
G51: 9 | H51: Grenoble | I51: 0 | J51: 1 | K51: 0 | L51: 0 | M51: 1 | N51: 6 | O51: 34 | P51: -28 | Q51: 0 | R51: 5 | S51: 0 | T51: 3 | U51: 0 | V51: 0 | W51: 2 | X51: 1 | Y51: 0 | Z51: 0 | AA51: 0 | AB51: 0 | AC51: 2
G52: 10 | H52: Oyonnax | I52: 0 | J52: 1 | K52: 0 | L52: 0 | M52: 1 | N52: 11 | O52: 39 | P52: -28 | Q52: 1 | R52: 4 | S52: 0 | T52: 2 | U52: 0 | V52: 0 | W52: 2 | X52: 5 | Y52: 0 | Z52: 0 | AA52: 0 | AB52: 0 | AC52: 0
G53: 11 | H53: Bayonne | I53: 0 | J53: 1 | K53: 0 | L53: 0 | M53: 1 | N53: 3 | O53: 40 | P53: -37 | Q53: 0 | R53: 4 | S53: 0 | T53: 4 | U53: 0 | V53: 0 | W53: 1 | X53: 4 | Y53: 0 | Z53: 0 | AA53: 0 | AB53: 1 | AC53: 0
G54: 12 | H54: RacingMétro92 | I54: 0 | J54: 1 | K54: 0 | L54: 0 | M54: 1 | N54: 14 | O54: 41 | P54: -27 | Q54: 1 | R54: 5 | S54: 0 | T54: 5 | U54: 0 | V54: 1 | W54: 3 | X54: 1 | Y54: 0 | Z54: 0 | AA54: 0 | AB54: 1 | AC54: 0
G55: 13 | H55: StadeFrancais | I55: 5 | J55: 2 | K55: 1 | L55: 0 | M55: 1 | N55: 44 | O55: 46 | P55: -2 | Q55: 2 | R55: 4 | S55: 2 | T55: 4 | U55: 3 | V55: 0 | W55: 7 | X55: 6 | Y55: 0 | Z55: 1 | AA55: 1 | AB55: 0 | AC55: 2
G56: 14 | H56: Montferrand | I56: 4 | J56: 2 | K56: 1 | L56: 0 | M56: 1 | N56: 41 | O56: 48 | P56: -7 | Q56: 3 | R56: 5 | S56: 1 | T56: 4 | U56: 0 | V56: 2 | W56: 8 | X56: 3 | Y56: 0 | Z56: 0 | AA56: 0 | AB56: 0 | AC56: 2
I59: Classement de la journée
I61: Pts | J61: J. | K61: G | L61: N | M61: P | N61: Pr | O61: Ctr | P61: Diff | Q61: E p | R61: E c | S61: Tp | T61: Tc | U61: Dp | V61: Dc | W61: Pp | X61: Pc | Y61: B.O | Z61: B.D | AA61: Bon | AB61: Cr | AC61: Cj
G62: 1 | H62: Toulouse | I62: 5 | J62: 1 | K62: 1 | L62: 0 | M62: 0 | N62: 40 | O62: 3 | P62: 37 | Q62: 4 | R62: 0 | S62: 4 | T62: 0 | U62: 0 | V62: 0 | W62: 4 | X62: 1 | Y62: 1 | Z62: 0 | AA62: 1 | AB62: 0 | AC62: 1
G63: 2 | H63: Castres | I63: 5 | J63: 1 | K63: 1 | L63: 0 | M63: 0 | N63: 34 | O63: 6 | P63: 28 | Q63: 5 | R63: 0 | S63: 3 | T63: 0 | U63: 0 | V63: 0 | W63: 1 | X63: 2 | Y63: 1 | Z63: 0 | AA63: 1 | AB63: 1 | AC63: 1
G64: 3 | H64: Brive | I64: 4 | J64: 1 | K64: 1 | L64: 0 | M64: 0 | N64: 25 | O64: 12 | P64: 13 | Q64: 1 | R64: 0 | S64: 1 | T64: 0 | U64: 0 | V64: 0 | W64: 6 | X64: 4 | Y64: 0 | Z64: 0 | AA64: 0 | AB64: 0 | AC64: 0
G65: 4 | H65: Biarritz | I65: 4 | J65: 1 | K65: 1 | L65: 0 | M65: 0 | N65: 19 | O65: 12 | P65: 7 | Q65: 1 | R65: 0 | S65: 1 | T65: 0 | U65: 0 | V65: 0 | W65: 4 | X65: 4 | Y65: 0 | Z65: 0 | AA65: 0 | AB65: 0 | AC65: 0
G66: 5 | H66: Toulon | I66: 5 | J66: 1 | K66: 1 | L66: 0 | M66: 0 | N66: 41 | O66: 14 | P66: 27 | Q66: 5 | R66: 1 | S66: 5 | T66: 0 | U66: 1 | V66: 0 | W66: 1 | X66: 3 | Y66: 1 | Z66: 0 | AA66: 1 | AB66: 1 | AC66: 2
G67: 6 | H67: Oyonnax | I67: 4 | J67: 1 | K67: 1 | L67: 0 | M67: 0 | N67: 30 | O67: 19 | P67: 11 | Q67: 3 | R67: 2 | S67: 3 | T67: 0 | U67: 1 | V67: 0 | W67: 2 | X67: 3 | Y67: 0 | Z67: 0 | AA67: 0 | AB67: 0 | AC67: 1
G68: 7 | H68: Montpellier | I68: 1 | J68: 1 | K68: 0 | L68: 0 | M68: 1 | N68: 12 | O68: 19 | P68: -7 | Q68: 0 | R68: 1 | S68: 0 | T68: 1 | U68: 0 | V68: 0 | W68: 4 | X68: 4 | Y68: 0 | Z68: 1 | AA68: 1 | AB68: 0 | AC68: 1
G69: 8 | H69: BordeauxBègles | I69: 0 | J69: 1 | K69: 0 | L69: 0 | M69: 1 | N69: 12 | O69: 25 | P69: -13 | Q69: 0 | R69: 1 | S69: 0 | T69: 1 | U69: 0 | V69: 0 | W69: 4 | X69: 6 | Y69: 0 | Z69: 0 | AA69: 0 | AB69: 0 | AC69: 2
G70: 9 | H70: StadeFrancais | I70: 4 | J70: 1 | K70: 1 | L70: 0 | M70: 0 | N70: 28 | O70: 27 | P70: 1 | Q70: 1 | R70: 3 | S70: 1 | T70: 3 | U70: 3 | V70: 0 | W70: 4 | X70: 2 | Y70: 0 | Z70: 0 | AA70: 0 | AB70: 0 | AC70: 2
G71: 10 | H71: Perpignan | I71: 1 | J71: 1 | K71: 0 | L71: 0 | M71: 1 | N71: 27 | O71: 28 | P71: -1 | Q71: 3 | R71: 1 | S71: 3 | T71: 1 | U71: 0 | V71: 3 | W71: 2 | X71: 4 | Y71: 0 | Z71: 1 | AA71: 1 | AB71: 0 | AC71: 1
G72: 11 | H72: Montferrand | I72: 0 | J72: 1 | K72: 0 | L72: 0 | M72: 1 | N72: 19 | O72: 30 | P72: -11 | Q72: 2 | R72: 3 | S72: 0 | T72: 3 | U72: 0 | V72: 1 | W72: 3 | X72: 2 | Y72: 0 | Z72: 0 | AA72: 0 | AB72: 0 | AC72: 0
G73: 12 | H73: Grenoble | I73: 0 | J73: 1 | K73: 0 | L73: 0 | M73: 1 | N73: 6 | O73: 34 | P73: -28 | Q73: 0 | R73: 5 | S73: 0 | T73: 3 | U73: 0 | V73: 0 | W73: 2 | X73: 1 | Y73: 0 | Z73: 0 | AA73: 0 | AB73: 0 | AC73: 2
G74: 13 | H74: Bayonne | I74: 0 | J74: 1 | K74: 0 | L74: 0 | M74: 1 | N74: 3 | O74: 40 | P74: -37 | Q74: 0 | R74: 4 | S74: 0 | T74: 4 | U74: 0 | V74: 0 | W74: 1 | X74: 4 | Y74: 0 | Z74: 0 | AA74: 0 | AB74: 1 | AC74: 0
G75: 14 | H75: RacingMétro92 | I75: 0 | J75: 1 | K75: 0 | L75: 0 | M75: 1 | N75: 14 | O75: 41 | P75: -27 | Q75: 1 | R75: 5 | S75: 0 | T75: 5 | U75: 0 | V75: 1 | W75: 3 | X75: 1 | Y75: 0 | Z75: 0 | AA75: 0 | AB75: 1 | AC75: 0
H78: Essai | J78: Transf | L78: Drop | N78: Pen | P78: BO | Q78: BD | R78: CJ | S78: CR | T78: Pts
A79: =B3 -> Brive | B79: Recoit | C79: =E3 -> BordeauxBègles | D79: Visiteur | E79: =C3 -> 25 | F79: =D3 -> 12 | G79: =E2 -> 2013-08-24 | H79: =B4 -> 1 | I79: =E4 -> 0 | J79: =VLOOKUP(A79,$H$62:$AC$75,12,FALSE) -> 1 | K79: =VLOOKUP(A79,$H$62:$AC$75,13,FALSE) -> 0 | L79: =VLOOKUP(A79,$H$62:$AC$75,14,FALSE) -> 0 | M79: =VLOOKUP(A79,$H$62:$AC$75,15,FALSE) -> 0 | N79: =VLOOKUP(A79,$H$62:$AC$75,16,FALSE) -> 6 | O79: =VLOOKUP(A79,$H$62:$AC$75,17,FALSE) -> 4 | P79: =VLOOKUP(A79,$H$62:$AC$75,18,FALSE) -> 0 | Q79: =VLOOKUP(A79,$H$62:$AC$75,19,FALSE) -> 0 | R79: =VLOOKUP(A79,$H$62:$AC$75,22,FALSE) -> 0 | S79: =VLOOKUP(A79,$H$62:$AC$75,21,FALSE) -> 0 | T79: =VLOOKUP(A79,$H$62:$AC$75,2,FALSE) -> 4
A80: =E3 -> BordeauxBègles | B80: Visiteur | C80: =B3 -> Brive | D80: Recoit | E80: =D3 -> 12 | F80: =C3 -> 25 | G80: =E2 -> 2013-08-24 | H80: =E4 -> 0 | I80: =B4 -> 1 | J80: =VLOOKUP(A80,$H$62:$AC$75,12,FALSE) -> 0 | K80: =VLOOKUP(A80,$H$62:$AC$75,13,FALSE) -> 1 | L80: =VLOOKUP(A80,$H$62:$AC$75,14,FALSE) -> 0 | M80: =VLOOKUP(A80,$H$62:$AC$75,15,FALSE) -> 0 | N80: =VLOOKUP(A80,$H$62:$AC$75,16,FALSE) -> 4 | O80: =VLOOKUP(A80,$H$62:$AC$75,17,FALSE) -> 6 | P80: 0 | Q80: 0 | R80: =VLOOKUP(A80,$H$62:$AC$75,22,FALSE) -> 2 | S80: =VLOOKUP(A80,$H$62:$AC$75,21,FALSE) -> 0 | T80: =VLOOKUP(A80,$H$62:$AC$75,2,FALSE) -> 0
A81: =B5 -> Biarritz | B81: Recoit | C81: =E5 -> Montpellier | D81: Visiteur | E81: =C5 -> 19 | F81: =D5 -> 12 | G81: =E2 -> 2013-08-24 | H81: =B6 -> 1 | I81: =E6 -> 0 | J81: 1 | K81: 0 | L81: 0 | M81: 0 | N81: 4 | O81: 4 | P81: 0 | Q81: 0 | R81: 0 | S81: 0 | T81: 4
A82: =E5 -> Montpellier | B82: Visiteur | C82: =B5 -> Biarritz | D82: Recoit | E82: =D5 -> 12 | F82: =C5 -> 19 | G82: =E2 -> 2013-08-24 | H82: =E6 -> 0 | I82: =B6 -> 1 | J82: 0 | K82: 1 | L82: 0 | M82: 0 | N82: 4 | O82: 4 | P82: 0 | Q82: 1 | R82: 1 | S82: 0 | T82: 1
A83: =B7 -> Castres | B83: Recoit | C83: =E7 -> Grenoble | D83: Visiteur | E83: =C7 -> 34 | F83: =D7 -> 6 | G83: =E2 -> 2013-08-24 | H83: =B8 -> 5 | I83: =E8 -> 0 | J83: 3 | K83: 0 | L83: 0 | M83: 0 | N83: 1 | O83: 2 | P83: 1 | Q83: 0 | R83: 1 | S83: 1 | T83: 5
A84: =E7 -> Grenoble | B84: Visiteur | C84: =B7 -> Castres | D84: Recoit | E84: =D7 -> 6 | F84: =C7 -> 34 | G84: =E2 -> 2013-08-24 | H84: =E8 -> 0 | I84: =B8 -> 5 | J84: 0 | K84: 3 | L84: 0 | M84: 0 | N84: 2 | O84: 1 | P84: 0 | Q84: 0 | R84: 2 | S84: 0 | T84: 0
A85: =B9 -> Oyonnax | B85: Recoit | C85: =E9 -> Montferrand | D85: Visiteur | E85: =C9 -> 30 | F85: =D9 -> 19 | G85: =E2 -> 2013-08-24 | H85: =B10 -> 3 | I85: =E10 -> 2 | J85: 3 | K85: 0 | L85: 1 | M85: 0 | N85: 2 | O85: 3 | P85: 0 | Q85: 0 | R85: 1 | S85: 0 | T85: 4
A86: =E9 -> Montferrand | B86: Visiteur | C86: =B9 -> Oyonnax | D86: Recoit | E86: =D9 -> 19 | F86: =C9 -> 30 | G86: =E2 -> 2013-08-24 | H86: =E10 -> 2 | I86: =B10 -> 3 | J86: 0 | K86: 3 | L86: 0 | M86: 1 | N86: 3 | O86: 2 | P86: 0 | Q86: 0 | R86: 0 | S86: 0 | T86: 0
A87: =B11 -> Perpignan | B87: Recoit | C87: =E11 -> StadeFrancais | D87: Visiteur | E87: =C11 -> 27 | F87: =D11 -> 28 | G87: =E2 -> 2013-08-24 | H87: =B12 -> 3 | I87: =E12 -> 1 | J87: 3 | K87: 1 | L87: 0 | M87: 3 | N87: 2 | O87: 4 | P87: 0 | Q87: 1 | R87: 1 | S87: 0 | T87: 1
A88: =E11 -> StadeFrancais | B88: Visiteur | C88: =B11 -> Perpignan | D88: Recoit | E88: =D11 -> 28 | F88: =C11 -> 27 | G88: =E2 -> 2013-08-24 | H88: =E12 -> 1 | I88: =B12 -> 3 | J88: 1 | K88: 3 | L88: 3 | M88: 0 | N88: 4 | O88: 2 | P88: 0 | Q88: 0 | R88: 2 | S88: 0 | T88: 4
A89: =B13 -> Toulon | B89: Recoit | C89: =E13 -> RacingMétro92 | D89: Visiteur | E89: =C13 -> 41 | F89: =D13 -> 14 | G89: =E2 -> 2013-08-24 | H89: =B14 -> 5 | I89: =E14 -> 1 | J89: 5 | K89: 0 | L89: 1 | M89: 0 | N89: 1 | O89: 3 | P89: 1 | Q89: 0 | R89: 2 | S89: 1 | T89: 5
A90: =E13 -> RacingMétro92 | B90: Visiteur | C90: =B13 -> Toulon | D90: Recoit | E90: =D13 -> 14 | F90: =C13 -> 41 | G90: =E2 -> 2013-08-24 | H90: =E14 -> 1 | I90: =B14 -> 5 | J90: 0 | K90: 5 | L90: 0 | M90: 1 | N90: 3 | O90: 1 | P90: 0 | Q90: 0 | R90: 0 | S90: 1 | T90: 0
A91: =B15 -> Toulouse | B91: Recoit | C91: =E15 -> Bayonne | D91: Visiteur | E91: =C15 -> 40 | F91: =D15 -> 3 | G91: =E2 -> 2013-08-24 | H91: =B16 -> 4 | I91: =E16 -> 0 | J91: 4 | K91: 0 | L91: 0 | M91: 0 | N91: 4 | O91: 1 | P91: 1 | Q91: 0 | R91: 1 | S91: 0 | T91: 5
A92: =E15 -> Bayonne | B92: Visiteur | C92: =B15 -> Toulouse | D92: Recoit | E92: =D15 -> 3 | F92: =C15 -> 40 | G92: =E2 -> 2013-08-24 | H92: =E16 -> 0 | I92: =B16 -> 4 | J92: 0 | K92: 4 | L92: 0 | M92: 0 | N92: 1 | O92: 4 | P92: 0 | Q92: 0 | R92: 0 | S92: 1 | T92: 0
I197: Général | AB197: Domicile | AU197: Extérieur
H198: Equipe | I198: Pts | J198: J. | K198: G | L198: N | M198: P | N198: Pr | O198: Ctr | P198: Diff | Q198: E p | R198: E c | S198: Tp | T198: Tc | U198: Dp | V198: Dc | W198: Pp | X198: Pc | Y198: B.O | Z198: B.D | AA198: Bon | AB198: Cr | AC198: Cj | AD198: Pts | AE198: J. | AF198: G | AG198: N | AH198: P | AI198: Pr | AJ198: Ctr | AK198: Diff | AL198: E p | AM198: E c | AN198: Tp | AO198: Tc | AP198: Dp | AQ198: Dc | AR198: Pp | AS198: Pc | AT198: B.O | AU198: B.D | AV198: Bon | AW198: Cr | AX198: Cj | AY198: Pts | AZ198: J. | BA198: G | BB198: N | BC198: P | BD198: Pr | BE198: Ctr | BF198: Diff | BG198: E p | BH198: E c | BI198: Tp | BJ198: Tc | BK198: Dp | BL198: Dc | BM198: Pp | BN198: Pc | BO198: B.O | BP198: B.D | BQ198: Bon | BR198: Cr | BS198: Cj
G199: 1 | H199: Bayonne | I199: 5 | J199: 2 | K199: 1 | L199: 0 | M199: 1 | N199: 42 | O199: 51 | P199: -9 | Q199: 4 | R199: 5 | S199: 2 | T199: 4 | U199: 0 | V199: 0 | W199: 6 | X199: 6 | Y199: 1 | Z199: 0 | AA199: 1 | AB199: 1 | AC199: 0 | AD199: 5 | AE199: 1 | AF199: 1 | AG199: 0 | AH199: 0 | AI199: 39 | AJ199: 11 | AK199: 28 | AL199: 4 | AM199: 1 | AN199: 2 | AO199: 0 | AP199: 0 | AQ199: 0 | AR199: 5 | AS199: 2 | AT199: 1 | AU199: 0 | AV199: 1 | AW199: 0 | AX199: 0 | AY199: 0 | AZ199: 1 | BA199: 0 | BB199: 0 | BC199: 1 | BD199: 3 | BE199: 40 | BF199: -37 | BG199: 0 | BH199: 4 | BI199: 0 | BJ199: 4 | BK199: 0 | BL199: 0 | BM199: 1 | BN199: 4 | BO199: 0 | BP199: 0 | BQ199: 0 | BR199: 1 | BS199: 0
G200: 2 | H200: Biarritz | I200: 5 | J200: 2 | K200: 1 | L200: 0 | M200: 1 | N200: 37 | O200: 34 | P200: 3 | Q200: 3 | R200: 1 | S200: 2 | T200: 1 | U200: 1 | V200: 0 | W200: 5 | X200: 9 | Y200: 0 | Z200: 1 | AA200: 1 | AB200: 0 | AC200: 1 | AD200: 5 | AE200: 2 | AF200: 1 | AG200: 0 | AH200: 1 | AI200: 37 | AJ200: 34 | AK200: 3 | AL200: 3 | AM200: 1 | AN200: 2 | AO200: 1 | AP200: 1 | AQ200: 0 | AR200: 5 | AS200: 9 | AT200: 0 | AU200: 1 | AV200: 1 | AW200: 0 | AX200: 1 | AY200: 0 | AZ200: 0 | BA200: 0 | BB200: 0 | BC200: 0 | BD200: 0 | BE200: 0 | BF200: 0 | BG200: 0 | BH200: 0 | BI200: 0 | BJ200: 0 | BK200: 0 | BL200: 0 | BM200: 0 | BN200: 0 | BO200: 0 | BP200: 0 | BQ200: 0 | BR200: 0 | BS200: 0
G201: 3 | H201: BordeauxBègles | I201: 4 | J201: 2 | K201: 1 | L201: 0 | M201: 1 | N201: 43 | O201: 50 | P201: -7 | Q201: 1 | R201: 2 | S201: 1 | T201: 2 | U201: 0 | V201: 0 | W201: 12 | X201: 12 | Y201: 0 | Z201: 0 | AA201: 0 | AB201: 0 | AC201: 2 | AD201: 4 | AE201: 1 | AF201: 1 | AG201: 0 | AH201: 0 | AI201: 31 | AJ201: 25 | AK201: 6 | AL201: 1 | AM201: 1 | AN201: 1 | AO201: 1 | AP201: 0 | AQ201: 0 | AR201: 8 | AS201: 6 | AT201: 0 | AU201: 0 | AV201: 0 | AW201: 0 | AX201: 0 | AY201: 0 | AZ201: 1 | BA201: 0 | BB201: 0 | BC201: 1 | BD201: 12 | BE201: 25 | BF201: -13 | BG201: 0 | BH201: 1 | BI201: 0 | BJ201: 1 | BK201: 0 | BL201: 0 | BM201: 4 | BN201: 6 | BO201: 0 | BP201: 0 | BQ201: 0 | BR201: 0 | BS201: 2
G202: 4 | H202: Brive | I202: 5 | J202: 2 | K202: 1 | L202: 0 | M202: 1 | N202: 39 | O202: 31 | P202: 8 | Q202: 2 | R202: 1 | S202: 1 | T202: 1 | U202: 1 | V202: 0 | W202: 8 | X202: 8 | Y202: 0 | Z202: 1 | AA202: 1 | AB202: 0 | AC202: 0 | AD202: 4 | AE202: 1 | AF202: 1 | AG202: 0 | AH202: 0 | AI202: 25 | AJ202: 12 | AK202: 13 | AL202: 1 | AM202: 0 | AN202: 1 | AO202: 0 | AP202: 0 | AQ202: 0 | AR202: 6 | AS202: 4 | AT202: 0 | AU202: 0 | AV202: 0 | AW202: 0 | AX202: 0 | AY202: 1 | AZ202: 1 | BA202: 0 | BB202: 0 | BC202: 1 | BD202: 14 | BE202: 19 | BF202: -5 | BG202: 1 | BH202: 1 | BI202: 0 | BJ202: 1 | BK202: 1 | BL202: 0 | BM202: 2 | BN202: 4 | BO202: 0 | BP202: 1 | BQ202: 1 | BR202: 0 | BS202: 0
G203: 5 | H203: Castres | I203: 6 | J203: 2 | K203: 1 | L203: 0 | M203: 1 | N203: 57 | O203: 32 | P203: 25 | Q203: 7 | R203: 2 | S203: 5 | T203: 2 | U203: 0 | V203: 1 | W203: 4 | X203: 5 | Y203: 1 | Z203: 1 | AA203: 2 | AB203: 1 | AC203: 3 | AD203: 5 | AE203: 1 | AF203: 1 | AG203: 0 | AH203: 0 | AI203: 34 | AJ203: 6 | AK203: 28 | AL203: 5 | AM203: 0 | AN203: 3 | AO203: 0 | AP203: 0 | AQ203: 0 | AR203: 1 | AS203: 2 | AT203: 1 | AU203: 0 | AV203: 1 | AW203: 1 | AX203: 1 | AY203: 1 | AZ203: 1 | BA203: 0 | BB203: 0 | BC203: 1 | BD203: 23 | BE203: 26 | BF203: -3 | BG203: 2 | BH203: 2 | BI203: 2 | BJ203: 2 | BK203: 0 | BL203: 1 | BM203: 3 | BN203: 3 | BO203: 0 | BP203: 1 | BQ203: 1 | BR203: 0 | BS203: 2
G204: 6 | H204: Montferrand | I204: 4 | J204: 2 | K204: 1 | L204: 0 | M204: 1 | N204: 41 | O204: 48 | P204: -7 | Q204: 3 | R204: 5 | S204: 1 | T204: 4 | U204: 0 | V204: 2 | W204: 8 | X204: 3 | Y204: 0 | Z204: 0 | AA204: 0 | AB204: 0 | AC204: 2 | AD204: 0 | AE204: 0 | AF204: 0 | AG204: 0 | AH204: 0 | AI204: 0 | AJ204: 0 | AK204: 0 | AL204: 0 | AM204: 0 | AN204: 0 | AO204: 0 | AP204: 0 | AQ204: 0 | AR204: 0 | AS204: 0 | AT204: 0 | AU204: 0 | AV204: 0 | AW204: 0 | AX204: 0 | AY204: 4 | AZ204: 2 | BA204: 1 | BB204: 0 | BC204: 1 | BD204: 41 | BE204: 48 | BF204: -7 | BG204: 3 | BH204: 5 | BI204: 1 | BJ204: 4 | BK204: 0 | BL204: 2 | BM204: 8 | BN204: 3 | BO204: 0 | BP204: 0 | BQ204: 0 | BR204: 0 | BS204: 2
G205: 7 | H205: Grenoble | I205: 4 | J205: 2 | K205: 1 | L205: 0 | M205: 1 | N205: 25 | O205: 50 | P205: -25 | Q205: 1 | R205: 6 | S205: 1 | T205: 4 | U205: 0 | V205: 0 | W205: 6 | X205: 4 | Y205: 0 | Z205: 0 | AA205: 0 | AB205: 0 | AC205: 2 | AD205: 4 | AE205: 1 | AF205: 1 | AG205: 0 | AH205: 0 | AI205: 19 | AJ205: 16 | AK205: 3 | AL205: 1 | AM205: 1 | AN205: 1 | AO205: 1 | AP205: 0 | AQ205: 0 | AR205: 4 | AS205: 3 | AT205: 0 | AU205: 0 | AV205: 0 | AW205: 0 | AX205: 0 | AY205: 0 | AZ205: 1 | BA205: 0 | BB205: 0 | BC205: 1 | BD205: 6 | BE205: 34 | BF205: -28 | BG205: 0 | BH205: 5 | BI205: 0 | BJ205: 3 | BK205: 0 | BL205: 0 | BM205: 2 | BN205: 1 | BO205: 0 | BP205: 0 | BQ205: 0 | BR205: 0 | BS205: 2
G206: 8 | H206: Montpellier | I206: 3 | J206: 2 | K206: 0 | L206: 1 | M206: 1 | N206: 34 | O206: 41 | P206: -7 | Q206: 1 | R206: 2 | S206: 1 | T206: 2 | U206: 1 | V206: 0 | W206: 8 | X206: 9 | Y206: 0 | Z206: 1 | AA206: 1 | AB206: 0 | AC206: 1 | AD206: 2 | AE206: 1 | AF206: 0 | AG206: 1 | AH206: 0 | AI206: 22 | AJ206: 22 | AK206: 0 | AL206: 1 | AM206: 1 | AN206: 1 | AO206: 1 | AP206: 1 | AQ206: 0 | AR206: 4 | AS206: 5 | AT206: 0 | AU206: 0 | AV206: 0 | AW206: 0 | AX206: 0 | AY206: 1 | AZ206: 1 | BA206: 0 | BB206: 0 | BC206: 1 | BD206: 12 | BE206: 19 | BF206: -7 | BG206: 0 | BH206: 1 | BI206: 0 | BJ206: 1 | BK206: 0 | BL206: 0 | BM206: 4 | BN206: 4 | BO206: 0 | BP206: 1 | BQ206: 1 | BR206: 0 | BS206: 1
G207: 9 | H207: Oyonnax | I207: 4 | J207: 2 | K207: 1 | L207: 0 | M207: 1 | N207: 41 | O207: 58 | P207: -17 | Q207: 4 | R207: 6 | S207: 3 | T207: 2 | U207: 1 | V207: 0 | W207: 4 | X207: 8 | Y207: 0 | Z207: 0 | AA207: 0 | AB207: 0 | AC207: 1 | AD207: 4 | AE207: 1 | AF207: 1 | AG207: 0 | AH207: 0 | AI207: 30 | AJ207: 19 | AK207: 11 | AL207: 3 | AM207: 2 | AN207: 3 | AO207: 0 | AP207: 1 | AQ207: 0 | AR207: 2 | AS207: 3 | AT207: 0 | AU207: 0 | AV207: 0 | AW207: 0 | AX207: 1 | AY207: 0 | AZ207: 1 | BA207: 0 | BB207: 0 | BC207: 1 | BD207: 11 | BE207: 39 | BF207: -28 | BG207: 1 | BH207: 4 | BI207: 0 | BJ207: 2 | BK207: 0 | BL207: 0 | BM207: 2 | BN207: 5 | BO207: 0 | BP207: 0 | BQ207: 0 | BR207: 0 | BS207: 0
G208: 10 | H208: Perpignan | I208: 5 | J208: 2 | K208: 1 | L208: 0 | M208: 1 | N208: 53 | O208: 51 | P208: 2 | Q208: 5 | R208: 3 | S208: 5 | T208: 3 | U208: 1 | V208: 3 | W208: 5 | X208: 7 | Y208: 0 | Z208: 1 | AA208: 1 | AB208: 0 | AC208: 1 | AD208: 5 | AE208: 2 | AF208: 1 | AG208: 0 | AH208: 1 | AI208: 53 | AJ208: 51 | AK208: 2 | AL208: 5 | AM208: 3 | AN208: 5 | AO208: 3 | AP208: 1 | AQ208: 3 | AR208: 5 | AS208: 7 | AT208: 0 | AU208: 1 | AV208: 1 | AW208: 0 | AX208: 1 | AY208: 0 | AZ208: 0 | BA208: 0 | BB208: 0 | BC208: 0 | BD208: 0 | BE208: 0 | BF208: 0 | BG208: 0 | BH208: 0 | BI208: 0 | BJ208: 0 | BK208: 0 | BL208: 0 | BM208: 0 | BN208: 0 | BO208: 0 | BP208: 0 | BQ208: 0 | BR208: 0 | BS208: 0
G209: 11 | H209: RacingMétro92 | I209: 4 | J209: 2 | K209: 1 | L209: 0 | M209: 1 | N209: 33 | O209: 55 | P209: -22 | Q209: 2 | R209: 6 | S209: 1 | T209: 5 | U209: 0 | V209: 2 | W209: 7 | X209: 3 | Y209: 0 | Z209: 0 | AA209: 0 | AB209: 1 | AC209: 0 | AD209: 4 | AE209: 1 | AF209: 1 | AG209: 0 | AH209: 0 | AI209: 19 | AJ209: 14 | AK209: 5 | AL209: 1 | AM209: 1 | AN209: 1 | AO209: 0 | AP209: 0 | AQ209: 1 | AR209: 4 | AS209: 2 | AT209: 0 | AU209: 0 | AV209: 0 | AW209: 0 | AX209: 0 | AY209: 0 | AZ209: 1 | BA209: 0 | BB209: 0 | BC209: 1 | BD209: 14 | BE209: 41 | BF209: -27 | BG209: 1 | BH209: 5 | BI209: 0 | BJ209: 5 | BK209: 0 | BL209: 1 | BM209: 3 | BN209: 1 | BO209: 0 | BP209: 0 | BQ209: 0 | BR209: 1 | BS209: 0
G210: 12 | H210: StadeFrancais | I210: 5 | J210: 2 | K210: 1 | L210: 0 | M210: 1 | N210: 44 | O210: 46 | P210: -2 | Q210: 2 | R210: 4 | S210: 2 | T210: 4 | U210: 3 | V210: 0 | W210: 7 | X210: 6 | Y210: 0 | Z210: 1 | AA210: 1 | AB210: 0 | AC210: 2 | AD210: 0 | AE210: 0 | AF210: 0 | AG210: 0 | AH210: 0 | AI210: 0 | AJ210: 0 | AK210: 0 | AL210: 0 | AM210: 0 | AN210: 0 | AO210: 0 | AP210: 0 | AQ210: 0 | AR210: 0 | AS210: 0 | AT210: 0 | AU210: 0 | AV210: 0 | AW210: 0 | AX210: 0 | AY210: 5 | AZ210: 2 | BA210: 1 | BB210: 0 | BC210: 1 | BD210: 44 | BE210: 46 | BF210: -2 | BG210: 2 | BH210: 4 | BI210: 2 | BJ210: 4 | BK210: 3 | BL210: 0 | BM210: 7 | BN210: 6 | BO210: 0 | BP210: 1 | BQ210: 1 | BR210: 0 | BS210: 2
G211: 13 | H211: Toulon | I211: 7 | J211: 2 | K211: 1 | L211: 1 | M211: 0 | N211: 63 | O211: 36 | P211: 27 | Q211: 6 | R211: 2 | S211: 6 | T211: 1 | U211: 1 | V211: 1 | W211: 6 | X211: 7 | Y211: 1 | Z211: 0 | AA211: 1 | AB211: 1 | AC211: 3 | AD211: 5 | AE211: 1 | AF211: 1 | AG211: 0 | AH211: 0 | AI211: 41 | AJ211: 14 | AK211: 27 | AL211: 5 | AM211: 1 | AN211: 5 | AO211: 0 | AP211: 1 | AQ211: 0 | AR211: 1 | AS211: 3 | AT211: 1 | AU211: 0 | AV211: 1 | AW211: 1 | AX211: 2 | AY211: 2 | AZ211: 1 | BA211: 0 | BB211: 1 | BC211: 0 | BD211: 22 | BE211: 22 | BF211: 0 | BG211: 1 | BH211: 1 | BI211: 1 | BJ211: 1 | BK211: 0 | BL211: 1 | BM211: 5 | BN211: 4 | BO211: 0 | BP211: 0 | BQ211: 0 | BR211: 0 | BS211: 1
G212: 14 | H212: Toulouse | I212: 6 | J212: 2 | K212: 1 | L212: 0 | M212: 1 | N212: 65 | O212: 34 | P212: 31 | Q212: 5 | R212: 1 | S212: 5 | T212: 1 | U212: 0 | V212: 0 | W212: 10 | X212: 9 | Y212: 1 | Z212: 1 | AA212: 2 | AB212: 0 | AC212: 2 | AD212: 5 | AE212: 1 | AF212: 1 | AG212: 0 | AH212: 0 | AI212: 40 | AJ212: 3 | AK212: 37 | AL212: 4 | AM212: 0 | AN212: 4 | AO212: 0 | AP212: 0 | AQ212: 0 | AR212: 4 | AS212: 1 | AT212: 1 | AU212: 0 | AV212: 1 | AW212: 0 | AX212: 1 | AY212: 1 | AZ212: 1 | BA212: 0 | BB212: 0 | BC212: 1 | BD212: 25 | BE212: 31 | BF212: -6 | BG212: 1 | BH212: 1 | BI212: 1 | BJ212: 1 | BK212: 0 | BL212: 0 | BM212: 6 | BN212: 8 | BO212: 0 | BP212: 1 | BQ212: 1 | BR212: 0 | BS212: 1
I214: Général | AB214: Domicile | AU214: Extérieur
H215: Equipe | I215: Pts | J215: J. | K215: G | L215: N | M215: P | N215: Pr | O215: Ctr | P215: Diff | Q215: E p | R215: E c | S215: Tp | T215: Tc | U215: Dp | V215: Dc | W215: Pp | X215: Pc | Y215: B.O | Z215: B.D | AA215: Bon | AB215: Cr | AC215: Cj | AD215: Pts | AE215: J. | AF215: G | AG215: N | AH215: P | AI215: Pr | AJ215: Ctr | AK215: Diff | AL215: E p | AM215: E c | AN215: Tp | AO215: Tc | AP215: Dp | AQ215: Dc | AR215: Pp | AS215: Pc | AT215: B.O | AU215: B.D | AV215: Bon | AW215: Cr | AX215: Cj | AY215: Pts | AZ215: J. | BA215: G | BB215: N | BC215: P | BD215: Pr | BE215: Ctr | BF215: Diff | BG215: E p | BH215: E c | BI215: Tp | BJ215: Tc | BK215: Dp | BL215: Dc | BM215: Pp | BN215: Pc | BO215: B.O | BP215: B.D | BQ215: Bon | BR215: Cr | BS215: Cj
G216: 1 | H216: Bayonne | I216: 0 | J216: 1 | K216: 0 | L216: 0 | M216: 1 | N216: 3 | O216: 40 | P216: -37 | Q216: 0 | R216: 4 | S216: 0 | T216: 4 | U216: 0 | V216: 0 | W216: 1 | X216: 4 | Y216: 0 | Z216: 0 | AA216: 0 | AB216: 1 | AC216: 0 | AD216: 0 | AE216: 0 | AF216: 0 | AG216: 0 | AH216: 0 | AI216: 0 | AJ216: 0 | AK216: 0 | AL216: 0 | AM216: 0 | AN216: 0 | AO216: 0 | AP216: 0 | AQ216: 0 | AR216: 0 | AS216: 0 | AT216: 0 | AU216: 0 | AV216: 0 | AW216: 0 | AX216: 0 | AY216: 0 | AZ216: 1 | BA216: 0 | BB216: 0 | BC216: 1 | BD216: 3 | BE216: 40 | BF216: -37 | BG216: 0 | BH216: 4 | BI216: 0 | BJ216: 4 | BK216: 0 | BL216: 0 | BM216: 1 | BN216: 4 | BO216: 0 | BP216: 0 | BQ216: 0 | BR216: 1 | BS216: 0
G217: 2 | H217: Biarritz | I217: 4 | J217: 1 | K217: 1 | L217: 0 | M217: 0 | N217: 19 | O217: 12 | P217: 7 | Q217: 1 | R217: 0 | S217: 1 | T217: 0 | U217: 0 | V217: 0 | W217: 4 | X217: 4 | Y217: 0 | Z217: 0 | AA217: 0 | AB217: 0 | AC217: 0 | AD217: 4 | AE217: 1 | AF217: 1 | AG217: 0 | AH217: 0 | AI217: 19 | AJ217: 12 | AK217: 7 | AL217: 1 | AM217: 0 | AN217: 1 | AO217: 0 | AP217: 0 | AQ217: 0 | AR217: 4 | AS217: 4 | AT217: 0 | AU217: 0 | AV217: 0 | AW217: 0 | AX217: 0 | AY217: 0 | AZ217: 0 | BA217: 0 | BB217: 0 | BC217: 0 | BD217: 0 | BE217: 0 | BF217: 0 | BG217: 0 | BH217: 0 | BI217: 0 | BJ217: 0 | BK217: 0 | BL217: 0 | BM217: 0 | BN217: 0 | BO217: 0 | BP217: 0 | BQ217: 0 | BR217: 0 | BS217: 0
G218: 3 | H218: BordeauxBègles | I218: 0 | J218: 1 | K218: 0 | L218: 0 | M218: 1 | N218: 12 | O218: 25 | P218: -13 | Q218: 0 | R218: 1 | S218: 0 | T218: 1 | U218: 0 | V218: 0 | W218: 4 | X218: 6 | Y218: 0 | Z218: 0 | AA218: 0 | AB218: 0 | AC218: 2 | AD218: 0 | AE218: 0 | AF218: 0 | AG218: 0 | AH218: 0 | AI218: 0 | AJ218: 0 | AK218: 0 | AL218: 0 | AM218: 0 | AN218: 0 | AO218: 0 | AP218: 0 | AQ218: 0 | AR218: 0 | AS218: 0 | AT218: 0 | AU218: 0 | AV218: 0 | AW218: 0 | AX218: 0 | AY218: 0 | AZ218: 1 | BA218: 0 | BB218: 0 | BC218: 1 | BD218: 12 | BE218: 25 | BF218: -13 | BG218: 0 | BH218: 1 | BI218: 0 | BJ218: 1 | BK218: 0 | BL218: 0 | BM218: 4 | BN218: 6 | BO218: 0 | BP218: 0 | BQ218: 0 | BR218: 0 | BS218: 2
G219: 4 | H219: Brive | I219: 4 | J219: 1 | K219: 1 | L219: 0 | M219: 0 | N219: 25 | O219: 12 | P219: 13 | Q219: 1 | R219: 0 | S219: 1 | T219: 0 | U219: 0 | V219: 0 | W219: 6 | X219: 4 | Y219: 0 | Z219: 0 | AA219: 0 | AB219: 0 | AC219: 0 | AD219: 4 | AE219: 1 | AF219: 1 | AG219: 0 | AH219: 0 | AI219: 25 | AJ219: 12 | AK219: 13 | AL219: 1 | AM219: 0 | AN219: 1 | AO219: 0 | AP219: 0 | AQ219: 0 | AR219: 6 | AS219: 4 | AT219: 0 | AU219: 0 | AV219: 0 | AW219: 0 | AX219: 0 | AY219: 0 | AZ219: 0 | BA219: 0 | BB219: 0 | BC219: 0 | BD219: 0 | BE219: 0 | BF219: 0 | BG219: 0 | BH219: 0 | BI219: 0 | BJ219: 0 | BK219: 0 | BL219: 0 | BM219: 0 | BN219: 0 | BO219: 0 | BP219: 0 | BQ219: 0 | BR219: 0 | BS219: 0
G220: 5 | H220: Castres | I220: 5 | J220: 1 | K220: 1 | L220: 0 | M220: 0 | N220: 34 | O220: 6 | P220: 28 | Q220: 5 | R220: 0 | S220: 3 | T220: 0 | U220: 0 | V220: 0 | W220: 1 | X220: 2 | Y220: 1 | Z220: 0 | AA220: 1 | AB220: 1 | AC220: 1 | AD220: 5 | AE220: 1 | AF220: 1 | AG220: 0 | AH220: 0 | AI220: 34 | AJ220: 6 | AK220: 28 | AL220: 5 | AM220: 0 | AN220: 3 | AO220: 0 | AP220: 0 | AQ220: 0 | AR220: 1 | AS220: 2 | AT220: 1 | AU220: 0 | AV220: 1 | AW220: 1 | AX220: 1 | AY220: 0 | AZ220: 0 | BA220: 0 | BB220: 0 | BC220: 0 | BD220: 0 | BE220: 0 | BF220: 0 | BG220: 0 | BH220: 0 | BI220: 0 | BJ220: 0 | BK220: 0 | BL220: 0 | BM220: 0 | BN220: 0 | BO220: 0 | BP220: 0 | BQ220: 0 | BR220: 0 | BS220: 0
G221: 6 | H221: Montferrand | I221: 0 | J221: 1 | K221: 0 | L221: 0 | M221: 1 | N221: 19 | O221: 30 | P221: -11 | Q221: 2 | R221: 3 | S221: 0 | T221: 3 | U221: 0 | V221: 1 | W221: 3 | X221: 2 | Y221: 0 | Z221: 0 | AA221: 0 | AB221: 0 | AC221: 0 | AD221: 0 | AE221: 0 | AF221: 0 | AG221: 0 | AH221: 0 | AI221: 0 | AJ221: 0 | AK221: 0 | AL221: 0 | AM221: 0 | AN221: 0 | AO221: 0 | AP221: 0 | AQ221: 0 | AR221: 0 | AS221: 0 | AT221: 0 | AU221: 0 | AV221: 0 | AW221: 0 | AX221: 0 | AY221: 0 | AZ221: 1 | BA221: 0 | BB221: 0 | BC221: 1 | BD221: 19 | BE221: 30 | BF221: -11 | BG221: 2 | BH221: 3 | BI221: 0 | BJ221: 3 | BK221: 0 | BL221: 1 | BM221: 3 | BN221: 2 | BO221: 0 | BP221: 0 | BQ221: 0 | BR221: 0 | BS221: 0
G222: 7 | H222: Grenoble | I222: 0 | J222: 1 | K222: 0 | L222: 0 | M222: 1 | N222: 6 | O222: 34 | P222: -28 | Q222: 0 | R222: 5 | S222: 0 | T222: 3 | U222: 0 | V222: 0 | W222: 2 | X222: 1 | Y222: 0 | Z222: 0 | AA222: 0 | AB222: 0 | AC222: 2 | AD222: 0 | AE222: 0 | AF222: 0 | AG222: 0 | AH222: 0 | AI222: 0 | AJ222: 0 | AK222: 0 | AL222: 0 | AM222: 0 | AN222: 0 | AO222: 0 | AP222: 0 | AQ222: 0 | AR222: 0 | AS222: 0 | AT222: 0 | AU222: 0 | AV222: 0 | AW222: 0 | AX222: 0 | AY222: 0 | AZ222: 1 | BA222: 0 | BB222: 0 | BC222: 1 | BD222: 6 | BE222: 34 | BF222: -28 | BG222: 0 | BH222: 5 | BI222: 0 | BJ222: 3 | BK222: 0 | BL222: 0 | BM222: 2 | BN222: 1 | BO222: 0 | BP222: 0 | BQ222: 0 | BR222: 0 | BS222: 2
G223: 8 | H223: Montpellier | I223: 1 | J223: 1 | K223: 0 | L223: 0 | M223: 1 | N223: 12 | O223: 19 | P223: -7 | Q223: 0 | R223: 1 | S223: 0 | T223: 1 | U223: 0 | V223: 0 | W223: 4 | X223: 4 | Y223: 0 | Z223: 1 | AA223: 1 | AB223: 0 | AC223: 1 | AD223: 0 | AE223: 0 | AF223: 0 | AG223: 0 | AH223: 0 | AI223: 0 | AJ223: 0 | AK223: 0 | AL223: 0 | AM223: 0 | AN223: 0 | AO223: 0 | AP223: 0 | AQ223: 0 | AR223: 0 | AS223: 0 | AT223: 0 | AU223: 0 | AV223: 0 | AW223: 0 | AX223: 0 | AY223: 1 | AZ223: 1 | BA223: 0 | BB223: 0 | BC223: 1 | BD223: 12 | BE223: 19 | BF223: -7 | BG223: 0 | BH223: 1 | BI223: 0 | BJ223: 1 | BK223: 0 | BL223: 0 | BM223: 4 | BN223: 4 | BO223: 0 | BP223: 1 | BQ223: 1 | BR223: 0 | BS223: 1
G224: 9 | H224: Oyonnax | I224: 4 | J224: 1 | K224: 1 | L224: 0 | M224: 0 | N224: 30 | O224: 19 | P224: 11 | Q224: 3 | R224: 2 | S224: 3 | T224: 0 | U224: 1 | V224: 0 | W224: 2 | X224: 3 | Y224: 0 | Z224: 0 | AA224: 0 | AB224: 0 | AC224: 1 | AD224: 4 | AE224: 1 | AF224: 1 | AG224: 0 | AH224: 0 | AI224: 30 | AJ224: 19 | AK224: 11 | AL224: 3 | AM224: 2 | AN224: 3 | AO224: 0 | AP224: 1 | AQ224: 0 | AR224: 2 | AS224: 3 | AT224: 0 | AU224: 0 | AV224: 0 | AW224: 0 | AX224: 1 | AY224: 0 | AZ224: 0 | BA224: 0 | BB224: 0 | BC224: 0 | BD224: 0 | BE224: 0 | BF224: 0 | BG224: 0 | BH224: 0 | BI224: 0 | BJ224: 0 | BK224: 0 | BL224: 0 | BM224: 0 | BN224: 0 | BO224: 0 | BP224: 0 | BQ224: 0 | BR224: 0 | BS224: 0
G225: 10 | H225: Perpignan | I225: 1 | J225: 1 | K225: 0 | L225: 0 | M225: 1 | N225: 27 | O225: 28 | P225: -1 | Q225: 3 | R225: 1 | S225: 3 | T225: 1 | U225: 0 | V225: 3 | W225: 2 | X225: 4 | Y225: 0 | Z225: 1 | AA225: 1 | AB225: 0 | AC225: 1 | AD225: 1 | AE225: 1 | AF225: 0 | AG225: 0 | AH225: 1 | AI225: 27 | AJ225: 28 | AK225: -1 | AL225: 3 | AM225: 1 | AN225: 3 | AO225: 1 | AP225: 0 | AQ225: 3 | AR225: 2 | AS225: 4 | AT225: 0 | AU225: 1 | AV225: 1 | AW225: 0 | AX225: 1 | AY225: 0 | AZ225: 0 | BA225: 0 | BB225: 0 | BC225: 0 | BD225: 0 | BE225: 0 | BF225: 0 | BG225: 0 | BH225: 0 | BI225: 0 | BJ225: 0 | BK225: 0 | BL225: 0 | BM225: 0 | BN225: 0 | BO225: 0 | BP225: 0 | BQ225: 0 | BR225: 0 | BS225: 0
G226: 11 | H226: RacingMétro92 | I226: 0 | J226: 1 | K226: 0 | L226: 0 | M226: 1 | N226: 14 | O226: 41 | P226: -27 | Q226: 1 | R226: 5 | S226: 0 | T226: 5 | U226: 0 | V226: 1 | W226: 3 | X226: 1 | Y226: 0 | Z226: 0 | AA226: 0 | AB226: 1 | AC226: 0 | AD226: 0 | AE226: 0 | AF226: 0 | AG226: 0 | AH226: 0 | AI226: 0 | AJ226: 0 | AK226: 0 | AL226: 0 | AM226: 0 | AN226: 0 | AO226: 0 | AP226: 0 | AQ226: 0 | AR226: 0 | AS226: 0 | AT226: 0 | AU226: 0 | AV226: 0 | AW226: 0 | AX226: 0 | AY226: 0 | AZ226: 1 | BA226: 0 | BB226: 0 | BC226: 1 | BD226: 14 | BE226: 41 | BF226: -27 | BG226: 1 | BH226: 5 | BI226: 0 | BJ226: 5 | BK226: 0 | BL226: 1 | BM226: 3 | BN226: 1 | BO226: 0 | BP226: 0 | BQ226: 0 | BR226: 1 | BS226: 0
G227: 12 | H227: StadeFrancais | I227: 4 | J227: 1 | K227: 1 | L227: 0 | M227: 0 | N227: 28 | O227: 27 | P227: 1 | Q227: 1 | R227: 3 | S227: 1 | T227: 3 | U227: 3 | V227: 0 | W227: 4 | X227: 2 | Y227: 0 | Z227: 0 | AA227: 0 | AB227: 0 | AC227: 2 | AD227: 0 | AE227: 0 | AF227: 0 | AG227: 0 | AH227: 0 | AI227: 0 | AJ227: 0 | AK227: 0 | AL227: 0 | AM227: 0 | AN227: 0 | AO227: 0 | AP227: 0 | AQ227: 0 | AR227: 0 | AS227: 0 | AT227: 0 | AU227: 0 | AV227: 0 | AW227: 0 | AX227: 0 | AY227: 4 | AZ227: 1 | BA227: 1 | BB227: 0 | BC227: 0 | BD227: 28 | BE227: 27 | BF227: 1 | BG227: 1 | BH227: 3 | BI227: 1 | BJ227: 3 | BK227: 3 | BL227: 0 | BM227: 4 | BN227: 2 | BO227: 0 | BP227: 0 | BQ227: 0 | BR227: 0 | BS227: 2
G228: 13 | H228: Toulon | I228: 5 | J228: 1 | K228: 1 | L228: 0 | M228: 0 | N228: 41 | O228: 14 | P228: 27 | Q228: 5 | R228: 1 | S228: 5 | T228: 0 | U228: 1 | V228: 0 | W228: 1 | X228: 3 | Y228: 1 | Z228: 0 | AA228: 1 | AB228: 1 | AC228: 2 | AD228: 5 | AE228: 1 | AF228: 1 | AG228: 0 | AH228: 0 | AI228: 41 | AJ228: 14 | AK228: 27 | AL228: 5 | AM228: 1 | AN228: 5 | AO228: 0 | AP228: 1 | AQ228: 0 | AR228: 1 | AS228: 3 | AT228: 1 | AU228: 0 | AV228: 1 | AW228: 1 | AX228: 2 | AY228: 0 | AZ228: 0 | BA228: 0 | BB228: 0 | BC228: 0 | BD228: 0 | BE228: 0 | BF228: 0 | BG228: 0 | BH228: 0 | BI228: 0 | BJ228: 0 | BK228: 0 | BL228: 0 | BM228: 0 | BN228: 0 | BO228: 0 | BP228: 0 | BQ228: 0 | BR228: 0 | BS228: 0
G229: 14 | H229: Toulouse | I229: 5 | J229: 1 | K229: 1 | L229: 0 | M229: 0 | N229: 40 | O229: 3 | P229: 37 | Q229: 4 | R229: 0 | S229: 4 | T229: 0 | U229: 0 | V229: 0 | W229: 4 | X229: 1 | Y229: 1 | Z229: 0 | AA229: 1 | AB229: 0 | AC229: 1 | AD229: 5 | AE229: 1 | AF229: 1 | AG229: 0 | AH229: 0 | AI229: 40 | AJ229: 3 | AK229: 37 | AL229: 4 | AM229: 0 | AN229: 4 | AO229: 0 | AP229: 0 | AQ229: 0 | AR229: 4 | AS229: 1 | AT229: 1 | AU229: 0 | AV229: 1 | AW229: 0 | AX229: 1 | AY229: 0 | AZ229: 0 | BA229: 0 | BB229: 0 | BC229: 0 | BD229: 0 | BE229: 0 | BF229: 0 | BG229: 0 | BH229: 0 | BI229: 0 | BJ229: 0 | BK229: 0 | BL229: 0 | BM229: 0 | BN229: 0 | BO229: 0 | BP229: 0 | BQ229: 0 | BR229: 0 | BS229: 0

Sheet 3
A1: õ | B1: =IF(C2=1,C2&"ère Journée (",C2&"ème Journée (")&TEXT(E2,"j mmmm aaaa")&")" -> 3ème Journée (31 août 2013) | G1: Classement : | BO1: 1ère Mi-Temps | BP1: =SUMIF(BQ5:BQ45,"<=40",BR5:BR45) -> 13 | BQ1: =SUMIF(BY5:BY45,"<=40",BZ5:BZ45) -> 9 | BS1: E | BT1: P | BU1: D | BV1: T | BW1: 2ème Mi-Temps | BX1: =SUMIF(BQ5:BQ45,">40",BR5:BR45) -> 18 | BY1: =SUMIF(BY5:BY45,">40",BZ5:BZ45) -> 11 | CA1: E | CB1: P | CC1: D | CD1: T | CF1: 1ère Mi-Temps | CG1: =SUMIF(CH5:CH45,"<=40",CI5:CI45) -> 12 | CH1: =SUMIF(CP5:CP45,"<=40",CQ5:CQ45) -> 9 | CJ1: E | CK1: P | CL1: D | CM1: T | CN1: 2ème Mi-Temps | CO1: =SUMIF(CH5:CH45,">40",CI5:CI45) -> 9 | CP1: =SUMIF(CP5:CP45,">40",CQ5:CQ45) -> 11 | CR1: E | CS1: P | CT1: D | CU1: T | CW1: 1ère Mi-Temps | CX1: =SUMIF(CY5:CY45,"<=40",CZ5:CZ45) -> 13 | CY1: =SUMIF(DG5:DG45,"<=40",DH5:DH45) -> 10 | DA1: E | DB1: P | DC1: D | DD1: T | DE1: 2ème Mi-Temps | DF1: =SUMIF(CY5:CY45,">40",CZ5:CZ45) -> 25 | DG1: =SUMIF(DG5:DG45,">40",DH5:DH45) -> 9 | DI1: E | DJ1: P | DK1: D | DL1: T | DN1: 1ère Mi-Temps | DO1: =SUMIF(DP5:DP45,"<=40",DQ5:DQ45) -> 15 | DP1: =SUMIF(DX5:DX45,"<=40",DY5:DY45) -> 12 | DR1: E | DS1: P | DT1: D | DU1: T | DV1: 2ème Mi-Temps | DW1: =SUMIF(DP5:DP45,">40",DQ5:DQ45) -> 13 | DX1: =SUMIF(DX5:DX45,">40",DY5:DY45) -> 14 | DZ1: E | EA1: P | EB1: D | EC1: T | EE1: 1ère Mi-Temps | EF1: =SUMIF(EG5:EG45,"<=40",EH5:EH45) -> 12 | EG1: =SUMIF(EO5:EO45,"<=40",EP5:EP45) -> 3 | EI1: E | EJ1: P | EK1: D | EL1: T | EM1: 2ème Mi-Temps | EN1: =SUMIF(EG5:EG45,">40",EH5:EH45) -> 21 | EO1: =SUMIF(EO5:EO45,">40",EP5:EP45) -> 21 | EQ1: E | ER1: P | ES1: D | ET1: T | EV1: 1ère Mi-Temps | EW1: =SUMIF(EX5:EX45,"<=40",EY5:EY45) -> 16 | EX1: =SUMIF(FF5:FF45,"<=40",FG5:FG45) -> 3 | EZ1: E | FA1: P | FB1: D | FC1: T | FD1: 2ème Mi-Temps | FE1: =SUMIF(EX5:EX45,">40",EY5:EY45) -> 22 | FF1: =SUMIF(FF5:FF45,">40",FG5:FG45) -> 0 | FH1: E | FI1: P | FJ1: D | FK1: T | FM1: 1ère Mi-Temps | FN1: =SUMIF(FO5:FO45,"<=40",FP5:FP45) -> 6 | FO1: =SUMIF(FW5:FW45,"<=40",FX5:FX45) -> 9 | FQ1: E | FR1: P | FS1: D | FT1: T | FU1: 2ème Mi-Temps | FV1: =SUMIF(FO5:FO45,">40",FP5:FP45) -> 16 | FW1: =SUMIF(FW5:FW45,">40",FX5:FX45) -> 0 | FY1: E | FZ1: P | GA1: D | GB1: T
B2: Journée | C2: 3 | E2: 2013-08-31 | I2: Classement Général | BN2: =HYPERLINK(MID(CELL("filename",A1),FIND("[",CELL("filename",A1)),FIND("]", CELL("filename",A1))-FIND("[",CELL("filename",A1))+1)&"'"&MID(CELL("filename",A1),FIND("]",CELL("filename",A1))+1,99)&"'!a1","ç") -> ç | BO2: =B3 -> Bayonne | BQ2: =SUM(BR5:BR45) -> 31 | BS2: =SUM(BS5:BS45) -> 3 | BT2: =SUM(BT5:BT45) -> 4 | BU2: =SUM(BU5:BU45) -> 0 | BV2: =SUM(BV5:BV45) -> 2 | BW2: =E3 -> Perpignan | BY2: =SUM(BZ5:BZ45) -> 20 | CA2: =SUM(CA5:CA45) -> 1 | CB2: =SUM(CB5:CB45) -> 4 | CC2: =SUM(CC5:CC45) -> 1 | CD2: =SUM(CD5:CD45) -> 0 | CE2: =HYPERLINK(MID(CELL("filename",R1),FIND("[",CELL("filename",R1)),FIND("]", CELL("filename",R1))-FIND("[",CELL("filename",R1))+1)&"'"&MID(CELL("filename",R1),FIND("]",CELL("filename",R1))+1,99)&"'!a1","ç") -> ç | CF2: =B5 -> BordeauxBègles | CH2: =SUM(CI5:CI45) -> 21 | CJ2: =SUM(CJ5:CJ45) -> 0 | CK2: =SUM(CK5:CK45) -> 6 | CL2: =SUM(CL5:CL45) -> 1 | CM2: =SUM(CM5:CM45) -> 0 | CN2: =E5 -> Castres | CP2: =SUM(CQ5:CQ45) -> 20 | CR2: =SUM(CR5:CR45) -> 1 | CS2: =SUM(CS5:CS45) -> 5 | CT2: =SUM(CT5:CT45) -> 0 | CU2: =SUM(CU5:CU45) -> 0 | CV2: =HYPERLINK(MID(CELL("filename",AU1),FIND("[",CELL("filename",AU1)),FIND("]", CELL("filename",AU1))-FIND("[",CELL("filename",AU1))+1)&"'"&MID(CELL("filename",AU1),FIND("]",CELL("filename",AU1))+1,99)&"'!a1","ç") -> ç | CW2: =B7 -> Montferrand | CY2: =SUM(CZ5:CZ45) -> 38 | DA2: =SUM(DA5:DA45) -> 4 | DB2: =SUM(DB5:DB45) -> 3 | DC2: =SUM(DC5:DC45) -> 1 | DD2: =SUM(DD5:DD45) -> 3 | DE2: =E7 -> Toulouse | DG2: =SUM(DH5:DH45) -> 19 | DI2: =SUM(DI5:DI45) -> 1 | DJ2: =SUM(DJ5:DJ45) -> 4 | DK2: =SUM(DK5:DK45) -> 0 | DL2: =SUM(DL5:DL45) -> 1 | DM2: =HYPERLINK(MID(CELL("filename",BR1),FIND("[",CELL("filename",BR1)),FIND("]", CELL("filename",BR1))-FIND("[",CELL("filename",BR1))+1)&"'"&MID(CELL("filename",BR1),FIND("]",CELL("filename",BR1))+1,99)&"'!a1","ç") -> ç | DN2: =B9 -> Grenoble | DP2: =SUM(DQ5:DQ45) -> 28 | DR2: =SUM(DR5:DR45) -> 1 | DS2: =SUM(DS5:DS45) -> 7 | DT2: =SUM(DT5:DT45) -> 0 | DU2: =SUM(DU5:DU45) -> 1 | DV2: =E9 -> Toulon | DX2: =SUM(DY5:DY45) -> 26 | DZ2: =SUM(DZ5:DZ45) -> 1 | EA2: =SUM(EA5:EA45) -> 7 | EB2: =SUM(EB5:EB45) -> 0 | EC2: =SUM(EC5:EC45) -> 0 | ED2: =HYPERLINK(MID(CELL("filename",CI1),FIND("[",CELL("filename",CI1)),FIND("]", CELL("filename",CI1))-FIND("[",CELL("filename",CI1))+1)&"'"&MID(CELL("filename",CI1),FIND("]",CELL("filename",CI1))+1,99)&"'!a1","ç") -> ç | EE2: =B11 -> Montpellier | EG2: =SUM(EH5:EH45) -> 33 | EI2: =SUM(EI5:EI45) -> 3 | EJ2: =SUM(EJ5:EJ45) -> 3 | EK2: =SUM(EK5:EK45) -> 1 | EL2: =SUM(EL5:EL45) -> 3 | EM2: =E11 -> Brive | EO2: =SUM(EP5:EP45) -> 24 | EQ2: =SUM(EQ5:EQ45) -> 3 | ER2: =SUM(ER5:ER45) -> 1 | ES2: =SUM(ES5:ES45) -> 0 | ET2: =SUM(ET5:ET45) -> 3 | EU2: =HYPERLINK(MID(CELL("filename",CZ1),FIND("[",CELL("filename",CZ1)),FIND("]", CELL("filename",CZ1))-FIND("[",CELL("filename",CZ1))+1)&"'"&MID(CELL("filename",CZ1),FIND("]",CELL("filename",CZ1))+1,99)&"'!a1","ç") -> ç | EV2: =B13 -> StadeFrancais | EX2: =SUM(EY5:EY45) -> 38 | EZ2: =SUM(EZ5:EZ45) -> 4 | FA2: =SUM(FA5:FA45) -> 3 | FB2: =SUM(FB5:FB45) -> 1 | FC2: =SUM(FC5:FC45) -> 3 | FD2: =E13 -> Biarritz | FF2: =SUM(FG5:FG45) -> 3 | FH2: =SUM(FH5:FH45) -> 0 | FI2: =SUM(FI5:FI45) -> 1 | FJ2: =SUM(FJ5:FJ45) -> 0 | FK2: =SUM(FK5:FK45) -> 0 | FL2: =HYPERLINK(MID(CELL("filename",DQ1),FIND("[",CELL("filename",DQ1)),FIND("]", CELL("filename",DQ1))-FIND("[",CELL("filename",DQ1))+1)&"'"&MID(CELL("filename",DQ1),FIND("]",CELL("filename",DQ1))+1,99)&"'!a1","ç") -> ç | FM2: =B15 -> RacingMétro92 | FO2: =SUM(FP5:FP45) -> 22 | FQ2: =SUM(FQ5:FQ45) -> 1 | FR2: =SUM(FR5:FR45) -> 5 | FS2: =SUM(FS5:FS45) -> 0 | FT2: =SUM(FT5:FT45) -> 1 | FU2: =E15 -> Oyonnax | FW2: =SUM(FX5:FX30) -> 9 | FY2: =SUM(FY5:FY45) -> 0 | FZ2: =SUM(FZ5:FZ45) -> 3 | GA2: =SUM(GA5:GA45) -> 0 | GB2: =SUM(GB5:GB45) -> 0
A3: =HYPERLINK(MID(CELL("filename",A1),FIND("[",CELL("filename",A1)),FIND("]", CELL("filename",A1))-FIND("[",CELL("filename",A1))+1)&"'"&MID(CELL("filename",A1),FIND("]",CELL("filename",A1))+1,99)&"'!ch1","Détail") -> Détail | B3: Bayonne | C3: =BQ2 -> 31 | D3: =BY2 -> 20 | E3: Perpignan
B4: =BS2 -> 3 | E4: =CA2 -> 1 | I4: Pts | J4: J. | K4: G | L4: N | M4: P | N4: Pr | O4: Ctr | P4: Diff | Q4: E p | R4: E c | S4: Tp | T4: Tc | U4: Dp | V4: Dc | W4: Pp | X4: Pc | Y4: B.O | Z4: B.D | AA4: Bon | AB4: Cr | AC4: Cj | BO4: Joueur | BP4: Action | BQ4: " | BW4: Joueur | BX4: Action | BY4: " | CF4: Joueur | CG4: Action | CH4: " | CN4: Joueur | CO4: Action | CP4: " | CW4: Joueur | CX4: Action | CY4: " | DE4: Joueur | DF4: Action | DG4: " | DN4: Joueur | DO4: Action | DP4: " | DV4: Joueur | DW4: Action | DX4: " | EE4: Joueur | EF4: Action | EG4: " | EM4: Joueur | EN4: Action | EO4: " | EV4: Joueur | EW4: Action | EX4: " | FD4: Joueur | FE4: Action | FF4: " | FM4: Joueur | FN4: Action | FO4: " | FU4: Joueur | FV4: Action | FW4: "
A5: =HYPERLINK(MID(CELL("filename",A3),FIND("[",CELL("filename",A3)),FIND("]", CELL("filename",A3))-FIND("[",CELL("filename",A3))+1)&"'"&MID(CELL("filename",A3),FIND("]",CELL("filename",A3))+1,99)&"'!cw1","Détail") -> Détail | B5: BordeauxBègles | C5: =CH2 -> 21 | D5: =CP2 -> 20 | E5: Castres | G5: 1 | H5: Castres | I5: 7 | J5: 3 | K5: 1 | L5: 0 | M5: 2 | N5: 77 | O5: 53 | P5: 24 | Q5: 8 | R5: 2 | S5: 5 | T5: 2 | U5: 0 | V5: 2 | W5: 9 | X5: 11 | Y5: 1 | Z5: 2 | AA5: 3 | AB5: 1 | AC5: 3 | BO5: LOVOBALAVU Gabiriele | BP5: Essai | BQ5: 5 | BR5: =IF(BP5<>"",VLOOKUP(BP5,ActionPts,2,),"") -> 5 | BS5: =IF(OR(BP5="Essai",BP5="Essai de Pénalité"),1,0) -> 1 | BT5: =IF(BP5="Pénalité",1,0) -> 0 | BU5: =IF(BP5="Drop",1,0) -> 0 | BV5: =IF(BP5="Transformation",1,0) -> 0 | BW5: LOPEZ Camille | BX5: Drop | BY5: 2 | BZ5: =IF(BX5<>"",VLOOKUP(BX5,ActionPts,2,),"") -> 3 | CA5: =IF(OR(BX5="Essai",BX5="Essai de Pénalité"),1,0) -> 0 | CB5: =IF(BX5="Pénalité",1,0) -> 0 | CC5: =IF(BX5="Drop",1,0) -> 1 | CD5: =IF(BX5="Transformation",1,0) -> 0 | CF5: BERNARD Pierre | CG5: Pénalité | CH5: 12 | CI5: =IF(CG5<>"",VLOOKUP(CG5,ActionPts,2,),"") -> 3 | CJ5: =IF(OR(CG5="Essai",CG5="Essai de Pénalité"),1,0) -> 0 | CK5: =IF(CG5="Pénalité",1,0) -> 1 | CL5: =IF(CG5="Drop",1,0) -> 0 | CM5: =IF(CG5="Transformation",1,0) -> 0 | CN5: PALIS Geoffrey | CO5: Pénalité | CP5: 9 | CQ5: =IF(CO5<>"",VLOOKUP(CO5,ActionPts,2,),"") -> 3 | CR5: =IF(OR(CO5="Essai",CO5="Essai de Pénalité"),1,0) -> 0 | CS5: =IF(CO5="Pénalité",1,0) -> 1 | CT5: =IF(CO5="Drop",1,0) -> 0 | CU5: =IF(CO5="Transformation",1,0) -> 0 | CW5: JAMES Brock | CX5: Pénalité | CY5: 16 | CZ5: =IF(CX5<>"",VLOOKUP(CX5,ActionPts,2,),"") -> 3 | DA5: =IF(OR(CX5="Essai",CX5="Essai de Pénalité"),1,0) -> 0 | DB5: =IF(CX5="Pénalité",1,0) -> 1 | DC5: =IF(CX5="Drop",1,0) -> 0 | DD5: =IF(CX5="Transformation",1,0) -> 0 | DE5: BEAUXIS Lionel | DF5: Pénalité | DG5: 18 | DH5: =IF(DF5<>"",VLOOKUP(DF5,ActionPts,2,),"") -> 3 | DI5: =IF(OR(DF5="Essai",DF5="Essai de Pénalité"),1,0) -> 0 | DJ5: =IF(DF5="Pénalité",1,0) -> 1 | DK5: =IF(DF5="Drop",1,0) -> 0 | DL5: =IF(DF5="Transformation",1,0) -> 0 | DN5: COURRENT Valentin | DO5: Pénalité | DP5: 7 | DQ5: =IF(DO5<>"",VLOOKUP(DO5,ActionPts,2,),"") -> 3 | DR5: =IF(OR(DO5="Essai",DO5="Essai de Pénalité"),1,0) -> 0 | DS5: =IF(DO5="Pénalité",1,0) -> 1 | DT5: =IF(DO5="Drop",1,0) -> 0 | DU5: =IF(DO5="Transformation",1,0) -> 0 | DV5: WILKINSON Jonny | DW5: Pénalité | DX5: 10 | DY5: =IF(DW5<>"",VLOOKUP(DW5,ActionPts,2,),"") -> 3 | DZ5: =IF(OR(DW5="Essai",DW5="Essai de Pénalité"),1,0) -> 0 | EA5: =IF(DW5="Pénalité",1,0) -> 1 | EB5: =IF(DW5="Drop",1,0) -> 0 | EC5: =IF(DW5="Transformation",1,0) -> 0 | EE5: TRINH-DUC François | EF5: Drop | EG5: 10 | EH5: =IF(EF5<>"",VLOOKUP(EF5,ActionPts,2,),"") -> 3 | EI5: =IF(OR(EF5="Essai",EF5="Essai de Pénalité"),1,0) -> 0 | EJ5: =IF(EF5="Pénalité",1,0) -> 0 | EK5: =IF(EF5="Drop",1,0) -> 1 | EL5: =IF(EF5="Transformation",1,0) -> 0 | EM5: FERRERES Laurent | EN5: Pénalité | EO5: 28 | EP5: =IF(EN5<>"",VLOOKUP(EN5,ActionPts,2,),"") -> 3 | EQ5: =IF(OR(EN5="Essai",EN5="Essai de Pénalité"),1,0) -> 0 | ER5: =IF(EN5="Pénalité",1,0) -> 1 | ES5: =IF(EN5="Drop",1,0) -> 0 | ET5: =IF(EN5="Transformation",1,0) -> 0 | EV5: DUPUY Julien | EW5: Pénalité | EX5: 4 | EY5: =IF(EW5<>"",VLOOKUP(EW5,ActionPts,2,),"") -> 3 | EZ5: =IF(OR(EW5="Essai",EW5="Essai de Pénalité"),1,0) -> 0 | FA5: =IF(EW5="Pénalité",1,0) -> 1 | FB5: =IF(EW5="Drop",1,0) -> 0 | FC5: =IF(EW5="Transformation",1,0) -> 0 | FD5: PEYRELONGUE Julien | FE5: Pénalité | FF5: 9 | FG5: =IF(FE5<>"",VLOOKUP(FE5,ActionPts,2,),"") -> 3 | FH5: =IF(OR(FE5="Essai",FE5="Essai de Pénalité"),1,0) -> 0 | FI5: =IF(FE5="Pénalité",1,0) -> 1 | FJ5: =IF(FE5="Drop",1,0) -> 0 | FK5: =IF(FE5="Transformation",1,0) -> 0 | FM5: SEXTON Jonathan | FN5: Pénalité | FO5: 17 | FP5: =IF(FN5<>"",VLOOKUP(FN5,ActionPts,2,),"") -> 3 | FQ5: =IF(OR(FN5="Essai",FN5="Essai de Pénalité"),1,0) -> 0 | FR5: =IF(FN5="Pénalité",1,0) -> 1 | FS5: =IF(FN5="Drop",1,0) -> 0 | FT5: =IF(FN5="Transformation",1,0) -> 0 | FU5: BARNARD Conrad | FV5: Pénalité | FW5: 7 | FX5: =IF(FV5<>"",VLOOKUP(FV5,ActionPts,2,),"") -> 3 | FY5: =IF(OR(FV5="Essai",FV5="Essai de Pénalité"),1,0) -> 0 | FZ5: =IF(FV5="Pénalité",1,0) -> 1 | GA5: =IF(FV5="Drop",1,0) -> 0 | GB5: =IF(FV5="Transformation",1,0) -> 0
B6: =CJ2 -> 0 | E6: =CR2 -> 1 | G6: 2 | H6: Toulon | I6: 8 | J6: 3 | K6: 1 | L6: 1 | M6: 1 | N6: 89 | O6: 64 | P6: 25 | Q6: 7 | R6: 3 | S6: 6 | T6: 2 | U6: 1 | V6: 1 | W6: 13 | X6: 14 | Y6: 1 | Z6: 1 | AA6: 2 | AB6: 1 | AC6: 3 | BO6: BUSTOS MOYANO Martín | BP6: Transformation | BQ6: 5 | BR6: 2 | BS6: 0 | BT6: 0 | BU6: 0 | BV6: 1 | BW6: LOPEZ Camille | BX6: Pénalité | BY6: 10 | BZ6: 3 | CA6: =IF(OR(BX6="Essai",BX6="Essai de Pénalité"),1,0) -> 0 | CB6: 1 | CC6: 0 | CD6: 0 | CF6: BERNARD Pierre | CG6: Pénalité | CH6: 16 | CI6: 3 | CJ6: =IF(OR(CG6="Essai",CG6="Essai de Pénalité"),1,0) -> 0 | CK6: 1 | CL6: 0 | CM6: 0 | CN6: PALIS Geoffrey | CO6: Pénalité | CP6: 23 | CQ6: 3 | CR6: =IF(OR(CO6="Essai",CO6="Essai de Pénalité"),1,0) -> 0 | CS6: 1 | CT6: 0 | CU6: 0 | CW6: BARDY Julien | CX6: Carton Jaune | CY6: 19 | CZ6: 0 | DA6: =IF(OR(CX6="Essai",CX6="Essai de Pénalité"),1,0) -> 0 | DB6: 0 | DC6: 0 | DD6: 0 | DE6: MONTES Yohan | DF6: Carton Jaune | DG6: 25 | DH6: 0 | DI6: =IF(OR(DF6="Essai",DF6="Essai de Pénalité"),1,0) -> 0 | DJ6: 0 | DK6: 0 | DL6: 0 | DN6: COURRENT Valentin | DO6: Pénalité | DP6: 14 | DQ6: 3 | DR6: =IF(OR(DO6="Essai",DO6="Essai de Pénalité"),1,0) -> 0 | DS6: 1 | DT6: 0 | DU6: 0 | DV6: WILKINSON Jonny | DW6: Pénalité | DX6: 12 | DY6: 3 | DZ6: =IF(OR(DW6="Essai",DW6="Essai de Pénalité"),1,0) -> 0 | EA6: 1 | EB6: 0 | EC6: 0 | EE6: PAILLAUGUE Benoît | EF6: Pénalité | EG6: 22 | EH6: 3 | EI6: =IF(OR(EF6="Essai",EF6="Essai de Pénalité"),1,0) -> 0 | EJ6: 1 | EK6: 0 | EL6: 0 | EM6: SHVELIDZE Goderdzi | EN6: Carton Jaune | EO6: 37 | EP6: 0 | EQ6: =IF(OR(EN6="Essai",EN6="Essai de Pénalité"),1,0) -> 0 | ER6: 0 | ES6: 0 | ET6: 0 | EV6: DUPUY Julien | EW6: Pénalité | EX6: 7 | EY6: 3 | EZ6: =IF(OR(EW6="Essai",EW6="Essai de Pénalité"),1,0) -> 0 | FA6: 1 | FB6: 0 | FC6: 0 | FD6: WAENGA Daniel | FE6: Carton Jaune | FF6: 54 | FG6: 0 | FH6: =IF(OR(FE6="Essai",FE6="Essai de Pénalité"),1,0) -> 0 | FI6: 0 | FJ6: 0 | FK6: 0 | FM6: SEXTON Jonathan | FN6: Pénalité | FO6: 29 | FP6: 3 | FQ6: =IF(OR(FN6="Essai",FN6="Essai de Pénalité"),1,0) -> 0 | FR6: 1 | FS6: 0 | FT6: 0 | FU6: BARNARD Conrad | FV6: Pénalité | FW6: 14 | FX6: 3 | FY6: =IF(OR(FV6="Essai",FV6="Essai de Pénalité"),1,0) -> 0 | FZ6: 1 | GA6: 0 | GB6: 0
A7: =HYPERLINK(MID(CELL("filename",A5),FIND("[",CELL("filename",A5)),FIND("]", CELL("filename",A5))-FIND("[",CELL("filename",A5))+1)&"'"&MID(CELL("filename",A5),FIND("]",CELL("filename",A5))+1,99)&"'!do1","Détail") -> Détail | B7: Montferrand | C7: =CY2 -> 38 | D7: =DG2 -> 19 | E7: Toulouse | G7: 3 | H7: Toulouse | I7: 6 | J7: 3 | K7: 1 | L7: 0 | M7: 2 | N7: 84 | O7: 72 | P7: 12 | Q7: 6 | R7: 5 | S7: 6 | T7: 4 | U7: 0 | V7: 1 | W7: 14 | X7: 12 | Y7: 1 | Z7: 1 | AA7: 2 | AB7: 0 | AC7: 3 | BO7: BUSTOS MOYANO Martín | BP7: Pénalité | BQ7: 12 | BR7: 3 | BS7: 0 | BT7: 1 | BU7: 0 | BV7: 0 | BW7: LOPEZ Camille | BX7: Pénalité | BY7: 19 | BZ7: 3 | CA7: 0 | CB7: 1 | CC7: 0 | CD7: 0 | CF7: BERNARD Pierre | CG7: Pénalité | CH7: 28 | CI7: 3 | CJ7: 0 | CK7: 1 | CL7: 0 | CM7: 0 | CN7: PALIS Geoffrey | CO7: Pénalité | CP7: 32 | CQ7: 3 | CR7: 0 | CS7: 1 | CT7: 0 | CU7: 0 | CW7: JAMES Brock | CX7: Pénalité | CY7: 35 | CZ7: 3 | DA7: 0 | DB7: 1 | DC7: 0 | DD7: 0 | DE7: MEDARD Maxime | DF7: Essai | DG7: 31 | DH7: 5 | DI7: 1 | DJ7: 0 | DK7: 0 | DL7: 0 | DN7: COURRENT Valentin | DO7: Pénalité | DP7: 30 | DQ7: 3 | DR7: 0 | DS7: 1 | DT7: 0 | DU7: 0 | DV7: WILKINSON Jonny | DW7: Pénalité | DX7: 17 | DY7: 3 | DZ7: 0 | EA7: 1 | EB7: 0 | EC7: 0 | EE7: PAILLAUGUE Benoît | EF7: Pénalité | EG7: 31 | EH7: 3 | EI7: 0 | EJ7: 1 | EK7: 0 | EL7: 0 | EM7: PINET Simon | EN7: Carton Jaune | EO7: 44 | EP7: 0 | EQ7: 0 | ER7: 0 | ES7: 0 | ET7: 0 | EV7: RABADAN Pierre | EW7: Essai | EX7: 23 | EY7: 5 | EZ7: 1 | FA7: 0 | FB7: 0 | FC7: 0 | FD7: HÉGUY Arnaud | FE7: Carton Jaune | FF7: 57 | FG7: 0 | FH7: 0 | FI7: 0 | FJ7: 0 | FK7: 0 | FM7: SEXTON Jonathan | FN7: Pénalité | FO7: 48 | FP7: 3 | FQ7: 0 | FR7: 1 | FS7: 0 | FT7: 0 | FU7: BARNARD Conrad | FV7: Pénalité | FW7: 23 | FX7: 3 | FY7: 0 | FZ7: 1 | GA7: 0 | GB7: 0
B8: =DA2 -> 4 | E8: =DI2 -> 1 | G8: 4 | H8: StadeFrancais | I8: 10 | J8: 3 | K8: 2 | L8: 0 | M8: 1 | N8: 82 | O8: 49 | P8: 33 | Q8: 6 | R8: 4 | S8: 5 | T8: 4 | U8: 4 | V8: 0 | W8: 10 | X8: 7 | Y8: 1 | Z8: 1 | AA8: 2 | AB8: 0 | AC8: 2 | BO8: BUSTOS MOYANO Martín | BP8: Pénalité | BQ8: 16 | BR8: 3 | BS8: 0 | BT8: 1 | BU8: 0 | BV8: 0 | BW8: LOPEZ Camille | BX8: Pénalité | BY8: 60 | BZ8: 3 | CA8: 0 | CB8: 1 | CC8: 0 | CD8: 0 | CF8: BERNARD Pierre | CG8: Pénalité | CH8: 36 | CI8: 3 | CJ8: 0 | CK8: 1 | CL8: 0 | CM8: 0 | CN8: PALIS Geoffrey | CO8: Pénalité | CP8: 44 | CQ8: 3 | CR8: 0 | CS8: 1 | CT8: 0 | CU8: 0 | CW8: BARDY Julien | CX8: Essai | CY8: 38 | CZ8: 5 | DA8: 1 | DB8: 0 | DC8: 0 | DD8: 0 | DE8: BEAUXIS Lionel | DF8: Transformation | DG8: 31 | DH8: 2 | DI8: 0 | DJ8: 0 | DK8: 0 | DL8: 1 | DN8: COURRENT Valentin | DO8: Pénalité | DP8: 39 | DQ8: 3 | DR8: 0 | DS8: 1 | DT8: 0 | DU8: 0 | DV8: WILKINSON Jonny | DW8: Pénalité | DX8: 33 | DY8: 3 | DZ8: 0 | EA8: 1 | EB8: 0 | EC8: 0 | EE8: PAILLAUGUE Benoît | EF8: Pénalité | EG8: 35 | EH8: 3 | EI8: 0 | EJ8: 1 | EK8: 0 | EL8: 0 | EM8: RIBES Guillaume | EN8: Carton Jaune | EO8: 56 | EP8: 0 | EQ8: 0 | ER8: 0 | ES8: 0 | ET8: 0 | EV8: DUPUY Julien | EW8: Transformation | EX8: 24 | EY8: 2 | EZ8: 0 | FA8: 0 | FB8: 0 | FC8: 1 | FD8: TAELE-PAVIHI Pelu | FE8: Carton Jaune | FF8: 68 | FG8: 0 | FH8: 0 | FI8: 0 | FJ8: 0 | FK8: 0 | FM8: SEXTON Jonathan | FN8: Pénalité | FO8: 62 | FP8: 3 | FQ8: 0 | FR8: 1 | FS8: 0 | FT8: 0 | FU8: TIAN Silvere | FV8: Carton Jaune | FW8: 39 | FX8: 0 | FY8: 0 | FZ8: 0 | GA8: 0 | GB8: 0
A9: =HYPERLINK(MID(CELL("filename",A7),FIND("[",CELL("filename",A7)),FIND("]", CELL("filename",A7))-FIND("[",CELL("filename",A7))+1)&"'"&MID(CELL("filename",A7),FIND("]",CELL("filename",A7))+1,99)&"'!eg1","Détail") -> Détail | B9: Grenoble | C9: =DP2 -> 28 | D9: =DX2 -> 26 | E9: Toulon | G9: 5 | H9: Montferrand | I9: 9 | J9: 3 | K9: 2 | L9: 0 | M9: 1 | N9: 79 | O9: 67 | P9: 12 | Q9: 7 | R9: 6 | S9: 4 | T9: 5 | U9: 1 | V9: 2 | W9: 11 | X9: 7 | Y9: 1 | Z9: 0 | AA9: 1 | AB9: 0 | AC9: 3 | BO9: BUSTOS MOYANO Martín | BP9: Pénalité | BQ9: 42 | BR9: 3 | BS9: 0 | BT9: 1 | BU9: 0 | BV9: 0 | BW9: LOPEZ Camille | BX9: Pénalité | BY9: 65 | BZ9: 3 | CA9: 0 | CB9: 1 | CC9: 0 | CD9: 0 | CF9: BERNARD Pierre | CG9: Pénalité | CH9: 65 | CI9: 3 | CJ9: 0 | CK9: 1 | CL9: 0 | CM9: 0 | CN9: MARTIAL Romain | CO9: Essai | CP9: 60 | CQ9: 5 | CR9: 1 | CS9: 0 | CT9: 0 | CU9: 0 | CW9: JAMES Brock | CX9: Transformation | CY9: 38 | CZ9: 2 | DA9: 0 | DB9: 0 | DC9: 0 | DD9: 1 | DE9: BEAUXIS Lionel | DF9: Pénalité | DG9: 42 | DH9: 3 | DI9: 0 | DJ9: 1 | DK9: 0 | DL9: 0 | DN9: CAMINATI Julien | DO9: Pénalité | DP9: 40 | DQ9: 3 | DR9: 0 | DS9: 1 | DT9: 0 | DU9: 0 | DV9: WILKINSON Jonny | DW9: Pénalité | DX9: 44 | DY9: 3 | DZ9: 0 | EA9: 1 | EB9: 0 | EC9: 0 | EE9: PRIVAT Thibault | EF9: Carton Jaune | EG9: 44 | EH9: 0 | EI9: 0 | EJ9: 0 | EK9: 0 | EL9: 0 | EM9: BARNARD Pat | EN9: Carton Jaune | EO9: 58 | EP9: 0 | EQ9: 0 | ER9: 0 | ES9: 0 | ET9: 0 | EV9: PLISSON Jules | EW9: Drop | EX9: 33 | EY9: 3 | EZ9: 0 | FA9: 0 | FB9: 1 | FC9: 0 | FH9: 0 | FI9: 0 | FJ9: 0 | FK9: 0 | FM9: SEXTON Jonathan | FN9: Pénalité | FO9: 64 | FP9: 3 | FQ9: 0 | FR9: 1 | FS9: 0 | FT9: 0 | FU9: SLADE Chad | FV9: Carton Jaune | FW9: 69 | FX9: 0 | FY9: 0 | FZ9: 0 | GA9: 0 | GB9: 0
B10: =DR2 -> 1 | E10: =DZ2 -> 1 | G10: 6 | H10: Bayonne | I10: 9 | J10: 3 | K10: 2 | L10: 0 | M10: 1 | N10: 73 | O10: 71 | P10: 2 | Q10: 7 | R10: 6 | S10: 4 | T10: 4 | U10: 0 | V10: 1 | W10: 10 | X10: 10 | Y10: 1 | Z10: 0 | AA10: 1 | AB10: 1 | AC10: 0 | BO10: BUSTOS MOYANO Martín | BP10: Pénalité | BQ10: 45 | BR10: 3 | BS10: 0 | BT10: 1 | BU10: 0 | BV10: 0 | BW10: HOOK James | BX10: Essai | BY10: 75 | BZ10: 5 | CA10: 1 | CB10: 0 | CC10: 0 | CD10: 0 | CF10: BERNARD Pierre | CG10: Pénalité | CH10: 71 | CI10: 3 | CJ10: 0 | CK10: 1 | CL10: 0 | CM10: 0 | CN10: KOCKOTT Rory | CO10: Pénalité | CP10: 73 | CQ10: 3 | CR10: 0 | CS10: 1 | CT10: 0 | CU10: 0 | CW10: DOMINGO Thomas | CX10: Essai | CY10: 47 | CZ10: 5 | DA10: 1 | DB10: 0 | DC10: 0 | DD10: 0 | DE10: BEAUXIS Lionel | DF10: Pénalité | DG10: 51 | DH10: 3 | DI10: 0 | DJ10: 1 | DK10: 0 | DL10: 0 | DN10: NICOLAS Mathieu | DO10: Carton Jaune | DP10: 43 | DQ10: 0 | DR10: 0 | DS10: 0 | DT10: 0 | DU10: 0 | DV10: WILKINSON Jonny | DW10: Pénalité | DX10: 59 | DY10: 3 | DZ10: 0 | EA10: 1 | EB10: 0 | EC10: 0 | EE10: NAGUSA Timoci | EF10: Essai | EG10: 47 | EH10: 5 | EI10: 1 | EJ10: 0 | EK10: 0 | EL10: 0 | EM10: FERRERES Laurent | EN10: Essai | EO10: 65 | EP10: 5 | EQ10: 1 | ER10: 0 | ES10: 0 | ET10: 0 | EV10: FILLOL Jérôme | EW10: Pénalité | EX10: 55 | EY10: 3 | EZ10: 0 | FA10: 1 | FB10: 0 | FC10: 0 | FH10: 0 | FI10: 0 | FJ10: 0 | FK10: 0 | FM10: LACOMBE Virgile | FN10: Essai | FO10: 74 | FP10: 5 | FQ10: 1 | FR10: 0 | FS10: 0 | FT10: 0 | FU10: CLARK Neil | FV10: Carton Jaune | FW10: 71 | FX10: 0 | FY10: 0 | FZ10: 0 | GA10: 0 | GB10: 0
A11: =HYPERLINK(MID(CELL("filename",A9),FIND("[",CELL("filename",A9)),FIND("]", CELL("filename",A9))-FIND("[",CELL("filename",A9))+1)&"'"&MID(CELL("filename",A9),FIND("]",CELL("filename",A9))+1,99)&"'!ew1","Détail") -> Détail | B11: Montpellier | C11: =EG2 -> 33 | D11: =EO2 -> 24 | E11: Brive | G11: 7 | H11: Perpignan | I11: 5 | J11: 3 | K11: 1 | L11: 0 | M11: 2 | N11: 73 | O11: 82 | P11: -9 | Q11: 6 | R11: 6 | S11: 5 | T11: 5 | U11: 2 | V11: 3 | W11: 9 | X11: 11 | Y11: 0 | Z11: 1 | AA11: 1 | AB11: 0 | AC11: 1 | BO11: ROKOCOKO Joe | BP11: Essai | BQ11: 55 | BR11: 5 | BS11: 1 | BT11: 0 | BU11: 0 | BV11: 0 | CA11: 0 | CB11: 0 | CC11: 0 | CD11: 0 | CF11: BERNARD Pierre | CG11: Drop | CH11: 77 | CI11: 3 | CJ11: 0 | CK11: 0 | CL11: 1 | CM11: 0 | CR11: 0 | CS11: 0 | CT11: 0 | CU11: 0 | CW11: JAMES Brock | CX11: Transformation | CY11: 47 | CZ11: 2 | DA11: 0 | DB11: 0 | DC11: 0 | DD11: 1 | DE11: BEAUXIS Lionel | DF11: Pénalité | DG11: 54 | DH11: 3 | DI11: 0 | DJ11: 1 | DK11: 0 | DL11: 0 | DN11: COURRENT Valentin | DO11: Pénalité | DP11: 56 | DQ11: 3 | DR11: 0 | DS11: 1 | DT11: 0 | DU11: 0 | DV11: WILKINSON Jonny | DW11: Pénalité | DX11: 69 | DY11: 3 | DZ11: 0 | EA11: 1 | EB11: 0 | EC11: 0 | EE11: PAILLAUGUE Benoît | EF11: Transformation | EG11: 47 | EH11: 2 | EI11: 0 | EJ11: 0 | EK11: 0 | EL11: 1 | EM11: FERRERES Laurent | EN11: Transformation | EO11: 65 | EP11: 2 | EQ11: 0 | ER11: 0 | ES11: 0 | ET11: 1 | EV11: ARIAS Julien | EW11: Essai | EX11: 58 | EY11: 5 | EZ11: 1 | FA11: 0 | FB11: 0 | FC11: 0 | FH11: 0 | FI11: 0 | FJ11: 0 | FK11: 0 | FM11: SEXTON Jonathan | FN11: Transformation | FO11: 74 | FP11: 2 | FQ11: 0 | FR11: 0 | FS11: 0 | FT11: 1 | FY11: 0 | FZ11: 0 | GA11: 0 | GB11: 0
B12: =EI2 -> 3 | E12: =EQ2 -> 3 | G12: 8 | H12: Montpellier | I12: 7 | J12: 3 | K12: 1 | L12: 1 | M12: 1 | N12: 67 | O12: 65 | P12: 2 | Q12: 4 | R12: 5 | S12: 4 | T12: 5 | U12: 2 | V12: 0 | W12: 11 | X12: 10 | Y12: 0 | Z12: 1 | AA12: 1 | AB12: 0 | AC12: 3 | BO12: SPEDDING Scott | BP12: Essai | BQ12: 68 | BR12: 5 | BS12: 1 | BT12: 0 | BU12: 0 | BV12: 0 | CA12: 0 | CB12: 0 | CC12: 0 | CD12: 0 | CJ12: 0 | CK12: 0 | CL12: 0 | CM12: 0 | CR12: 0 | CS12: 0 | CT12: 0 | CU12: 0 | CW12: JAMES Brock | CX12: Pénalité | CY12: 66 | CZ12: 3 | DA12: 0 | DB12: 1 | DC12: 0 | DD12: 0 | DI12: 0 | DJ12: 0 | DK12: 0 | DL12: 0 | DN12: CAMINATI Julien | DO12: Pénalité | DP12: 56 | DQ12: 3 | DR12: 0 | DS12: 1 | DT12: 0 | DU12: 0 | DV12: GITEAU Matt | DW12: Essai | DX12: 80 | DY12: 5 | DZ12: 1 | EA12: 0 | EB12: 0 | EC12: 0 | EF12: Essai de Pénalité | EG12: 59 | EH12: 5 | EI12: 1 | EJ12: 0 | EK12: 0 | EL12: 0 | EM12: ASIESHVILI Karlen | EN12: Essai | EO12: 73 | EP12: 5 | EQ12: 1 | ER12: 0 | ES12: 0 | ET12: 0 | EV12: DANTY Jonathan | EW12: Essai | EX12: 63 | EY12: 5 | EZ12: 1 | FA12: 0 | FB12: 0 | FC12: 0 | FH12: 0 | FI12: 0 | FJ12: 0 | FK12: 0 | FQ12: 0 | FR12: 0 | FS12: 0 | FT12: 0 | FY12: 0 | FZ12: 0 | GA12: 0 | GB12: 0
A13: =HYPERLINK(MID(CELL("filename",A11),FIND("[",CELL("filename",A11)),FIND("]", CELL("filename",A11))-FIND("[",CELL("filename",A11))+1)&"'"&MID(CELL("filename",A11),FIND("]",CELL("filename",A11))+1,99)&"'!fn1","Détail") -> Détail | B13: StadeFrancais | C13: =EX2 -> 38 | D13: =FF2 -> 3 | E13: Biarritz | G13: 9 | H13: Brive | I13: 5 | J13: 3 | K13: 1 | L13: 0 | M13: 2 | N13: 63 | O13: 64 | P13: -1 | Q13: 5 | R13: 4 | S13: 4 | T13: 4 | U13: 1 | V13: 1 | W13: 9 | X13: 11 | Y13: 0 | Z13: 1 | AA13: 1 | AB13: 0 | AC13: 4 | BO13: BUSTOS MOYANO Martín | BP13: Transformation | BQ13: 68 | BR13: 2 | BS13: 0 | BT13: 0 | BU13: 0 | BV13: 1 | CA13: 0 | CB13: 0 | CC13: 0 | CD13: 0 | CJ13: 0 | CK13: 0 | CL13: 0 | CM13: 0 | CR13: 0 | CS13: 0 | CT13: 0 | CU13: 0 | CW13: JAMES Brock | CX13: Drop | CY13: 69 | CZ13: 3 | DA13: 0 | DB13: 0 | DC13: 1 | DD13: 0 | DI13: 0 | DJ13: 0 | DK13: 0 | DL13: 0 | DN13: BERNARD Roland | DO13: Essai | DP13: 64 | DQ13: 5 | DR13: 1 | DS13: 0 | DT13: 0 | DU13: 0 | DZ13: 0 | EA13: 0 | EB13: 0 | EC13: 0 | EE13: PAILLAUGUE Benoît | EF13: Transformation | EG13: 59 | EH13: 2 | EI13: 0 | EJ13: 0 | EK13: 0 | EL13: 1 | EM13: GERMAIN Gaëtan | EN13: Transformation | EO13: 73 | EP13: 2 | EQ13: 0 | ER13: 0 | ES13: 0 | ET13: 1 | EV13: STEYN Morné | EW13: Transformation | EX13: 64 | EY13: 2 | EZ13: 0 | FA13: 0 | FB13: 0 | FC13: 1 | FH13: 0 | FI13: 0 | FJ13: 0 | FK13: 0 | FQ13: 0 | FR13: 0 | FS13: 0 | FT13: 0 | FY13: 0 | FZ13: 0 | GA13: 0 | GB13: 0
B14: =EZ2 -> 4 | E14: =FH2 -> 0 | G14: 10 | H14: Biarritz | I14: 5 | J14: 3 | K14: 1 | L14: 0 | M14: 2 | N14: 40 | O14: 72 | P14: -32 | Q14: 3 | R14: 5 | S14: 2 | T14: 4 | U14: 1 | V14: 1 | W14: 6 | X14: 12 | Y14: 0 | Z14: 1 | AA14: 1 | AB14: 0 | AC14: 4 | BS14: 0 | BT14: 0 | BU14: 0 | BV14: 0 | CA14: 0 | CB14: 0 | CC14: 0 | CD14: 0 | CJ14: 0 | CK14: 0 | CL14: 0 | CM14: 0 | CR14: 0 | CS14: 0 | CT14: 0 | CU14: 0 | CW14: BONNAIRE Julien | CX14: Essai | CY14: 72 | CZ14: 5 | DA14: 1 | DB14: 0 | DC14: 0 | DD14: 0 | DI14: 0 | DJ14: 0 | DK14: 0 | DL14: 0 | DN14: COURRENT Valentin | DO14: Transformation | DP14: 64 | DQ14: 2 | DR14: 0 | DS14: 0 | DT14: 0 | DU14: 1 | DZ14: 0 | EA14: 0 | EB14: 0 | EC14: 0 | EE14: SICART Benoît | EF14: Essai | EG14: 62 | EH14: 5 | EI14: 1 | EJ14: 0 | EK14: 0 | EL14: 0 | EM14: GERMAIN Gaëtan | EN14: Essai | EO14: 80 | EP14: 5 | EQ14: 1 | ER14: 0 | ES14: 0 | ET14: 0 | EV14: VUIDRAVUWALU Waisea | EW14: Essai | EX14: 69 | EY14: 5 | EZ14: 1 | FA14: 0 | FB14: 0 | FC14: 0 | FH14: 0 | FI14: 0 | FJ14: 0 | FK14: 0 | FQ14: 0 | FR14: 0 | FS14: 0 | FT14: 0 | FY14: 0 | FZ14: 0 | GA14: 0 | GB14: 0
A15: =HYPERLINK(MID(CELL("filename",A13),FIND("[",CELL("filename",A13)),FIND("]", CELL("filename",A13))-FIND("[",CELL("filename",A13))+1)&"'"&MID(CELL("filename",A13),FIND("]",CELL("filename",A13))+1,99)&"'!gg1","Détail") -> Détail | B15: RacingMétro92 | C15: =FO2 -> 22 | D15: =FW2 -> 9 | E15: Oyonnax | G15: 11 | H15: BordeauxBègles | I15: 8 | J15: 3 | K15: 2 | L15: 0 | M15: 1 | N15: 64 | O15: 70 | P15: -6 | Q15: 1 | R15: 3 | S15: 1 | T15: 2 | U15: 1 | V15: 0 | W15: 18 | X15: 17 | Y15: 0 | Z15: 0 | AA15: 0 | AB15: 0 | AC15: 2 | BS15: 0 | BT15: 0 | BU15: 0 | BV15: 0 | CA15: 0 | CB15: 0 | CC15: 0 | CD15: 0 | CJ15: 0 | CK15: 0 | CL15: 0 | CM15: 0 | CR15: 0 | CS15: 0 | CT15: 0 | CU15: 0 | CW15: FOFANA Wesley | CX15: Essai | CY15: 77 | CZ15: 5 | DA15: 1 | DB15: 0 | DC15: 0 | DD15: 0 | DI15: 0 | DJ15: 0 | DK15: 0 | DL15: 0 | DN15: HEGARTY Anthony | DO15: Carton Jaune | DP15: 67 | DQ15: 0 | DR15: 0 | DS15: 0 | DT15: 0 | DU15: 0 | DZ15: 0 | EA15: 0 | EB15: 0 | EC15: 0 | EE15: PAILLAUGUE Benoît | EF15: Transformation | EG15: 62 | EH15: 2 | EI15: 0 | EJ15: 0 | EK15: 0 | EL15: 1 | EM15: FERRERES Laurent | EN15: Transformation | EO15: 80 | EP15: 2 | EQ15: 0 | ER15: 0 | ES15: 0 | ET15: 1 | EV15: STEYN Morné | EW15: Transformation | EX15: 70 | EY15: 2 | EZ15: 0 | FA15: 0 | FB15: 0 | FC15: 1 | FH15: 0 | FI15: 0 | FJ15: 0 | FK15: 0 | FQ15: 0 | FR15: 0 | FS15: 0 | FT15: 0 | FY15: 0 | FZ15: 0 | GA15: 0 | GB15: 0
B16: =FQ2 -> 1 | E16: =FY2 -> 0 | G16: 12 | H16: RacingMétro92 | I16: 8 | J16: 3 | K16: 2 | L16: 0 | M16: 1 | N16: 55 | O16: 64 | P16: -9 | Q16: 3 | R16: 6 | S16: 2 | T16: 5 | U16: 0 | V16: 2 | W16: 12 | X16: 6 | Y16: 0 | Z16: 0 | AA16: 0 | AB16: 1 | AC16: 0 | BS16: 0 | BT16: 0 | BU16: 0 | BV16: 0 | CA16: 0 | CB16: 0 | CC16: 0 | CD16: 0 | CJ16: 0 | CK16: 0 | CL16: 0 | CM16: 0 | CR16: 0 | CS16: 0 | CT16: 0 | CU16: 0 | CW16: JAMES Brock | CX16: Transformation | CY16: 77 | CZ16: 2 | DA16: 0 | DB16: 0 | DC16: 0 | DD16: 1 | DI16: 0 | DJ16: 0 | DK16: 0 | DL16: 0 | DR16: 0 | DS16: 0 | DT16: 0 | DU16: 0 | DZ16: 0 | EA16: 0 | EB16: 0 | EC16: 0 | EE16: FAAMAUSILI Barry | EF16: Carton Jaune | EG16: 71 | EH16: 0 | EI16: 0 | EJ16: 0 | EK16: 0 | EL16: 0 | EQ16: 0 | ER16: 0 | ES16: 0 | ET16: 0 | EZ16: 0 | FA16: 0 | FB16: 0 | FC16: 0 | FH16: 0 | FI16: 0 | FJ16: 0 | FK16: 0 | FQ16: 0 | FR16: 0 | FS16: 0 | FT16: 0 | FY16: 0 | FZ16: 0 | GA16: 0 | GB16: 0
G17: 13 | H17: Grenoble | I17: 8 | J17: 3 | K17: 2 | L17: 0 | M17: 1 | N17: 53 | O17: 76 | P17: -23 | Q17: 2 | R17: 7 | S17: 2 | T17: 4 | U17: 0 | V17: 0 | W17: 13 | X17: 11 | Y17: 0 | Z17: 0 | AA17: 0 | AB17: 0 | AC17: 4 | BS17: 0 | BT17: 0 | BU17: 0 | BV17: 0 | CA17: 0 | CB17: 0 | CC17: 0 | CD17: 0 | CJ17: 0 | CK17: 0 | CL17: 0 | CM17: 0 | CR17: 0 | CS17: 0 | CT17: 0 | CU17: 0 | DA17: 0 | DB17: 0 | DC17: 0 | DD17: 0 | DI17: 0 | DJ17: 0 | DK17: 0 | DL17: 0 | DR17: 0 | DS17: 0 | DT17: 0 | DU17: 0 | DZ17: 0 | EA17: 0 | EB17: 0 | EC17: 0 | EI17: 0 | EJ17: 0 | EK17: 0 | EL17: 0 | EQ17: 0 | ER17: 0 | ES17: 0 | ET17: 0 | EZ17: 0 | FA17: 0 | FB17: 0 | FC17: 0 | FH17: 0 | FI17: 0 | FJ17: 0 | FK17: 0 | FQ17: 0 | FR17: 0 | FS17: 0 | FT17: 0 | FY17: 0 | FZ17: 0 | GA17: 0 | GB17: 0
G18: 14 | H18: Oyonnax | I18: 4 | J18: 3 | K18: 1 | L18: 0 | M18: 2 | N18: 50 | O18: 80 | P18: -30 | Q18: 4 | R18: 7 | S18: 3 | T18: 3 | U18: 1 | V18: 0 | W18: 7 | X18: 13 | Y18: 0 | Z18: 0 | AA18: 0 | AB18: 0 | AC18: 4 | BS18: 0 | BT18: 0 | BU18: 0 | BV18: 0 | CA18: 0 | CB18: 0 | CC18: 0 | CD18: 0 | CJ18: 0 | CK18: 0 | CL18: 0 | CM18: 0 | CR18: 0 | CS18: 0 | CT18: 0 | CU18: 0 | DA18: 0 | DB18: 0 | DC18: 0 | DD18: 0 | DI18: 0 | DJ18: 0 | DK18: 0 | DL18: 0 | DR18: 0 | DS18: 0 | DT18: 0 | DU18: 0 | DZ18: 0 | EA18: 0 | EB18: 0 | EC18: 0 | EI18: 0 | EJ18: 0 | EK18: 0 | EL18: 0 | EQ18: 0 | ER18: 0 | ES18: 0 | ET18: 0 | EZ18: 0 | FA18: 0 | FB18: 0 | FC18: 0 | FH18: 0 | FI18: 0 | FJ18: 0 | FK18: 0 | FQ18: 0 | FR18: 0 | FS18: 0 | FT18: 0 | FY18: 0 | FZ18: 0 | GA18: 0 | GB18: 0
C19: Dom | D19: Ext | E19: Total | BS19: 0 | BT19: 0 | BU19: 0 | BV19: 0 | CA19: 0 | CB19: 0 | CC19: 0 | CD19: 0 | CJ19: 0 | CK19: 0 | CL19: 0 | CM19: 0 | CR19: 0 | CS19: 0 | CT19: 0 | CU19: 0 | DA19: 0 | DB19: 0 | DC19: 0 | DD19: 0 | DI19: 0 | DJ19: 0 | DK19: 0 | DL19: 0 | DQ19: =IF(DO19<>"",VLOOKUP(DO19,ActionPts,2,),"") ->  | DR19: =IF(OR(DO19="Essai",DO19="Essai de Pénalité"),1,0) -> 0 | DS19: =IF(DO19="Pénalité",1,0) -> 0 | DT19: =IF(DO19="Drop",1,0) -> 0 | DU19: =IF(DO19="Transformation",1,0) -> 0 | DZ19: 0 | EA19: 0 | EB19: 0 | EC19: 0 | EI19: 0 | EJ19: 0 | EK19: 0 | EL19: 0 | EQ19: 0 | ER19: 0 | ES19: 0 | ET19: 0 | EZ19: 0 | FA19: 0 | FB19: 0 | FC19: 0 | FH19: 0 | FI19: 0 | FJ19: 0 | FK19: 0 | FQ19: 0 | FR19: 0 | FS19: 0 | FT19: 0 | FY19: 0 | FZ19: 0 | GA19: 0 | GB19: 0
B20: Nbre de points | C20: =SUM(C3:C16) -> 211 | D20: =SUM(D3:D16) -> 121 | E20: =C20+D20 -> 332 | BS20: 0 | BT20: 0 | BU20: 0 | BV20: 0 | CA20: 0 | CB20: 0 | CC20: 0 | CD20: 0 | CJ20: 0 | CK20: 0 | CL20: 0 | CM20: 0 | CR20: 0 | CS20: 0 | CT20: 0 | CU20: 0 | DA20: 0 | DB20: 0 | DC20: 0 | DD20: 0 | DI20: 0 | DJ20: 0 | DK20: 0 | DL20: 0 | DQ20: =IF(DO20<>"",VLOOKUP(DO20,ActionPts,2,),"") ->  | DR20: =IF(OR(DO20="Essai",DO20="Essai de Pénalité"),1,0) -> 0 | DS20: =IF(DO20="Pénalité",1,0) -> 0 | DT20: =IF(DO20="Drop",1,0) -> 0 | DU20: =IF(DO20="Transformation",1,0) -> 0 | DZ20: 0 | EA20: 0 | EB20: 0 | EC20: 0 | EI20: 0 | EJ20: 0 | EK20: 0 | EL20: 0 | EQ20: 0 | ER20: 0 | ES20: 0 | ET20: 0 | EZ20: 0 | FA20: 0 | FB20: 0 | FC20: 0 | FH20: 0 | FI20: 0 | FJ20: 0 | FK20: 0 | FQ20: 0 | FR20: 0 | FS20: 0 | FT20: 0 | FY20: 0 | FZ20: 0 | GA20: 0 | GB20: 0
B21: Par match | C21: =IF(BN48=0,0,ROUND(C20/BN48,1)) -> 30.1 | D21: =IF(BN48=0,0,ROUND(D20/BN48,1)) -> 17.3 | E21: =C21+D21 -> 47.4 | I21: Classement à Domicile | BS21: 0 | BT21: 0 | BU21: 0 | BV21: 0 | CA21: 0 | CB21: 0 | CC21: 0 | CD21: 0 | CJ21: 0 | CK21: 0 | CL21: 0 | CM21: 0 | CR21: 0 | CS21: 0 | CT21: 0 | CU21: 0 | DA21: 0 | DB21: 0 | DC21: 0 | DD21: 0 | DI21: 0 | DJ21: 0 | DK21: 0 | DL21: 0 | DQ21: =IF(DO21<>"",VLOOKUP(DO21,ActionPts,2,),"") ->  | DR21: =IF(OR(DO21="Essai",DO21="Essai de Pénalité"),1,0) -> 0 | DS21: =IF(DO21="Pénalité",1,0) -> 0 | DT21: =IF(DO21="Drop",1,0) -> 0 | DU21: =IF(DO21="Transformation",1,0) -> 0 | DZ21: 0 | EA21: 0 | EB21: 0 | EC21: 0 | EI21: 0 | EJ21: 0 | EK21: 0 | EL21: 0 | EQ21: 0 | ER21: 0 | ES21: 0 | ET21: 0 | EZ21: 0 | FA21: 0 | FB21: 0 | FC21: 0 | FH21: 0 | FI21: 0 | FJ21: 0 | FK21: 0 | FQ21: 0 | FR21: 0 | FS21: 0 | FT21: 0 | FY21: 0 | FZ21: 0 | GA21: 0 | GB21: 0
B22: Nbre d'essais | C22: =B4+B6+B8+B10+B12+B14+B16 -> 16 | D22: =E4+E6+E8+E10+E12+E14+E16 -> 7 | E22: =C22+D22 -> 23 | BS22: 0 | BT22: 0 | BU22: 0 | BV22: 0 | CA22: 0 | CB22: 0 | CC22: 0 | CD22: 0 | CJ22: 0 | CK22: 0 | CL22: 0 | CM22: 0 | CR22: 0 | CS22: 0 | CT22: 0 | CU22: 0 | DA22: 0 | DB22: 0 | DC22: 0 | DD22: 0 | DI22: 0 | DJ22: 0 | DK22: 0 | DL22: 0 | DQ22: =IF(DO22<>"",VLOOKUP(DO22,ActionPts,2,),"") ->  | DR22: =IF(OR(DO22="Essai",DO22="Essai de Pénalité"),1,0) -> 0 | DS22: =IF(DO22="Pénalité",1,0) -> 0 | DT22: =IF(DO22="Drop",1,0) -> 0 | DU22: =IF(DO22="Transformation",1,0) -> 0 | DZ22: 0 | EA22: 0 | EB22: 0 | EC22: 0 | EI22: 0 | EJ22: 0 | EK22: 0 | EL22: 0 | EQ22: 0 | ER22: 0 | ES22: 0 | ET22: 0 | EZ22: 0 | FA22: 0 | FB22: 0 | FC22: 0 | FH22: 0 | FI22: 0 | FJ22: 0 | FK22: 0 | FQ22: 0 | FR22: 0 | FS22: 0 | FT22: 0 | FY22: 0 | FZ22: 0 | GA22: 0 | GB22: 0
B23: Par match | C23: =IF(BN48=0,0,ROUND(C22/BN48,1)) -> 2.3 | D23: =IF(BN48=0,0,ROUND(D22/BN48,1)) -> 1 | E23: =C23+D23 -> 3.3 | I23: Pts | J23: J. | K23: G | L23: N | M23: P | N23: Pr | O23: Ctr | P23: Diff | Q23: E p | R23: E c | S23: Tp | T23: Tc | U23: Dp | V23: Dc | W23: Pp | X23: Pc | Y23: B.O | Z23: B.D | AA23: Bon | AB23: Cr | AC23: Cj | BS23: 0 | BT23: 0 | BU23: 0 | BV23: 0 | CA23: 0 | CB23: 0 | CC23: 0 | CD23: 0 | CJ23: 0 | CK23: 0 | CL23: 0 | CM23: 0 | CR23: 0 | CS23: 0 | CT23: 0 | CU23: 0 | DA23: 0 | DB23: 0 | DC23: 0 | DD23: 0 | DI23: 0 | DJ23: 0 | DK23: 0 | DL23: 0 | DQ23: =IF(DO23<>"",VLOOKUP(DO23,ActionPts,2,),"") ->  | DR23: =IF(OR(DO23="Essai",DO23="Essai de Pénalité"),1,0) -> 0 | DS23: =IF(DO23="Pénalité",1,0) -> 0 | DT23: =IF(DO23="Drop",1,0) -> 0 | DU23: =IF(DO23="Transformation",1,0) -> 0 | DZ23: 0 | EA23: 0 | EB23: 0 | EC23: 0 | EI23: 0 | EJ23: 0 | EK23: 0 | EL23: 0 | EQ23: 0 | ER23: 0 | ES23: 0 | ET23: 0 | EZ23: 0 | FA23: 0 | FB23: 0 | FC23: 0 | FH23: 0 | FI23: 0 | FJ23: 0 | FK23: 0 | FQ23: 0 | FR23: 0 | FS23: 0 | FT23: 0 | FY23: 0 | FZ23: 0 | GA23: 0 | GB23: 0
B24: Nbre Transformations | C24: =BV2+CM2+DD2+DU2+EL2+FC2+FT2 -> 13 | D24: =CD2+CU2+DL2+EC2+ET2+FK2+GB2 -> 4 | E24: =IF(C22+D22<>0,ROUND(C24/C22*100,1)&" % - "&ROUND(D24/D22*100,1)&" % - "&ROUND((C24+D24)/(C22+D22)*100,1)&" %","--") -> 81,3 % - 57,1 % - 73,9 % | G24: 1 | H24: Bayonne | I24: 9 | J24: 2 | K24: 2 | L24: 0 | M24: 0 | N24: 70 | O24: 31 | P24: 39 | Q24: 7 | R24: 2 | S24: 4 | T24: 0 | U24: 0 | V24: 1 | W24: 9 | X24: 6 | Y24: 1 | Z24: 0 | AA24: 1 | AB24: 0 | AC24: 0 | BS24: 0 | BT24: 0 | BU24: 0 | BV24: 0 | CA24: 0 | CB24: 0 | CC24: 0 | CD24: 0 | CJ24: 0 | CK24: 0 | CL24: 0 | CM24: 0 | CR24: 0 | CS24: 0 | CT24: 0 | CU24: 0 | DA24: 0 | DB24: 0 | DC24: 0 | DD24: 0 | DI24: 0 | DJ24: 0 | DK24: 0 | DL24: 0 | DR24: 0 | DS24: 0 | DT24: 0 | DU24: 0 | DZ24: 0 | EA24: 0 | EB24: 0 | EC24: 0 | EI24: 0 | EJ24: 0 | EK24: 0 | EL24: 0 | EQ24: 0 | ER24: 0 | ES24: 0 | ET24: 0 | EZ24: 0 | FA24: 0 | FB24: 0 | FC24: 0 | FH24: 0 | FI24: 0 | FJ24: 0 | FK24: 0 | FQ24: 0 | FR24: 0 | FS24: 0 | FT24: 0 | FY24: 0 | FZ24: 0 | GA24: 0 | GB24: 0
B25: Par match | C25: =IF(BN48=0,0,ROUND(C24/BN48,1)) -> 1.9 | D25: =IF(BN48=0,0,ROUND(D24/BN48,1)) -> 0.6 | E25: =C25+D25 -> 2.5 | G25: 2 | H25: Perpignan | I25: 5 | J25: 2 | K25: 1 | L25: 0 | M25: 1 | N25: 53 | O25: 51 | P25: 2 | Q25: 5 | R25: 3 | S25: 5 | T25: 3 | U25: 1 | V25: 3 | W25: 5 | X25: 7 | Y25: 0 | Z25: 1 | AA25: 1 | AB25: 0 | AC25: 1 | BS25: 0 | BT25: 0 | BU25: 0 | BV25: 0 | CA25: 0 | CB25: 0 | CC25: 0 | CD25: 0 | CJ25: 0 | CK25: 0 | CL25: 0 | CM25: 0 | CR25: 0 | CS25: 0 | CT25: 0 | CU25: 0 | DA25: 0 | DB25: 0 | DC25: 0 | DD25: 0 | DI25: 0 | DJ25: 0 | DK25: 0 | DL25: 0 | DR25: 0 | DS25: 0 | DT25: 0 | DU25: 0 | DZ25: 0 | EA25: 0 | EB25: 0 | EC25: 0 | EI25: 0 | EJ25: 0 | EK25: 0 | EL25: 0 | EQ25: 0 | ER25: 0 | ES25: 0 | ET25: 0 | EZ25: 0 | FA25: 0 | FB25: 0 | FC25: 0 | FH25: 0 | FI25: 0 | FJ25: 0 | FK25: 0 | FQ25: 0 | FR25: 0 | FS25: 0 | FT25: 0 | FY25: 0 | FZ25: 0 | GA25: 0 | GB25: 0
B26: Nbre Pénalités | C26: =BT2+CK2+DB2+DS2+EJ2+FA2+FR2 -> 31 | D26: =CB2+CS2+DJ2+EA2+ER2+FI2+FZ2 -> 25 | E26: 56 | G26: 3 | H26: Toulon | I26: 5 | J26: 1 | K26: 1 | L26: 0 | M26: 0 | N26: 41 | O26: 14 | P26: 27 | Q26: 5 | R26: 1 | S26: 5 | T26: 0 | U26: 1 | V26: 0 | W26: 1 | X26: 3 | Y26: 1 | Z26: 0 | AA26: 1 | AB26: 1 | AC26: 2 | BS26: 0 | BT26: 0 | BU26: 0 | BV26: 0 | CA26: 0 | CB26: 0 | CC26: 0 | CD26: 0 | CJ26: 0 | CK26: 0 | CL26: 0 | CM26: 0 | CR26: 0 | CS26: 0 | CT26: 0 | CU26: 0 | DA26: 0 | DB26: 0 | DC26: 0 | DD26: 0 | DI26: 0 | DJ26: 0 | DK26: 0 | DL26: 0 | DR26: 0 | DS26: 0 | DT26: 0 | DU26: 0 | DZ26: 0 | EA26: 0 | EB26: 0 | EC26: 0 | EI26: 0 | EJ26: 0 | EK26: 0 | EL26: 0 | EQ26: 0 | ER26: 0 | ES26: 0 | ET26: 0 | EZ26: 0 | FA26: 0 | FB26: 0 | FC26: 0 | FH26: 0 | FI26: 0 | FJ26: 0 | FK26: 0 | FQ26: 0 | FR26: 0 | FS26: 0 | FT26: 0 | FY26: 0 | FZ26: 0 | GA26: 0 | GB26: 0
B27: Par match | C27: =IF(BN48=0,0,ROUND(C26/BN48,1)) -> 4.4 | D27: =IF(BN48=0,0,ROUND(D26/BN48,1)) -> 3.6 | E27: 8 | G27: 4 | H27: Toulouse | I27: 5 | J27: 1 | K27: 1 | L27: 0 | M27: 0 | N27: 40 | O27: 3 | P27: 37 | Q27: 4 | R27: 0 | S27: 4 | T27: 0 | U27: 0 | V27: 0 | W27: 4 | X27: 1 | Y27: 1 | Z27: 0 | AA27: 1 | AB27: 0 | AC27: 1 | BS27: 0 | BT27: 0 | BU27: 0 | BV27: 0 | CA27: 0 | CB27: 0 | CC27: 0 | CD27: 0 | CJ27: 0 | CK27: 0 | CL27: 0 | CM27: 0 | CR27: 0 | CS27: 0 | CT27: 0 | CU27: 0 | DA27: 0 | DB27: 0 | DC27: 0 | DD27: 0 | DI27: 0 | DJ27: 0 | DK27: 0 | DL27: 0 | DR27: 0 | DS27: 0 | DT27: 0 | DU27: 0 | DZ27: 0 | EA27: 0 | EB27: 0 | EC27: 0 | EI27: 0 | EJ27: 0 | EK27: 0 | EL27: 0 | EQ27: 0 | ER27: 0 | ES27: 0 | ET27: 0 | EZ27: 0 | FA27: 0 | FB27: 0 | FC27: 0 | FH27: 0 | FI27: 0 | FJ27: 0 | FK27: 0 | FQ27: 0 | FR27: 0 | FS27: 0 | FT27: 0 | FY27: 0 | FZ27: 0 | GA27: 0 | GB27: 0
B28: Nbre Drop | C28: =BU2+CL2+DC2+DT2+EK2+FB2+FS2 -> 4 | D28: =CC2+CT2+DK2+EB2+ES2+FJ2+GA2 -> 1 | E28: 5 | G28: 5 | H28: Montferrand | I28: 5 | J28: 1 | K28: 1 | L28: 0 | M28: 0 | N28: 38 | O28: 19 | P28: 19 | Q28: 4 | R28: 1 | S28: 3 | T28: 1 | U28: 1 | V28: 0 | W28: 3 | X28: 4 | Y28: 1 | Z28: 0 | AA28: 1 | AB28: 0 | AC28: 1 | BS28: 0 | BT28: 0 | BU28: 0 | BV28: 0 | CA28: 0 | CB28: 0 | CC28: 0 | CD28: 0 | CJ28: 0 | CK28: 0 | CL28: 0 | CM28: 0 | CR28: 0 | CS28: 0 | CT28: 0 | CU28: 0 | DA28: 0 | DB28: 0 | DC28: 0 | DD28: 0 | DI28: 0 | DJ28: 0 | DK28: 0 | DL28: 0 | DR28: 0 | DS28: 0 | DT28: 0 | DU28: 0 | DZ28: 0 | EA28: 0 | EB28: 0 | EC28: 0 | EI28: 0 | EJ28: 0 | EK28: 0 | EL28: 0 | EQ28: 0 | ER28: 0 | ES28: 0 | ET28: 0 | EZ28: 0 | FA28: 0 | FB28: 0 | FC28: 0 | FH28: 0 | FI28: 0 | FJ28: 0 | FK28: 0 | FQ28: 0 | FR28: 0 | FS28: 0 | FT28: 0 | FY28: 0 | FZ28: 0 | GA28: 0 | GB28: 0
B29: Par match | C29: =IF(BN48=0,0,ROUND(C28/BN48,1)) -> 0.6 | D29: =IF(BN48=0,0,ROUND(D28/BN48,1)) -> 0.1 | E29: 0.7 | G29: 6 | H29: StadeFrancais | I29: 5 | J29: 1 | K29: 1 | L29: 0 | M29: 0 | N29: 38 | O29: 3 | P29: 35 | Q29: 4 | R29: 0 | S29: 3 | T29: 0 | U29: 1 | V29: 0 | W29: 3 | X29: 1 | Y29: 1 | Z29: 0 | AA29: 1 | AB29: 0 | AC29: 0 | BS29: 0 | BT29: 0 | BU29: 0 | BV29: 0 | CA29: 0 | CB29: 0 | CC29: 0 | CD29: 0 | CJ29: 0 | CK29: 0 | CL29: 0 | CM29: 0 | CR29: 0 | CS29: 0 | CT29: 0 | CU29: 0 | DA29: 0 | DB29: 0 | DC29: 0 | DD29: 0 | DI29: 0 | DJ29: 0 | DK29: 0 | DL29: 0 | DR29: 0 | DS29: 0 | DT29: 0 | DU29: 0 | DZ29: 0 | EA29: 0 | EB29: 0 | EC29: 0 | EI29: 0 | EJ29: 0 | EK29: 0 | EL29: 0 | EQ29: 0 | ER29: 0 | ES29: 0 | ET29: 0 | EZ29: 0 | FA29: 0 | FB29: 0 | FC29: 0 | FH29: 0 | FI29: 0 | FJ29: 0 | FK29: 0 | FQ29: 0 | FR29: 0 | FS29: 0 | FT29: 0 | FY29: 0 | FZ29: 0 | GA29: 0 | GB29: 0
B30: Bonus Offensif | C30: 2 | D30: 0 | E30: 2 | G30: 7 | H30: Biarritz | I30: 5 | J30: 2 | K30: 1 | L30: 0 | M30: 1 | N30: 37 | O30: 34 | P30: 3 | Q30: 3 | R30: 1 | S30: 2 | T30: 1 | U30: 1 | V30: 0 | W30: 5 | X30: 9 | Y30: 0 | Z30: 1 | AA30: 1 | AB30: 0 | AC30: 1 | BS30: 0 | BT30: 0 | BU30: 0 | BV30: 0 | CA30: 0 | CB30: 0 | CC30: 0 | CD30: 0 | CJ30: 0 | CK30: 0 | CL30: 0 | CM30: 0 | CR30: 0 | CS30: 0 | CT30: 0 | CU30: 0 | DA30: 0 | DB30: 0 | DC30: 0 | DD30: 0 | DI30: 0 | DJ30: 0 | DK30: 0 | DL30: 0 | DR30: 0 | DS30: 0 | DT30: 0 | DU30: 0 | DZ30: 0 | EA30: 0 | EB30: 0 | EC30: 0 | EI30: 0 | EJ30: 0 | EK30: 0 | EL30: 0 | EP30: =IF(EN30<>"",VLOOKUP(EN30,ActionPts,2,),"") ->  | EQ30: 0 | ER30: 0 | ES30: 0 | ET30: 0 | EZ30: 0 | FA30: 0 | FB30: 0 | FC30: 0 | FH30: 0 | FI30: 0 | FJ30: 0 | FK30: 0 | FQ30: 0 | FR30: 0 | FS30: 0 | FT30: 0 | FY30: 0 | FZ30: 0 | GA30: 0 | GB30: 0
B31: Par match | C31: =IF(BN48=0,0,ROUND(C30/BN48,1)) -> 0.3 | D31: =IF(BN48=0,0,ROUND(D30/BN48,1)) -> 0 | E31: 0.3 | G31: 8 | H31: Castres | I31: 5 | J31: 1 | K31: 1 | L31: 0 | M31: 0 | N31: 34 | O31: 6 | P31: 28 | Q31: 5 | R31: 0 | S31: 3 | T31: 0 | U31: 0 | V31: 0 | W31: 1 | X31: 2 | Y31: 1 | Z31: 0 | AA31: 1 | AB31: 1 | AC31: 1 | BS31: 0 | BT31: 0 | BU31: 0 | BV31: 0 | CA31: 0 | CB31: 0 | CC31: 0 | CD31: 0 | CJ31: 0 | CK31: 0 | CL31: 0 | CM31: 0 | CR31: 0 | CS31: 0 | CT31: 0 | CU31: 0 | DA31: 0 | DB31: 0 | DC31: 0 | DD31: 0 | DI31: 0 | DJ31: 0 | DK31: 0 | DL31: 0 | DR31: 0 | DS31: 0 | DT31: 0 | DU31: 0 | DZ31: 0 | EA31: 0 | EB31: 0 | EC31: 0 | EI31: 0 | EJ31: 0 | EK31: 0 | EL31: 0 | EQ31: 0 | ER31: 0 | ES31: 0 | ET31: 0 | EZ31: 0 | FA31: 0 | FB31: 0 | FC31: 0 | FH31: 0 | FI31: 0 | FJ31: 0 | FK31: 0 | FQ31: 0 | FR31: 0 | FS31: 0 | FT31: 0 | FY31: 0 | FZ31: 0 | GA31: 0 | GB31: 0
B32: Bonus Défensif | C32: 0 | D32: 2 | E32: 2 | G32: 9 | H32: Montpellier | I32: 6 | J32: 2 | K32: 1 | L32: 1 | M32: 0 | N32: 55 | O32: 46 | P32: 9 | Q32: 4 | R32: 4 | S32: 4 | T32: 4 | U32: 2 | V32: 0 | W32: 7 | X32: 6 | Y32: 0 | Z32: 0 | AA32: 0 | AB32: 0 | AC32: 2 | BS32: 0 | BT32: 0 | BU32: 0 | BV32: 0 | CA32: 0 | CB32: 0 | CC32: 0 | CD32: 0 | CJ32: 0 | CK32: 0 | CL32: 0 | CM32: 0 | CR32: 0 | CS32: 0 | CT32: 0 | CU32: 0 | DA32: 0 | DB32: 0 | DC32: 0 | DD32: 0 | DI32: 0 | DJ32: 0 | DK32: 0 | DL32: 0 | DR32: 0 | DS32: 0 | DT32: 0 | DU32: 0 | DZ32: 0 | EA32: 0 | EB32: 0 | EC32: 0 | EI32: 0 | EJ32: 0 | EK32: 0 | EL32: 0 | EQ32: 0 | ER32: 0 | ES32: 0 | ET32: 0 | EZ32: 0 | FA32: 0 | FB32: 0 | FC32: 0 | FH32: 0 | FI32: 0 | FJ32: 0 | FK32: 0 | FQ32: 0 | FR32: 0 | FS32: 0 | FT32: 0 | FY32: 0 | FZ32: 0 | GA32: 0 | GB32: 0
B33: Par match | C33: =IF(BN48=0,0,ROUND(C32/BN48,1)) -> 0 | D33: =IF(BN48=0,0,ROUND(D32/BN48,1)) -> 0.3 | E33: 0.3 | G33: 10 | H33: BordeauxBègles | I33: 8 | J33: 2 | K33: 2 | L33: 0 | M33: 0 | N33: 52 | O33: 45 | P33: 7 | Q33: 1 | R33: 2 | S33: 1 | T33: 1 | U33: 1 | V33: 0 | W33: 14 | X33: 11 | Y33: 0 | Z33: 0 | AA33: 0 | AB33: 0 | AC33: 0 | BS33: 0 | BT33: 0 | BU33: 0 | BV33: 0 | CA33: 0 | CB33: 0 | CC33: 0 | CD33: 0 | CJ33: 0 | CK33: 0 | CL33: 0 | CM33: 0 | CR33: 0 | CS33: 0 | CT33: 0 | CU33: 0 | DA33: 0 | DB33: 0 | DC33: 0 | DD33: 0 | DI33: 0 | DJ33: 0 | DK33: 0 | DL33: 0 | DR33: 0 | DS33: 0 | DT33: 0 | DU33: 0 | DZ33: 0 | EA33: 0 | EB33: 0 | EC33: 0 | EI33: 0 | EJ33: 0 | EK33: 0 | EL33: 0 | EQ33: 0 | ER33: 0 | ES33: 0 | ET33: 0 | EZ33: 0 | FA33: 0 | FB33: 0 | FC33: 0 | FH33: 0 | FI33: 0 | FJ33: 0 | FK33: 0 | FQ33: 0 | FR33: 0 | FS33: 0 | FT33: 0 | FY33: 0 | FZ33: 0 | GA33: 0 | GB33: 0
B34: Carton Jaune | C34: =BP46+CG46+CX46+DO46+EF46+EW46+FN46 -> 5 | D34: =BX46+CO46+DF46+DW46+EN46+FE46+FV46 -> 11 | E34: 16 | G34: 11 | H34: Grenoble | I34: 8 | J34: 2 | K34: 2 | L34: 0 | M34: 0 | N34: 47 | O34: 42 | P34: 5 | Q34: 2 | R34: 2 | S34: 2 | T34: 1 | U34: 0 | V34: 0 | W34: 11 | X34: 10 | Y34: 0 | Z34: 0 | AA34: 0 | AB34: 0 | AC34: 2 | BS34: 0 | BT34: 0 | BU34: 0 | BV34: 0 | CA34: 0 | CB34: 0 | CC34: 0 | CD34: 0 | CJ34: 0 | CK34: 0 | CL34: 0 | CM34: 0 | CR34: 0 | CS34: 0 | CT34: 0 | CU34: 0 | DA34: 0 | DB34: 0 | DC34: 0 | DD34: 0 | DI34: 0 | DJ34: 0 | DK34: 0 | DL34: 0 | DR34: 0 | DS34: 0 | DT34: 0 | DU34: 0 | DZ34: 0 | EA34: 0 | EB34: 0 | EC34: 0 | EI34: 0 | EJ34: 0 | EK34: 0 | EL34: 0 | EQ34: 0 | ER34: 0 | ES34: 0 | ET34: 0 | EZ34: 0 | FA34: 0 | FB34: 0 | FC34: 0 | FH34: 0 | FI34: 0 | FJ34: 0 | FK34: 0 | FQ34: 0 | FR34: 0 | FS34: 0 | FT34: 0 | FY34: 0 | FZ34: 0 | GA34: 0 | GB34: 0
B35: Par match | C35: =IF(BN48=0,0,ROUND(C34/BN48,1)) -> 0.7 | D35: =IF(BN48=0,0,ROUND(D34/BN48,1)) -> 1.6 | E35: 2.3 | G35: 12 | H35: RacingMétro92 | I35: 8 | J35: 2 | K35: 2 | L35: 0 | M35: 0 | N35: 41 | O35: 23 | P35: 18 | Q35: 2 | R35: 1 | S35: 2 | T35: 0 | U35: 0 | V35: 1 | W35: 9 | X35: 5 | Y35: 0 | Z35: 0 | AA35: 0 | AB35: 0 | AC35: 0 | BS35: 0 | BT35: 0 | BU35: 0 | BV35: 0 | CA35: 0 | CB35: 0 | CC35: 0 | CD35: 0 | CJ35: 0 | CK35: 0 | CL35: 0 | CM35: 0 | CR35: 0 | CS35: 0 | CT35: 0 | CU35: 0 | DA35: 0 | DB35: 0 | DC35: 0 | DD35: 0 | DI35: 0 | DJ35: 0 | DK35: 0 | DL35: 0 | DR35: 0 | DS35: 0 | DT35: 0 | DU35: 0 | DZ35: 0 | EA35: 0 | EB35: 0 | EC35: 0 | EI35: 0 | EJ35: 0 | EK35: 0 | EL35: 0 | EQ35: 0 | ER35: 0 | ES35: 0 | ET35: 0 | EZ35: 0 | FA35: 0 | FB35: 0 | FC35: 0 | FH35: 0 | FI35: 0 | FJ35: 0 | FK35: 0 | FQ35: 0 | FR35: 0 | FS35: 0 | FT35: 0 | FY35: 0 | FZ35: 0 | GA35: 0 | GB35: 0
B36: Carton Rouge | C36: =BP47+CG47+CX47+DO47+EF47+EW47+FN47 -> 0 | D36: =BX47+CO47+DF47+DW47+EN47+FE47+FV47 -> 0 | E36: 0 | G36: 13 | H36: Oyonnax | I36: 4 | J36: 1 | K36: 1 | L36: 0 | M36: 0 | N36: 30 | O36: 19 | P36: 11 | Q36: 3 | R36: 2 | S36: 3 | T36: 0 | U36: 1 | V36: 0 | W36: 2 | X36: 3 | Y36: 0 | Z36: 0 | AA36: 0 | AB36: 0 | AC36: 1 | BS36: 0 | BT36: 0 | BU36: 0 | BV36: 0 | CA36: 0 | CB36: 0 | CC36: 0 | CD36: 0 | CJ36: 0 | CK36: 0 | CL36: 0 | CM36: 0 | CR36: 0 | CS36: 0 | CT36: 0 | CU36: 0 | DA36: 0 | DB36: 0 | DC36: 0 | DD36: 0 | DI36: 0 | DJ36: 0 | DK36: 0 | DL36: 0 | DR36: 0 | DS36: 0 | DT36: 0 | DU36: 0 | DZ36: 0 | EA36: 0 | EB36: 0 | EC36: 0 | EI36: 0 | EJ36: 0 | EK36: 0 | EL36: 0 | EQ36: 0 | ER36: 0 | ES36: 0 | ET36: 0 | EZ36: 0 | FA36: 0 | FB36: 0 | FC36: 0 | FH36: 0 | FI36: 0 | FJ36: 0 | FK36: 0 | FQ36: 0 | FR36: 0 | FS36: 0 | FT36: 0 | FY36: 0 | FZ36: 0 | GA36: 0 | GB36: 0
B37: Par match | C37: =IF(BN48=0,0,ROUND(C36/BN48,1)) -> 0 | D37: =IF(BN48=0,0,ROUND(D36/BN48,1)) -> 0 | E37: 0 | G37: 14 | H37: Brive | I37: 4 | J37: 1 | K37: 1 | L37: 0 | M37: 0 | N37: 25 | O37: 12 | P37: 13 | Q37: 1 | R37: 0 | S37: 1 | T37: 0 | U37: 0 | V37: 0 | W37: 6 | X37: 4 | Y37: 0 | Z37: 0 | AA37: 0 | AB37: 0 | AC37: 0 | BS37: 0 | BT37: 0 | BU37: 0 | BV37: 0 | CA37: 0 | CB37: 0 | CC37: 0 | CD37: 0 | CJ37: 0 | CK37: 0 | CL37: 0 | CM37: 0 | CR37: 0 | CS37: 0 | CT37: 0 | CU37: 0 | DA37: 0 | DB37: 0 | DC37: 0 | DD37: 0 | DI37: 0 | DJ37: 0 | DK37: 0 | DL37: 0 | DR37: 0 | DS37: 0 | DT37: 0 | DU37: 0 | DZ37: 0 | EA37: 0 | EB37: 0 | EC37: 0 | EI37: 0 | EJ37: 0 | EK37: 0 | EL37: 0 | EQ37: 0 | ER37: 0 | ES37: 0 | ET37: 0 | EZ37: 0 | FA37: 0 | FB37: 0 | FC37: 0 | FH37: 0 | FI37: 0 | FJ37: 0 | FK37: 0 | FQ37: 0 | FR37: 0 | FS37: 0 | FT37: 0 | FY37: 0 | FZ37: 0 | GA37: 0 | GB37: 0
BS38: 0 | BT38: 0 | BU38: 0 | BV38: 0 | CA38: 0 | CB38: 0 | CC38: 0 | CD38: 0 | CJ38: 0 | CK38: 0 | CL38: 0 | CM38: 0 | CR38: 0 | CS38: 0 | CT38: 0 | CU38: 0 | DA38: 0 | DB38: 0 | DC38: 0 | DD38: 0 | DI38: 0 | DJ38: 0 | DK38: 0 | DL38: 0 | DR38: 0 | DS38: 0 | DT38: 0 | DU38: 0 | DZ38: 0 | EA38: 0 | EB38: 0 | EC38: 0 | EI38: 0 | EJ38: 0 | EK38: 0 | EL38: 0 | EQ38: 0 | ER38: 0 | ES38: 0 | ET38: 0 | EZ38: 0 | FA38: 0 | FB38: 0 | FC38: 0 | FH38: 0 | FI38: 0 | FJ38: 0 | FK38: 0 | FQ38: 0 | FR38: 0 | FS38: 0 | FT38: 0 | FY38: 0 | FZ38: 0 | GA38: 0 | GB38: 0
BS39: 0 | BT39: 0 | BU39: 0 | BV39: 0 | CA39: 0 | CB39: 0 | CC39: 0 | CD39: 0 | CJ39: 0 | CK39: 0 | CL39: 0 | CM39: 0 | CR39: 0 | CS39: 0 | CT39: 0 | CU39: 0 | DA39: 0 | DB39: 0 | DC39: 0 | DD39: 0 | DI39: 0 | DJ39: 0 | DK39: 0 | DL39: 0 | DR39: 0 | DS39: 0 | DT39: 0 | DU39: 0 | DZ39: 0 | EA39: 0 | EB39: 0 | EC39: 0 | EI39: 0 | EJ39: 0 | EK39: 0 | EL39: 0 | EQ39: 0 | ER39: 0 | ES39: 0 | ET39: 0 | EZ39: 0 | FA39: 0 | FB39: 0 | FC39: 0 | FH39: 0 | FI39: 0 | FJ39: 0 | FK39: 0 | FQ39: 0 | FR39: 0 | FS39: 0 | FT39: 0 | FY39: 0 | FZ39: 0 | GA39: 0 | GB39: 0
I40: Classement à l'Extérieur | BS40: 0 | BT40: 0 | BU40: 0 | BV40: 0 | CA40: 0 | CB40: 0 | CC40: 0 | CD40: 0 | CJ40: 0 | CK40: 0 | CL40: 0 | CM40: 0 | CR40: 0 | CS40: 0 | CT40: 0 | CU40: 0 | DA40: 0 | DB40: 0 | DC40: 0 | DD40: 0 | DI40: 0 | DJ40: 0 | DK40: 0 | DL40: 0 | DR40: 0 | DS40: 0 | DT40: 0 | DU40: 0 | DZ40: 0 | EA40: 0 | EB40: 0 | EC40: 0 | EI40: 0 | EJ40: 0 | EK40: 0 | EL40: 0 | EQ40: 0 | ER40: 0 | ES40: 0 | ET40: 0 | EZ40: 0 | FA40: 0 | FB40: 0 | FC40: 0 | FH40: 0 | FI40: 0 | FJ40: 0 | FK40: 0 | FQ40: 0 | FR40: 0 | FS40: 0 | FT40: 0 | FY40: 0 | FZ40: 0 | GA40: 0 | GB40: 0
BS41: 0 | BT41: 0 | BU41: 0 | BV41: 0 | CA41: 0 | CB41: 0 | CC41: 0 | CD41: 0 | CJ41: 0 | CK41: 0 | CL41: 0 | CM41: 0 | CR41: 0 | CS41: 0 | CT41: 0 | CU41: 0 | DA41: 0 | DB41: 0 | DC41: 0 | DD41: 0 | DI41: 0 | DJ41: 0 | DK41: 0 | DL41: 0 | DR41: 0 | DS41: 0 | DT41: 0 | DU41: 0 | DZ41: 0 | EA41: 0 | EB41: 0 | EC41: 0 | EI41: 0 | EJ41: 0 | EK41: 0 | EL41: 0 | EQ41: 0 | ER41: 0 | ES41: 0 | ET41: 0 | EZ41: 0 | FA41: 0 | FB41: 0 | FC41: 0 | FH41: 0 | FI41: 0 | FJ41: 0 | FK41: 0 | FQ41: 0 | FR41: 0 | FS41: 0 | FT41: 0 | FY41: 0 | FZ41: 0 | GA41: 0 | GB41: 0
I42: Pts | J42: J. | K42: G | L42: N | M42: P | N42: Pr | O42: Ctr | P42: Diff | Q42: E p | R42: E c | S42: Tp | T42: Tc | U42: Dp | V42: Dc | W42: Pp | X42: Pc | Y42: B.O | Z42: B.D | AA42: Bon | AB42: Cr | AC42: Cj | BS42: 0 | BT42: 0 | BU42: 0 | BV42: 0 | CA42: 0 | CB42: 0 | CC42: 0 | CD42: 0 | CJ42: 0 | CK42: 0 | CL42: 0 | CM42: 0 | CR42: 0 | CS42: 0 | CT42: 0 | CU42: 0 | DA42: 0 | DB42: 0 | DC42: 0 | DD42: 0 | DI42: 0 | DJ42: 0 | DK42: 0 | DL42: 0 | DR42: 0 | DS42: 0 | DT42: 0 | DU42: 0 | DZ42: 0 | EA42: 0 | EB42: 0 | EC42: 0 | EI42: 0 | EJ42: 0 | EK42: 0 | EL42: 0 | EQ42: 0 | ER42: 0 | ES42: 0 | ET42: 0 | EZ42: 0 | FA42: 0 | FB42: 0 | FC42: 0 | FH42: 0 | FI42: 0 | FJ42: 0 | FK42: 0 | FQ42: 0 | FR42: 0 | FS42: 0 | FT42: 0 | FY42: 0 | FZ42: 0 | GA42: 0 | GB42: 0
G43: 1 | H43: Castres | I43: 2 | J43: 2 | K43: 0 | L43: 0 | M43: 2 | N43: 43 | O43: 47 | P43: -4 | Q43: 3 | R43: 2 | S43: 2 | T43: 2 | U43: 0 | V43: 2 | W43: 8 | X43: 9 | Y43: 0 | Z43: 2 | AA43: 2 | AB43: 0 | AC43: 2 | BS43: 0 | BT43: 0 | BU43: 0 | BV43: 0 | CA43: 0 | CB43: 0 | CC43: 0 | CD43: 0 | CJ43: 0 | CK43: 0 | CL43: 0 | CM43: 0 | CR43: 0 | CS43: 0 | CT43: 0 | CU43: 0 | DA43: 0 | DB43: 0 | DC43: 0 | DD43: 0 | DI43: 0 | DJ43: 0 | DK43: 0 | DL43: 0 | DR43: 0 | DS43: 0 | DT43: 0 | DU43: 0 | DZ43: 0 | EA43: 0 | EB43: 0 | EC43: 0 | EI43: 0 | EJ43: 0 | EK43: 0 | EL43: 0 | EQ43: 0 | ER43: 0 | ES43: 0 | ET43: 0 | EZ43: 0 | FA43: 0 | FB43: 0 | FC43: 0 | FH43: 0 | FI43: 0 | FJ43: 0 | FK43: 0 | FQ43: 0 | FR43: 0 | FS43: 0 | FT43: 0 | FY43: 0 | FZ43: 0 | GA43: 0 | GB43: 0
G44: 2 | H44: Toulon | I44: 3 | J44: 2 | K44: 0 | L44: 1 | M44: 1 | N44: 48 | O44: 50 | P44: -2 | Q44: 2 | R44: 2 | S44: 1 | T44: 2 | U44: 0 | V44: 1 | W44: 12 | X44: 11 | Y44: 0 | Z44: 1 | AA44: 1 | AB44: 0 | AC44: 1 | BS44: 0 | BT44: 0 | BU44: 0 | BV44: 0 | CA44: 0 | CB44: 0 | CC44: 0 | CD44: 0 | CJ44: 0 | CK44: 0 | CL44: 0 | CM44: 0 | CR44: 0 | CS44: 0 | CT44: 0 | CU44: 0 | DA44: 0 | DB44: 0 | DC44: 0 | DD44: 0 | DI44: 0 | DJ44: 0 | DK44: 0 | DL44: 0 | DR44: 0 | DS44: 0 | DT44: 0 | DU44: 0 | DZ44: 0 | EA44: 0 | EB44: 0 | EC44: 0 | EI44: 0 | EJ44: 0 | EK44: 0 | EL44: 0 | EQ44: 0 | ER44: 0 | ES44: 0 | ET44: 0 | EZ44: 0 | FA44: 0 | FB44: 0 | FC44: 0 | FH44: 0 | FI44: 0 | FJ44: 0 | FK44: 0 | FQ44: 0 | FR44: 0 | FS44: 0 | FT44: 0 | FY44: 0 | FZ44: 0 | GA44: 0 | GB44: 0
G45: 3 | H45: Toulouse | I45: 1 | J45: 2 | K45: 0 | L45: 0 | M45: 2 | N45: 44 | O45: 69 | P45: -25 | Q45: 2 | R45: 5 | S45: 2 | T45: 4 | U45: 0 | V45: 1 | W45: 10 | X45: 11 | Y45: 0 | Z45: 1 | AA45: 1 | AB45: 0 | AC45: 2 | BS45: 0 | BT45: 0 | BU45: 0 | BV45: 0 | CA45: 0 | CB45: 0 | CC45: 0 | CD45: 0 | CJ45: 0 | CK45: 0 | CL45: 0 | CM45: 0 | CR45: 0 | CS45: 0 | CT45: 0 | CU45: 0 | DA45: 0 | DB45: 0 | DC45: 0 | DD45: 0 | DI45: 0 | DJ45: 0 | DK45: 0 | DL45: 0 | DR45: 0 | DS45: 0 | DT45: 0 | DU45: 0 | DZ45: 0 | EA45: 0 | EB45: 0 | EC45: 0 | EI45: 0 | EJ45: 0 | EK45: 0 | EL45: 0 | EQ45: 0 | ER45: 0 | ES45: 0 | ET45: 0 | EZ45: 0 | FA45: 0 | FB45: 0 | FC45: 0 | FH45: 0 | FI45: 0 | FJ45: 0 | FK45: 0 | FQ45: 0 | FR45: 0 | FS45: 0 | FT45: 0 | FY45: 0 | FZ45: 0 | GA45: 0 | GB45: 0
G46: 4 | H46: StadeFrancais | I46: 5 | J46: 2 | K46: 1 | L46: 0 | M46: 1 | N46: 44 | O46: 46 | P46: -2 | Q46: 2 | R46: 4 | S46: 2 | T46: 4 | U46: 3 | V46: 0 | W46: 7 | X46: 6 | Y46: 0 | Z46: 1 | AA46: 1 | AB46: 0 | AC46: 2 | BP46: =COUNTIF(BP5:BP45,"Carton Jaune") -> 0 | BX46: =COUNTIF(BX5:BX45,"Carton Jaune") -> 0 | CG46: =COUNTIF(CG5:CG45,"Carton Jaune") -> 0 | CO46: =COUNTIF(CO5:CO45,"Carton Jaune") -> 0 | CX46: =COUNTIF(CX5:CX45,"Carton Jaune") -> 1 | DF46: =COUNTIF(DF5:DF45,"Carton Jaune") -> 1 | DO46: =COUNTIF(DO5:DO45,"Carton Jaune") -> 2 | DW46: =COUNTIF(DW5:DW45,"Carton Jaune") -> 0 | EF46: =COUNTIF(EF5:EF45,"Carton Jaune") -> 2 | EN46: =COUNTIF(EN5:EN45,"Carton Jaune") -> 4 | EW46: =COUNTIF(EW5:EW45,"Carton Jaune") -> 0 | FE46: =COUNTIF(FE5:FE45,"Carton Jaune") -> 3 | FN46: =COUNTIF(FN5:FN45,"Carton Jaune") -> 0 | FV46: =COUNTIF(FV5:FV45,"Carton Jaune") -> 3
G47: 5 | H47: Brive | I47: 1 | J47: 2 | K47: 0 | L47: 0 | M47: 2 | N47: 38 | O47: 52 | P47: -14 | Q47: 4 | R47: 4 | S47: 3 | T47: 4 | U47: 1 | V47: 1 | W47: 3 | X47: 7 | Y47: 0 | Z47: 1 | AA47: 1 | AB47: 0 | AC47: 4 | BP47: =COUNTIF(BP5:BP45,"Carton Rouge") -> 0 | BX47: =COUNTIF(BX5:BX45,"Carton Rouge") -> 0 | CG47: =COUNTIF(CG5:CG45,"Carton Rouge") -> 0 | CO47: =COUNTIF(CO5:CO45,"Carton Rouge") -> 0 | CX47: =COUNTIF(CX5:CX45,"Carton Rouge") -> 0 | DF47: =COUNTIF(DF5:DF45,"Carton Rouge") -> 0 | DO47: =COUNTIF(DO5:DO45,"Carton Rouge") -> 0 | DW47: =COUNTIF(DW5:DW45,"Carton Rouge") -> 0 | EF47: =COUNTIF(EF5:EF45,"Carton Rouge") -> 0 | EN47: =COUNTIF(EN5:EN45,"Carton Rouge") -> 0 | EW47: =COUNTIF(EW5:EW45,"Carton Rouge") -> 0 | FE47: =COUNTIF(FE5:FE45,"Carton Rouge") -> 0 | FN47: =COUNTIF(FN5:FN45,"Carton Rouge") -> 0 | FV47: =COUNTIF(FV5:FV45,"Carton Rouge") -> 0
G48: 6 | H48: Montpellier | I48: 1 | J48: 1 | K48: 0 | L48: 0 | M48: 1 | N48: 12 | O48: 19 | P48: -7 | Q48: 0 | R48: 1 | S48: 0 | T48: 1 | U48: 0 | V48: 0 | W48: 4 | X48: 4 | Y48: 0 | Z48: 1 | AA48: 1 | AB48: 0 | AC48: 1 | BN48: =COUNTIF(BY48:FW48,"OK") -> 7 | BY48: =IF(COUNTA(BO5:BO45)+COUNTA(BW5:BW45)<>0,"OK","F") -> OK | CP48: =IF(COUNTA(CF5:CF45)+COUNTA(CN5:CN45)<>0,"OK","F") -> OK | DG48: =IF(COUNTA(CW5:CW45)+COUNTA(DE5:DE45)<>0,"OK","F") -> OK | DX48: =IF(COUNTA(DN5:DN45)+COUNTA(DV5:DV45)<>0,"OK","F") -> OK | EO48: =IF(COUNTA(EE5:EE45)+COUNTA(EM5:EM45)<>0,"OK","F") -> OK | FF48: =IF(COUNTA(EV5:EV45)+COUNTA(FD5:FD45)<>0,"OK","F") -> OK | FW48: =IF(COUNTA(FM5:FM45)+COUNTA(FU5:FU45)<>0,"OK","F") -> OK
G49: 7 | H49: Montferrand | I49: 4 | J49: 2 | K49: 1 | L49: 0 | M49: 1 | N49: 41 | O49: 48 | P49: -7 | Q49: 3 | R49: 5 | S49: 1 | T49: 4 | U49: 0 | V49: 2 | W49: 8 | X49: 3 | Y49: 0 | Z49: 0 | AA49: 0 | AB49: 0 | AC49: 2
G50: 8 | H50: Oyonnax | I50: 0 | J50: 2 | K50: 0 | L50: 0 | M50: 2 | N50: 20 | O50: 61 | P50: -41 | Q50: 1 | R50: 5 | S50: 0 | T50: 3 | U50: 0 | V50: 0 | W50: 5 | X50: 10 | Y50: 0 | Z50: 0 | AA50: 0 | AB50: 0 | AC50: 3
G51: 9 | H51: Perpignan | I51: 0 | J51: 1 | K51: 0 | L51: 0 | M51: 1 | N51: 20 | O51: 31 | P51: -11 | Q51: 1 | R51: 3 | S51: 0 | T51: 2 | U51: 1 | V51: 0 | W51: 4 | X51: 4 | Y51: 0 | Z51: 0 | AA51: 0 | AB51: 0 | AC51: 0
G52: 10 | H52: RacingMétro92 | I52: 0 | J52: 1 | K52: 0 | L52: 0 | M52: 1 | N52: 14 | O52: 41 | P52: -27 | Q52: 1 | R52: 5 | S52: 0 | T52: 5 | U52: 0 | V52: 1 | W52: 3 | X52: 1 | Y52: 0 | Z52: 0 | AA52: 0 | AB52: 1 | AC52: 0
G53: 11 | H53: BordeauxBègles | I53: 0 | J53: 1 | K53: 0 | L53: 0 | M53: 1 | N53: 12 | O53: 25 | P53: -13 | Q53: 0 | R53: 1 | S53: 0 | T53: 1 | U53: 0 | V53: 0 | W53: 4 | X53: 6 | Y53: 0 | Z53: 0 | AA53: 0 | AB53: 0 | AC53: 2
G54: 12 | H54: Grenoble | I54: 0 | J54: 1 | K54: 0 | L54: 0 | M54: 1 | N54: 6 | O54: 34 | P54: -28 | Q54: 0 | R54: 5 | S54: 0 | T54: 3 | U54: 0 | V54: 0 | W54: 2 | X54: 1 | Y54: 0 | Z54: 0 | AA54: 0 | AB54: 0 | AC54: 2
G55: 13 | H55: Biarritz | I55: 0 | J55: 1 | K55: 0 | L55: 0 | M55: 1 | N55: 3 | O55: 38 | P55: -35 | Q55: 0 | R55: 4 | S55: 0 | T55: 3 | U55: 0 | V55: 1 | W55: 1 | X55: 3 | Y55: 0 | Z55: 0 | AA55: 0 | AB55: 0 | AC55: 3
G56: 14 | H56: Bayonne | I56: 0 | J56: 1 | K56: 0 | L56: 0 | M56: 1 | N56: 3 | O56: 40 | P56: -37 | Q56: 0 | R56: 4 | S56: 0 | T56: 4 | U56: 0 | V56: 0 | W56: 1 | X56: 4 | Y56: 0 | Z56: 0 | AA56: 0 | AB56: 1 | AC56: 0
I59: Classement de la journée
I61: Pts | J61: J. | K61: G | L61: N | M61: P | N61: Pr | O61: Ctr | P61: Diff | Q61: E p | R61: E c | S61: Tp | T61: Tc | U61: Dp | V61: Dc | W61: Pp | X61: Pc | Y61: B.O | Z61: B.D | AA61: Bon | AB61: Cr | AC61: Cj
G62: 1 | H62: Montferrand | I62: 5 | J62: 1 | K62: 1 | L62: 0 | M62: 0 | N62: 38 | O62: 19 | P62: 19 | Q62: 4 | R62: 1 | S62: 3 | T62: 1 | U62: 1 | V62: 0 | W62: 3 | X62: 4 | Y62: 1 | Z62: 0 | AA62: 1 | AB62: 0 | AC62: 1
G63: 2 | H63: StadeFrancais | I63: 5 | J63: 1 | K63: 1 | L63: 0 | M63: 0 | N63: 38 | O63: 3 | P63: 35 | Q63: 4 | R63: 0 | S63: 3 | T63: 0 | U63: 1 | V63: 0 | W63: 3 | X63: 1 | Y63: 1 | Z63: 0 | AA63: 1 | AB63: 0 | AC63: 0
G64: 3 | H64: Toulon | I64: 1 | J64: 1 | K64: 0 | L64: 0 | M64: 1 | N64: 26 | O64: 28 | P64: -2 | Q64: 1 | R64: 1 | S64: 0 | T64: 1 | U64: 0 | V64: 0 | W64: 7 | X64: 7 | Y64: 0 | Z64: 1 | AA64: 1 | AB64: 0 | AC64: 0
G65: 4 | H65: Castres | I65: 1 | J65: 1 | K65: 0 | L65: 0 | M65: 1 | N65: 20 | O65: 21 | P65: -1 | Q65: 1 | R65: 0 | S65: 0 | T65: 0 | U65: 0 | V65: 1 | W65: 5 | X65: 6 | Y65: 0 | Z65: 1 | AA65: 1 | AB65: 0 | AC65: 0
G66: 5 | H66: Montpellier | I66: 4 | J66: 1 | K66: 1 | L66: 0 | M66: 0 | N66: 33 | O66: 24 | P66: 9 | Q66: 3 | R66: 3 | S66: 3 | T66: 3 | U66: 1 | V66: 0 | W66: 3 | X66: 1 | Y66: 0 | Z66: 0 | AA66: 0 | AB66: 0 | AC66: 2
G67: 6 | H67: Bayonne | I67: 4 | J67: 1 | K67: 1 | L67: 0 | M67: 0 | N67: 31 | O67: 20 | P67: 11 | Q67: 3 | R67: 1 | S67: 2 | T67: 0 | U67: 0 | V67: 1 | W67: 4 | X67: 4 | Y67: 0 | Z67: 0 | AA67: 0 | AB67: 0 | AC67: 0
G68: 7 | H68: Grenoble | I68: 4 | J68: 1 | K68: 1 | L68: 0 | M68: 0 | N68: 28 | O68: 26 | P68: 2 | Q68: 1 | R68: 1 | S68: 1 | T68: 0 | U68: 0 | V68: 0 | W68: 7 | X68: 7 | Y68: 0 | Z68: 0 | AA68: 0 | AB68: 0 | AC68: 2
G69: 8 | H69: Brive | I69: 0 | J69: 1 | K69: 0 | L69: 0 | M69: 1 | N69: 24 | O69: 33 | P69: -9 | Q69: 3 | R69: 3 | S69: 3 | T69: 3 | U69: 0 | V69: 1 | W69: 1 | X69: 3 | Y69: 0 | Z69: 0 | AA69: 0 | AB69: 0 | AC69: 4
G70: 9 | H70: RacingMétro92 | I70: 4 | J70: 1 | K70: 1 | L70: 0 | M70: 0 | N70: 22 | O70: 9 | P70: 13 | Q70: 1 | R70: 0 | S70: 1 | T70: 0 | U70: 0 | V70: 0 | W70: 5 | X70: 3 | Y70: 0 | Z70: 0 | AA70: 0 | AB70: 0 | AC70: 0
G71: 10 | H71: BordeauxBègles | I71: 4 | J71: 1 | K71: 1 | L71: 0 | M71: 0 | N71: 21 | O71: 20 | P71: 1 | Q71: 0 | R71: 1 | S71: 0 | T71: 0 | U71: 1 | V71: 0 | W71: 6 | X71: 5 | Y71: 0 | Z71: 0 | AA71: 0 | AB71: 0 | AC71: 0
G72: 11 | H72: Perpignan | I72: 0 | J72: 1 | K72: 0 | L72: 0 | M72: 1 | N72: 20 | O72: 31 | P72: -11 | Q72: 1 | R72: 3 | S72: 0 | T72: 2 | U72: 1 | V72: 0 | W72: 4 | X72: 4 | Y72: 0 | Z72: 0 | AA72: 0 | AB72: 0 | AC72: 0
G73: 12 | H73: Toulouse | I73: 0 | J73: 1 | K73: 0 | L73: 0 | M73: 1 | N73: 19 | O73: 38 | P73: -19 | Q73: 1 | R73: 4 | S73: 1 | T73: 3 | U73: 0 | V73: 1 | W73: 4 | X73: 3 | Y73: 0 | Z73: 0 | AA73: 0 | AB73: 0 | AC73: 1
G74: 13 | H74: Oyonnax | I74: 0 | J74: 1 | K74: 0 | L74: 0 | M74: 1 | N74: 9 | O74: 22 | P74: -13 | Q74: 0 | R74: 1 | S74: 0 | T74: 1 | U74: 0 | V74: 0 | W74: 3 | X74: 5 | Y74: 0 | Z74: 0 | AA74: 0 | AB74: 0 | AC74: 3
G75: 14 | H75: Biarritz | I75: 0 | J75: 1 | K75: 0 | L75: 0 | M75: 1 | N75: 3 | O75: 38 | P75: -35 | Q75: 0 | R75: 4 | S75: 0 | T75: 3 | U75: 0 | V75: 1 | W75: 1 | X75: 3 | Y75: 0 | Z75: 0 | AA75: 0 | AB75: 0 | AC75: 3
H78: Essai | J78: Transf | L78: Drop | N78: Pen | P78: BO | Q78: BD | R78: CJ | S78: CR | T78: Pts
A79: =B3 -> Bayonne | B79: Recoit | C79: =E3 -> Perpignan | D79: Visiteur | E79: =C3 -> 31 | F79: =D3 -> 20 | G79: =E2 -> 2013-08-31 | H79: =B4 -> 3 | I79: =E4 -> 1 | J79: =VLOOKUP(A79,$H$62:$AC$75,12,FALSE) -> 2 | K79: =VLOOKUP(A79,$H$62:$AC$75,13,FALSE) -> 0 | L79: =VLOOKUP(A79,$H$62:$AC$75,14,FALSE) -> 0 | M79: =VLOOKUP(A79,$H$62:$AC$75,15,FALSE) -> 1 | N79: =VLOOKUP(A79,$H$62:$AC$75,16,FALSE) -> 4 | O79: =VLOOKUP(A79,$H$62:$AC$75,17,FALSE) -> 4 | P79: =VLOOKUP(A79,$H$62:$AC$75,18,FALSE) -> 0 | Q79: =VLOOKUP(A79,$H$62:$AC$75,19,FALSE) -> 0 | R79: =VLOOKUP(A79,$H$62:$AC$75,22,FALSE) -> 0 | S79: =VLOOKUP(A79,$H$62:$AC$75,21,FALSE) -> 0 | T79: =VLOOKUP(A79,$H$62:$AC$75,2,FALSE) -> 4
A80: =E3 -> Perpignan | B80: Visiteur | C80: =B3 -> Bayonne | D80: Recoit | E80: =D3 -> 20 | F80: =C3 -> 31 | G80: =E2 -> 2013-08-31 | H80: =E4 -> 1 | I80: =B4 -> 3 | J80: =VLOOKUP(A80,$H$62:$AC$75,12,FALSE) -> 0 | K80: =VLOOKUP(A80,$H$62:$AC$75,13,FALSE) -> 2 | L80: =VLOOKUP(A80,$H$62:$AC$75,14,FALSE) -> 1 | M80: =VLOOKUP(A80,$H$62:$AC$75,15,FALSE) -> 0 | N80: =VLOOKUP(A80,$H$62:$AC$75,16,FALSE) -> 4 | O80: =VLOOKUP(A80,$H$62:$AC$75,17,FALSE) -> 4 | P80: 0 | Q80: 0 | R80: =VLOOKUP(A80,$H$62:$AC$75,22,FALSE) -> 0 | S80: =VLOOKUP(A80,$H$62:$AC$75,21,FALSE) -> 0 | T80: =VLOOKUP(A80,$H$62:$AC$75,2,FALSE) -> 0
A81: =B5 -> BordeauxBègles | B81: Recoit | C81: =E5 -> Castres | D81: Visiteur | E81: =C5 -> 21 | F81: =D5 -> 20 | G81: =E2 -> 2013-08-31 | H81: =B6 -> 0 | I81: =E6 -> 1 | J81: 0 | K81: 0 | L81: 1 | M81: 0 | N81: 6 | O81: 5 | P81: 0 | Q81: 0 | R81: 0 | S81: 0 | T81: 4
A82: =E5 -> Castres | B82: Visiteur | C82: =B5 -> BordeauxBègles | D82: Recoit | E82: =D5 -> 20 | F82: =C5 -> 21 | G82: =E2 -> 2013-08-31 | H82: =E6 -> 1 | I82: =B6 -> 0 | J82: 0 | K82: 0 | L82: 0 | M82: 1 | N82: 5 | O82: 6 | P82: 0 | Q82: 1 | R82: 0 | S82: 0 | T82: 1
A83: =B7 -> Montferrand | B83: Recoit | C83: =E7 -> Toulouse | D83: Visiteur | E83: =C7 -> 38 | F83: =D7 -> 19 | G83: =E2 -> 2013-08-31 | H83: =B8 -> 4 | I83: =E8 -> 1 | J83: 3 | K83: 1 | L83: 1 | M83: 0 | N83: 3 | O83: 4 | P83: 1 | Q83: 0 | R83: 1 | S83: 0 | T83: 5
A84: =E7 -> Toulouse | B84: Visiteur | C84: =B7 -> Montferrand | D84: Recoit | E84: =D7 -> 19 | F84: =C7 -> 38 | G84: =E2 -> 2013-08-31 | H84: =E8 -> 1 | I84: =B8 -> 4 | J84: 1 | K84: 3 | L84: 0 | M84: 1 | N84: 4 | O84: 3 | P84: 0 | Q84: 0 | R84: 1 | S84: 0 | T84: 0
A85: =B9 -> Grenoble | B85: Recoit | C85: =E9 -> Toulon | D85: Visiteur | E85: =C9 -> 28 | F85: =D9 -> 26 | G85: =E2 -> 2013-08-31 | H85: =B10 -> 1 | I85: =E10 -> 1 | J85: 1 | K85: 0 | L85: 0 | M85: 0 | N85: 7 | O85: 7 | P85: 0 | Q85: 0 | R85: 2 | S85: 0 | T85: 4
A86: =E9 -> Toulon | B86: Visiteur | C86: =B9 -> Grenoble | D86: Recoit | E86: =D9 -> 26 | F86: =C9 -> 28 | G86: =E2 -> 2013-08-31 | H86: =E10 -> 1 | I86: =B10 -> 1 | J86: 0 | K86: 1 | L86: 0 | M86: 0 | N86: 7 | O86: 7 | P86: 0 | Q86: 1 | R86: 0 | S86: 0 | T86: 1
A87: =B11 -> Montpellier | B87: Recoit | C87: =E11 -> Brive | D87: Visiteur | E87: =C11 -> 33 | F87: =D11 -> 24 | G87: =E2 -> 2013-08-31 | H87: =B12 -> 3 | I87: =E12 -> 3 | J87: 3 | K87: 3 | L87: 1 | M87: 0 | N87: 3 | O87: 1 | P87: 0 | Q87: 0 | R87: 2 | S87: 0 | T87: 4
A88: =E11 -> Brive | B88: Visiteur | C88: =B11 -> Montpellier | D88: Recoit | E88: =D11 -> 24 | F88: =C11 -> 33 | G88: =E2 -> 2013-08-31 | H88: =E12 -> 3 | I88: =B12 -> 3 | J88: 3 | K88: 3 | L88: 0 | M88: 1 | N88: 1 | O88: 3 | P88: 0 | Q88: 0 | R88: 4 | S88: 0 | T88: 0
A89: =B13 -> StadeFrancais | B89: Recoit | C89: =E13 -> Biarritz | D89: Visiteur | E89: =C13 -> 38 | F89: =D13 -> 3 | G89: =E2 -> 2013-08-31 | H89: =B14 -> 4 | I89: =E14 -> 0 | J89: 3 | K89: 0 | L89: 1 | M89: 0 | N89: 3 | O89: 1 | P89: 1 | Q89: 0 | R89: 0 | S89: 0 | T89: 5
A90: =E13 -> Biarritz | B90: Visiteur | C90: =B13 -> StadeFrancais | D90: Recoit | E90: =D13 -> 3 | F90: =C13 -> 38 | G90: =E2 -> 2013-08-31 | H90: =E14 -> 0 | I90: =B14 -> 4 | J90: 0 | K90: 3 | L90: 0 | M90: 1 | N90: 1 | O90: 3 | P90: 0 | Q90: 0 | R90: 3 | S90: 0 | T90: 0
A91: =B15 -> RacingMétro92 | B91: Recoit | C91: =E15 -> Oyonnax | D91: Visiteur | E91: =C15 -> 22 | F91: =D15 -> 9 | G91: =E2 -> 2013-08-31 | H91: =B16 -> 1 | I91: =E16 -> 0 | J91: 1 | K91: 0 | L91: 0 | M91: 0 | N91: 5 | O91: 3 | P91: 0 | Q91: 0 | R91: 0 | S91: 0 | T91: 4
A92: =E15 -> Oyonnax | B92: Visiteur | C92: =B15 -> RacingMétro92 | D92: Recoit | E92: =D15 -> 9 | F92: =C15 -> 22 | G92: =E2 -> 2013-08-31 | H92: =E16 -> 0 | I92: =B16 -> 1 | J92: 0 | K92: 1 | L92: 0 | M92: 0 | N92: 3 | O92: 5 | P92: 0 | Q92: 0 | R92: 3 | S92: 0 | T92: 0
I197: Général | AB197: Domicile | AU197: Extérieur
H198: Equipe | I198: Pts | J198: J. | K198: G | L198: N | M198: P | N198: Pr | O198: Ctr | P198: Diff | Q198: E p | R198: E c | S198: Tp | T198: Tc | U198: Dp | V198: Dc | W198: Pp | X198: Pc | Y198: B.O | Z198: B.D | AA198: Bon | AB198: Cr | AC198: Cj | AD198: Pts | AE198: J. | AF198: G | AG198: N | AH198: P | AI198: Pr | AJ198: Ctr | AK198: Diff | AL198: E p | AM198: E c | AN198: Tp | AO198: Tc | AP198: Dp | AQ198: Dc | AR198: Pp | AS198: Pc | AT198: B.O | AU198: B.D | AV198: Bon | AW198: Cr | AX198: Cj | AY198: Pts | AZ198: J. | BA198: G | BB198: N | BC198: P | BD198: Pr | BE198: Ctr | BF198: Diff | BG198: E p | BH198: E c | BI198: Tp | BJ198: Tc | BK198: Dp | BL198: Dc | BM198: Pp | BN198: Pc | BO198: B.O | BP198: B.D | BQ198: Bon | BR198: Cr | BS198: Cj
G199: 1 | H199: Bayonne | I199: 9 | J199: 3 | K199: 2 | L199: 0 | M199: 1 | N199: 73 | O199: 71 | P199: 2 | Q199: 7 | R199: 6 | S199: 4 | T199: 4 | U199: 0 | V199: 1 | W199: 10 | X199: 10 | Y199: 1 | Z199: 0 | AA199: 1 | AB199: 1 | AC199: 0 | AD199: 9 | AE199: 2 | AF199: 2 | AG199: 0 | AH199: 0 | AI199: 70 | AJ199: 31 | AK199: 39 | AL199: 7 | AM199: 2 | AN199: 4 | AO199: 0 | AP199: 0 | AQ199: 1 | AR199: 9 | AS199: 6 | AT199: 1 | AU199: 0 | AV199: 1 | AW199: 0 | AX199: 0 | AY199: 0 | AZ199: 1 | BA199: 0 | BB199: 0 | BC199: 1 | BD199: 3 | BE199: 40 | BF199: -37 | BG199: 0 | BH199: 4 | BI199: 0 | BJ199: 4 | BK199: 0 | BL199: 0 | BM199: 1 | BN199: 4 | BO199: 0 | BP199: 0 | BQ199: 0 | BR199: 1 | BS199: 0
G200: 2 | H200: Biarritz | I200: 5 | J200: 3 | K200: 1 | L200: 0 | M200: 2 | N200: 40 | O200: 72 | P200: -32 | Q200: 3 | R200: 5 | S200: 2 | T200: 4 | U200: 1 | V200: 1 | W200: 6 | X200: 12 | Y200: 0 | Z200: 1 | AA200: 1 | AB200: 0 | AC200: 4 | AD200: 5 | AE200: 2 | AF200: 1 | AG200: 0 | AH200: 1 | AI200: 37 | AJ200: 34 | AK200: 3 | AL200: 3 | AM200: 1 | AN200: 2 | AO200: 1 | AP200: 1 | AQ200: 0 | AR200: 5 | AS200: 9 | AT200: 0 | AU200: 1 | AV200: 1 | AW200: 0 | AX200: 1 | AY200: 0 | AZ200: 1 | BA200: 0 | BB200: 0 | BC200: 1 | BD200: 3 | BE200: 38 | BF200: -35 | BG200: 0 | BH200: 4 | BI200: 0 | BJ200: 3 | BK200: 0 | BL200: 1 | BM200: 1 | BN200: 3 | BO200: 0 | BP200: 0 | BQ200: 0 | BR200: 0 | BS200: 3
G201: 3 | H201: BordeauxBègles | I201: 8 | J201: 3 | K201: 2 | L201: 0 | M201: 1 | N201: 64 | O201: 70 | P201: -6 | Q201: 1 | R201: 3 | S201: 1 | T201: 2 | U201: 1 | V201: 0 | W201: 18 | X201: 17 | Y201: 0 | Z201: 0 | AA201: 0 | AB201: 0 | AC201: 2 | AD201: 8 | AE201: 2 | AF201: 2 | AG201: 0 | AH201: 0 | AI201: 52 | AJ201: 45 | AK201: 7 | AL201: 1 | AM201: 2 | AN201: 1 | AO201: 1 | AP201: 1 | AQ201: 0 | AR201: 14 | AS201: 11 | AT201: 0 | AU201: 0 | AV201: 0 | AW201: 0 | AX201: 0 | AY201: 0 | AZ201: 1 | BA201: 0 | BB201: 0 | BC201: 1 | BD201: 12 | BE201: 25 | BF201: -13 | BG201: 0 | BH201: 1 | BI201: 0 | BJ201: 1 | BK201: 0 | BL201: 0 | BM201: 4 | BN201: 6 | BO201: 0 | BP201: 0 | BQ201: 0 | BR201: 0 | BS201: 2
G202: 4 | H202: Brive | I202: 5 | J202: 3 | K202: 1 | L202: 0 | M202: 2 | N202: 63 | O202: 64 | P202: -1 | Q202: 5 | R202: 4 | S202: 4 | T202: 4 | U202: 1 | V202: 1 | W202: 9 | X202: 11 | Y202: 0 | Z202: 1 | AA202: 1 | AB202: 0 | AC202: 4 | AD202: 4 | AE202: 1 | AF202: 1 | AG202: 0 | AH202: 0 | AI202: 25 | AJ202: 12 | AK202: 13 | AL202: 1 | AM202: 0 | AN202: 1 | AO202: 0 | AP202: 0 | AQ202: 0 | AR202: 6 | AS202: 4 | AT202: 0 | AU202: 0 | AV202: 0 | AW202: 0 | AX202: 0 | AY202: 1 | AZ202: 2 | BA202: 0 | BB202: 0 | BC202: 2 | BD202: 38 | BE202: 52 | BF202: -14 | BG202: 4 | BH202: 4 | BI202: 3 | BJ202: 4 | BK202: 1 | BL202: 1 | BM202: 3 | BN202: 7 | BO202: 0 | BP202: 1 | BQ202: 1 | BR202: 0 | BS202: 4
G203: 5 | H203: Castres | I203: 7 | J203: 3 | K203: 1 | L203: 0 | M203: 2 | N203: 77 | O203: 53 | P203: 24 | Q203: 8 | R203: 2 | S203: 5 | T203: 2 | U203: 0 | V203: 2 | W203: 9 | X203: 11 | Y203: 1 | Z203: 2 | AA203: 3 | AB203: 1 | AC203: 3 | AD203: 5 | AE203: 1 | AF203: 1 | AG203: 0 | AH203: 0 | AI203: 34 | AJ203: 6 | AK203: 28 | AL203: 5 | AM203: 0 | AN203: 3 | AO203: 0 | AP203: 0 | AQ203: 0 | AR203: 1 | AS203: 2 | AT203: 1 | AU203: 0 | AV203: 1 | AW203: 1 | AX203: 1 | AY203: 2 | AZ203: 2 | BA203: 0 | BB203: 0 | BC203: 2 | BD203: 43 | BE203: 47 | BF203: -4 | BG203: 3 | BH203: 2 | BI203: 2 | BJ203: 2 | BK203: 0 | BL203: 2 | BM203: 8 | BN203: 9 | BO203: 0 | BP203: 2 | BQ203: 2 | BR203: 0 | BS203: 2
G204: 6 | H204: Montferrand | I204: 9 | J204: 3 | K204: 2 | L204: 0 | M204: 1 | N204: 79 | O204: 67 | P204: 12 | Q204: 7 | R204: 6 | S204: 4 | T204: 5 | U204: 1 | V204: 2 | W204: 11 | X204: 7 | Y204: 1 | Z204: 0 | AA204: 1 | AB204: 0 | AC204: 3 | AD204: 5 | AE204: 1 | AF204: 1 | AG204: 0 | AH204: 0 | AI204: 38 | AJ204: 19 | AK204: 19 | AL204: 4 | AM204: 1 | AN204: 3 | AO204: 1 | AP204: 1 | AQ204: 0 | AR204: 3 | AS204: 4 | AT204: 1 | AU204: 0 | AV204: 1 | AW204: 0 | AX204: 1 | AY204: 4 | AZ204: 2 | BA204: 1 | BB204: 0 | BC204: 1 | BD204: 41 | BE204: 48 | BF204: -7 | BG204: 3 | BH204: 5 | BI204: 1 | BJ204: 4 | BK204: 0 | BL204: 2 | BM204: 8 | BN204: 3 | BO204: 0 | BP204: 0 | BQ204: 0 | BR204: 0 | BS204: 2
G205: 7 | H205: Grenoble | I205: 8 | J205: 3 | K205: 2 | L205: 0 | M205: 1 | N205: 53 | O205: 76 | P205: -23 | Q205: 2 | R205: 7 | S205: 2 | T205: 4 | U205: 0 | V205: 0 | W205: 13 | X205: 11 | Y205: 0 | Z205: 0 | AA205: 0 | AB205: 0 | AC205: 4 | AD205: 8 | AE205: 2 | AF205: 2 | AG205: 0 | AH205: 0 | AI205: 47 | AJ205: 42 | AK205: 5 | AL205: 2 | AM205: 2 | AN205: 2 | AO205: 1 | AP205: 0 | AQ205: 0 | AR205: 11 | AS205: 10 | AT205: 0 | AU205: 0 | AV205: 0 | AW205: 0 | AX205: 2 | AY205: 0 | AZ205: 1 | BA205: 0 | BB205: 0 | BC205: 1 | BD205: 6 | BE205: 34 | BF205: -28 | BG205: 0 | BH205: 5 | BI205: 0 | BJ205: 3 | BK205: 0 | BL205: 0 | BM205: 2 | BN205: 1 | BO205: 0 | BP205: 0 | BQ205: 0 | BR205: 0 | BS205: 2
G206: 8 | H206: Montpellier | I206: 7 | J206: 3 | K206: 1 | L206: 1 | M206: 1 | N206: 67 | O206: 65 | P206: 2 | Q206: 4 | R206: 5 | S206: 4 | T206: 5 | U206: 2 | V206: 0 | W206: 11 | X206: 10 | Y206: 0 | Z206: 1 | AA206: 1 | AB206: 0 | AC206: 3 | AD206: 6 | AE206: 2 | AF206: 1 | AG206: 1 | AH206: 0 | AI206: 55 | AJ206: 46 | AK206: 9 | AL206: 4 | AM206: 4 | AN206: 4 | AO206: 4 | AP206: 2 | AQ206: 0 | AR206: 7 | AS206: 6 | AT206: 0 | AU206: 0 | AV206: 0 | AW206: 0 | AX206: 2 | AY206: 1 | AZ206: 1 | BA206: 0 | BB206: 0 | BC206: 1 | BD206: 12 | BE206: 19 | BF206: -7 | BG206: 0 | BH206: 1 | BI206: 0 | BJ206: 1 | BK206: 0 | BL206: 0 | BM206: 4 | BN206: 4 | BO206: 0 | BP206: 1 | BQ206: 1 | BR206: 0 | BS206: 1
G207: 9 | H207: Oyonnax | I207: 4 | J207: 3 | K207: 1 | L207: 0 | M207: 2 | N207: 50 | O207: 80 | P207: -30 | Q207: 4 | R207: 7 | S207: 3 | T207: 3 | U207: 1 | V207: 0 | W207: 7 | X207: 13 | Y207: 0 | Z207: 0 | AA207: 0 | AB207: 0 | AC207: 4 | AD207: 4 | AE207: 1 | AF207: 1 | AG207: 0 | AH207: 0 | AI207: 30 | AJ207: 19 | AK207: 11 | AL207: 3 | AM207: 2 | AN207: 3 | AO207: 0 | AP207: 1 | AQ207: 0 | AR207: 2 | AS207: 3 | AT207: 0 | AU207: 0 | AV207: 0 | AW207: 0 | AX207: 1 | AY207: 0 | AZ207: 2 | BA207: 0 | BB207: 0 | BC207: 2 | BD207: 20 | BE207: 61 | BF207: -41 | BG207: 1 | BH207: 5 | BI207: 0 | BJ207: 3 | BK207: 0 | BL207: 0 | BM207: 5 | BN207: 10 | BO207: 0 | BP207: 0 | BQ207: 0 | BR207: 0 | BS207: 3
G208: 10 | H208: Perpignan | I208: 5 | J208: 3 | K208: 1 | L208: 0 | M208: 2 | N208: 73 | O208: 82 | P208: -9 | Q208: 6 | R208: 6 | S208: 5 | T208: 5 | U208: 2 | V208: 3 | W208: 9 | X208: 11 | Y208: 0 | Z208: 1 | AA208: 1 | AB208: 0 | AC208: 1 | AD208: 5 | AE208: 2 | AF208: 1 | AG208: 0 | AH208: 1 | AI208: 53 | AJ208: 51 | AK208: 2 | AL208: 5 | AM208: 3 | AN208: 5 | AO208: 3 | AP208: 1 | AQ208: 3 | AR208: 5 | AS208: 7 | AT208: 0 | AU208: 1 | AV208: 1 | AW208: 0 | AX208: 1 | AY208: 0 | AZ208: 1 | BA208: 0 | BB208: 0 | BC208: 1 | BD208: 20 | BE208: 31 | BF208: -11 | BG208: 1 | BH208: 3 | BI208: 0 | BJ208: 2 | BK208: 1 | BL208: 0 | BM208: 4 | BN208: 4 | BO208: 0 | BP208: 0 | BQ208: 0 | BR208: 0 | BS208: 0
G209: 11 | H209: RacingMétro92 | I209: 8 | J209: 3 | K209: 2 | L209: 0 | M209: 1 | N209: 55 | O209: 64 | P209: -9 | Q209: 3 | R209: 6 | S209: 2 | T209: 5 | U209: 0 | V209: 2 | W209: 12 | X209: 6 | Y209: 0 | Z209: 0 | AA209: 0 | AB209: 1 | AC209: 0 | AD209: 8 | AE209: 2 | AF209: 2 | AG209: 0 | AH209: 0 | AI209: 41 | AJ209: 23 | AK209: 18 | AL209: 2 | AM209: 1 | AN209: 2 | AO209: 0 | AP209: 0 | AQ209: 1 | AR209: 9 | AS209: 5 | AT209: 0 | AU209: 0 | AV209: 0 | AW209: 0 | AX209: 0 | AY209: 0 | AZ209: 1 | BA209: 0 | BB209: 0 | BC209: 1 | BD209: 14 | BE209: 41 | BF209: -27 | BG209: 1 | BH209: 5 | BI209: 0 | BJ209: 5 | BK209: 0 | BL209: 1 | BM209: 3 | BN209: 1 | BO209: 0 | BP209: 0 | BQ209: 0 | BR209: 1 | BS209: 0
G210: 12 | H210: StadeFrancais | I210: 10 | J210: 3 | K210: 2 | L210: 0 | M210: 1 | N210: 82 | O210: 49 | P210: 33 | Q210: 6 | R210: 4 | S210: 5 | T210: 4 | U210: 4 | V210: 0 | W210: 10 | X210: 7 | Y210: 1 | Z210: 1 | AA210: 2 | AB210: 0 | AC210: 2 | AD210: 5 | AE210: 1 | AF210: 1 | AG210: 0 | AH210: 0 | AI210: 38 | AJ210: 3 | AK210: 35 | AL210: 4 | AM210: 0 | AN210: 3 | AO210: 0 | AP210: 1 | AQ210: 0 | AR210: 3 | AS210: 1 | AT210: 1 | AU210: 0 | AV210: 1 | AW210: 0 | AX210: 0 | AY210: 5 | AZ210: 2 | BA210: 1 | BB210: 0 | BC210: 1 | BD210: 44 | BE210: 46 | BF210: -2 | BG210: 2 | BH210: 4 | BI210: 2 | BJ210: 4 | BK210: 3 | BL210: 0 | BM210: 7 | BN210: 6 | BO210: 0 | BP210: 1 | BQ210: 1 | BR210: 0 | BS210: 2
G211: 13 | H211: Toulon | I211: 8 | J211: 3 | K211: 1 | L211: 1 | M211: 1 | N211: 89 | O211: 64 | P211: 25 | Q211: 7 | R211: 3 | S211: 6 | T211: 2 | U211: 1 | V211: 1 | W211: 13 | X211: 14 | Y211: 1 | Z211: 1 | AA211: 2 | AB211: 1 | AC211: 3 | AD211: 5 | AE211: 1 | AF211: 1 | AG211: 0 | AH211: 0 | AI211: 41 | AJ211: 14 | AK211: 27 | AL211: 5 | AM211: 1 | AN211: 5 | AO211: 0 | AP211: 1 | AQ211: 0 | AR211: 1 | AS211: 3 | AT211: 1 | AU211: 0 | AV211: 1 | AW211: 1 | AX211: 2 | AY211: 3 | AZ211: 2 | BA211: 0 | BB211: 1 | BC211: 1 | BD211: 48 | BE211: 50 | BF211: -2 | BG211: 2 | BH211: 2 | BI211: 1 | BJ211: 2 | BK211: 0 | BL211: 1 | BM211: 12 | BN211: 11 | BO211: 0 | BP211: 1 | BQ211: 1 | BR211: 0 | BS211: 1
G212: 14 | H212: Toulouse | I212: 6 | J212: 3 | K212: 1 | L212: 0 | M212: 2 | N212: 84 | O212: 72 | P212: 12 | Q212: 6 | R212: 5 | S212: 6 | T212: 4 | U212: 0 | V212: 1 | W212: 14 | X212: 12 | Y212: 1 | Z212: 1 | AA212: 2 | AB212: 0 | AC212: 3 | AD212: 5 | AE212: 1 | AF212: 1 | AG212: 0 | AH212: 0 | AI212: 40 | AJ212: 3 | AK212: 37 | AL212: 4 | AM212: 0 | AN212: 4 | AO212: 0 | AP212: 0 | AQ212: 0 | AR212: 4 | AS212: 1 | AT212: 1 | AU212: 0 | AV212: 1 | AW212: 0 | AX212: 1 | AY212: 1 | AZ212: 2 | BA212: 0 | BB212: 0 | BC212: 2 | BD212: 44 | BE212: 69 | BF212: -25 | BG212: 2 | BH212: 5 | BI212: 2 | BJ212: 4 | BK212: 0 | BL212: 1 | BM212: 10 | BN212: 11 | BO212: 0 | BP212: 1 | BQ212: 1 | BR212: 0 | BS212: 2
I214: Général | AB214: Domicile | AU214: Extérieur
H215: Equipe | I215: Pts | J215: J. | K215: G | L215: N | M215: P | N215: Pr | O215: Ctr | P215: Diff | Q215: E p | R215: E c | S215: Tp | T215: Tc | U215: Dp | V215: Dc | W215: Pp | X215: Pc | Y215: B.O | Z215: B.D | AA215: Bon | AB215: Cr | AC215: Cj | AD215: Pts | AE215: J. | AF215: G | AG215: N | AH215: P | AI215: Pr | AJ215: Ctr | AK215: Diff | AL215: E p | AM215: E c | AN215: Tp | AO215: Tc | AP215: Dp | AQ215: Dc | AR215: Pp | AS215: Pc | AT215: B.O | AU215: B.D | AV215: Bon | AW215: Cr | AX215: Cj | AY215: Pts | AZ215: J. | BA215: G | BB215: N | BC215: P | BD215: Pr | BE215: Ctr | BF215: Diff | BG215: E p | BH215: E c | BI215: Tp | BJ215: Tc | BK215: Dp | BL215: Dc | BM215: Pp | BN215: Pc | BO215: B.O | BP215: B.D | BQ215: Bon | BR215: Cr | BS215: Cj
G216: 1 | H216: Bayonne | I216: 4 | J216: 1 | K216: 1 | L216: 0 | M216: 0 | N216: 31 | O216: 20 | P216: 11 | Q216: 3 | R216: 1 | S216: 2 | T216: 0 | U216: 0 | V216: 1 | W216: 4 | X216: 4 | Y216: 0 | Z216: 0 | AA216: 0 | AB216: 0 | AC216: 0 | AD216: 4 | AE216: 1 | AF216: 1 | AG216: 0 | AH216: 0 | AI216: 31 | AJ216: 20 | AK216: 11 | AL216: 3 | AM216: 1 | AN216: 2 | AO216: 0 | AP216: 0 | AQ216: 1 | AR216: 4 | AS216: 4 | AT216: 0 | AU216: 0 | AV216: 0 | AW216: 0 | AX216: 0 | AY216: 0 | AZ216: 0 | BA216: 0 | BB216: 0 | BC216: 0 | BD216: 0 | BE216: 0 | BF216: 0 | BG216: 0 | BH216: 0 | BI216: 0 | BJ216: 0 | BK216: 0 | BL216: 0 | BM216: 0 | BN216: 0 | BO216: 0 | BP216: 0 | BQ216: 0 | BR216: 0 | BS216: 0
G217: 2 | H217: Biarritz | I217: 0 | J217: 1 | K217: 0 | L217: 0 | M217: 1 | N217: 3 | O217: 38 | P217: -35 | Q217: 0 | R217: 4 | S217: 0 | T217: 3 | U217: 0 | V217: 1 | W217: 1 | X217: 3 | Y217: 0 | Z217: 0 | AA217: 0 | AB217: 0 | AC217: 3 | AD217: 0 | AE217: 0 | AF217: 0 | AG217: 0 | AH217: 0 | AI217: 0 | AJ217: 0 | AK217: 0 | AL217: 0 | AM217: 0 | AN217: 0 | AO217: 0 | AP217: 0 | AQ217: 0 | AR217: 0 | AS217: 0 | AT217: 0 | AU217: 0 | AV217: 0 | AW217: 0 | AX217: 0 | AY217: 0 | AZ217: 1 | BA217: 0 | BB217: 0 | BC217: 1 | BD217: 3 | BE217: 38 | BF217: -35 | BG217: 0 | BH217: 4 | BI217: 0 | BJ217: 3 | BK217: 0 | BL217: 1 | BM217: 1 | BN217: 3 | BO217: 0 | BP217: 0 | BQ217: 0 | BR217: 0 | BS217: 3
G218: 3 | H218: BordeauxBègles | I218: 4 | J218: 1 | K218: 1 | L218: 0 | M218: 0 | N218: 21 | O218: 20 | P218: 1 | Q218: 0 | R218: 1 | S218: 0 | T218: 0 | U218: 1 | V218: 0 | W218: 6 | X218: 5 | Y218: 0 | Z218: 0 | AA218: 0 | AB218: 0 | AC218: 0 | AD218: 4 | AE218: 1 | AF218: 1 | AG218: 0 | AH218: 0 | AI218: 21 | AJ218: 20 | AK218: 1 | AL218: 0 | AM218: 1 | AN218: 0 | AO218: 0 | AP218: 1 | AQ218: 0 | AR218: 6 | AS218: 5 | AT218: 0 | AU218: 0 | AV218: 0 | AW218: 0 | AX218: 0 | AY218: 0 | AZ218: 0 | BA218: 0 | BB218: 0 | BC218: 0 | BD218: 0 | BE218: 0 | BF218: 0 | BG218: 0 | BH218: 0 | BI218: 0 | BJ218: 0 | BK218: 0 | BL218: 0 | BM218: 0 | BN218: 0 | BO218: 0 | BP218: 0 | BQ218: 0 | BR218: 0 | BS218: 0
G219: 4 | H219: Brive | I219: 0 | J219: 1 | K219: 0 | L219: 0 | M219: 1 | N219: 24 | O219: 33 | P219: -9 | Q219: 3 | R219: 3 | S219: 3 | T219: 3 | U219: 0 | V219: 1 | W219: 1 | X219: 3 | Y219: 0 | Z219: 0 | AA219: 0 | AB219: 0 | AC219: 4 | AD219: 0 | AE219: 0 | AF219: 0 | AG219: 0 | AH219: 0 | AI219: 0 | AJ219: 0 | AK219: 0 | AL219: 0 | AM219: 0 | AN219: 0 | AO219: 0 | AP219: 0 | AQ219: 0 | AR219: 0 | AS219: 0 | AT219: 0 | AU219: 0 | AV219: 0 | AW219: 0 | AX219: 0 | AY219: 0 | AZ219: 1 | BA219: 0 | BB219: 0 | BC219: 1 | BD219: 24 | BE219: 33 | BF219: -9 | BG219: 3 | BH219: 3 | BI219: 3 | BJ219: 3 | BK219: 0 | BL219: 1 | BM219: 1 | BN219: 3 | BO219: 0 | BP219: 0 | BQ219: 0 | BR219: 0 | BS219: 4
G220: 5 | H220: Castres | I220: 1 | J220: 1 | K220: 0 | L220: 0 | M220: 1 | N220: 20 | O220: 21 | P220: -1 | Q220: 1 | R220: 0 | S220: 0 | T220: 0 | U220: 0 | V220: 1 | W220: 5 | X220: 6 | Y220: 0 | Z220: 1 | AA220: 1 | AB220: 0 | AC220: 0 | AD220: 0 | AE220: 0 | AF220: 0 | AG220: 0 | AH220: 0 | AI220: 0 | AJ220: 0 | AK220: 0 | AL220: 0 | AM220: 0 | AN220: 0 | AO220: 0 | AP220: 0 | AQ220: 0 | AR220: 0 | AS220: 0 | AT220: 0 | AU220: 0 | AV220: 0 | AW220: 0 | AX220: 0 | AY220: 1 | AZ220: 1 | BA220: 0 | BB220: 0 | BC220: 1 | BD220: 20 | BE220: 21 | BF220: -1 | BG220: 1 | BH220: 0 | BI220: 0 | BJ220: 0 | BK220: 0 | BL220: 1 | BM220: 5 | BN220: 6 | BO220: 0 | BP220: 1 | BQ220: 1 | BR220: 0 | BS220: 0
G221: 6 | H221: Montferrand | I221: 5 | J221: 1 | K221: 1 | L221: 0 | M221: 0 | N221: 38 | O221: 19 | P221: 19 | Q221: 4 | R221: 1 | S221: 3 | T221: 1 | U221: 1 | V221: 0 | W221: 3 | X221: 4 | Y221: 1 | Z221: 0 | AA221: 1 | AB221: 0 | AC221: 1 | AD221: 5 | AE221: 1 | AF221: 1 | AG221: 0 | AH221: 0 | AI221: 38 | AJ221: 19 | AK221: 19 | AL221: 4 | AM221: 1 | AN221: 3 | AO221: 1 | AP221: 1 | AQ221: 0 | AR221: 3 | AS221: 4 | AT221: 1 | AU221: 0 | AV221: 1 | AW221: 0 | AX221: 1 | AY221: 0 | AZ221: 0 | BA221: 0 | BB221: 0 | BC221: 0 | BD221: 0 | BE221: 0 | BF221: 0 | BG221: 0 | BH221: 0 | BI221: 0 | BJ221: 0 | BK221: 0 | BL221: 0 | BM221: 0 | BN221: 0 | BO221: 0 | BP221: 0 | BQ221: 0 | BR221: 0 | BS221: 0
G222: 7 | H222: Grenoble | I222: 4 | J222: 1 | K222: 1 | L222: 0 | M222: 0 | N222: 28 | O222: 26 | P222: 2 | Q222: 1 | R222: 1 | S222: 1 | T222: 0 | U222: 0 | V222: 0 | W222: 7 | X222: 7 | Y222: 0 | Z222: 0 | AA222: 0 | AB222: 0 | AC222: 2 | AD222: 4 | AE222: 1 | AF222: 1 | AG222: 0 | AH222: 0 | AI222: 28 | AJ222: 26 | AK222: 2 | AL222: 1 | AM222: 1 | AN222: 1 | AO222: 0 | AP222: 0 | AQ222: 0 | AR222: 7 | AS222: 7 | AT222: 0 | AU222: 0 | AV222: 0 | AW222: 0 | AX222: 2 | AY222: 0 | AZ222: 0 | BA222: 0 | BB222: 0 | BC222: 0 | BD222: 0 | BE222: 0 | BF222: 0 | BG222: 0 | BH222: 0 | BI222: 0 | BJ222: 0 | BK222: 0 | BL222: 0 | BM222: 0 | BN222: 0 | BO222: 0 | BP222: 0 | BQ222: 0 | BR222: 0 | BS222: 0
G223: 8 | H223: Montpellier | I223: 4 | J223: 1 | K223: 1 | L223: 0 | M223: 0 | N223: 33 | O223: 24 | P223: 9 | Q223: 3 | R223: 3 | S223: 3 | T223: 3 | U223: 1 | V223: 0 | W223: 3 | X223: 1 | Y223: 0 | Z223: 0 | AA223: 0 | AB223: 0 | AC223: 2 | AD223: 4 | AE223: 1 | AF223: 1 | AG223: 0 | AH223: 0 | AI223: 33 | AJ223: 24 | AK223: 9 | AL223: 3 | AM223: 3 | AN223: 3 | AO223: 3 | AP223: 1 | AQ223: 0 | AR223: 3 | AS223: 1 | AT223: 0 | AU223: 0 | AV223: 0 | AW223: 0 | AX223: 2 | AY223: 0 | AZ223: 0 | BA223: 0 | BB223: 0 | BC223: 0 | BD223: 0 | BE223: 0 | BF223: 0 | BG223: 0 | BH223: 0 | BI223: 0 | BJ223: 0 | BK223: 0 | BL223: 0 | BM223: 0 | BN223: 0 | BO223: 0 | BP223: 0 | BQ223: 0 | BR223: 0 | BS223: 0
G224: 9 | H224: Oyonnax | I224: 0 | J224: 1 | K224: 0 | L224: 0 | M224: 1 | N224: 9 | O224: 22 | P224: -13 | Q224: 0 | R224: 1 | S224: 0 | T224: 1 | U224: 0 | V224: 0 | W224: 3 | X224: 5 | Y224: 0 | Z224: 0 | AA224: 0 | AB224: 0 | AC224: 3 | AD224: 0 | AE224: 0 | AF224: 0 | AG224: 0 | AH224: 0 | AI224: 0 | AJ224: 0 | AK224: 0 | AL224: 0 | AM224: 0 | AN224: 0 | AO224: 0 | AP224: 0 | AQ224: 0 | AR224: 0 | AS224: 0 | AT224: 0 | AU224: 0 | AV224: 0 | AW224: 0 | AX224: 0 | AY224: 0 | AZ224: 1 | BA224: 0 | BB224: 0 | BC224: 1 | BD224: 9 | BE224: 22 | BF224: -13 | BG224: 0 | BH224: 1 | BI224: 0 | BJ224: 1 | BK224: 0 | BL224: 0 | BM224: 3 | BN224: 5 | BO224: 0 | BP224: 0 | BQ224: 0 | BR224: 0 | BS224: 3
G225: 10 | H225: Perpignan | I225: 0 | J225: 1 | K225: 0 | L225: 0 | M225: 1 | N225: 20 | O225: 31 | P225: -11 | Q225: 1 | R225: 3 | S225: 0 | T225: 2 | U225: 1 | V225: 0 | W225: 4 | X225: 4 | Y225: 0 | Z225: 0 | AA225: 0 | AB225: 0 | AC225: 0 | AD225: 0 | AE225: 0 | AF225: 0 | AG225: 0 | AH225: 0 | AI225: 0 | AJ225: 0 | AK225: 0 | AL225: 0 | AM225: 0 | AN225: 0 | AO225: 0 | AP225: 0 | AQ225: 0 | AR225: 0 | AS225: 0 | AT225: 0 | AU225: 0 | AV225: 0 | AW225: 0 | AX225: 0 | AY225: 0 | AZ225: 1 | BA225: 0 | BB225: 0 | BC225: 1 | BD225: 20 | BE225: 31 | BF225: -11 | BG225: 1 | BH225: 3 | BI225: 0 | BJ225: 2 | BK225: 1 | BL225: 0 | BM225: 4 | BN225: 4 | BO225: 0 | BP225: 0 | BQ225: 0 | BR225: 0 | BS225: 0
G226: 11 | H226: RacingMétro92 | I226: 4 | J226: 1 | K226: 1 | L226: 0 | M226: 0 | N226: 22 | O226: 9 | P226: 13 | Q226: 1 | R226: 0 | S226: 1 | T226: 0 | U226: 0 | V226: 0 | W226: 5 | X226: 3 | Y226: 0 | Z226: 0 | AA226: 0 | AB226: 0 | AC226: 0 | AD226: 4 | AE226: 1 | AF226: 1 | AG226: 0 | AH226: 0 | AI226: 22 | AJ226: 9 | AK226: 13 | AL226: 1 | AM226: 0 | AN226: 1 | AO226: 0 | AP226: 0 | AQ226: 0 | AR226: 5 | AS226: 3 | AT226: 0 | AU226: 0 | AV226: 0 | AW226: 0 | AX226: 0 | AY226: 0 | AZ226: 0 | BA226: 0 | BB226: 0 | BC226: 0 | BD226: 0 | BE226: 0 | BF226: 0 | BG226: 0 | BH226: 0 | BI226: 0 | BJ226: 0 | BK226: 0 | BL226: 0 | BM226: 0 | BN226: 0 | BO226: 0 | BP226: 0 | BQ226: 0 | BR226: 0 | BS226: 0
G227: 12 | H227: StadeFrancais | I227: 5 | J227: 1 | K227: 1 | L227: 0 | M227: 0 | N227: 38 | O227: 3 | P227: 35 | Q227: 4 | R227: 0 | S227: 3 | T227: 0 | U227: 1 | V227: 0 | W227: 3 | X227: 1 | Y227: 1 | Z227: 0 | AA227: 1 | AB227: 0 | AC227: 0 | AD227: 5 | AE227: 1 | AF227: 1 | AG227: 0 | AH227: 0 | AI227: 38 | AJ227: 3 | AK227: 35 | AL227: 4 | AM227: 0 | AN227: 3 | AO227: 0 | AP227: 1 | AQ227: 0 | AR227: 3 | AS227: 1 | AT227: 1 | AU227: 0 | AV227: 1 | AW227: 0 | AX227: 0 | AY227: 0 | AZ227: 0 | BA227: 0 | BB227: 0 | BC227: 0 | BD227: 0 | BE227: 0 | BF227: 0 | BG227: 0 | BH227: 0 | BI227: 0 | BJ227: 0 | BK227: 0 | BL227: 0 | BM227: 0 | BN227: 0 | BO227: 0 | BP227: 0 | BQ227: 0 | BR227: 0 | BS227: 0
G228: 13 | H228: Toulon | I228: 1 | J228: 1 | K228: 0 | L228: 0 | M228: 1 | N228: 26 | O228: 28 | P228: -2 | Q228: 1 | R228: 1 | S228: 0 | T228: 1 | U228: 0 | V228: 0 | W228: 7 | X228: 7 | Y228: 0 | Z228: 1 | AA228: 1 | AB228: 0 | AC228: 0 | AD228: 0 | AE228: 0 | AF228: 0 | AG228: 0 | AH228: 0 | AI228: 0 | AJ228: 0 | AK228: 0 | AL228: 0 | AM228: 0 | AN228: 0 | AO228: 0 | AP228: 0 | AQ228: 0 | AR228: 0 | AS228: 0 | AT228: 0 | AU228: 0 | AV228: 0 | AW228: 0 | AX228: 0 | AY228: 1 | AZ228: 1 | BA228: 0 | BB228: 0 | BC228: 1 | BD228: 26 | BE228: 28 | BF228: -2 | BG228: 1 | BH228: 1 | BI228: 0 | BJ228: 1 | BK228: 0 | BL228: 0 | BM228: 7 | BN228: 7 | BO228: 0 | BP228: 1 | BQ228: 1 | BR228: 0 | BS228: 0
G229: 14 | H229: Toulouse | I229: 0 | J229: 1 | K229: 0 | L229: 0 | M229: 1 | N229: 19 | O229: 38 | P229: -19 | Q229: 1 | R229: 4 | S229: 1 | T229: 3 | U229: 0 | V229: 1 | W229: 4 | X229: 3 | Y229: 0 | Z229: 0 | AA229: 0 | AB229: 0 | AC229: 1 | AD229: 0 | AE229: 0 | AF229: 0 | AG229: 0 | AH229: 0 | AI229: 0 | AJ229: 0 | AK229: 0 | AL229: 0 | AM229: 0 | AN229: 0 | AO229: 0 | AP229: 0 | AQ229: 0 | AR229: 0 | AS229: 0 | AT229: 0 | AU229: 0 | AV229: 0 | AW229: 0 | AX229: 0 | AY229: 0 | AZ229: 1 | BA229: 0 | BB229: 0 | BC229: 1 | BD229: 19 | BE229: 38 | BF229: -19 | BG229: 1 | BH229: 4 | BI229: 1 | BJ229: 3 | BK229: 0 | BL229: 1 | BM229: 4 | BN229: 3 | BO229: 0 | BP229: 0 | BQ229: 0 | BR229: 0 | BS229: 1

Sheet 4
A1: õ | B1: =IF(C2=1,C2&"ère Journée (",C2&"ème Journée (")&TEXT(E2,"j mmmm aaaa")&")" -> 4ème Journée (4 septembre 2013) | G1: Classement : | BO1: 1ère Mi-Temps | BP1: =SUMIF(BQ5:BQ45,"<=40",BR5:BR45) -> 16 | BQ1: =SUMIF(BY5:BY45,"<=40",BZ5:BZ45) -> 20 | BS1: E | BT1: P | BU1: D | BV1: T | BW1: 2ème Mi-Temps | BX1: =SUMIF(BQ5:BQ45,">40",BR5:BR45) -> 13 | BY1: =SUMIF(BY5:BY45,">40",BZ5:BZ45) -> 13 | CA1: E | CB1: P | CC1: D | CD1: T | CF1: 1ère Mi-Temps | CG1: =SUMIF(CH5:CH45,"<=40",CI5:CI45) -> 12 | CH1: =SUMIF(CP5:CP45,"<=40",CQ5:CQ45) -> 10 | CJ1: E | CK1: P | CL1: D | CM1: T | CN1: 2ème Mi-Temps | CO1: =SUMIF(CH5:CH45,">40",CI5:CI45) -> 26 | CP1: =SUMIF(CP5:CP45,">40",CQ5:CQ45) -> 0 | CR1: E | CS1: P | CT1: D | CU1: T | CW1: 1ère Mi-Temps | CX1: =SUMIF(CY5:CY45,"<=40",CZ5:CZ45) -> 34 | CY1: =SUMIF(DG5:DG45,"<=40",DH5:DH45) -> 0 | DA1: E | DB1: P | DC1: D | DD1: T | DE1: 2ème Mi-Temps | DF1: =SUMIF(CY5:CY45,">40",CZ5:CZ45) -> 21 | DG1: =SUMIF(DG5:DG45,">40",DH5:DH45) -> 0 | DI1: E | DJ1: P | DK1: D | DL1: T | DN1: 1ère Mi-Temps | DO1: =SUMIF(DP5:DP45,"<=40",DQ5:DQ45) -> 18 | DP1: =SUMIF(DX5:DX45,"<=40",DY5:DY45) -> 6 | DR1: E | DS1: P | DT1: D | DU1: T | DV1: 2ème Mi-Temps | DW1: =SUMIF(DP5:DP45,">40",DQ5:DQ45) -> 6 | DX1: =SUMIF(DX5:DX45,">40",DY5:DY45) -> 16 | DZ1: E | EA1: P | EB1: D | EC1: T | EE1: 1ère Mi-Temps | EF1: =SUMIF(EG5:EG45,"<=40",EH5:EH45) -> 24 | EG1: =SUMIF(EO5:EO45,"<=40",EP5:EP45) -> 7 | EI1: E | EJ1: P | EK1: D | EL1: T | EM1: 2ème Mi-Temps | EN1: =SUMIF(EG5:EG45,">40",EH5:EH45) -> 12 | EO1: =SUMIF(EO5:EO45,">40",EP5:EP45) -> 6 | EQ1: E | ER1: P | ES1: D | ET1: T | EV1: 1ère Mi-Temps | EW1: =SUMIF(EX5:EX45,"<=40",EY5:EY45) -> 20 | EX1: =SUMIF(FF5:FF45,"<=40",FG5:FG45) -> 12 | EZ1: E | FA1: P | FB1: D | FC1: T | FD1: 2ème Mi-Temps | FE1: =SUMIF(EX5:EX45,">40",EY5:EY45) -> 42 | FF1: =SUMIF(FF5:FF45,">40",FG5:FG45) -> 0 | FH1: E | FI1: P | FJ1: D | FK1: T | FM1: 1ère Mi-Temps | FN1: =SUMIF(FO5:FO45,"<=40",FP5:FP45) -> 16 | FO1: =SUMIF(FW5:FW45,"<=40",FX5:FX45) -> 3 | FQ1: E | FR1: P | FS1: D | FT1: T | FU1: 2ème Mi-Temps | FV1: =SUMIF(FO5:FO45,">40",FP5:FP45) -> 14 | FW1: =SUMIF(FW5:FW45,">40",FX5:FX45) -> 3 | FY1: E | FZ1: P | GA1: D | GB1: T
B2: Journée | C2: 4 | E2: 2013-09-04 | I2: Classement Général | BN2: =HYPERLINK(MID(CELL("filename",A1),FIND("[",CELL("filename",A1)),FIND("]", CELL("filename",A1))-FIND("[",CELL("filename",A1))+1)&"'"&MID(CELL("filename",A1),FIND("]",CELL("filename",A1))+1,99)&"'!a1","ç") -> ç | BO2: =B3 -> BordeauxBègles | BQ2: =SUM(BR5:BR45) -> 29 | BS2: =SUM(BS5:BS45) -> 3 | BT2: =SUM(BT5:BT45) -> 4 | BU2: =SUM(BU5:BU45) -> 0 | BV2: =SUM(BV5:BV45) -> 1 | BW2: =E3 -> Montpellier | BY2: =SUM(BZ5:BZ45) -> 33 | CA2: =SUM(CA5:CA45) -> 3 | CB2: =SUM(CB5:CB45) -> 4 | CC2: =SUM(CC5:CC45) -> 0 | CD2: =SUM(CD5:CD45) -> 3 | CE2: =HYPERLINK(MID(CELL("filename",R1),FIND("[",CELL("filename",R1)),FIND("]", CELL("filename",R1))-FIND("[",CELL("filename",R1))+1)&"'"&MID(CELL("filename",R1),FIND("]",CELL("filename",R1))+1,99)&"'!a1","ç") -> ç | CF2: =B5 -> Castres | CH2: =SUM(CI5:CI45) -> 38 | CJ2: =SUM(CJ5:CJ45) -> 6 | CK2: =SUM(CK5:CK45) -> 0 | CL2: =SUM(CL5:CL45) -> 0 | CM2: =SUM(CM5:CM45) -> 4 | CN2: =E5 -> StadeFrancais | CP2: =SUM(CQ5:CQ45) -> 10 | CR2: =SUM(CR5:CR45) -> 1 | CS2: =SUM(CS5:CS45) -> 1 | CT2: =SUM(CT5:CT45) -> 0 | CU2: =SUM(CU5:CU45) -> 1 | CV2: =HYPERLINK(MID(CELL("filename",AU1),FIND("[",CELL("filename",AU1)),FIND("]", CELL("filename",AU1))-FIND("[",CELL("filename",AU1))+1)&"'"&MID(CELL("filename",AU1),FIND("]",CELL("filename",AU1))+1,99)&"'!a1","ç") -> ç | CW2: =B7 -> Montferrand | CY2: =SUM(CZ5:CZ45) -> 55 | DA2: =SUM(DA5:DA45) -> 7 | DB2: =SUM(DB5:DB45) -> 2 | DC2: =SUM(DC5:DC45) -> 0 | DD2: =SUM(DD5:DD45) -> 7 | DE2: =E7 -> Bayonne | DG2: =SUM(DH5:DH45) -> 0 | DI2: =SUM(DI5:DI45) -> 0 | DJ2: =SUM(DJ5:DJ45) -> 0 | DK2: =SUM(DK5:DK45) -> 0 | DL2: =SUM(DL5:DL45) -> 0 | DM2: =HYPERLINK(MID(CELL("filename",BR1),FIND("[",CELL("filename",BR1)),FIND("]", CELL("filename",BR1))-FIND("[",CELL("filename",BR1))+1)&"'"&MID(CELL("filename",BR1),FIND("]",CELL("filename",BR1))+1,99)&"'!a1","ç") -> ç | DN2: =B9 -> Oyonnax | DP2: =SUM(DQ5:DQ45) -> 24 | DR2: =SUM(DR5:DR45) -> 2 | DS2: =SUM(DS5:DS45) -> 4 | DT2: =SUM(DT5:DT45) -> 0 | DU2: =SUM(DU5:DU45) -> 1 | DV2: =E9 -> Biarritz | DX2: =SUM(DY5:DY45) -> 22 | DZ2: =SUM(DZ5:DZ45) -> 1 | EA2: =SUM(EA5:EA45) -> 5 | EB2: =SUM(EB5:EB45) -> 0 | EC2: =SUM(EC5:EC45) -> 1 | ED2: =HYPERLINK(MID(CELL("filename",CI1),FIND("[",CELL("filename",CI1)),FIND("]", CELL("filename",CI1))-FIND("[",CELL("filename",CI1))+1)&"'"&MID(CELL("filename",CI1),FIND("]",CELL("filename",CI1))+1,99)&"'!a1","ç") -> ç | EE2: =B11 -> Perpignan | EG2: =SUM(EH5:EH45) -> 36 | EI2: =SUM(EI5:EI45) -> 5 | EJ2: =SUM(EJ5:EJ45) -> 1 | EK2: =SUM(EK5:EK45) -> 0 | EL2: =SUM(EL5:EL45) -> 4 | EM2: =E11 -> Grenoble | EO2: =SUM(EP5:EP45) -> 13 | EQ2: =SUM(EQ5:EQ45) -> 1 | ER2: =SUM(ER5:ER45) -> 2 | ES2: =SUM(ES5:ES45) -> 0 | ET2: =SUM(ET5:ET45) -> 1 | EU2: =HYPERLINK(MID(CELL("filename",CZ1),FIND("[",CELL("filename",CZ1)),FIND("]", CELL("filename",CZ1))-FIND("[",CELL("filename",CZ1))+1)&"'"&MID(CELL("filename",CZ1),FIND("]",CELL("filename",CZ1))+1,99)&"'!a1","ç") -> ç | EV2: =B13 -> Toulon | EX2: =SUM(EY5:EY45) -> 62 | EZ2: =SUM(EZ5:EZ45) -> 9 | FA2: =SUM(FA5:FA45) -> 1 | FB2: =SUM(FB5:FB45) -> 0 | FC2: =SUM(FC5:FC45) -> 7 | FD2: =E13 -> Brive | FF2: =SUM(FG5:FG45) -> 12 | FH2: =SUM(FH5:FH45) -> 0 | FI2: =SUM(FI5:FI45) -> 4 | FJ2: =SUM(FJ5:FJ45) -> 0 | FK2: =SUM(FK5:FK45) -> 0 | FL2: =HYPERLINK(MID(CELL("filename",DQ1),FIND("[",CELL("filename",DQ1)),FIND("]", CELL("filename",DQ1))-FIND("[",CELL("filename",DQ1))+1)&"'"&MID(CELL("filename",DQ1),FIND("]",CELL("filename",DQ1))+1,99)&"'!a1","ç") -> ç | FM2: =B15 -> Toulouse | FO2: =SUM(FP5:FP45) -> 30 | FQ2: =SUM(FQ5:FQ45) -> 3 | FR2: =SUM(FR5:FR45) -> 3 | FS2: =SUM(FS5:FS45) -> 0 | FT2: =SUM(FT5:FT45) -> 3 | FU2: =E15 -> RacingMétro92 | FW2: =SUM(FX5:FX30) -> 6 | FY2: =SUM(FY5:FY45) -> 0 | FZ2: =SUM(FZ5:FZ45) -> 2 | GA2: =SUM(GA5:GA45) -> 0 | GB2: =SUM(GB5:GB45) -> 0
A3: =HYPERLINK(MID(CELL("filename",A1),FIND("[",CELL("filename",A1)),FIND("]", CELL("filename",A1))-FIND("[",CELL("filename",A1))+1)&"'"&MID(CELL("filename",A1),FIND("]",CELL("filename",A1))+1,99)&"'!ch1","Détail") -> Détail | B3: BordeauxBègles | C3: =BQ2 -> 29 | D3: =BY2 -> 33 | E3: Montpellier
B4: =BS2 -> 3 | E4: =CA2 -> 3 | I4: Pts | J4: J. | K4: G | L4: N | M4: P | N4: Pr | O4: Ctr | P4: Diff | Q4: E p | R4: E c | S4: Tp | T4: Tc | U4: Dp | V4: Dc | W4: Pp | X4: Pc | Y4: B.O | Z4: B.D | AA4: Bon | AB4: Cr | AC4: Cj | BO4: Joueur | BP4: Action | BQ4: " | BW4: Joueur | BX4: Action | BY4: " | CF4: Joueur | CG4: Action | CH4: " | CN4: Joueur | CO4: Action | CP4: " | CW4: Joueur | CX4: Action | CY4: " | DE4: Joueur | DF4: Action | DG4: " | DN4: Joueur | DO4: Action | DP4: " | DV4: Joueur | DW4: Action | DX4: " | EE4: Joueur | EF4: Action | EG4: " | EM4: Joueur | EN4: Action | EO4: " | EV4: Joueur | EW4: Action | EX4: " | FD4: Joueur | FE4: Action | FF4: " | FM4: Joueur | FN4: Action | FO4: " | FU4: Joueur | FV4: Action | FW4: "
A5: =HYPERLINK(MID(CELL("filename",A3),FIND("[",CELL("filename",A3)),FIND("]", CELL("filename",A3))-FIND("[",CELL("filename",A3))+1)&"'"&MID(CELL("filename",A3),FIND("]",CELL("filename",A3))+1,99)&"'!cw1","Détail") -> Détail | B5: Castres | C5: =CH2 -> 38 | D5: =CP2 -> 10 | E5: StadeFrancais | G5: 1 | H5: Montferrand | I5: 14 | J5: 4 | K5: 3 | L5: 0 | M5: 1 | N5: 134 | O5: 67 | P5: 67 | Q5: 14 | R5: 6 | S5: 11 | T5: 5 | U5: 1 | V5: 2 | W5: 13 | X5: 7 | Y5: 2 | Z5: 0 | AA5: 2 | AB5: 0 | AC5: 5 | BO5: TALEBULA Metuisela | BP5: Essai | BQ5: 15 | BR5: =IF(BP5<>"",VLOOKUP(BP5,ActionPts,2,),"") -> 5 | BS5: =IF(OR(BP5="Essai",BP5="Essai de Pénalité"),1,0) -> 1 | BT5: =IF(BP5="Pénalité",1,0) -> 0 | BU5: =IF(BP5="Drop",1,0) -> 0 | BV5: =IF(BP5="Transformation",1,0) -> 0 | BW5: PAILLAUGUE Benoît | BX5: Pénalité | BY5: 4 | BZ5: =IF(BX5<>"",VLOOKUP(BX5,ActionPts,2,),"") -> 3 | CA5: =IF(OR(BX5="Essai",BX5="Essai de Pénalité"),1,0) -> 0 | CB5: =IF(BX5="Pénalité",1,0) -> 1 | CC5: =IF(BX5="Drop",1,0) -> 0 | CD5: =IF(BX5="Transformation",1,0) -> 0 | CF5: RALLIER Marc-Antoine | CG5: Essai | CH5: 16 | CI5: =IF(CG5<>"",VLOOKUP(CG5,ActionPts,2,),"") -> 5 | CJ5: =IF(OR(CG5="Essai",CG5="Essai de Pénalité"),1,0) -> 1 | CK5: =IF(CG5="Pénalité",1,0) -> 0 | CL5: =IF(CG5="Drop",1,0) -> 0 | CM5: =IF(CG5="Transformation",1,0) -> 0 | CN5: PORICAL Jérôme | CO5: Pénalité | CP5: 35 | CQ5: =IF(CO5<>"",VLOOKUP(CO5,ActionPts,2,),"") -> 3 | CR5: =IF(OR(CO5="Essai",CO5="Essai de Pénalité"),1,0) -> 0 | CS5: =IF(CO5="Pénalité",1,0) -> 1 | CT5: =IF(CO5="Drop",1,0) -> 0 | CU5: =IF(CO5="Transformation",1,0) -> 0 | CW5: JAMES Brock | CX5: Pénalité | CY5: 4 | CZ5: =IF(CX5<>"",VLOOKUP(CX5,ActionPts,2,),"") -> 3 | DA5: =IF(OR(CX5="Essai",CX5="Essai de Pénalité"),1,0) -> 0 | DB5: =IF(CX5="Pénalité",1,0) -> 1 | DC5: =IF(CX5="Drop",1,0) -> 0 | DD5: =IF(CX5="Transformation",1,0) -> 0 | DE5: ARGANESE Grégory | DF5: Carton Jaune | DG5: 29 | DH5: =IF(DF5<>"",VLOOKUP(DF5,ActionPts,2,),"") -> 0 | DI5: =IF(OR(DF5="Essai",DF5="Essai de Pénalité"),1,0) -> 0 | DJ5: =IF(DF5="Pénalité",1,0) -> 0 | DK5: =IF(DF5="Drop",1,0) -> 0 | DL5: =IF(DF5="Transformation",1,0) -> 0 | DN5: URDAPILLETA Benjamin | DO5: Pénalité | DP5: 4 | DQ5: =IF(DO5<>"",VLOOKUP(DO5,ActionPts,2,),"") -> 3 | DR5: =IF(OR(DO5="Essai",DO5="Essai de Pénalité"),1,0) -> 0 | DS5: =IF(DO5="Pénalité",1,0) -> 1 | DT5: =IF(DO5="Drop",1,0) -> 0 | DU5: =IF(DO5="Transformation",1,0) -> 0 | DV5: YACHVILI Dimitri | DW5: Pénalité | DX5: 20 | DY5: =IF(DW5<>"",VLOOKUP(DW5,ActionPts,2,),"") -> 3 | DZ5: =IF(OR(DW5="Essai",DW5="Essai de Pénalité"),1,0) -> 0 | EA5: =IF(DW5="Pénalité",1,0) -> 1 | EB5: =IF(DW5="Drop",1,0) -> 0 | EC5: =IF(DW5="Transformation",1,0) -> 0 | EE5: MAFI Lifeimi | EF5: Essai | EG5: 6 | EH5: =IF(EF5<>"",VLOOKUP(EF5,ActionPts,2,),"") -> 5 | EI5: =IF(OR(EF5="Essai",EF5="Essai de Pénalité"),1,0) -> 1 | EJ5: =IF(EF5="Pénalité",1,0) -> 0 | EK5: =IF(EF5="Drop",1,0) -> 0 | EL5: =IF(EF5="Transformation",1,0) -> 0 | EM5: BEAL Cedric | EN5: Carton Jaune | EO5: 17 | EP5: =IF(EN5<>"",VLOOKUP(EN5,ActionPts,2,),"") -> 0 | EQ5: =IF(OR(EN5="Essai",EN5="Essai de Pénalité"),1,0) -> 0 | ER5: =IF(EN5="Pénalité",1,0) -> 0 | ES5: =IF(EN5="Drop",1,0) -> 0 | ET5: =IF(EN5="Transformation",1,0) -> 0 | EV5: BASTAREAUD Mathieu | EW5: Essai | EX5: 9 | EY5: =IF(EW5<>"",VLOOKUP(EW5,ActionPts,2,),"") -> 5 | EZ5: =IF(OR(EW5="Essai",EW5="Essai de Pénalité"),1,0) -> 1 | FA5: =IF(EW5="Pénalité",1,0) -> 0 | FB5: =IF(EW5="Drop",1,0) -> 0 | FC5: =IF(EW5="Transformation",1,0) -> 0 | FD5: NEISEN Anderson | FE5: Pénalité | FF5: 8 | FG5: =IF(FE5<>"",VLOOKUP(FE5,ActionPts,2,),"") -> 3 | FH5: =IF(OR(FE5="Essai",FE5="Essai de Pénalité"),1,0) -> 0 | FI5: =IF(FE5="Pénalité",1,0) -> 1 | FJ5: =IF(FE5="Drop",1,0) -> 0 | FK5: =IF(FE5="Transformation",1,0) -> 0 | FM5: McALISTER Luke | FN5: Pénalité | FO5: 2 | FP5: =IF(FN5<>"",VLOOKUP(FN5,ActionPts,2,),"") -> 3 | FQ5: =IF(OR(FN5="Essai",FN5="Essai de Pénalité"),1,0) -> 0 | FR5: =IF(FN5="Pénalité",1,0) -> 1 | FS5: =IF(FN5="Drop",1,0) -> 0 | FT5: =IF(FN5="Transformation",1,0) -> 0 | FU5: WISNIEWSKI Jonathan | FV5: Pénalité | FW5: 18 | FX5: =IF(FV5<>"",VLOOKUP(FV5,ActionPts,2,),"") -> 3 | FY5: =IF(OR(FV5="Essai",FV5="Essai de Pénalité"),1,0) -> 0 | FZ5: =IF(FV5="Pénalité",1,0) -> 1 | GA5: =IF(FV5="Drop",1,0) -> 0 | GB5: =IF(FV5="Transformation",1,0) -> 0
B6: =CJ2 -> 6 | E6: =CR2 -> 1 | G6: 2 | H6: Toulon | I6: 13 | J6: 4 | K6: 2 | L6: 1 | M6: 1 | N6: 151 | O6: 76 | P6: 75 | Q6: 16 | R6: 3 | S6: 13 | T6: 2 | U6: 1 | V6: 1 | W6: 14 | X6: 18 | Y6: 2 | Z6: 1 | AA6: 3 | AB6: 1 | AC6: 3 | BO6: BERNARD Pierre | BP6: Transformation | BQ6: 15 | BR6: 2 | BS6: 0 | BT6: 0 | BU6: 0 | BV6: 1 | BW6: AUDRIN Yoan | BX6: Essai | BY6: 13 | BZ6: 5 | CA6: =IF(OR(BX6="Essai",BX6="Essai de Pénalité"),1,0) -> 1 | CB6: 0 | CC6: 0 | CD6: 0 | CF6: PALIS Geoffrey | CG6: Transformation | CH6: 16 | CI6: 2 | CJ6: =IF(OR(CG6="Essai",CG6="Essai de Pénalité"),1,0) -> 0 | CK6: 0 | CL6: 0 | CM6: 1 | CN6: LAVALLA Scott | CO6: Essai | CP6: 40 | CQ6: 5 | CR6: =IF(OR(CO6="Essai",CO6="Essai de Pénalité"),1,0) -> 1 | CS6: 0 | CT6: 0 | CU6: 0 | CW6: VOSLOO Gerhard | CX6: Essai | CY6: 5 | CZ6: 5 | DA6: =IF(OR(CX6="Essai",CX6="Essai de Pénalité"),1,0) -> 1 | DB6: 0 | DC6: 0 | DD6: 0 | DE6: ELISSALDE Jon | DF6: Carton Jaune | DG6: 44 | DH6: 0 | DI6: =IF(OR(DF6="Essai",DF6="Essai de Pénalité"),1,0) -> 0 | DJ6: 0 | DK6: 0 | DL6: 0 | DN6: URDAPILLETA Benjamin | DO6: Pénalité | DP6: 10 | DQ6: 3 | DR6: =IF(OR(DO6="Essai",DO6="Essai de Pénalité"),1,0) -> 0 | DS6: 1 | DT6: 0 | DU6: 0 | DV6: YACHVILI Dimitri | DW6: Pénalité | DX6: 38 | DY6: 3 | DZ6: =IF(OR(DW6="Essai",DW6="Essai de Pénalité"),1,0) -> 0 | EA6: 1 | EB6: 0 | EC6: 0 | EE6: HOOK James | EF6: Transformation | EG6: 6 | EH6: 2 | EI6: =IF(OR(EF6="Essai",EF6="Essai de Pénalité"),1,0) -> 0 | EJ6: 0 | EK6: 0 | EL6: 1 | EM6: NINARD Florian | EN6: Essai | EO6: 36 | EP6: 5 | EQ6: =IF(OR(EN6="Essai",EN6="Essai de Pénalité"),1,0) -> 1 | ER6: 0 | ES6: 0 | ET6: 0 | EV6: GITEAU Matt | EW6: Transformation | EX6: 9 | EY6: 2 | EZ6: =IF(OR(EW6="Essai",EW6="Essai de Pénalité"),1,0) -> 0 | FA6: 0 | FB6: 0 | FC6: 1 | FD6: LEUPOLU Tamato | FE6: Carton Jaune | FF6: 12 | FG6: 0 | FH6: =IF(OR(FE6="Essai",FE6="Essai de Pénalité"),1,0) -> 0 | FI6: 0 | FJ6: 0 | FK6: 0 | FM6: FICKOU Gaël | FN6: Essai | FO6: 7 | FP6: 5 | FQ6: =IF(OR(FN6="Essai",FN6="Essai de Pénalité"),1,0) -> 1 | FR6: 0 | FS6: 0 | FT6: 0 | FU6: WISNIEWSKI Jonathan | FV6: Pénalité | FW6: 46 | FX6: 3 | FY6: =IF(OR(FV6="Essai",FV6="Essai de Pénalité"),1,0) -> 0 | FZ6: 1 | GA6: 0 | GB6: 0
A7: =HYPERLINK(MID(CELL("filename",A5),FIND("[",CELL("filename",A5)),FIND("]", CELL("filename",A5))-FIND("[",CELL("filename",A5))+1)&"'"&MID(CELL("filename",A5),FIND("]",CELL("filename",A5))+1,99)&"'!do1","Détail") -> Détail | B7: Montferrand | C7: =CY2 -> 55 | D7: =DG2 -> 0 | E7: Bayonne | G7: 3 | H7: Castres | I7: 12 | J7: 4 | K7: 2 | L7: 0 | M7: 2 | N7: 115 | O7: 63 | P7: 52 | Q7: 14 | R7: 3 | S7: 9 | T7: 3 | U7: 0 | V7: 2 | W7: 9 | X7: 12 | Y7: 2 | Z7: 2 | AA7: 4 | AB7: 1 | AC7: 4 | BO7: BERNARD Pierre | BP7: Pénalité | BQ7: 22 | BR7: 3 | BS7: 0 | BT7: 1 | BU7: 0 | BV7: 0 | BW7: PAILLAUGUE Benoît | BX7: Transformation | BY7: 13 | BZ7: 2 | CA7: 0 | CB7: 0 | CC7: 0 | CD7: 1 | CF7: LAMERAT Rémi | CG7: Essai | CH7: 25 | CI7: 5 | CJ7: 1 | CK7: 0 | CL7: 0 | CM7: 0 | CN7: PORICAL Jérôme | CO7: Transformation | CP7: 40 | CQ7: 2 | CR7: 0 | CS7: 0 | CT7: 0 | CU7: 1 | CW7: JAMES Brock | CX7: Transformation | CY7: 5 | CZ7: 2 | DA7: 0 | DB7: 0 | DC7: 0 | DD7: 1 | DI7: 0 | DJ7: 0 | DK7: 0 | DL7: 0 | DN7: TIAN Silvere | DO7: Essai | DP7: 12 | DQ7: 5 | DR7: 1 | DS7: 0 | DT7: 0 | DU7: 0 | DV7: YACHVILI Dimitri | DW7: Pénalité | DX7: 51 | DY7: 3 | DZ7: 0 | EA7: 1 | EB7: 0 | EC7: 0 | EE7: DUVENAGE Dewald | EF7: Essai | EG7: 13 | EH7: 5 | EI7: 1 | EJ7: 0 | EK7: 0 | EL7: 0 | EM7: BARKLEY Olly | EN7: Transformation | EO7: 36 | EP7: 2 | EQ7: 0 | ER7: 0 | ES7: 0 | ET7: 1 | EV7: WULF Rudi | EW7: Essai | EX7: 14 | EY7: 5 | EZ7: 1 | FA7: 0 | FB7: 0 | FC7: 0 | FD7: NEISEN Anderson | FE7: Pénalité | FF7: 19 | FG7: 3 | FH7: 0 | FI7: 1 | FJ7: 0 | FK7: 0 | FM7: McALISTER Luke | FN7: Transformation | FO7: 7 | FP7: 2 | FQ7: 0 | FR7: 0 | FS7: 0 | FT7: 1 | FU7: BEN AROUS Eddy | FV7: Carton Jaune | FW7: 72 | FX7: 0 | FY7: 0 | FZ7: 0 | GA7: 0 | GB7: 0
B8: =DA2 -> 7 | E8: =DI2 -> 0 | G8: 4 | H8: Toulouse | I8: 11 | J8: 4 | K8: 2 | L8: 0 | M8: 2 | N8: 114 | O8: 78 | P8: 36 | Q8: 9 | R8: 5 | S8: 9 | T8: 4 | U8: 0 | V8: 1 | W8: 17 | X8: 14 | Y8: 2 | Z8: 1 | AA8: 3 | AB8: 0 | AC8: 4 | BO8: BERNARD Pierre | BP8: Pénalité | BQ8: 27 | BR8: 3 | BS8: 0 | BT8: 1 | BU8: 0 | BV8: 0 | BW8: BIAS Alexandre | BX8: Carton Jaune | BY8: 34 | BZ8: 0 | CA8: 0 | CB8: 0 | CC8: 0 | CD8: 0 | CF8: TOMAS Julien | CG8: Carton Jaune | CH8: 40 | CI8: 0 | CJ8: 0 | CK8: 0 | CL8: 0 | CM8: 0 | CN8: RABADAN Pierre | CO8: Carton Jaune | CP8: 59 | CQ8: 0 | CR8: 0 | CS8: 0 | CT8: 0 | CU8: 0 | CW8: SIVIVATU Sitiveni | CX8: Essai | CY8: 11 | CZ8: 5 | DA8: 1 | DB8: 0 | DC8: 0 | DD8: 0 | DI8: 0 | DJ8: 0 | DK8: 0 | DL8: 0 | DN8: URDAPILLETA Benjamin | DO8: Transformation | DP8: 12 | DQ8: 2 | DR8: 0 | DS8: 0 | DT8: 0 | DU8: 1 | DV8: YACHVILI Dimitri | DW8: Pénalité | DX8: 54 | DY8: 3 | DZ8: 0 | EA8: 1 | EB8: 0 | EC8: 0 | EE8: HOOK James | EF8: Transformation | EG8: 13 | EH8: 2 | EI8: 0 | EJ8: 0 | EK8: 0 | EL8: 1 | EM8: BARKLEY Olly | EN8: Pénalité | EO8: 47 | EP8: 3 | EQ8: 0 | ER8: 1 | ES8: 0 | ET8: 0 | EV8: GITEAU Matt | EW8: Pénalité | EX8: 35 | EY8: 3 | EZ8: 0 | FA8: 1 | FB8: 0 | FC8: 0 | FD8: NEISEN Anderson | FE8: Pénalité | FF8: 31 | FG8: 3 | FH8: 0 | FI8: 1 | FJ8: 0 | FK8: 0 | FM8: McALISTER Luke | FN8: Pénalité | FO8: 21 | FP8: 3 | FQ8: 0 | FR8: 1 | FS8: 0 | FT8: 0 | FY8: 0 | FZ8: 0 | GA8: 0 | GB8: 0
A9: =HYPERLINK(MID(CELL("filename",A7),FIND("[",CELL("filename",A7)),FIND("]", CELL("filename",A7))-FIND("[",CELL("filename",A7))+1)&"'"&MID(CELL("filename",A7),FIND("]",CELL("filename",A7))+1,99)&"'!eg1","Détail") -> Détail | B9: Oyonnax | C9: =DP2 -> 24 | D9: =DX2 -> 22 | E9: Biarritz | G9: 5 | H9: Montpellier | I9: 11 | J9: 4 | K9: 2 | L9: 1 | M9: 1 | N9: 100 | O9: 94 | P9: 6 | Q9: 7 | R9: 8 | S9: 7 | T9: 6 | U9: 2 | V9: 0 | W9: 15 | X9: 14 | Y9: 0 | Z9: 1 | AA9: 1 | AB9: 0 | AC9: 4 | BO9: BERNARD Pierre | BP9: Pénalité | BQ9: 34 | BR9: 3 | BS9: 0 | BT9: 1 | BU9: 0 | BV9: 0 | BW9: AUDRIN Yoan | BX9: Essai | BY9: 35 | BZ9: 5 | CA9: 1 | CB9: 0 | CC9: 0 | CD9: 0 | CF9: MACH Brice | CG9: Essai | CH9: 59 | CI9: 5 | CJ9: 1 | CK9: 0 | CL9: 0 | CM9: 0 | CR9: 0 | CS9: 0 | CT9: 0 | CU9: 0 | CW9: JAMES Brock | CX9: Transformation | CY9: 11 | CZ9: 2 | DA9: 0 | DB9: 0 | DC9: 0 | DD9: 1 | DI9: 0 | DJ9: 0 | DK9: 0 | DL9: 0 | DN9: TIAN Silvere | DO9: Essai | DP9: 23 | DQ9: 5 | DR9: 1 | DS9: 0 | DT9: 0 | DU9: 0 | DV9: YACHVILI Dimitri | DW9: Pénalité | DX9: 70 | DY9: 3 | DZ9: 0 | EA9: 1 | EB9: 0 | EC9: 0 | EE9: HOOK James | EF9: Pénalité | EG9: 18 | EH9: 3 | EI9: 0 | EJ9: 1 | EK9: 0 | EL9: 0 | EM9: BARKLEY Olly | EN9: Pénalité | EO9: 71 | EP9: 3 | EQ9: 0 | ER9: 1 | ES9: 0 | ET9: 0 | EV9: GITEAU Matt | EW9: Essai | EX9: 40 | EY9: 5 | EZ9: 1 | FA9: 0 | FB9: 0 | FC9: 0 | FD9: NEISEN Anderson | FE9: Pénalité | FF9: 38 | FG9: 3 | FH9: 0 | FI9: 1 | FJ9: 0 | FK9: 0 | FM9: McALISTER Luke | FN9: Pénalité | FO9: 31 | FP9: 3 | FQ9: 0 | FR9: 1 | FS9: 0 | FT9: 0 | FY9: 0 | FZ9: 0 | GA9: 0 | GB9: 0
B10: =DR2 -> 2 | E10: =DZ2 -> 1 | G10: 6 | H10: Perpignan | I10: 10 | J10: 4 | K10: 2 | L10: 0 | M10: 2 | N10: 109 | O10: 95 | P10: 14 | Q10: 11 | R10: 7 | S10: 9 | T10: 6 | U10: 2 | V10: 3 | W10: 10 | X10: 13 | Y10: 1 | Z10: 1 | AA10: 2 | AB10: 0 | AC10: 2 | BO10: CONNOR Blair | BP10: Essai | BQ10: 46 | BR10: 5 | BS10: 1 | BT10: 0 | BU10: 0 | BV10: 0 | BW10: PAILLAUGUE Benoît | BX10: Transformation | BY10: 35 | BZ10: 2 | CA10: 0 | CB10: 0 | CC10: 0 | CD10: 1 | CF10: KOCKOTT Rory | CG10: Transformation | CH10: 59 | CI10: 2 | CJ10: 0 | CK10: 0 | CL10: 0 | CM10: 1 | CR10: 0 | CS10: 0 | CT10: 0 | CU10: 0 | CW10: SIVIVATU Sitiveni | CX10: Carton Jaune | CY10: 20 | CZ10: 0 | DA10: 0 | DB10: 0 | DC10: 0 | DD10: 0 | DI10: 0 | DJ10: 0 | DK10: 0 | DL10: 0 | DN10: URDAPILLETA Benjamin | DO10: Pénalité | DP10: 44 | DQ10: 3 | DR10: 0 | DS10: 1 | DT10: 0 | DU10: 0 | DV10: NGWENYA Takudzwa | DW10: Essai | DX10: 78 | DY10: 5 | DZ10: 1 | EA10: 0 | EB10: 0 | EC10: 0 | EE10: GUITOUNE Sofiane | EF10: Essai | EG10: 32 | EH10: 5 | EI10: 1 | EJ10: 0 | EK10: 0 | EL10: 0 | EQ10: 0 | ER10: 0 | ES10: 0 | ET10: 0 | EV10: GITEAU Matt | EW10: Transformation | EX10: 45 | EY10: 2 | EZ10: 0 | FA10: 0 | FB10: 0 | FC10: 1 | FD10: ASIESHVILI Karlen | FE10: Carton Jaune | FF10: 54 | FG10: 0 | FH10: 0 | FI10: 0 | FJ10: 0 | FK10: 0 | FM10: MILLO-CHLUSKI Romain | FN10: Carton Jaune | FO10: 45 | FP10: 0 | FQ10: 0 | FR10: 0 | FS10: 0 | FT10: 0 | FY10: 0 | FZ10: 0 | GA10: 0 | GB10: 0
A11: =HYPERLINK(MID(CELL("filename",A9),FIND("[",CELL("filename",A9)),FIND("]", CELL("filename",A9))-FIND("[",CELL("filename",A9))+1)&"'"&MID(CELL("filename",A9),FIND("]",CELL("filename",A9))+1,99)&"'!ew1","Détail") -> Détail | B11: Perpignan | C11: =EG2 -> 36 | D11: =EO2 -> 13 | E11: Grenoble | G11: 7 | H11: StadeFrancais | I11: 10 | J11: 4 | K11: 2 | L11: 0 | M11: 2 | N11: 92 | O11: 87 | P11: 5 | Q11: 7 | R11: 10 | S11: 6 | T11: 8 | U11: 4 | V11: 0 | W11: 11 | X11: 7 | Y11: 1 | Z11: 1 | AA11: 2 | AB11: 0 | AC11: 3 | BO11: BERNARD Pierre | BP11: Pénalité | BQ11: 59 | BR11: 3 | BS11: 0 | BT11: 1 | BU11: 0 | BV11: 0 | BW11: PAILLAUGUE Benoît | BX11: Pénalité | BY11: 39 | BZ11: 3 | CA11: 0 | CB11: 1 | CC11: 0 | CD11: 0 | CF11: LAMERAT Rémi | CG11: Essai | CH11: 65 | CI11: 5 | CJ11: 1 | CK11: 0 | CL11: 0 | CM11: 0 | CR11: 0 | CS11: 0 | CT11: 0 | CU11: 0 | CW11: NAKAITACI Noa Seru | CX11: Essai | CY11: 25 | CZ11: 5 | DA11: 1 | DB11: 0 | DC11: 0 | DD11: 0 | DI11: 0 | DJ11: 0 | DK11: 0 | DL11: 0 | DN11: URDAPILLETA Benjamin | DO11: Pénalité | DP11: 56 | DQ11: 3 | DR11: 0 | DS11: 1 | DT11: 0 | DU11: 0 | DV11: YACHVILI Dimitri | DW11: Transformation | DX11: 78 | DY11: 2 | DZ11: 0 | EA11: 0 | EB11: 0 | EC11: 1 | EE11: HOOK James | EF11: Transformation | EG11: 32 | EH11: 2 | EI11: 0 | EJ11: 0 | EK11: 0 | EL11: 1 | EQ11: 0 | ER11: 0 | ES11: 0 | ET11: 0 | EV11: ROSSOUW Danie | EW11: Essai | EX11: 46 | EY11: 5 | EZ11: 1 | FA11: 0 | FB11: 0 | FC11: 0 | FH11: 0 | FI11: 0 | FJ11: 0 | FK11: 0 | FM11: NYANGA Yannick | FN11: Essai | FO11: 53 | FP11: 5 | FQ11: 1 | FR11: 0 | FS11: 0 | FT11: 0 | FY11: 0 | FZ11: 0 | GA11: 0 | GB11: 0
B12: =EI2 -> 5 | E12: =EQ2 -> 1 | G12: 8 | H12: BordeauxBègles | I12: 9 | J12: 4 | K12: 2 | L12: 0 | M12: 2 | N12: 93 | O12: 103 | P12: -10 | Q12: 4 | R12: 6 | S12: 2 | T12: 5 | U12: 1 | V12: 0 | W12: 22 | X12: 21 | Y12: 0 | Z12: 1 | AA12: 1 | AB12: 0 | AC12: 2 | BO12: MAYNADIER Clément | BP12: Essai | BQ12: 78 | BR12: 5 | BS12: 1 | BT12: 0 | BU12: 0 | BV12: 0 | BW12: COMBEZOU Thomas | BX12: Essai | BY12: 49 | BZ12: 5 | CA12: 1 | CB12: 0 | CC12: 0 | CD12: 0 | CF12: KOCKOTT Rory | CG12: Transformation | CH12: 65 | CI12: 2 | CJ12: 0 | CK12: 0 | CL12: 0 | CM12: 1 | CR12: 0 | CS12: 0 | CT12: 0 | CU12: 0 | CW12: JAMES Brock | CX12: Transformation | CY12: 25 | CZ12: 2 | DA12: 0 | DB12: 0 | DC12: 0 | DD12: 1 | DI12: 0 | DJ12: 0 | DK12: 0 | DL12: 0 | DR12: 0 | DS12: 0 | DT12: 0 | DU12: 0 | DZ12: 0 | EA12: 0 | EB12: 0 | EC12: 0 | EE12: TERRAIN Romain | EF12: Carton Jaune | EG12: 47 | EH12: 0 | EI12: 0 | EJ12: 0 | EK12: 0 | EL12: 0 | EQ12: 0 | ER12: 0 | ES12: 0 | ET12: 0 | EV12: MERMOZ Maxime | EW12: Essai | EX12: 54 | EY12: 5 | EZ12: 1 | FA12: 0 | FB12: 0 | FC12: 0 | FH12: 0 | FI12: 0 | FJ12: 0 | FK12: 0 | FM12: McALISTER Luke | FN12: Transformation | FO12: 53 | FP12: 2 | FQ12: 0 | FR12: 0 | FS12: 0 | FT12: 1 | FY12: 0 | FZ12: 0 | GA12: 0 | GB12: 0
A13: =HYPERLINK(MID(CELL("filename",A11),FIND("[",CELL("filename",A11)),FIND("]", CELL("filename",A11))-FIND("[",CELL("filename",A11))+1)&"'"&MID(CELL("filename",A11),FIND("]",CELL("filename",A11))+1,99)&"'!fn1","Détail") -> Détail | B13: Toulon | C13: =EX2 -> 62 | D13: =FF2 -> 12 | E13: Brive | G13: 9 | H13: Bayonne | I13: 9 | J13: 4 | K13: 2 | L13: 0 | M13: 2 | N13: 73 | O13: 126 | P13: -53 | Q13: 7 | R13: 13 | S13: 4 | T13: 11 | U13: 0 | V13: 1 | W13: 10 | X13: 12 | Y13: 1 | Z13: 0 | AA13: 1 | AB13: 1 | AC13: 2 | BS13: 0 | BT13: 0 | BU13: 0 | BV13: 0 | BW13: PAILLAUGUE Benoît | BX13: Transformation | BY13: 49 | BZ13: 2 | CA13: 0 | CB13: 0 | CC13: 0 | CD13: 1 | CF13: GROSSO Rémy | CG13: Essai | CH13: 71 | CI13: 5 | CJ13: 1 | CK13: 0 | CL13: 0 | CM13: 0 | CR13: 0 | CS13: 0 | CT13: 0 | CU13: 0 | CW13: JAMES Brock | CX13: Pénalité | CY13: 31 | CZ13: 3 | DA13: 0 | DB13: 1 | DC13: 0 | DD13: 0 | DI13: 0 | DJ13: 0 | DK13: 0 | DL13: 0 | DR13: 0 | DS13: 0 | DT13: 0 | DU13: 0 | DZ13: 0 | EA13: 0 | EB13: 0 | EC13: 0 | EE13: MJEKEVU Wandile | EF13: Essai | EG13: 59 | EH13: 5 | EI13: 1 | EJ13: 0 | EK13: 0 | EL13: 0 | EQ13: 0 | ER13: 0 | ES13: 0 | ET13: 0 | EV13: GITEAU Matt | EW13: Transformation | EX13: 54 | EY13: 2 | EZ13: 0 | FA13: 0 | FB13: 0 | FC13: 1 | FH13: 0 | FI13: 0 | FJ13: 0 | FK13: 0 | FM13: TEKORI Iosefa | FN13: Essai | FO13: 74 | FP13: 5 | FQ13: 1 | FR13: 0 | FS13: 0 | FT13: 0 | FY13: 0 | FZ13: 0 | GA13: 0 | GB13: 0
B14: =EZ2 -> 9 | E14: =FH2 -> 0 | G14: 10 | H14: Oyonnax | I14: 8 | J14: 4 | K14: 2 | L14: 0 | M14: 2 | N14: 74 | O14: 102 | P14: -28 | Q14: 6 | R14: 8 | S14: 4 | T14: 4 | U14: 1 | V14: 0 | W14: 11 | X14: 18 | Y14: 0 | Z14: 0 | AA14: 0 | AB14: 0 | AC14: 4 | BS14: 0 | BT14: 0 | BU14: 0 | BV14: 0 | BW14: PAILLAUGUE Benoît | BX14: Pénalité | BY14: 57 | BZ14: 3 | CA14: 0 | CB14: 1 | CC14: 0 | CD14: 0 | CF14: GARVEY Marcel | CG14: Essai | CH14: 74 | CI14: 5 | CJ14: 1 | CK14: 0 | CL14: 0 | CM14: 0 | CR14: 0 | CS14: 0 | CT14: 0 | CU14: 0 | CW14: NAKAITACI Noa Seru | CX14: Essai | CY14: 33 | CZ14: 5 | DA14: 1 | DB14: 0 | DC14: 0 | DD14: 0 | DI14: 0 | DJ14: 0 | DK14: 0 | DL14: 0 | DR14: 0 | DS14: 0 | DT14: 0 | DU14: 0 | DZ14: 0 | EA14: 0 | EB14: 0 | EC14: 0 | EE14: HOOK James | EF14: Transformation | EG14: 59 | EH14: 2 | EI14: 0 | EJ14: 0 | EK14: 0 | EL14: 1 | EQ14: 0 | ER14: 0 | ES14: 0 | ET14: 0 | EW14: Essai de Pénalité | EX14: 59 | EY14: 5 | EZ14: 1 | FA14: 0 | FB14: 0 | FC14: 0 | FH14: 0 | FI14: 0 | FJ14: 0 | FK14: 0 | FM14: McALISTER Luke | FN14: Transformation | FO14: 74 | FP14: 2 | FQ14: 0 | FR14: 0 | FS14: 0 | FT14: 1 | FY14: 0 | FZ14: 0 | GA14: 0 | GB14: 0
A15: =HYPERLINK(MID(CELL("filename",A13),FIND("[",CELL("filename",A13)),FIND("]", CELL("filename",A13))-FIND("[",CELL("filename",A13))+1)&"'"&MID(CELL("filename",A13),FIND("]",CELL("filename",A13))+1,99)&"'!gg1","Détail") -> Détail | B15: Toulouse | C15: =FO2 -> 30 | D15: =FW2 -> 6 | E15: RacingMétro92 | G15: 11 | H15: RacingMétro92 | I15: 8 | J15: 4 | K15: 2 | L15: 0 | M15: 2 | N15: 61 | O15: 94 | P15: -33 | Q15: 3 | R15: 9 | S15: 2 | T15: 8 | U15: 0 | V15: 2 | W15: 14 | X15: 9 | Y15: 0 | Z15: 0 | AA15: 0 | AB15: 1 | AC15: 1 | BS15: 0 | BT15: 0 | BU15: 0 | BV15: 0 | BW15: PÉLISSIÉ Jonathan | BX15: Pénalité | BY15: 76 | BZ15: 3 | CA15: 0 | CB15: 1 | CC15: 0 | CD15: 0 | CF15: KOCKOTT Rory | CG15: Transformation | CH15: 74 | CI15: 2 | CJ15: 0 | CK15: 0 | CL15: 0 | CM15: 1 | CR15: 0 | CS15: 0 | CT15: 0 | CU15: 0 | CW15: JAMES Brock | CX15: Transformation | CY15: 33 | CZ15: 2 | DA15: 0 | DB15: 0 | DC15: 0 | DD15: 1 | DI15: 0 | DJ15: 0 | DK15: 0 | DL15: 0 | DR15: 0 | DS15: 0 | DT15: 0 | DU15: 0 | DZ15: 0 | EA15: 0 | EB15: 0 | EC15: 0 | EE15: GUITOUNE Sofiane | EF15: Essai | EG15: 60 | EH15: 5 | EI15: 1 | EJ15: 0 | EK15: 0 | EL15: 0 | EQ15: 0 | ER15: 0 | ES15: 0 | ET15: 0 | EV15: GITEAU Matt | EW15: Transformation | EX15: 59 | EY15: 2 | EZ15: 0 | FA15: 0 | FB15: 0 | FC15: 1 | FH15: 0 | FI15: 0 | FJ15: 0 | FK15: 0 | FQ15: 0 | FR15: 0 | FS15: 0 | FT15: 0 | FY15: 0 | FZ15: 0 | GA15: 0 | GB15: 0
B16: =FQ2 -> 3 | E16: =FY2 -> 0 | G16: 12 | H16: Grenoble | I16: 8 | J16: 4 | K16: 2 | L16: 0 | M16: 2 | N16: 66 | O16: 112 | P16: -46 | Q16: 3 | R16: 12 | S16: 3 | T16: 8 | U16: 0 | V16: 0 | W16: 15 | X16: 12 | Y16: 0 | Z16: 0 | AA16: 0 | AB16: 0 | AC16: 5 | BS16: 0 | BT16: 0 | BU16: 0 | BV16: 0 | CA16: 0 | CB16: 0 | CC16: 0 | CD16: 0 | CJ16: 0 | CK16: 0 | CL16: 0 | CM16: 0 | CR16: 0 | CS16: 0 | CT16: 0 | CU16: 0 | CW16: VOSLOO Gerhard | CX16: Essai | CY16: 46 | CZ16: 5 | DA16: 1 | DB16: 0 | DC16: 0 | DD16: 0 | DI16: 0 | DJ16: 0 | DK16: 0 | DL16: 0 | DR16: 0 | DS16: 0 | DT16: 0 | DU16: 0 | DZ16: 0 | EA16: 0 | EB16: 0 | EC16: 0 | EI16: 0 | EJ16: 0 | EK16: 0 | EL16: 0 | EQ16: 0 | ER16: 0 | ES16: 0 | ET16: 0 | EV16: TILLOUS-BORDE Sébastien | EW16: Essai | EX16: 68 | EY16: 5 | EZ16: 1 | FA16: 0 | FB16: 0 | FC16: 0 | FH16: 0 | FI16: 0 | FJ16: 0 | FK16: 0 | FQ16: 0 | FR16: 0 | FS16: 0 | FT16: 0 | FY16: 0 | FZ16: 0 | GA16: 0 | GB16: 0
G17: 13 | H17: Biarritz | I17: 6 | J17: 4 | K17: 1 | L17: 0 | M17: 3 | N17: 62 | O17: 96 | P17: -34 | Q17: 4 | R17: 7 | S17: 3 | T17: 5 | U17: 1 | V17: 1 | W17: 11 | X17: 16 | Y17: 0 | Z17: 2 | AA17: 2 | AB17: 0 | AC17: 4 | BS17: 0 | BT17: 0 | BU17: 0 | BV17: 0 | CA17: 0 | CB17: 0 | CC17: 0 | CD17: 0 | CJ17: 0 | CK17: 0 | CL17: 0 | CM17: 0 | CR17: 0 | CS17: 0 | CT17: 0 | CU17: 0 | CW17: JAMES Brock | CX17: Transformation | CY17: 46 | CZ17: 2 | DA17: 0 | DB17: 0 | DC17: 0 | DD17: 1 | DI17: 0 | DJ17: 0 | DK17: 0 | DL17: 0 | DR17: 0 | DS17: 0 | DT17: 0 | DU17: 0 | DZ17: 0 | EA17: 0 | EB17: 0 | EC17: 0 | EI17: 0 | EJ17: 0 | EK17: 0 | EL17: 0 | EQ17: 0 | ER17: 0 | ES17: 0 | ET17: 0 | EV17: GITEAU Matt | EW17: Transformation | EX17: 68 | EY17: 2 | EZ17: 0 | FA17: 0 | FB17: 0 | FC17: 1 | FH17: 0 | FI17: 0 | FJ17: 0 | FK17: 0 | FQ17: 0 | FR17: 0 | FS17: 0 | FT17: 0 | FY17: 0 | FZ17: 0 | GA17: 0 | GB17: 0
G18: 14 | H18: Brive | I18: 5 | J18: 4 | K18: 1 | L18: 0 | M18: 3 | N18: 75 | O18: 126 | P18: -51 | Q18: 5 | R18: 13 | S18: 4 | T18: 11 | U18: 1 | V18: 1 | W18: 13 | X18: 12 | Y18: 0 | Z18: 1 | AA18: 1 | AB18: 0 | AC18: 6 | BS18: 0 | BT18: 0 | BU18: 0 | BV18: 0 | CA18: 0 | CB18: 0 | CC18: 0 | CD18: 0 | CJ18: 0 | CK18: 0 | CL18: 0 | CM18: 0 | CR18: 0 | CS18: 0 | CT18: 0 | CU18: 0 | CW18: VOSLOO Gerhard | CX18: Essai | CY18: 50 | CZ18: 5 | DA18: 1 | DB18: 0 | DC18: 0 | DD18: 0 | DI18: 0 | DJ18: 0 | DK18: 0 | DL18: 0 | DR18: 0 | DS18: 0 | DT18: 0 | DU18: 0 | DZ18: 0 | EA18: 0 | EB18: 0 | EC18: 0 | EI18: 0 | EJ18: 0 | EK18: 0 | EL18: 0 | EQ18: 0 | ER18: 0 | ES18: 0 | ET18: 0 | EV18: GITEAU Matt | EW18: Essai | EX18: 76 | EY18: 5 | EZ18: 1 | FA18: 0 | FB18: 0 | FC18: 0 | FH18: 0 | FI18: 0 | FJ18: 0 | FK18: 0 | FQ18: 0 | FR18: 0 | FS18: 0 | FT18: 0 | FY18: 0 | FZ18: 0 | GA18: 0 | GB18: 0
C19: Dom | D19: Ext | E19: Total | BS19: 0 | BT19: 0 | BU19: 0 | BV19: 0 | CA19: 0 | CB19: 0 | CC19: 0 | CD19: 0 | CJ19: 0 | CK19: 0 | CL19: 0 | CM19: 0 | CR19: 0 | CS19: 0 | CT19: 0 | CU19: 0 | CW19: LACRAMPE Thierry | CX19: Transformation | CY19: 50 | CZ19: 2 | DA19: 0 | DB19: 0 | DC19: 0 | DD19: 1 | DI19: 0 | DJ19: 0 | DK19: 0 | DL19: 0 | DQ19: =IF(DO19<>"",VLOOKUP(DO19,ActionPts,2,),"") ->  | DR19: =IF(OR(DO19="Essai",DO19="Essai de Pénalité"),1,0) -> 0 | DS19: =IF(DO19="Pénalité",1,0) -> 0 | DT19: =IF(DO19="Drop",1,0) -> 0 | DU19: =IF(DO19="Transformation",1,0) -> 0 | DZ19: 0 | EA19: 0 | EB19: 0 | EC19: 0 | EI19: 0 | EJ19: 0 | EK19: 0 | EL19: 0 | EQ19: 0 | ER19: 0 | ES19: 0 | ET19: 0 | EV19: GITEAU Matt | EW19: Transformation | EX19: 76 | EY19: 2 | EZ19: 0 | FA19: 0 | FB19: 0 | FC19: 1 | FH19: 0 | FI19: 0 | FJ19: 0 | FK19: 0 | FQ19: 0 | FR19: 0 | FS19: 0 | FT19: 0 | FY19: 0 | FZ19: 0 | GA19: 0 | GB19: 0
B20: Nbre de points | C20: =SUM(C3:C16) -> 274 | D20: =SUM(D3:D16) -> 96 | E20: =C20+D20 -> 370 | BS20: 0 | BT20: 0 | BU20: 0 | BV20: 0 | CA20: 0 | CB20: 0 | CC20: 0 | CD20: 0 | CJ20: 0 | CK20: 0 | CL20: 0 | CM20: 0 | CR20: 0 | CS20: 0 | CT20: 0 | CU20: 0 | CW20: NALAGA Napolioni | CX20: Carton Jaune | CY20: 55 | CZ20: 0 | DA20: 0 | DB20: 0 | DC20: 0 | DD20: 0 | DI20: 0 | DJ20: 0 | DK20: 0 | DL20: 0 | DQ20: =IF(DO20<>"",VLOOKUP(DO20,ActionPts,2,),"") ->  | DR20: =IF(OR(DO20="Essai",DO20="Essai de Pénalité"),1,0) -> 0 | DS20: =IF(DO20="Pénalité",1,0) -> 0 | DT20: =IF(DO20="Drop",1,0) -> 0 | DU20: =IF(DO20="Transformation",1,0) -> 0 | DZ20: 0 | EA20: 0 | EB20: 0 | EC20: 0 | EI20: 0 | EJ20: 0 | EK20: 0 | EL20: 0 | EQ20: 0 | ER20: 0 | ES20: 0 | ET20: 0 | EV20: PALISSON Alexis | EW20: Essai | EX20: 80 | EY20: 5 | EZ20: 1 | FA20: 0 | FB20: 0 | FC20: 0 | FH20: 0 | FI20: 0 | FJ20: 0 | FK20: 0 | FQ20: 0 | FR20: 0 | FS20: 0 | FT20: 0 | FY20: 0 | FZ20: 0 | GA20: 0 | GB20: 0
B21: Par match | C21: =IF(BN48=0,0,ROUND(C20/BN48,1)) -> 39.1 | D21: =IF(BN48=0,0,ROUND(D20/BN48,1)) -> 13.7 | E21: =C21+D21 -> 52.8 | I21: Classement à Domicile | BS21: 0 | BT21: 0 | BU21: 0 | BV21: 0 | CA21: 0 | CB21: 0 | CC21: 0 | CD21: 0 | CJ21: 0 | CK21: 0 | CL21: 0 | CM21: 0 | CR21: 0 | CS21: 0 | CT21: 0 | CU21: 0 | CW21: SIVIVATU Sitiveni | CX21: Essai | CY21: 63 | CZ21: 5 | DA21: 1 | DB21: 0 | DC21: 0 | DD21: 0 | DI21: 0 | DJ21: 0 | DK21: 0 | DL21: 0 | DQ21: =IF(DO21<>"",VLOOKUP(DO21,ActionPts,2,),"") ->  | DR21: =IF(OR(DO21="Essai",DO21="Essai de Pénalité"),1,0) -> 0 | DS21: =IF(DO21="Pénalité",1,0) -> 0 | DT21: =IF(DO21="Drop",1,0) -> 0 | DU21: =IF(DO21="Transformation",1,0) -> 0 | DZ21: 0 | EA21: 0 | EB21: 0 | EC21: 0 | EI21: 0 | EJ21: 0 | EK21: 0 | EL21: 0 | EQ21: 0 | ER21: 0 | ES21: 0 | ET21: 0 | EV21: GITEAU Matt | EW21: Transformation | EX21: 80 | EY21: 2 | EZ21: 0 | FA21: 0 | FB21: 0 | FC21: 1 | FH21: 0 | FI21: 0 | FJ21: 0 | FK21: 0 | FQ21: 0 | FR21: 0 | FS21: 0 | FT21: 0 | FY21: 0 | FZ21: 0 | GA21: 0 | GB21: 0
B22: Nbre d'essais | C22: =B4+B6+B8+B10+B12+B14+B16 -> 35 | D22: =E4+E6+E8+E10+E12+E14+E16 -> 6 | E22: =C22+D22 -> 41 | BS22: 0 | BT22: 0 | BU22: 0 | BV22: 0 | CA22: 0 | CB22: 0 | CC22: 0 | CD22: 0 | CJ22: 0 | CK22: 0 | CL22: 0 | CM22: 0 | CR22: 0 | CS22: 0 | CT22: 0 | CU22: 0 | CW22: LACRAMPE Thierry | CX22: Transformation | CY22: 63 | CZ22: 2 | DA22: 0 | DB22: 0 | DC22: 0 | DD22: 1 | DI22: 0 | DJ22: 0 | DK22: 0 | DL22: 0 | DQ22: =IF(DO22<>"",VLOOKUP(DO22,ActionPts,2,),"") ->  | DR22: =IF(OR(DO22="Essai",DO22="Essai de Pénalité"),1,0) -> 0 | DS22: =IF(DO22="Pénalité",1,0) -> 0 | DT22: =IF(DO22="Drop",1,0) -> 0 | DU22: =IF(DO22="Transformation",1,0) -> 0 | DZ22: 0 | EA22: 0 | EB22: 0 | EC22: 0 | EI22: 0 | EJ22: 0 | EK22: 0 | EL22: 0 | EQ22: 0 | ER22: 0 | ES22: 0 | ET22: 0 | EZ22: 0 | FA22: 0 | FB22: 0 | FC22: 0 | FH22: 0 | FI22: 0 | FJ22: 0 | FK22: 0 | FQ22: 0 | FR22: 0 | FS22: 0 | FT22: 0 | FY22: 0 | FZ22: 0 | GA22: 0 | GB22: 0
B23: Par match | C23: =IF(BN48=0,0,ROUND(C22/BN48,1)) -> 5 | D23: =IF(BN48=0,0,ROUND(D22/BN48,1)) -> 0.9 | E23: =C23+D23 -> 5.9 | I23: Pts | J23: J. | K23: G | L23: N | M23: P | N23: Pr | O23: Ctr | P23: Diff | Q23: E p | R23: E c | S23: Tp | T23: Tc | U23: Dp | V23: Dc | W23: Pp | X23: Pc | Y23: B.O | Z23: B.D | AA23: Bon | AB23: Cr | AC23: Cj | BS23: 0 | BT23: 0 | BU23: 0 | BV23: 0 | CA23: 0 | CB23: 0 | CC23: 0 | CD23: 0 | CJ23: 0 | CK23: 0 | CL23: 0 | CM23: 0 | CR23: 0 | CS23: 0 | CT23: 0 | CU23: 0 | DA23: 0 | DB23: 0 | DC23: 0 | DD23: 0 | DI23: 0 | DJ23: 0 | DK23: 0 | DL23: 0 | DQ23: =IF(DO23<>"",VLOOKUP(DO23,ActionPts,2,),"") ->  | DR23: =IF(OR(DO23="Essai",DO23="Essai de Pénalité"),1,0) -> 0 | DS23: =IF(DO23="Pénalité",1,0) -> 0 | DT23: =IF(DO23="Drop",1,0) -> 0 | DU23: =IF(DO23="Transformation",1,0) -> 0 | DZ23: 0 | EA23: 0 | EB23: 0 | EC23: 0 | EI23: 0 | EJ23: 0 | EK23: 0 | EL23: 0 | EQ23: 0 | ER23: 0 | ES23: 0 | ET23: 0 | EZ23: 0 | FA23: 0 | FB23: 0 | FC23: 0 | FH23: 0 | FI23: 0 | FJ23: 0 | FK23: 0 | FQ23: 0 | FR23: 0 | FS23: 0 | FT23: 0 | FY23: 0 | FZ23: 0 | GA23: 0 | GB23: 0
B24: Nbre Transformations | C24: =BV2+CM2+DD2+DU2+EL2+FC2+FT2 -> 27 | D24: =CD2+CU2+DL2+EC2+ET2+FK2+GB2 -> 6 | E24: =IF(C22+D22<>0,ROUND(C24/C22*100,1)&" % - "&ROUND(D24/D22*100,1)&" % - "&ROUND((C24+D24)/(C22+D22)*100,1)&" %","--") -> 77,1 % - 100 % - 80,5 % | G24: 1 | H24: Toulon | I24: 10 | J24: 2 | K24: 2 | L24: 0 | M24: 0 | N24: 103 | O24: 26 | P24: 77 | Q24: 14 | R24: 1 | S24: 12 | T24: 0 | U24: 1 | V24: 0 | W24: 2 | X24: 7 | Y24: 2 | Z24: 0 | AA24: 2 | AB24: 1 | AC24: 2 | BS24: 0 | BT24: 0 | BU24: 0 | BV24: 0 | CA24: 0 | CB24: 0 | CC24: 0 | CD24: 0 | CJ24: 0 | CK24: 0 | CL24: 0 | CM24: 0 | CR24: 0 | CS24: 0 | CT24: 0 | CU24: 0 | DA24: 0 | DB24: 0 | DC24: 0 | DD24: 0 | DI24: 0 | DJ24: 0 | DK24: 0 | DL24: 0 | DR24: 0 | DS24: 0 | DT24: 0 | DU24: 0 | DZ24: 0 | EA24: 0 | EB24: 0 | EC24: 0 | EI24: 0 | EJ24: 0 | EK24: 0 | EL24: 0 | EQ24: 0 | ER24: 0 | ES24: 0 | ET24: 0 | EZ24: 0 | FA24: 0 | FB24: 0 | FC24: 0 | FH24: 0 | FI24: 0 | FJ24: 0 | FK24: 0 | FQ24: 0 | FR24: 0 | FS24: 0 | FT24: 0 | FY24: 0 | FZ24: 0 | GA24: 0 | GB24: 0
B25: Par match | C25: =IF(BN48=0,0,ROUND(C24/BN48,1)) -> 3.9 | D25: =IF(BN48=0,0,ROUND(D24/BN48,1)) -> 0.9 | E25: =C25+D25 -> 4.8 | G25: 2 | H25: Montferrand | I25: 10 | J25: 2 | K25: 2 | L25: 0 | M25: 0 | N25: 93 | O25: 19 | P25: 74 | Q25: 11 | R25: 1 | S25: 10 | T25: 1 | U25: 1 | V25: 0 | W25: 5 | X25: 4 | Y25: 2 | Z25: 0 | AA25: 2 | AB25: 0 | AC25: 3 | BS25: 0 | BT25: 0 | BU25: 0 | BV25: 0 | CA25: 0 | CB25: 0 | CC25: 0 | CD25: 0 | CJ25: 0 | CK25: 0 | CL25: 0 | CM25: 0 | CR25: 0 | CS25: 0 | CT25: 0 | CU25: 0 | DA25: 0 | DB25: 0 | DC25: 0 | DD25: 0 | DI25: 0 | DJ25: 0 | DK25: 0 | DL25: 0 | DR25: 0 | DS25: 0 | DT25: 0 | DU25: 0 | DZ25: 0 | EA25: 0 | EB25: 0 | EC25: 0 | EI25: 0 | EJ25: 0 | EK25: 0 | EL25: 0 | EQ25: 0 | ER25: 0 | ES25: 0 | ET25: 0 | EZ25: 0 | FA25: 0 | FB25: 0 | FC25: 0 | FH25: 0 | FI25: 0 | FJ25: 0 | FK25: 0 | FQ25: 0 | FR25: 0 | FS25: 0 | FT25: 0 | FY25: 0 | FZ25: 0 | GA25: 0 | GB25: 0
B26: Nbre Pénalités | C26: =BT2+CK2+DB2+DS2+EJ2+FA2+FR2 -> 15 | D26: =CB2+CS2+DJ2+EA2+ER2+FI2+FZ2 -> 18 | E26: 33 | G26: 3 | H26: Toulouse | I26: 10 | J26: 2 | K26: 2 | L26: 0 | M26: 0 | N26: 70 | O26: 9 | P26: 61 | Q26: 7 | R26: 0 | S26: 7 | T26: 0 | U26: 0 | V26: 0 | W26: 7 | X26: 3 | Y26: 2 | Z26: 0 | AA26: 2 | AB26: 0 | AC26: 2 | BS26: 0 | BT26: 0 | BU26: 0 | BV26: 0 | CA26: 0 | CB26: 0 | CC26: 0 | CD26: 0 | CJ26: 0 | CK26: 0 | CL26: 0 | CM26: 0 | CR26: 0 | CS26: 0 | CT26: 0 | CU26: 0 | DA26: 0 | DB26: 0 | DC26: 0 | DD26: 0 | DI26: 0 | DJ26: 0 | DK26: 0 | DL26: 0 | DR26: 0 | DS26: 0 | DT26: 0 | DU26: 0 | DZ26: 0 | EA26: 0 | EB26: 0 | EC26: 0 | EI26: 0 | EJ26: 0 | EK26: 0 | EL26: 0 | EQ26: 0 | ER26: 0 | ES26: 0 | ET26: 0 | EZ26: 0 | FA26: 0 | FB26: 0 | FC26: 0 | FH26: 0 | FI26: 0 | FJ26: 0 | FK26: 0 | FQ26: 0 | FR26: 0 | FS26: 0 | FT26: 0 | FY26: 0 | FZ26: 0 | GA26: 0 | GB26: 0
B27: Par match | C27: =IF(BN48=0,0,ROUND(C26/BN48,1)) -> 2.1 | D27: =IF(BN48=0,0,ROUND(D26/BN48,1)) -> 2.6 | E27: 4.7 | G27: 4 | H27: Castres | I27: 10 | J27: 2 | K27: 2 | L27: 0 | M27: 0 | N27: 72 | O27: 16 | P27: 56 | Q27: 11 | R27: 1 | S27: 7 | T27: 1 | U27: 0 | V27: 0 | W27: 1 | X27: 3 | Y27: 2 | Z27: 0 | AA27: 2 | AB27: 1 | AC27: 2 | BS27: 0 | BT27: 0 | BU27: 0 | BV27: 0 | CA27: 0 | CB27: 0 | CC27: 0 | CD27: 0 | CJ27: 0 | CK27: 0 | CL27: 0 | CM27: 0 | CR27: 0 | CS27: 0 | CT27: 0 | CU27: 0 | DA27: 0 | DB27: 0 | DC27: 0 | DD27: 0 | DI27: 0 | DJ27: 0 | DK27: 0 | DL27: 0 | DR27: 0 | DS27: 0 | DT27: 0 | DU27: 0 | DZ27: 0 | EA27: 0 | EB27: 0 | EC27: 0 | EI27: 0 | EJ27: 0 | EK27: 0 | EL27: 0 | EQ27: 0 | ER27: 0 | ES27: 0 | ET27: 0 | EZ27: 0 | FA27: 0 | FB27: 0 | FC27: 0 | FH27: 0 | FI27: 0 | FJ27: 0 | FK27: 0 | FQ27: 0 | FR27: 0 | FS27: 0 | FT27: 0 | FY27: 0 | FZ27: 0 | GA27: 0 | GB27: 0
B28: Nbre Drop | C28: =BU2+CL2+DC2+DT2+EK2+FB2+FS2 -> 0 | D28: =CC2+CT2+DK2+EB2+ES2+FJ2+GA2 -> 0 | E28: 0 | G28: 5 | H28: Perpignan | I28: 10 | J28: 3 | K28: 2 | L28: 0 | M28: 1 | N28: 89 | O28: 64 | P28: 25 | Q28: 10 | R28: 4 | S28: 9 | T28: 4 | U28: 1 | V28: 3 | W28: 6 | X28: 9 | Y28: 1 | Z28: 1 | AA28: 2 | AB28: 0 | AC28: 2 | BS28: 0 | BT28: 0 | BU28: 0 | BV28: 0 | CA28: 0 | CB28: 0 | CC28: 0 | CD28: 0 | CJ28: 0 | CK28: 0 | CL28: 0 | CM28: 0 | CR28: 0 | CS28: 0 | CT28: 0 | CU28: 0 | DA28: 0 | DB28: 0 | DC28: 0 | DD28: 0 | DI28: 0 | DJ28: 0 | DK28: 0 | DL28: 0 | DR28: 0 | DS28: 0 | DT28: 0 | DU28: 0 | DZ28: 0 | EA28: 0 | EB28: 0 | EC28: 0 | EI28: 0 | EJ28: 0 | EK28: 0 | EL28: 0 | EQ28: 0 | ER28: 0 | ES28: 0 | ET28: 0 | EZ28: 0 | FA28: 0 | FB28: 0 | FC28: 0 | FH28: 0 | FI28: 0 | FJ28: 0 | FK28: 0 | FQ28: 0 | FR28: 0 | FS28: 0 | FT28: 0 | FY28: 0 | FZ28: 0 | GA28: 0 | GB28: 0
B29: Par match | C29: =IF(BN48=0,0,ROUND(C28/BN48,1)) -> 0 | D29: =IF(BN48=0,0,ROUND(D28/BN48,1)) -> 0 | E29: 0 | G29: 6 | H29: Bayonne | I29: 9 | J29: 2 | K29: 2 | L29: 0 | M29: 0 | N29: 70 | O29: 31 | P29: 39 | Q29: 7 | R29: 2 | S29: 4 | T29: 0 | U29: 0 | V29: 1 | W29: 9 | X29: 6 | Y29: 1 | Z29: 0 | AA29: 1 | AB29: 0 | AC29: 0 | BS29: 0 | BT29: 0 | BU29: 0 | BV29: 0 | CA29: 0 | CB29: 0 | CC29: 0 | CD29: 0 | CJ29: 0 | CK29: 0 | CL29: 0 | CM29: 0 | CR29: 0 | CS29: 0 | CT29: 0 | CU29: 0 | DA29: 0 | DB29: 0 | DC29: 0 | DD29: 0 | DI29: 0 | DJ29: 0 | DK29: 0 | DL29: 0 | DR29: 0 | DS29: 0 | DT29: 0 | DU29: 0 | DZ29: 0 | EA29: 0 | EB29: 0 | EC29: 0 | EI29: 0 | EJ29: 0 | EK29: 0 | EL29: 0 | EQ29: 0 | ER29: 0 | ES29: 0 | ET29: 0 | EZ29: 0 | FA29: 0 | FB29: 0 | FC29: 0 | FH29: 0 | FI29: 0 | FJ29: 0 | FK29: 0 | FQ29: 0 | FR29: 0 | FS29: 0 | FT29: 0 | FY29: 0 | FZ29: 0 | GA29: 0 | GB29: 0
